Workbook

Sheet Notes
A1: StiffnessIndicator.xlsm; Traders Tip spreadsheet created for the November 2018 Issue
A2: Coded beginning 2018-September-05 by Ronald McAllister (rpmac_xltt@sprynet.com)
A4: This Workbook demonstrates an EXCEL version of the ideas presented
A5: by Markos Katsanos in an article titled "The Stiffness Indicator"
A6: which originally appeared in the November 2018 issue of
A7: "Technical Analysis of Stocks and Commodities" magazine.
A9: CalculationsAndCharts construction Notes:
A10: Charts from this article may be replicated as follows:
A11: Figure 1: Symbol AMZN, Plot dates from 10/06/2014 thru 07/06/2018
A12: Note: Gray bands produced by this spreadsheet will not be the same as those displayed in Fig. 1 of the article.
A13: The "gray" criteria for Fig. 1 Highlights "corrections" where the gray in Fig. 2 reflects Stiffness.
A14: Figure 2: Symbol ALGN, Plot dates from 01/25/2016 thru 07/06/2018
A16: In the green area left of the Cursor control I have placed an overview of the Transaction Summary tab to make it easier to see how changes
A17: in the User Controls area alter the trading results for the 1000 bars currently on the CalculationsAndCharts tab.
A19: You can use the Input Data Offset (cell A11) to shift the 1000 bar data window back in time over the bars available on the InputPriceData Tab.
A21: Regarding Exits: The author suggests exiting after a number of months (expressed in bars) in the trade, or when the Stiffness goes below 50.
A22: On the chart you will see several times where the trade exits on the bar count and re-enters the trade on the next bar after the exit.
A23: This displays on the chart as nearly overlapping blue dots and red circles and happens because the conditions are still correct for entry.
A25: It would be interesting to alter the Transaction Duration Exit logic to something like "once we have exceeded the bars-in-trade criteria (and for each succeeding bar-in-trade),
A26: exit the trade only if conditions are no longer valid for entry".
A28: Transaction Summary Tab:
A29: This tab summarizes the trade signals for all of the bars on the CalculationsAndCharts tab. Not just those displayed on the Price chart.
A30: To keep the size of the spreadsheet reasonable for downloading(it is already 4 meg) I held the CalculationsAndCharts tab to 1000 bars.
A31: Anyone comfortable with manipulating cell formulas can extend the number of rows on the CalculationsAndCharts tab to see a larger aggregate of transactions.
A33: General Construction Notes
A35: This spreadsheet incorporates a major change to my Yahoo Finance historical data retrieval approach.
A36: Microsoft has indicated that the EDGE Browser will be replacing Internet Explorer going forward.
A37: Some newer machines are being delivered with Win 10 and EDGE and no Internet Explorer.
A38: This presents a looming problem as Win 7 and Win 8 begin to age out.
A39: EXCEL Querytables, as vehicles for web data retrieval, rely on parts of the Internet Explorer for automated Cookie processing.
A40: The current gate keeper protocols for access to the Yahoo Finance historical pricing data requires that both
A41: a valid Yahoo Finance cookie and a matching "Crumb" value be sent to Yahoo Finance with each historical data request.
A42: With EXCEL Query Tables the cookie part is automatic. At least as long as the necessary bits of IE remain available and functioning.
A43: However, the Crumb part is imbedded in the raw HTML returned for the Yahoo stock summary page, the Yahoo History page, and for certain other Yahoo Finance Entry level Pages.
A44: The problem has been that EXCEL provides no native capability to get at that raw HTML text.
A45: Enter MSXML.
A46: MSXML also shares the automatic Internet Explorer Cookie handlers. But if you want to ask programmatically, MSXML will show you inbound cookies destined for the IE cache.
A47: MSXML provides access to the raw HTML text and my VBA code extracts the necessary Crumb value from that text.
A48: Up until now I simply appended the Crumb value retrieved via MSXML to my Querytable history data request URLs and since cookies for Querytables are automatic, things worked just fine.
A50: Recently several folks have had the Querytable data retrievals stop working on their machines.
A51: The actual error text was Yahoo declaring an Invalid cookie but I have recently determined by trial and error that the crumb was the problem. (see below)
A52: Researching these failures led me to discover the coming IE End of life and the issues this may raise for Querytables.
A53: * * * *
A54: With this spreadsheet I am using WinHttpRequest as my VBA internet access vehicle.
A55: WinHttpRequest is analogous to MSXML with the exception that WinHttpRequest by default maintains its own in-memory cookie cache and does not share
A56: the in memory cache with any other windows processes. The downside is that Querytables can not see that cache. So I have replaced each of the Querytable calls with
A57: analogous WinHttpRequest calls and then must parse the returned pricing CSV structures in VBA where the Querytable mechanism did some of that parsing for me.
A58: Data retrieval elapsed times from Request to "charts ready" seem to be comparable to the Querytable process.
A60: Because the WinHttpRequest cookie cache exists only in memory, it does not stick around after I have completed data retrieval for a symbol.
A61: The next time you request data for a symbol, a new WinHttpRequest environment is created with an empty cache and a new cookie and new crumb get retrieved from Yahoo Finance.
A63: While I was testing my new code I ran into the "Invalid Cookie" error others have reported as an error highlighting a ".refresh" command in a Querytable call.
A64: Looking closer at the then current crumb value I realized that there was an Escape Sequence embedded in the Crumb text.
A65: As it turned out, this escape sequence, \u002F, is the encoding for a forward slash "/".
A66: I replaced the escape sequence in the crumb text with the forward slash and voila, using this corrected crumb text, the error went away!
A67: My crumb text went from "asdf898r\u002Fjv.s" to "asdf898r/jv.s" and my "Invalid Cookie" error went away.
A69: Escape sequences and the reasons they exist is too large a topic for here. Google it if you are curious.
A71: Sufficient to say that I think that this (randomly embedded escape sequences) may be what is killing things for the readers
A72: who have reported that the recent spreadsheets have all suddenly stopped working after behaving fine for months.
A73: The Yahoo finance cookie existing in the IE cache on their machine expired. Yahoo sent a new cookie.
A74: The newly generated matching crumb text unfortunately contains the forward slash or some other escaped character.
A76: Yahoo Finance cookies are good for a year. So once the problem hits, all of the Trader tips spreadsheets on that machine will report the same
A77: failure for a year until the cookie in cache expires and is replaced. Or the user removes the cookie from the IE cache.
A78: Then they must be lucky enough that the new Crumb does not also have embedded escape sequences
A80: HTML and or XML protocols use the forward slash as a delimiter so unless it appears in a proper delimiter position, any forward slash must be escape encoded
A81: to avoid problems when the recipient HTML decoder is working with the raw text.
A83: In my testing to date I have generated many successful crumbs and many failures. So far, I have only encountered the \u002F escape sequence in the failures.
A85: Escaped Characters Bottom Line: VBA code in this spreadsheet automatically looks for \u002F in a crumb text and will replace it with "/".
A86: Other escaped characters may someday turn up in the crumb text. I am taking a wait and see approach for now.
A88: How to fix this specific (\u002F) escape sequence exposure in recent spreadsheets:
A89: Open one of the problem spreadsheets
A90: Open the VBA editor ALT-F11 will do it
A91: Open the VBA editor "FIND" dialog. Ctrl-F will do it
A92: In the "Find What" box type "Function ExtractCrumbString"
A93: Click on the "Search In Current Project" radio button
A94: Click "Find Next"
A95: Scroll down to the "End Function" line. Less than a page.
A96: The immediately preceding line will begin with
A97: ExtractCrumbString = Mid(SourceText,
A98: Insert the following text between the line that begins ExtractCrumbString = Mid(SourceText,
A99: and the "End Function" line
A100: ExtractCrumbString = Replace(ExtractCrumbString, "\u002F", "/", 1, -1, vbTextCompare)
B101: Save your workbook and test as you see fit.
A103: Development Notes:
C104: This workbook contains and uses VBA macros and may use VBA Class structures.
C105: Input Data
C106: The data in this workbook is sorted date descending (most recent date at the top). All formulas and
C107: VBA routines are built accordingly.
B111: My sincere apologies to our Macintosh based readers: Neither MSXML nor WinHttpRequest are supported in your environment. So as it stands this version of the spreadsheet will not work for you.
B112: See "Why this approach does not work for Macintosh" below.
B113: I am investigating cURL as a non-Querytable based approach for the Macintosh environment.
A115: The new Yahoo Finance history download interface has changed rather radically. The biggest hurdle being a pseudo-security requirement of adding a
B116: crumb character string to any URL requesting any type of history download. That crumb must match up (by way of some sort of hash algorithm) with
B117: the Yahoo Finance cookie that must also be sent with any request to the new Yahoo History down load interface.
B119: A crumb value is returned, buried in the HTML for any of what I call the "entry level" Yahoo Finance web pages (no crumb security requirement for entry level pages).
B120: A crumb may come with other Yahoo Finance pages. A crumb may even accompany some of the secured pages as well. I have not checked.
B122: Entry level pages are the top level pages of the various Yahoo Finance dialogs and include: Quote Lookup, Stock Summary Quote, and any of the pages
B123: with links in the horizontal row with the "Summary" link on the quote summary page such as Options, Historical Data, and the rest.
B125: To date I have found no way to get at this crumb value using any native EXCEL capabilities.
B127: So this crumb requirement effectively shuts out any solution that attempts to exclusively use built-in facilities of EXCEL, which is to say a purely Querytables solution.
B129: The approach built for this Traders Tip spreadsheet uses a combination of MSXML and EXCEL Querytable calls to Load the InputPriceData worksheet.
B131: First I call MSXML to get the HTML text for the Yahoo Summary Quote page using the requested symbol. From this HTML text I extract the full company name,
B132: the market it trades, the market status and time stamp, and finally the associated crumb string. There is a bunch of other useful bits buried in this HTML
B133: text that do not necessarily appear on the web page your browser presents. Perhaps some day I will go after and build a worksheet with these other bits.
B135: Next I add the freshly extracted crumb string to the URLs I use in three separate Querytable calls to retrieve Price history, Split history, and Dividend history respectively.
B137: From there VBA code proceeds as in the past to fill in the cell formulas and formatting that make the "prettied up" InputPriceData sheet.
A139: Why this approach works for Windows:
B140: First, MSXML shares the permanent Internet Explorer web cache where cookies are maintained. Both IE and MSXML automatically
B141: update this cache when a "set cookie" header accompanies a web response. And they both automatically search this shared cache for
B142: cookies and add any "appropriate" cookies to the headers of any web requests they send out.
B143: This cookie handling automation means that even if the response to our MSXML call for the Summary web page includes a new version of
B144: the Yahoo Finance cookie, the imbedded Crumb value will always match the cookie newly installed in the cache!
B146: Second, in the Windows environment the EXCEL Querytable mechanism leans heavily on bits from Internet Explorer. This means that cookie
B147: handling is also automated from the shared cache for Querytable calls. We can count on any appropriate cookies being added to any Querytable call.
B148: We only need to do our part by adding the corresponding Crumb value to complete the security for the Querytable to access Yahoo History downloads.
A150: Why this approach does not work for Macintosh:
B151: For what it is worth, the Macintosh version of the MS Office suite of products do in fact maintain a special, shared amongst themselves only, cookie cache.
B152: They automate cookie handling into and from this cache JUST for the Office products and any Querytable activity they might originate.
B154: This cache is not tied to, nor shared with, any browser that might be installed on the MAC. And I have not found anything with HTTP capabilities similar to
B155: MSXML that can work with that Office product cookie cache.
B157: When working in the MAC EXCEL environment, without that MSXML like capability against the office shared cache, l have no mechanism
B158: to obtain a crumb value that would be a valid match to the Yahoo Finance cookie that will be automatically attached to a Querytable call.
B159: This missing facility pretty much eliminates the use of Mac environment Querytables to access the new Yahoo Finance history download interface.
A161: One very low probability potential "Gottcha" for any Querytables approach.
B162: Yahoo Finance cookies typically have an assigned expiration that is a year out (to the second) from the time they are issued.
B163: Further, these cookies are unique. Yours will not match mine.
B165: If for testing purposes, instead of MSXML, you use a fresh instance of Winhttp (Fresh instance = empty cache = no cookie to automatically send)
B166: every time you call an entry level page, the Yahoo server says "What? Entry level page? With no inbound cookie? Get them a cookie!!"
B167: and will send you a new, unique cookie and will imbed the matching crumb value in the response HTML text for each of these "no cookie attached" calls.
B169: The Gottcha: Lets say that the Yahoo Finance cookie presently in the IE cache has an expiration date and time that just happens
B170: to fall between our MSXML call to the summary page to fetch our crumb and our first (or second, or third) Querytable call.
B171: The Querytable call after the cookie expiration may fail with a cookie and crumb validation error.
B173: Querytable error reporting is atrocious. So we will not get any sort of helpful message here. Just a very generalized message like "failed to connect".
B175: The workaround is to simply go to the InputPriceData tab and click the download button.
B176: This second time through the retrieval process should not fail on a mismatch.
B177: After all, you now have a year before the new cookie that just got put into the cache expires!
A179: Calculation and Chart Worksheet Usage Comments:
C180: In General, Items in Bolded BLUE are items you may freely change to play what-if games.
C181: Be sure to have a backup copy of the spreadsheet before you alter anything else.
A183: Features carried forward from the June 2016 version of my T-Tips Template
A184: Added a pair of buttons near cell F12 that will allow the user to step the charting window forward or backward one bar for each click.
A185: I find this to be a good way to test my understanding of the author's ideas as I step through the evolution of the price behavior and the indicators.
B187: First: In the "Help! I would like to plot data" area.
B188: Added button to resolve #NA problems by locating the bar in the input data with a slightly more recent date than what the user actually requested.
B189: I find this particularly useful when I have a general idea of where I want to be date wise. Now I can pick a set of dates "out of the air".
B190: If either (or both) of my date specifications fall between dates that are available in the price history,
B191: this button will resolve them to the dates of the nearest, slightly more recent input bars.
B192: I can then refine my data interval search as necessary from there.
B193: Really great when working with Weekly or Monthly studies!
C194: 2016Jun11 - added logic to the "I would like to chart.." button to detect #N/A values and terminate
C195: gracefully with a message instead of blowing up in the charting logic.
B197: Second: In the "Price Chart Windowing Controls" area. (A11 and A12)
B198: When retrieving data for a new symbol or when changing from daily to weekly or monthly data, there was the possibility that the
B199: residual settings in A11 and A12 would fall outside of the number bars available on the input data tab after the new data retrieval.
B200: In certain combinations, this could create a serious error in the chart sizing logic and crash the spreadsheet.
B201: I have taken this opportunity to update the validity checking logic used in the chart sizing macros
B202: to adjust these values as necessary so that they fall within the boundaries of the newly retrieved input data.
A203: Features carried forward from the October 2015 Traders Tips Template
B204: Improved automation: changes to any of the following will automatically initiate calculations appropriate to reflect a change.
C205: Changing either of cells A11 (pan) or A12 (zoom) will automatically initiate the same chart sizing macros that the manual
C206: "Set Chart" button uses.

Sheet InputPriceData
A1: Align Technology, Inc. (ALGN) -NasdaqGS (Daily)
IJ2: 241.79
A3: Request Online Yahoo History for: | F3: Market State == > | G3: As of | H3: 12:08:00 | I3: EDT. Market open.
A4: Symbol | B4: ALGN | D4: Valid | I4: =OFFSET(I4,-2,0,1,1) -> 0
A5: From | B5: 1950-01-01 | D5: Data | AF5: Trailing 12 Div return (Cur Close)
A6: To | B6: =NOW() -> 2018-09-13T13:11:55.500 | D6: Types | E6: =VLOOKUP(B7,D7:E10,2,FALSE) -> d
A7: Data Type | B7: Daily | D7: Daily | E7: d
B8: qviwC9cnxkz | D8: Weekly | E8: w
A9: Available Data | D9: Monthly | E9: m
A10: Bar Count: | B10: 4434 | AF10: =OFFSET(AC15,1,0,1,1)/OFFSET(N15,1,0,1,1) -> 0
A11: From: | B11: =IF(B10<=0,"",OFFSET(B15,B10,IF(HistReqDataType="v",1,0),1,1)) -> 2001-01-30 | W11: Trailing 12 Month Dividend Returns
A12: To: | B12: =IF(B10<=0,"",IF(HistReqDataType="v",OFFSET(B15,2,1,1,1),OFFSET(B15,1,0,1,1))) -> 2018-09-13 | W12: Raw Close price on Dividend date | X12: Div Year and Month | Y12: Looking for year ago Div Year and Month | Z12: Year ago Div Date we found | AA12: row offset to year ago div Date | AB12: Same month flag | AC12: Trailing 12 Div Total | AD12: Trailing 12 Div return
Q13: Split History | S13: 0 | T13: Running | U13: Dividend History
B14: Raw Data Values | H14: Adjusted | I14: Price Adjust | J14: Vol Adjust | K14: Adjusted Values | P14: Last | Q14: Effective | R14: Shares | T14: Vol Adjust | V14: 0
A15: RelRow | B15: Date | C15: Open | D15: High | E15: Low | F15: Close | G15: Volume | H15: Close | I15: Factor | J15: Factor | K15: Open | L15: High | M15: Low | N15: Close | O15: Volume | P15: Trade | Q15: 43357 | R15: New | S15: Old | T15: 1 | U15: Date | V15: $ / Share
A16: 1 | B16: 2018-09-13 | C16: 383.869995 | D16: 388.768311 | E16: 379.540009 | F16: 383.839996 | G16: 251804 | H16: 383.839996 | I16: =IF(F16=0,1,H16/F16) -> 1 | J16: =INDEX(OFFSET($T$15,0,0,$S$13+1,1),MATCH(B16,OFFSET($Q$15,0,0,$S$13+1,1),-1)) -> 1 | K16: =ROUND($I16*C16,2) -> 383.87 | L16: =ROUND($I16*D16,2) -> 388.77 | M16: 379.54 | N16: 383.84 | O16: =G16*J16 -> 251804
A17: 2 | B17: 2018-09-12 | C17: 382.899994 | D17: 385.23999 | E17: 374.23999 | F17: 381.829987 | G17: 527400 | H17: 381.829987 | I17: =IF(F17=0,1,H17/F17) -> 1 | J17: =INDEX(OFFSET($T$15,0,0,$S$13+1,1),MATCH(B17,OFFSET($Q$15,0,0,$S$13+1,1),-1)) -> 1 | K17: =ROUND($I17*C17,2) -> 382.9 | L17: =ROUND($I17*D17,2) -> 385.24 | M17: =ROUND($I17*E17,2) -> 374.24 | N17: =ROUND($I17*F17,2) -> 381.83 | O17: =G17*J17 -> 527400
A18: 3 | B18: 2018-09-11 | C18: 373.359985 | D18: 382.980011 | E18: 371 | F18: 382.799988 | G18: 603200 | H18: 382.799988 | I18: 1 | J18: 1 | K18: 373.36 | L18: 382.98 | M18: 371 | N18: 382.8 | O18: 603200
A19: 4 | B19: 2018-09-10 | C19: 370.890015 | D19: 376.48999 | E19: 367.410004 | F19: 374.779999 | G19: 550900 | H19: 374.779999 | I19: 1 | J19: 1 | K19: 370.89 | L19: 376.49 | M19: 367.41 | N19: 374.78 | O19: 550900
A20: 5 | B20: 2018-09-07 | C20: 368.76001 | D20: 374.519989 | E20: 365.200012 | F20: 368.640015 | G20: 515400 | H20: 368.640015 | I20: 1 | J20: 1 | K20: 368.76 | L20: 374.52 | M20: 365.2 | N20: 368.64 | O20: 515400
A21: 6 | B21: 2018-09-06 | C21: 373.549988 | D21: 376.609985 | E21: 367.089996 | F21: 370.820007 | G21: 671300 | H21: 370.820007 | I21: 1 | J21: 1 | K21: 373.55 | L21: 376.61 | M21: 367.09 | N21: 370.82 | O21: 671300
A22: 7 | B22: 2018-09-05 | C22: 384.920013 | D22: 384.920013 | E22: 366.079987 | F22: 372.910004 | G22: 1028200 | H22: 372.910004 | I22: 1 | J22: 1 | K22: 384.92 | L22: 384.92 | M22: 366.08 | N22: 372.91 | O22: 1028200
A23: 8 | B23: 2018-09-04 | C23: 386.640015 | D23: 388.899994 | E23: 381.109985 | F23: 385.329987 | G23: 525700 | H23: 385.329987 | I23: 1 | J23: 1 | K23: 386.64 | L23: 388.9 | M23: 381.11 | N23: 385.33 | O23: 525700
A24: 9 | B24: 2018-08-31 | C24: 388.429993 | D24: 392.690002 | E24: 384.51001 | F24: 386.48999 | G24: 541900 | H24: 386.48999 | I24: 1 | J24: 1 | K24: 388.43 | L24: 392.69 | M24: 384.51 | N24: 386.49 | O24: 541900
A25: 10 | B25: 2018-08-30 | C25: 383.079987 | D25: 391.369995 | E25: 383 | F25: 387.049988 | G25: 502400 | H25: 387.049988 | I25: 1 | J25: 1 | K25: 383.08 | L25: 391.37 | M25: 383 | N25: 387.05 | O25: 502400
A26: 11 | B26: 2018-08-29 | C26: 384.399994 | D26: 391.25 | E26: 382.26001 | F26: 385.429993 | G26: 709400 | H26: 385.429993 | I26: 1 | J26: 1 | K26: 384.4 | L26: 391.25 | M26: 382.26 | N26: 385.43 | O26: 709400
A27: 12 | B27: 2018-08-28 | C27: 382.559998 | D27: 390.190002 | E27: 378.160004 | F27: 382.25 | G27: 920000 | H27: 382.25 | I27: 1 | J27: 1 | K27: 382.56 | L27: 390.19 | M27: 378.16 | N27: 382.25 | O27: 920000
A28: 13 | B28: 2018-08-27 | C28: 370 | D28: 383.700012 | E28: 369.119995 | F28: 381.869995 | G28: 941300 | H28: 381.869995 | I28: 1 | J28: 1 | K28: 370 | L28: 383.7 | M28: 369.12 | N28: 381.87 | O28: 941300
A29: 14 | B29: 2018-08-24 | C29: 365.089996 | D29: 370.559998 | E29: 363.269989 | F29: 367.600006 | G29: 614300 | H29: 367.600006 | I29: 1 | J29: 1 | K29: 365.09 | L29: 370.56 | M29: 363.27 | N29: 367.6 | O29: 614300
A30: 15 | B30: 2018-08-23 | C30: 361 | D30: 366.720001 | E30: 360.929993 | F30: 363.589996 | G30: 570700 | H30: 363.589996 | I30: 1 | J30: 1 | K30: 361 | L30: 366.72 | M30: 360.93 | N30: 363.59 | O30: 570700
A31: 16 | B31: 2018-08-22 | C31: 354.019989 | D31: 362.200012 | E31: 352.390015 | F31: 361.359985 | G31: 573500 | H31: 361.359985 | I31: 1 | J31: 1 | K31: 354.02 | L31: 362.2 | M31: 352.39 | N31: 361.36 | O31: 573500
A32: 17 | B32: 2018-08-21 | C32: 353.01001 | D32: 357.399994 | E32: 351.519989 | F32: 355.890015 | G32: 518200 | H32: 355.890015 | I32: 1 | J32: 1 | K32: 353.01 | L32: 357.4 | M32: 351.52 | N32: 355.89 | O32: 518200
A33: 18 | B33: 2018-08-20 | C33: 358 | D33: 358.920013 | E33: 351.880005 | F33: 352.279999 | G33: 528900 | H33: 352.279999 | I33: 1 | J33: 1 | K33: 358 | L33: 358.92 | M33: 351.88 | N33: 352.28 | O33: 528900
A34: 19 | B34: 2018-08-17 | C34: 350.109985 | D34: 358.709991 | E34: 342.299988 | F34: 357.299988 | G34: 998200 | H34: 357.299988 | I34: 1 | J34: 1 | K34: 350.11 | L34: 358.71 | M34: 342.3 | N34: 357.3 | O34: 998200
A35: 20 | B35: 2018-08-16 | C35: 353 | D35: 355 | E35: 344.350006 | F35: 351.200012 | G35: 950500 | H35: 351.200012 | I35: 1 | J35: 1 | K35: 353 | L35: 355 | M35: 344.35 | N35: 351.2 | O35: 950500
A36: 21 | B36: 2018-08-15 | C36: 366.730011 | D36: 368.48999 | E36: 349.799988 | F36: 350.450012 | G36: 1074700 | H36: 350.450012 | I36: 1 | J36: 1 | K36: 366.73 | L36: 368.49 | M36: 349.8 | N36: 350.45 | O36: 1074700
A37: 22 | B37: 2018-08-14 | C37: 361.279999 | D37: 368.799988 | E37: 361.279999 | F37: 368.660004 | G37: 559600 | H37: 368.660004 | I37: 1 | J37: 1 | K37: 361.28 | L37: 368.8 | M37: 361.28 | N37: 368.66 | O37: 559600
A38: 23 | B38: 2018-08-13 | C38: 364.480011 | D38: 369.040009 | E38: 361.540009 | F38: 362.279999 | G38: 364600 | H38: 362.279999 | I38: 1 | J38: 1 | K38: 364.48 | L38: 369.04 | M38: 361.54 | N38: 362.28 | O38: 364600
A39: 24 | B39: 2018-08-10 | C39: 363.709991 | D39: 369.670013 | E39: 362.480011 | F39: 364.529999 | G39: 389700 | H39: 364.529999 | I39: 1 | J39: 1 | K39: 363.71 | L39: 369.67 | M39: 362.48 | N39: 364.53 | O39: 389700
A40: 25 | B40: 2018-08-09 | C40: 366.809998 | D40: 371.609985 | E40: 363.5 | F40: 366.869995 | G40: 529800 | H40: 366.869995 | I40: 1 | J40: 1 | K40: 366.81 | L40: 371.61 | M40: 363.5 | N40: 366.87 | O40: 529800
A41: 26 | B41: 2018-08-08 | C41: 366.130005 | D41: 367.350006 | E41: 363.309998 | F41: 366.209991 | G41: 462400 | H41: 366.209991 | I41: 1 | J41: 1 | K41: 366.13 | L41: 367.35 | M41: 363.31 | N41: 366.21 | O41: 462400
A42: 27 | B42: 2018-08-07 | C42: 369.549988 | D42: 373.660004 | E42: 365 | F42: 365.579987 | G42: 615900 | H42: 365.579987 | I42: 1 | J42: 1 | K42: 369.55 | L42: 373.66 | M42: 365 | N42: 365.58 | O42: 615900
A43: 28 | B43: 2018-08-06 | C43: 362.109985 | D43: 370.450012 | E43: 362.109985 | F43: 369.549988 | G43: 526700 | H43: 369.549988 | I43: 1 | J43: 1 | K43: 362.11 | L43: 370.45 | M43: 362.11 | N43: 369.55 | O43: 526700
A44: 29 | B44: 2018-08-03 | C44: 368.519989 | D44: 369.48999 | E44: 356.130005 | F44: 363.51001 | G44: 712900 | H44: 363.51001 | I44: 1 | J44: 1 | K44: 368.52 | L44: 369.49 | M44: 356.13 | N44: 363.51 | O44: 712900
A45: 30 | B45: 2018-08-02 | C45: 351 | D45: 369.019989 | E45: 350.51001 | F45: 367.920013 | G45: 803900 | H45: 367.920013 | I45: 1 | J45: 1 | K45: 351 | L45: 369.02 | M45: 350.51 | N45: 367.92 | O45: 803900
A46: 31 | B46: 2018-08-01 | C46: 356.649994 | D46: 361.290009 | E46: 352.600006 | F46: 353.700012 | G46: 871200 | H46: 353.700012 | I46: 1 | J46: 1 | K46: 356.65 | L46: 361.29 | M46: 352.6 | N46: 353.7 | O46: 871200
A47: 32 | B47: 2018-07-31 | C47: 348.880005 | D47: 358.559998 | E47: 341.910004 | F47: 356.649994 | G47: 1286200 | H47: 356.649994 | I47: 1 | J47: 1 | K47: 348.88 | L47: 358.56 | M47: 341.91 | N47: 356.65 | O47: 1286200
A48: 33 | B48: 2018-07-30 | C48: 353.5 | D48: 356.029999 | E48: 341.23999 | F48: 348.579987 | G48: 1262800 | H48: 348.579987 | I48: 1 | J48: 1 | K48: 353.5 | L48: 356.03 | M48: 341.24 | N48: 348.58 | O48: 1262800
A49: 34 | B49: 2018-07-27 | C49: 364.51001 | D49: 365.549988 | E49: 349.130005 | F49: 353.769989 | G49: 837800 | H49: 353.769989 | I49: 1 | J49: 1 | K49: 364.51 | L49: 365.55 | M49: 349.13 | N49: 353.77 | O49: 837800
A50: 35 | B50: 2018-07-26 | C50: 377.609985 | D50: 380 | E50: 354.73999 | F50: 363.019989 | G50: 1834800 | H50: 363.019989 | I50: 1 | J50: 1 | K50: 377.61 | L50: 380 | M50: 354.74 | N50: 363.02 | O50: 1834800
A51: 36 | B51: 2018-07-25 | C51: 374.690002 | D51: 383.459991 | E51: 373 | F51: 381.769989 | G51: 975500 | H51: 381.769989 | I51: 1 | J51: 1 | K51: 374.69 | L51: 383.46 | M51: 373 | N51: 381.77 | O51: 975500
A52: 37 | B52: 2018-07-24 | C52: 378.959991 | D52: 384.75 | E52: 369.76001 | F52: 372.589996 | G52: 937400 | H52: 372.589996 | I52: 1 | J52: 1 | K52: 378.96 | L52: 384.75 | M52: 369.76 | N52: 372.59 | O52: 937400
A53: 38 | B53: 2018-07-23 | C53: 375.5 | D53: 385 | E53: 368.73999 | F53: 377.5 | G53: 722100 | H53: 377.5 | I53: 1 | J53: 1 | K53: 375.5 | L53: 385 | M53: 368.74 | N53: 377.5 | O53: 722100
A54: 39 | B54: 2018-07-20 | C54: 371.059998 | D54: 378.980011 | E54: 369.579987 | F54: 375.380005 | G54: 755500 | H54: 375.380005 | I54: 1 | J54: 1 | K54: 371.06 | L54: 378.98 | M54: 369.58 | N54: 375.38 | O54: 755500
A55: 40 | B55: 2018-07-19 | C55: 369.880005 | D55: 373.48999 | E55: 365 | F55: 370.320007 | G55: 560000 | H55: 370.320007 | I55: 1 | J55: 1 | K55: 369.88 | L55: 373.49 | M55: 365 | N55: 370.32 | O55: 560000
A56: 41 | B56: 2018-07-18 | C56: 373.859985 | D56: 375.329987 | E56: 367.809998 | F56: 372.309998 | G56: 452100 | H56: 372.309998 | I56: 1 | J56: 1 | K56: 373.86 | L56: 375.33 | M56: 367.81 | N56: 372.31 | O56: 452100
A57: 42 | B57: 2018-07-17 | C57: 359.589996 | D57: 371.049988 | E57: 357.459991 | F57: 370.529999 | G57: 558900 | H57: 370.529999 | I57: 1 | J57: 1 | K57: 359.59 | L57: 371.05 | M57: 357.46 | N57: 370.53 | O57: 558900
A58: 43 | B58: 2018-07-16 | C58: 365 | D58: 366.320007 | E58: 358.019989 | F58: 362.279999 | G58: 400600 | H58: 362.279999 | I58: 1 | J58: 1 | K58: 365 | L58: 366.32 | M58: 358.02 | N58: 362.28 | O58: 400600
A59: 44 | B59: 2018-07-13 | C59: 364 | D59: 368.970001 | E59: 361.290009 | F59: 363.450012 | G59: 734000 | H59: 363.450012 | I59: 1 | J59: 1 | K59: 364 | L59: 368.97 | M59: 361.29 | N59: 363.45 | O59: 734000
A60: 45 | B60: 2018-07-12 | C60: 350.309998 | D60: 363.040009 | E60: 350.309998 | F60: 362.820007 | G60: 810200 | H60: 362.820007 | I60: 1 | J60: 1 | K60: 350.31 | L60: 363.04 | M60: 350.31 | N60: 362.82 | O60: 810200
A61: 46 | B61: 2018-07-11 | C61: 346.980011 | D61: 352.399994 | E61: 345.5 | F61: 348.869995 | G61: 433400 | H61: 348.869995 | I61: 1 | J61: 1 | K61: 346.98 | L61: 352.4 | M61: 345.5 | N61: 348.87 | O61: 433400
A62: 47 | B62: 2018-07-10 | C62: 350 | D62: 352.829987 | E62: 347.25 | F62: 351.450012 | G62: 594600 | H62: 351.450012 | I62: 1 | J62: 1 | K62: 350 | L62: 352.83 | M62: 347.25 | N62: 351.45 | O62: 594600
A63: 48 | B63: 2018-07-09 | C63: 350.579987 | D63: 354.119995 | E63: 345.440002 | F63: 348.970001 | G63: 784900 | H63: 348.970001 | I63: 1 | J63: 1 | K63: 350.58 | L63: 354.12 | M63: 345.44 | N63: 348.97 | O63: 784900
A64: 49 | B64: 2018-07-06 | C64: 341.390015 | D64: 349.700012 | E64: 338.799988 | F64: 347.470001 | G64: 641600 | H64: 347.470001 | I64: 1 | J64: 1 | K64: 341.39 | L64: 349.7 | M64: 338.8 | N64: 347.47 | O64: 641600
A65: 50 | B65: 2018-07-05 | C65: 342.179993 | D65: 343.230011 | E65: 333.570007 | F65: 341.380005 | G65: 737500 | H65: 341.380005 | I65: 1 | J65: 1 | K65: 342.18 | L65: 343.23 | M65: 333.57 | N65: 341.38 | O65: 737500
A66: 51 | B66: 2018-07-03 | C66: 341.100006 | D66: 344.519989 | E66: 337.109985 | F66: 338.679993 | G66: 475400 | H66: 338.679993 | I66: 1 | J66: 1 | K66: 341.1 | L66: 344.52 | M66: 337.11 | N66: 338.68 | O66: 475400
A67: 52 | B67: 2018-07-02 | C67: 334.899994 | D67: 341.049988 | E67: 332.01001 | F67: 340.279999 | G67: 1047100 | H67: 340.279999 | I67: 1 | J67: 1 | K67: 334.9 | L67: 341.05 | M67: 332.01 | N67: 340.28 | O67: 1047100
A68: 53 | B68: 2018-06-29 | C68: 345.709991 | D68: 346.130005 | E68: 341.700012 | F68: 342.140015 | G68: 937600 | H68: 342.140015 | I68: 1 | J68: 1 | K68: 345.71 | L68: 346.13 | M68: 341.7 | N68: 342.14 | O68: 937600
A69: 54 | B69: 2018-06-28 | C69: 340.570007 | D69: 345.899994 | E69: 334.440002 | F69: 343.799988 | G69: 1262200 | H69: 343.799988 | I69: 1 | J69: 1 | K69: 340.57 | L69: 345.9 | M69: 334.44 | N69: 343.8 | O69: 1262200
A70: 55 | B70: 2018-06-27 | C70: 352.420013 | D70: 356.470001 | E70: 342.26001 | F70: 342.779999 | G70: 1009800 | H70: 342.779999 | I70: 1 | J70: 1 | K70: 352.42 | L70: 356.47 | M70: 342.26 | N70: 342.78 | O70: 1009800
A71: 56 | B71: 2018-06-26 | C71: 349.269989 | D71: 357.690002 | E71: 348.299988 | F71: 352.420013 | G71: 939900 | H71: 352.420013 | I71: 1 | J71: 1 | K71: 349.27 | L71: 357.69 | M71: 348.3 | N71: 352.42 | O71: 939900
A72: 57 | B72: 2018-06-25 | C72: 350 | D72: 350.470001 | E72: 341.279999 | F72: 346.299988 | G72: 1174100 | H72: 346.299988 | I72: 1 | J72: 1 | K72: 350 | L72: 350.47 | M72: 341.28 | N72: 346.3 | O72: 1174100
A73: 58 | B73: 2018-06-22 | C73: 361.570007 | D73: 363.959991 | E73: 347.149994 | F73: 353.269989 | G73: 1296500 | H73: 353.269989 | I73: 1 | J73: 1 | K73: 361.57 | L73: 363.96 | M73: 347.15 | N73: 353.27 | O73: 1296500
A74: 59 | B74: 2018-06-21 | C74: 365.660004 | D74: 369 | E74: 359.149994 | F74: 359.600006 | G74: 1019500 | H74: 359.600006 | I74: 1 | J74: 1 | K74: 365.66 | L74: 369 | M74: 359.15 | N74: 359.6 | O74: 1019500
A75: 60 | B75: 2018-06-20 | C75: 368.01001 | D75: 369.200012 | E75: 362.690002 | F75: 364.700012 | G75: 794200 | H75: 364.700012 | I75: 1 | J75: 1 | K75: 368.01 | L75: 369.2 | M75: 362.69 | N75: 364.7 | O75: 794200
A76: 61 | B76: 2018-06-19 | C76: 366.200012 | D76: 369.079987 | E76: 358.670013 | F76: 365.23999 | G76: 847500 | H76: 365.23999 | I76: 1 | J76: 1 | K76: 366.2 | L76: 369.08 | M76: 358.67 | N76: 365.24 | O76: 847500
A77: 62 | B77: 2018-06-18 | C77: 361.01001 | D77: 371.549988 | E77: 357.109985 | F77: 370.100006 | G77: 874700 | H77: 370.100006 | I77: 1 | J77: 1 | K77: 361.01 | L77: 371.55 | M77: 357.11 | N77: 370.1 | O77: 874700
A78: 63 | B78: 2018-06-15 | C78: 364.809998 | D78: 366.890015 | E78: 358.269989 | F78: 362.660004 | G78: 1143500 | H78: 362.660004 | I78: 1 | J78: 1 | K78: 364.81 | L78: 366.89 | M78: 358.27 | N78: 362.66 | O78: 1143500
A79: 64 | B79: 2018-06-14 | C79: 364.350006 | D79: 370.470001 | E79: 363.700012 | F79: 366.269989 | G79: 872400 | H79: 366.269989 | I79: 1 | J79: 1 | K79: 364.35 | L79: 370.47 | M79: 363.7 | N79: 366.27 | O79: 872400
A80: 65 | B80: 2018-06-13 | C80: 356 | D80: 365.76001 | E80: 354.589996 | F80: 363.48999 | G80: 1231800 | H80: 363.48999 | I80: 1 | J80: 1 | K80: 356 | L80: 365.76 | M80: 354.59 | N80: 363.49 | O80: 1231800
A81: 66 | B81: 2018-06-12 | C81: 349.600006 | D81: 355.980011 | E81: 349.290009 | F81: 354.25 | G81: 861900 | H81: 354.25 | I81: =IF(F81=0,1,H81/F81) -> 1 | J81: =INDEX(OFFSET($T$15,0,0,$S$13+1,1),MATCH(B81,OFFSET($Q$15,0,0,$S$13+1,1),-1)) -> 1 | K81: =ROUND($I81*C81,2) -> 349.6 | L81: =ROUND($I81*D81,2) -> 355.98 | M81: =ROUND($I81*E81,2) -> 349.29 | N81: =ROUND($I81*F81,2) -> 354.25 | O81: =G81*J81 -> 861900
A82: 67 | B82: 2018-06-11 | C82: 345.279999 | D82: 349.790009 | E82: 343.720001 | F82: 348.440002 | G82: 635000 | H82: 348.440002 | I82: 1 | J82: 1 | K82: 345.28 | L82: 349.79 | M82: 343.72 | N82: 348.44 | O82: 635000
A83: 68 | B83: 2018-06-08 | C83: 337.029999 | D83: 347.440002 | E83: 333 | F83: 346.670013 | G83: 774400 | H83: 346.670013 | I83: 1 | J83: 1 | K83: 337.03 | L83: 347.44 | M83: 333 | N83: 346.67 | O83: 774400
A84: 69 | B84: 2018-06-07 | C84: 346.859985 | D84: 347.850006 | E84: 333.299988 | F84: 339.320007 | G84: 1225400 | H84: 339.320007 | I84: 1 | J84: 1 | K84: 346.86 | L84: 347.85 | M84: 333.3 | N84: 339.32 | O84: 1225400
A85: 70 | B85: 2018-06-06 | C85: 347.25 | D85: 347.970001 | E85: 342.829987 | F85: 346.369995 | G85: 768000 | H85: 346.369995 | I85: 1 | J85: 1 | K85: 347.25 | L85: 347.97 | M85: 342.83 | N85: 346.37 | O85: 768000
A86: 71 | B86: 2018-06-05 | C86: 343.209991 | D86: 346.549988 | E86: 341.540009 | F86: 346.079987 | G86: 925200 | H86: 346.079987 | I86: 1 | J86: 1 | K86: 343.21 | L86: 346.55 | M86: 341.54 | N86: 346.08 | O86: 925200
A87: 72 | B87: 2018-06-04 | C87: 335.540009 | D87: 343.880005 | E87: 333.220001 | F87: 343.200012 | G87: 793800 | H87: 343.200012 | I87: 1 | J87: 1 | K87: 335.54 | L87: 343.88 | M87: 333.22 | N87: 343.2 | O87: 793800
A88: 73 | B88: 2018-06-01 | C88: 333.170013 | D88: 335.350006 | E88: 325.279999 | F88: 333.089996 | G88: 1075300 | H88: 333.089996 | I88: 1 | J88: 1 | K88: 333.17 | L88: 335.35 | M88: 325.28 | N88: 333.09 | O88: 1075300
A89: 74 | B89: 2018-05-31 | C89: 331.700012 | D89: 338.5 | E89: 330.209991 | F89: 331.950012 | G89: 1421700 | H89: 331.950012 | I89: 1 | J89: 1 | K89: 331.7 | L89: 338.5 | M89: 330.21 | N89: 331.95 | O89: 1421700
A90: 75 | B90: 2018-05-30 | C90: 327.920013 | D90: 333.339996 | E90: 327.230011 | F90: 331.450012 | G90: 903300 | H90: 331.450012 | I90: 1 | J90: 1 | K90: 327.92 | L90: 333.34 | M90: 327.23 | N90: 331.45 | O90: 903300
A91: 76 | B91: 2018-05-29 | C91: 318.190002 | D91: 326.820007 | E91: 317.859985 | F91: 326.179993 | G91: 1026200 | H91: 326.179993 | I91: 1 | J91: 1 | K91: 318.19 | L91: 326.82 | M91: 317.86 | N91: 326.18 | O91: 1026200
A92: 77 | B92: 2018-05-25 | C92: 318.079987 | D92: 322.670013 | E92: 316.380005 | F92: 318.540009 | G92: 1268100 | H92: 318.540009 | I92: 1 | J92: 1 | K92: 318.08 | L92: 322.67 | M92: 316.38 | N92: 318.54 | O92: 1268100
A93: 78 | B93: 2018-05-24 | C93: 310.130005 | D93: 318.589996 | E93: 308.01001 | F93: 317.040009 | G93: 1347400 | H93: 317.040009 | I93: 1 | J93: 1 | K93: 310.13 | L93: 318.59 | M93: 308.01 | N93: 317.04 | O93: 1347400
A94: 79 | B94: 2018-05-23 | C94: 297.859985 | D94: 308.670013 | E94: 297.170013 | F94: 308.200012 | G94: 1236300 | H94: 308.200012 | I94: 1 | J94: 1 | K94: 297.86 | L94: 308.67 | M94: 297.17 | N94: 308.2 | O94: 1236300
A95: 80 | B95: 2018-05-22 | C95: 305.959991 | D95: 306.109985 | E95: 294 | F95: 297.859985 | G95: 856100 | H95: 297.859985 | I95: 1 | J95: 1 | K95: 305.96 | L95: 306.11 | M95: 294 | N95: 297.86 | O95: 856100
A96: 81 | B96: 2018-05-21 | C96: 300 | D96: 304.98999 | E96: 299.470001 | F96: 302.459991 | G96: 853700 | H96: 302.459991 | I96: 1 | J96: 1 | K96: 300 | L96: 304.99 | M96: 299.47 | N96: 302.46 | O96: 853700
A97: 82 | B97: 2018-05-18 | C97: 293.48999 | D97: 299.459991 | E97: 292.76001 | F97: 298 | G97: 900800 | H97: 298 | I97: 1 | J97: 1 | K97: 293.49 | L97: 299.46 | M97: 292.76 | N97: 298 | O97: 900800
A98: 83 | B98: 2018-05-17 | C98: 289.519989 | D98: 294.910004 | E98: 287.730011 | F98: 292.720001 | G98: 927900 | H98: 292.720001 | I98: 1 | J98: 1 | K98: 289.52 | L98: 294.91 | M98: 287.73 | N98: 292.72 | O98: 927900
A99: 84 | B99: 2018-05-16 | C99: 283.5 | D99: 292.820007 | E99: 281.609985 | F99: 287.959991 | G99: 880800 | H99: 287.959991 | I99: 1 | J99: 1 | K99: 283.5 | L99: 292.82 | M99: 281.61 | N99: 287.96 | O99: 880800
A100: 85 | B100: 2018-05-15 | C100: 283.529999 | D100: 284.26001 | E100: 276.809998 | F100: 283.769989 | G100: 868300 | H100: 283.769989 | I100: 1 | J100: 1 | K100: 283.53 | L100: 284.26 | M100: 276.81 | N100: 283.77 | O100: 868300
A101: 86 | B101: 2018-05-14 | C101: 286.98999 | D101: 296.470001 | E101: 284.75 | F101: 286.420013 | G101: 1231100 | H101: 286.420013 | I101: 1 | J101: 1 | K101: 286.99 | L101: 296.47 | M101: 284.75 | N101: 286.42 | O101: 1231100
A102: 87 | B102: 2018-05-11 | C102: 278.290009 | D102: 288.359985 | E102: 277.98999 | F102: 286.48999 | G102: 1471600 | H102: 286.48999 | I102: 1 | J102: 1 | K102: 278.29 | L102: 288.36 | M102: 277.99 | N102: 286.49 | O102: 1471600
A103: 88 | B103: 2018-05-10 | C103: 268.01001 | D103: 280.25 | E103: 267.130005 | F103: 277.730011 | G103: 1202500 | H103: 277.730011 | I103: 1 | J103: 1 | K103: 268.01 | L103: 280.25 | M103: 267.13 | N103: 277.73 | O103: 1202500
A104: 89 | B104: 2018-05-09 | C104: 265.48999 | D104: 270.600006 | E104: 265.48999 | F104: 268 | G104: 747000 | H104: 268 | I104: 1 | J104: 1 | K104: 265.49 | L104: 270.6 | M104: 265.49 | N104: 268 | O104: 747000
A105: 90 | B105: 2018-05-08 | C105: 263.540009 | D105: 266.079987 | E105: 260.230011 | F105: 265.459991 | G105: 820800 | H105: 265.459991 | I105: 1 | J105: 1 | K105: 263.54 | L105: 266.08 | M105: 260.23 | N105: 265.46 | O105: 820800
A106: 91 | B106: 2018-05-07 | C106: 259.25 | D106: 267.040009 | E106: 259.230011 | F106: 265.029999 | G106: 1186300 | H106: 265.029999 | I106: 1 | J106: 1 | K106: 259.25 | L106: 267.04 | M106: 259.23 | N106: 265.03 | O106: 1186300
A107: 92 | B107: 2018-05-04 | C107: 251.990005 | D107: 260.26001 | E107: 246.380005 | F107: 258.970001 | G107: 1020600 | H107: 258.970001 | I107: 1 | J107: 1 | K107: 251.99 | L107: 260.26 | M107: 246.38 | N107: 258.97 | O107: 1020600
A108: 93 | B108: 2018-05-03 | C108: 249 | D108: 255.410004 | E108: 244.399994 | F108: 255.139999 | G108: 964700 | H108: 255.139999 | I108: 1 | J108: 1 | K108: 249 | L108: 255.41 | M108: 244.4 | N108: 255.14 | O108: 964700
A109: 94 | B109: 2018-05-02 | C109: 250.399994 | D109: 252.929993 | E109: 249.169998 | F109: 249.470001 | G109: 745900 | H109: 249.470001 | I109: 1 | J109: 1 | K109: 250.4 | L109: 252.93 | M109: 249.17 | N109: 249.47 | O109: 745900
A110: 95 | B110: 2018-05-01 | C110: 249.210007 | D110: 252.690002 | E110: 247.509995 | F110: 251.339996 | G110: 570400 | H110: 251.339996 | I110: 1 | J110: 1 | K110: 249.21 | L110: 252.69 | M110: 247.51 | N110: 251.34 | O110: 570400
A111: 96 | B111: 2018-04-30 | C111: 258.630005 | D111: 258.630005 | E111: 249.580002 | F111: 249.850006 | G111: 1103500 | H111: 249.850006 | I111: 1 | J111: 1 | K111: 258.63 | L111: 258.63 | M111: 249.58 | N111: 249.85 | O111: 1103500
A112: 97 | B112: 2018-04-27 | C112: 259.98999 | D112: 260.839996 | E112: 251.479996 | F112: 257.899994 | G112: 981700 | H112: 257.899994 | I112: 1 | J112: 1 | K112: 259.99 | L112: 260.84 | M112: 251.48 | N112: 257.9 | O112: 981700
A113: 98 | B113: 2018-04-26 | C113: 261.98999 | D113: 266.100006 | E113: 242.710007 | F113: 259.890015 | G113: 2927800 | H113: 259.890015 | I113: 1 | J113: 1 | K113: 261.99 | L113: 266.1 | M113: 242.71 | N113: 259.89 | O113: 2927800
A114: 99 | B114: 2018-04-25 | C114: 238.470001 | D114: 245.779999 | E114: 234.399994 | F114: 245.630005 | G114: 1298100 | H114: 245.630005 | I114: 1 | J114: 1 | K114: 238.47 | L114: 245.78 | M114: 234.4 | N114: 245.63 | O114: 1298100
A115: 100 | B115: 2018-04-24 | C115: 248.619995 | D115: 251.470001 | E115: 235.830002 | F115: 239.660004 | G115: 1267400 | H115: 239.660004 | I115: 1 | J115: 1 | K115: 248.62 | L115: 251.47 | M115: 235.83 | N115: 239.66 | O115: 1267400
A116: 101 | B116: 2018-04-23 | C116: 248.630005 | D116: 251.369995 | E116: 245.009995 | F116: 247.199997 | G116: 846500 | H116: 247.199997 | I116: 1 | J116: 1 | K116: 248.63 | L116: 251.37 | M116: 245.01 | N116: 247.2 | O116: 846500
A117: 102 | B117: 2018-04-20 | C117: 253.380005 | D117: 256.660004 | E117: 245.410004 | F117: 247.070007 | G117: 1323300 | H117: 247.070007 | I117: 1 | J117: 1 | K117: 253.38 | L117: 256.66 | M117: 245.41 | N117: 247.07 | O117: 1323300
A118: 103 | B118: 2018-04-19 | C118: 265.820007 | D118: 267.019989 | E118: 250.270004 | F118: 252.779999 | G118: 2458600 | H118: 252.779999 | I118: 1 | J118: 1 | K118: 265.82 | L118: 267.02 | M118: 250.27 | N118: 252.78 | O118: 2458600
A119: 104 | B119: 2018-04-18 | C119: 274 | D119: 280.230011 | E119: 270.570007 | F119: 277.049988 | G119: 885900 | H119: 277.049988 | I119: 1 | J119: 1 | K119: 274 | L119: 280.23 | M119: 270.57 | N119: 277.05 | O119: 885900
A120: 105 | B120: 2018-04-17 | C120: 269.170013 | D120: 274.519989 | E120: 267.779999 | F120: 272.649994 | G120: 958100 | H120: 272.649994 | I120: 1 | J120: 1 | K120: 269.17 | L120: 274.52 | M120: 267.78 | N120: 272.65 | O120: 958100
A121: 106 | B121: 2018-04-16 | C121: 264.769989 | D121: 268.320007 | E121: 263.019989 | F121: 265.5 | G121: 533600 | H121: 265.5 | I121: 1 | J121: 1 | K121: 264.77 | L121: 268.32 | M121: 263.02 | N121: 265.5 | O121: 533600
A122: 107 | B122: 2018-04-13 | C122: 266.220001 | D122: 267.209991 | E122: 259.5 | F122: 261.720001 | G122: 594100 | H122: 261.720001 | I122: 1 | J122: 1 | K122: 266.22 | L122: 267.21 | M122: 259.5 | N122: 261.72 | O122: 594100
A123: 108 | B123: 2018-04-12 | C123: 259.619995 | D123: 264.880005 | E123: 258.470001 | F123: 263.76001 | G123: 579300 | H123: 263.76001 | I123: 1 | J123: 1 | K123: 259.62 | L123: 264.88 | M123: 258.47 | N123: 263.76 | O123: 579300
A124: 109 | B124: 2018-04-11 | C124: 255.580002 | D124: 260.459991 | E124: 254.529999 | F124: 257.019989 | G124: 490800 | H124: 257.019989 | I124: 1 | J124: 1 | K124: 255.58 | L124: 260.46 | M124: 254.53 | N124: 257.02 | O124: 490800
A125: 110 | B125: 2018-04-10 | C125: 254.169998 | D125: 259.959991 | E125: 252.339996 | F125: 258.269989 | G125: 935200 | H125: 258.269989 | I125: 1 | J125: 1 | K125: 254.17 | L125: 259.96 | M125: 252.34 | N125: 258.27 | O125: 935200
A126: 111 | B126: 2018-04-09 | C126: 248.369995 | D126: 255.259995 | E126: 247.619995 | F126: 249.059998 | G126: 578900 | H126: 249.059998 | I126: 1 | J126: 1 | K126: 248.37 | L126: 255.26 | M126: 247.62 | N126: 249.06 | O126: 578900
A127: 112 | B127: 2018-04-06 | C127: 252.399994 | D127: 255.720001 | E127: 243.199997 | F127: 245.229996 | G127: 909700 | H127: 245.229996 | I127: 1 | J127: 1 | K127: 252.4 | L127: 255.72 | M127: 243.2 | N127: 245.23 | O127: 909700
A128: 113 | B128: 2018-04-05 | C128: 251.320007 | D128: 259.730011 | E128: 251.320007 | F128: 255.350006 | G128: 1096500 | H128: 255.350006 | I128: 1 | J128: 1 | K128: 251.32 | L128: 259.73 | M128: 251.32 | N128: 255.35 | O128: 1096500
A129: 114 | B129: 2018-04-04 | C129: 239.720001 | D129: 250.020004 | E129: 238.5 | F129: 248.929993 | G129: 752900 | H129: 248.929993 | I129: 1 | J129: 1 | K129: 239.72 | L129: 250.02 | M129: 238.5 | N129: 248.93 | O129: 752900
A130: 115 | B130: 2018-04-03 | C130: 244.009995 | D130: 248.089996 | E130: 240.080002 | F130: 243.619995 | G130: 847500 | H130: 243.619995 | I130: 1 | J130: 1 | K130: 244.01 | L130: 248.09 | M130: 240.08 | N130: 243.62 | O130: 847500
A131: 116 | B131: 2018-04-02 | C131: 251 | D131: 254.800003 | E131: 238.169998 | F131: 242.690002 | G131: 927800 | H131: 242.690002 | I131: 1 | J131: 1 | K131: 251 | L131: 254.8 | M131: 238.17 | N131: 242.69 | O131: 927800
A132: 117 | B132: 2018-03-29 | C132: 245.979996 | D132: 257.470001 | E132: 243.080002 | F132: 251.130005 | G132: 1259400 | H132: 251.130005 | I132: 1 | J132: 1 | K132: 245.98 | L132: 257.47 | M132: 243.08 | N132: 251.13 | O132: 1259400
A133: 118 | B133: 2018-03-28 | C133: 248.520004 | D133: 248.899994 | E133: 241.029999 | F133: 244.419998 | G133: 1175000 | H133: 244.419998 | I133: 1 | J133: 1 | K133: 248.52 | L133: 248.9 | M133: 241.03 | N133: 244.42 | O133: 1175000
A134: 119 | B134: 2018-03-27 | C134: 263.980011 | D134: 264.73999 | E134: 245.820007 | F134: 248.300003 | G134: 1041700 | H134: 248.300003 | I134: 1 | J134: 1 | K134: 263.98 | L134: 264.74 | M134: 245.82 | N134: 248.3 | O134: 1041700
A135: 120 | B135: 2018-03-26 | C135: 254 | D135: 261.869995 | E135: 250.149994 | F135: 261.519989 | G135: 893500 | H135: 261.519989 | I135: 1 | J135: 1 | K135: 254 | L135: 261.87 | M135: 250.15 | N135: 261.52 | O135: 893500
A136: 121 | B136: 2018-03-23 | C136: 260.130005 | D136: 265.839996 | E136: 250.279999 | F136: 250.919998 | G136: 996900 | H136: 250.919998 | I136: 1 | J136: 1 | K136: 260.13 | L136: 265.84 | M136: 250.28 | N136: 250.92 | O136: 996900
A137: 122 | B137: 2018-03-22 | C137: 266.549988 | D137: 269.799988 | E137: 260 | F137: 260.130005 | G137: 714100 | H137: 260.130005 | I137: 1 | J137: 1 | K137: 266.55 | L137: 269.8 | M137: 260 | N137: 260.13 | O137: 714100
A138: 123 | B138: 2018-03-21 | C138: 270.670013 | D138: 271.98999 | E138: 267.200012 | F138: 270.140015 | G138: 578300 | H138: 270.140015 | I138: 1 | J138: 1 | K138: 270.67 | L138: 271.99 | M138: 267.2 | N138: 270.14 | O138: 578300
A139: 124 | B139: 2018-03-20 | C139: 266.920013 | D139: 270.670013 | E139: 264.769989 | F139: 270.399994 | G139: 542800 | H139: 270.399994 | I139: 1 | J139: 1 | K139: 266.92 | L139: 270.67 | M139: 264.77 | N139: 270.4 | O139: 542800
A140: 125 | B140: 2018-03-19 | C140: 268.649994 | D140: 274.399994 | E140: 262.130005 | F140: 265.390015 | G140: 868000 | H140: 265.390015 | I140: 1 | J140: 1 | K140: 268.65 | L140: 274.4 | M140: 262.13 | N140: 265.39 | O140: 868000
A141: 126 | B141: 2018-03-16 | C141: 273.76001 | D141: 274.149994 | E141: 267.570007 | F141: 270.410004 | G141: 810100 | H141: 270.410004 | I141: 1 | J141: 1 | K141: 273.76 | L141: 274.15 | M141: 267.57 | N141: 270.41 | O141: 810100
A142: 127 | B142: 2018-03-15 | C142: 272.230011 | D142: 276.140015 | E142: 269.76001 | F142: 272.869995 | G142: 719200 | H142: 272.869995 | I142: 1 | J142: 1 | K142: 272.23 | L142: 276.14 | M142: 269.76 | N142: 272.87 | O142: 719200
A143: 128 | B143: 2018-03-14 | C143: 271.290009 | D143: 274.070007 | E143: 269.269989 | F143: 272.480011 | G143: 612000 | H143: 272.480011 | I143: 1 | J143: 1 | K143: 271.29 | L143: 274.07 | M143: 269.27 | N143: 272.48 | O143: 612000
A144: 129 | B144: 2018-03-13 | C144: 276.559998 | D144: 276.980011 | E144: 267.290009 | F144: 269.709991 | G144: 854300 | H144: 269.709991 | I144: 1 | J144: 1 | K144: 276.56 | L144: 276.98 | M144: 267.29 | N144: 269.71 | O144: 854300
A145: 130 | B145: 2018-03-12 | C145: 272.070007 | D145: 277.320007 | E145: 271.130005 | F145: 275.609985 | G145: 827100 | H145: 275.609985 | I145: =IF(F145=0,1,H145/F145) -> 1 | J145: =INDEX(OFFSET($T$15,0,0,$S$13+1,1),MATCH(B145,OFFSET($Q$15,0,0,$S$13+1,1),-1)) -> 1 | K145: =ROUND($I145*C145,2) -> 272.07 | L145: =ROUND($I145*D145,2) -> 277.32 | M145: =ROUND($I145*E145,2) -> 271.13 | N145: =ROUND($I145*F145,2) -> 275.61 | O145: =G145*J145 -> 827100
A146: 131 | B146: 2018-03-09 | C146: 270 | D146: 273.220001 | E146: 269.98999 | F146: 271.73999 | G146: 854900 | H146: 271.73999 | I146: 1 | J146: 1 | K146: 270 | L146: 273.22 | M146: 269.99 | N146: 271.74 | O146: 854900
A147: 132 | B147: 2018-03-08 | C147: 264.920013 | D147: 268.690002 | E147: 263.570007 | F147: 268.179993 | G147: 630000 | H147: 268.179993 | I147: 1 | J147: 1 | K147: 264.92 | L147: 268.69 | M147: 263.57 | N147: 268.18 | O147: 630000
A148: 133 | B148: 2018-03-07 | C148: 252.460007 | D148: 263.920013 | E148: 252.130005 | F148: 262.899994 | G148: 679300 | H148: 262.899994 | I148: 1 | J148: 1 | K148: 252.46 | L148: 263.92 | M148: 252.13 | N148: 262.9 | O148: 679300
A149: 134 | B149: 2018-03-06 | C149: 256.01001 | D149: 257.390015 | E149: 252.160004 | F149: 255.970001 | G149: 741100 | H149: 255.970001 | I149: 1 | J149: 1 | K149: 256.01 | L149: 257.39 | M149: 252.16 | N149: 255.97 | O149: 741100
A150: 135 | B150: 2018-03-05 | C150: 252.839996 | D150: 256.640015 | E150: 247.639999 | F150: 255.490005 | G150: 818300 | H150: 255.490005 | I150: 1 | J150: 1 | K150: 252.84 | L150: 256.64 | M150: 247.64 | N150: 255.49 | O150: 818300
A151: 136 | B151: 2018-03-02 | C151: 243.649994 | D151: 254.889999 | E151: 241.300003 | F151: 253.710007 | G151: 1015700 | H151: 253.710007 | I151: 1 | J151: 1 | K151: 243.65 | L151: 254.89 | M151: 241.3 | N151: 253.71 | O151: 1015700
A152: 137 | B152: 2018-03-01 | C152: 255 | D152: 259.839996 | E152: 244.149994 | F152: 245.550003 | G152: 1833400 | H152: 245.550003 | I152: 1 | J152: 1 | K152: 255 | L152: 259.84 | M152: 244.15 | N152: 245.55 | O152: 1833400
A153: 138 | B153: 2018-02-28 | C153: 264.899994 | D153: 267.779999 | E153: 262.440002 | F153: 262.519989 | G153: 657300 | H153: 262.519989 | I153: 1 | J153: 1 | K153: 264.9 | L153: 267.78 | M153: 262.44 | N153: 262.52 | O153: 657300
A154: 139 | B154: 2018-02-27 | C154: 265.480011 | D154: 267.269989 | E154: 263.5 | F154: 263.869995 | G154: 635600 | H154: 263.869995 | I154: 1 | J154: 1 | K154: 265.48 | L154: 267.27 | M154: 263.5 | N154: 263.87 | O154: 635600
A155: 140 | B155: 2018-02-26 | C155: 266.799988 | D155: 268.399994 | E155: 262.420013 | F155: 266.579987 | G155: 722100 | H155: 266.579987 | I155: 1 | J155: 1 | K155: 266.8 | L155: 268.4 | M155: 262.42 | N155: 266.58 | O155: 722100
A156: 141 | B156: 2018-02-23 | C156: 261.98999 | D156: 266.799988 | E156: 258.140015 | F156: 265.070007 | G156: 940000 | H156: 265.070007 | I156: 1 | J156: 1 | K156: 261.99 | L156: 266.8 | M156: 258.14 | N156: 265.07 | O156: 940000
A157: 142 | B157: 2018-02-22 | C157: 254.160004 | D157: 262.329987 | E157: 253.259995 | F157: 259.679993 | G157: 1084800 | H157: 259.679993 | I157: 1 | J157: 1 | K157: 254.16 | L157: 262.33 | M157: 253.26 | N157: 259.68 | O157: 1084800
A158: 143 | B158: 2018-02-21 | C158: 255.360001 | D158: 262.820007 | E158: 252 | F158: 252.139999 | G158: 1086000 | H158: 252.139999 | I158: 1 | J158: 1 | K158: 255.36 | L158: 262.82 | M158: 252 | N158: 252.14 | O158: 1086000
A159: 144 | B159: 2018-02-20 | C159: 250.570007 | D159: 259.75 | E159: 250.5 | F159: 255.449997 | G159: 1138900 | H159: 255.449997 | I159: 1 | J159: 1 | K159: 250.57 | L159: 259.75 | M159: 250.5 | N159: 255.45 | O159: 1138900
A160: 145 | B160: 2018-02-16 | C160: 253.850006 | D160: 255.389999 | E160: 249.039993 | F160: 251.5 | G160: 1056300 | H160: 251.5 | I160: 1 | J160: 1 | K160: 253.85 | L160: 255.39 | M160: 249.04 | N160: 251.5 | O160: 1056300
A161: 146 | B161: 2018-02-15 | C161: 250 | D161: 253.710007 | E161: 245.389999 | F161: 252.770004 | G161: 1410700 | H161: 252.770004 | I161: 1 | J161: 1 | K161: 250 | L161: 253.71 | M161: 245.39 | N161: 252.77 | O161: 1410700
A162: 147 | B162: 2018-02-14 | C162: 231.979996 | D162: 246.899994 | E162: 231.350006 | F162: 246.339996 | G162: 1214400 | H162: 246.339996 | I162: 1 | J162: 1 | K162: 231.98 | L162: 246.9 | M162: 231.35 | N162: 246.34 | O162: 1214400
A163: 148 | B163: 2018-02-13 | C163: 230.759995 | D163: 236.699997 | E163: 229.679993 | F163: 233.729996 | G163: 727400 | H163: 233.729996 | I163: 1 | J163: 1 | K163: 230.76 | L163: 236.7 | M163: 229.68 | N163: 233.73 | O163: 727400
A164: 149 | B164: 2018-02-12 | C164: 233.25 | D164: 235 | E164: 225.910004 | F164: 233.130005 | G164: 1206800 | H164: 233.130005 | I164: 1 | J164: 1 | K164: 233.25 | L164: 235 | M164: 225.91 | N164: 233.13 | O164: 1206800
A165: 150 | B165: 2018-02-09 | C165: 223.75 | D165: 232.410004 | E165: 219.110001 | F165: 229.369995 | G165: 1549900 | H165: 229.369995 | I165: 1 | J165: 1 | K165: 223.75 | L165: 232.41 | M165: 219.11 | N165: 229.37 | O165: 1549900
A166: 151 | B166: 2018-02-08 | C166: 233.570007 | D166: 233.960007 | E166: 220.699997 | F166: 220.710007 | G166: 1918300 | H166: 220.710007 | I166: 1 | J166: 1 | K166: 233.57 | L166: 233.96 | M166: 220.7 | N166: 220.71 | O166: 1918300
A167: 152 | B167: 2018-02-07 | C167: 241 | D167: 242.220001 | E167: 233.600006 | F167: 234.330002 | G167: 1160700 | H167: 234.330002 | I167: 1 | J167: 1 | K167: 241 | L167: 242.22 | M167: 233.6 | N167: 234.33 | O167: 1160700
A168: 153 | B168: 2018-02-06 | C168: 232.710007 | D168: 245.649994 | E168: 228 | F168: 241.449997 | G168: 2283400 | H168: 241.449997 | I168: 1 | J168: 1 | K168: 232.71 | L168: 245.65 | M168: 228 | N168: 241.45 | O168: 2283400
A169: 154 | B169: 2018-02-05 | C169: 252.210007 | D169: 259.140015 | E169: 241.660004 | F169: 242.399994 | G169: 1878100 | H169: 242.399994 | I169: 1 | J169: 1 | K169: 252.21 | L169: 259.14 | M169: 241.66 | N169: 242.4 | O169: 1878100
A170: 155 | B170: 2018-02-02 | C170: 251.570007 | D170: 262.570007 | E170: 250.860001 | F170: 257.380005 | G170: 1622800 | H170: 257.380005 | I170: 1 | J170: 1 | K170: 251.57 | L170: 262.57 | M170: 250.86 | N170: 257.38 | O170: 1622800
A171: 156 | B171: 2018-02-01 | C171: 261.589996 | D171: 262.649994 | E171: 252.199997 | F171: 255.570007 | G171: 1735600 | H171: 255.570007 | I171: 1 | J171: 1 | K171: 261.59 | L171: 262.65 | M171: 252.2 | N171: 255.57 | O171: 1735600
A172: 157 | B172: 2018-01-31 | C172: 261.01001 | D172: 270.600006 | E172: 248.210007 | F172: 262 | G172: 4011400 | H172: 262 | I172: 1 | J172: 1 | K172: 261.01 | L172: 270.6 | M172: 248.21 | N172: 262 | O172: 4011400
A173: 158 | B173: 2018-01-30 | C173: 270.450012 | D173: 272 | E173: 245 | F173: 270.079987 | G173: 2451300 | H173: 270.079987 | I173: 1 | J173: 1 | K173: 270.45 | L173: 272 | M173: 245 | N173: 270.08 | O173: 2451300
A174: 159 | B174: 2018-01-29 | C174: 284.450012 | D174: 284.970001 | E174: 268.160004 | F174: 276.769989 | G174: 1585200 | H174: 276.769989 | I174: 1 | J174: 1 | K174: 284.45 | L174: 284.97 | M174: 268.16 | N174: 276.77 | O174: 1585200
A175: 160 | B175: 2018-01-26 | C175: 275.160004 | D175: 287.320007 | E175: 273.269989 | F175: 283.970001 | G175: 1132600 | H175: 283.970001 | I175: 1 | J175: 1 | K175: 275.16 | L175: 287.32 | M175: 273.27 | N175: 283.97 | O175: 1132600
A176: 161 | B176: 2018-01-25 | C176: 273.700012 | D176: 276.230011 | E176: 270 | F176: 273.559998 | G176: 565800 | H176: 273.559998 | I176: 1 | J176: 1 | K176: 273.7 | L176: 276.23 | M176: 270 | N176: 273.56 | O176: 565800
A177: 162 | B177: 2018-01-24 | C177: 273.519989 | D177: 274.390015 | E177: 267.600006 | F177: 272.279999 | G177: 798900 | H177: 272.279999 | I177: 1 | J177: 1 | K177: 273.52 | L177: 274.39 | M177: 267.6 | N177: 272.28 | O177: 798900
A178: 163 | B178: 2018-01-23 | C178: 267 | D178: 276.98999 | E178: 266.880005 | F178: 272.160004 | G178: 973400 | H178: 272.160004 | I178: 1 | J178: 1 | K178: 267 | L178: 276.99 | M178: 266.88 | N178: 272.16 | O178: 973400
A179: 164 | B179: 2018-01-22 | C179: 269.640015 | D179: 271.730011 | E179: 258.920013 | F179: 267.100006 | G179: 1147200 | H179: 267.100006 | I179: 1 | J179: 1 | K179: 269.64 | L179: 271.73 | M179: 258.92 | N179: 267.1 | O179: 1147200
A180: 165 | B180: 2018-01-19 | C180: 268.100006 | D180: 269.75 | E180: 263.200012 | F180: 269.459991 | G180: 1231400 | H180: 269.459991 | I180: 1 | J180: 1 | K180: 268.1 | L180: 269.75 | M180: 263.2 | N180: 269.46 | O180: 1231400
A181: 166 | B181: 2018-01-18 | C181: 272.25 | D181: 272.690002 | E181: 266.51001 | F181: 270.700012 | G181: 1088500 | H181: 270.700012 | I181: 1 | J181: 1 | K181: 272.25 | L181: 272.69 | M181: 266.51 | N181: 270.7 | O181: 1088500
A182: 167 | B182: 2018-01-17 | C182: 265.160004 | D182: 273.600006 | E182: 264.25 | F182: 272.25 | G182: 1151900 | H182: 272.25 | I182: 1 | J182: 1 | K182: 265.16 | L182: 273.6 | M182: 264.25 | N182: 272.25 | O182: 1151900
A183: 168 | B183: 2018-01-16 | C183: 262.119995 | D183: 268.179993 | E183: 260.559998 | F183: 263.880005 | G183: 1197900 | H183: 263.880005 | I183: 1 | J183: 1 | K183: 262.12 | L183: 268.18 | M183: 260.56 | N183: 263.88 | O183: 1197900
A184: 169 | B184: 2018-01-12 | C184: 254.100006 | D184: 259.950012 | E184: 250.009995 | F184: 258.429993 | G184: 892900 | H184: 258.429993 | I184: 1 | J184: 1 | K184: 254.1 | L184: 259.95 | M184: 250.01 | N184: 258.43 | O184: 892900
A185: 170 | B185: 2018-01-11 | C185: 248 | D185: 253.199997 | E185: 246.009995 | F185: 252.910004 | G185: 722400 | H185: 252.910004 | I185: 1 | J185: 1 | K185: 248 | L185: 253.2 | M185: 246.01 | N185: 252.91 | O185: 722400
A186: 171 | B186: 2018-01-10 | C186: 249.149994 | D186: 250.889999 | E186: 243.279999 | F186: 248.309998 | G186: 874800 | H186: 248.309998 | I186: 1 | J186: 1 | K186: 249.15 | L186: 250.89 | M186: 243.28 | N186: 248.31 | O186: 874800
A187: 172 | B187: 2018-01-09 | C187: 250 | D187: 253.639999 | E187: 250 | F187: 251.440002 | G187: 1212400 | H187: 251.440002 | I187: 1 | J187: 1 | K187: 250 | L187: 253.64 | M187: 250 | N187: 251.44 | O187: 1212400
A188: 173 | B188: 2018-01-08 | C188: 242 | D188: 250.990005 | E188: 241.039993 | F188: 248.899994 | G188: 2067000 | H188: 248.899994 | I188: 1 | J188: 1 | K188: 242 | L188: 250.99 | M188: 241.04 | N188: 248.9 | O188: 2067000
A189: 174 | B189: 2018-01-05 | C189: 234.880005 | D189: 243.300003 | E189: 234.220001 | F189: 241.070007 | G189: 1569500 | H189: 241.070007 | I189: 1 | J189: 1 | K189: 234.88 | L189: 243.3 | M189: 234.22 | N189: 241.07 | O189: 1569500
A190: 175 | B190: 2018-01-04 | C190: 234.899994 | D190: 235.660004 | E190: 230.25 | F190: 233.300003 | G190: 1363000 | H190: 233.300003 | I190: 1 | J190: 1 | K190: 234.9 | L190: 235.66 | M190: 230.25 | N190: 233.3 | O190: 1363000
A191: 176 | B191: 2018-01-03 | C191: 226.059998 | D191: 231.479996 | E191: 225.009995 | F191: 231.199997 | G191: 924700 | H191: 231.199997 | I191: 1 | J191: 1 | K191: 226.06 | L191: 231.48 | M191: 225.01 | N191: 231.2 | O191: 924700
A192: 177 | B192: 2018-01-02 | C192: 222.610001 | D192: 226.190002 | E192: 220.360001 | F192: 224.619995 | G192: 979700 | H192: 224.619995 | I192: 1 | J192: 1 | K192: 222.61 | L192: 226.19 | M192: 220.36 | N192: 224.62 | O192: 979700
A193: 178 | B193: 2017-12-29 | C193: 225.990005 | D193: 227.660004 | E193: 222.089996 | F193: 222.190002 | G193: 555700 | H193: 222.190002 | I193: 1 | J193: 1 | K193: 225.99 | L193: 227.66 | M193: 222.09 | N193: 222.19 | O193: 555700
A194: 179 | B194: 2017-12-28 | C194: 227.789993 | D194: 227.789993 | E194: 222.610001 | F194: 226.479996 | G194: 612100 | H194: 226.479996 | I194: 1 | J194: 1 | K194: 227.79 | L194: 227.79 | M194: 222.61 | N194: 226.48 | O194: 612100
A195: 180 | B195: 2017-12-27 | C195: 223.220001 | D195: 229.009995 | E195: 223.119995 | F195: 226.449997 | G195: 706600 | H195: 226.449997 | I195: 1 | J195: 1 | K195: 223.22 | L195: 229.01 | M195: 223.12 | N195: 226.45 | O195: 706600
A196: 181 | B196: 2017-12-26 | C196: 222.360001 | D196: 224.419998 | E196: 220.259995 | F196: 223.539993 | G196: 445800 | H196: 223.539993 | I196: 1 | J196: 1 | K196: 222.36 | L196: 224.42 | M196: 220.26 | N196: 223.54 | O196: 445800
A197: 182 | B197: 2017-12-22 | C197: 216.369995 | D197: 224.009995 | E197: 212.860001 | F197: 223.119995 | G197: 1154700 | H197: 223.119995 | I197: 1 | J197: 1 | K197: 216.37 | L197: 224.01 | M197: 212.86 | N197: 223.12 | O197: 1154700
A198: 183 | B198: 2017-12-21 | C198: 234.289993 | D198: 235.130005 | E198: 217.550003 | F198: 218.759995 | G198: 2062600 | H198: 218.759995 | I198: 1 | J198: 1 | K198: 234.29 | L198: 235.13 | M198: 217.55 | N198: 218.76 | O198: 2062600
A199: 184 | B199: 2017-12-20 | C199: 235.860001 | D199: 236.240005 | E199: 232.660004 | F199: 233.649994 | G199: 485800 | H199: 233.649994 | I199: 1 | J199: 1 | K199: 235.86 | L199: 236.24 | M199: 232.66 | N199: 233.65 | O199: 485800
A200: 185 | B200: 2017-12-19 | C200: 235.470001 | D200: 236.529999 | E200: 234.210007 | F200: 235.050003 | G200: 611300 | H200: 235.050003 | I200: 1 | J200: 1 | K200: 235.47 | L200: 236.53 | M200: 234.21 | N200: 235.05 | O200: 611300
... 4249 more rows

Sheet InputSpyData
A1: SPDR S&P 500 ETF (SPY) -NYSEArca (Daily)
IJ2: 241.79
A3: Request Online Yahoo History for: | F3: Market State == > | G3: As of | H3: 12:08:00 | I3: EDT. Market open.
A4: Symbol | B4: SPY | D4: Valid | I4: =OFFSET(I4,-2,0,1,1) -> 0
A5: From | B5: 1950-01-01 | D5: Data | AF5: Trailing 12 Div return (Cur Close)
A6: To | B6: =NOW() -> 2018-09-13T13:11:55.500 | D6: Types | E6: =VLOOKUP(B7,D7:E10,2,FALSE) -> d
A7: Data Type | B7: Daily | D7: Daily | E7: d
B8: IVFfkhOsyaV | D8: Weekly | E8: w
A9: Available Data | D9: Monthly | E9: m
A10: Bar Count: | B10: 6454 | AF10: =OFFSET(AC15,1,0,1,1)/OFFSET(N15,1,0,1,1) -> 0.01695387473
A11: From: | B11: =IF(B10<=0,"",OFFSET(B15,B10,IF(HistReqDataType="v",1,0),1,1)) -> 1993-01-29 | W11: Trailing 12 Month Dividend Returns
A12: To: | B12: =IF(B10<=0,"",IF(HistReqDataType="v",OFFSET(B15,2,1,1,1),OFFSET(B15,1,0,1,1))) -> 2018-09-13 | W12: Raw Close price on Dividend date | X12: Div Year and Month | Y12: Looking for year ago Div Year and Month | Z12: Year ago Div Date we found | AA12: row offset to year ago div Date | AB12: Same month flag | AC12: Trailing 12 Div Total | AD12: Trailing 12 Div return
Q13: Split History | S13: 0 | T13: Running | U13: Dividend History
B14: Raw Data Values | H14: Adjusted | I14: Price Adjust | J14: Vol Adjust | K14: Adjusted Values | P14: Last | Q14: Effective | R14: Shares | T14: Vol Adjust | V14: 106
A15: RelRow | B15: Date | C15: Open | D15: High | E15: Low | F15: Close | G15: Volume | H15: Close | I15: Factor | J15: Factor | K15: Open | L15: High | M15: Low | N15: Close | O15: Volume | P15: Trade | Q15: 43357 | R15: New | S15: Old | T15: 1 | U15: Date | V15: $ / Share
A16: 1 | B16: 2018-09-13 | C16: 290.320007 | D16: 291.038391 | E16: 290 | F16: 290.734985 | G16: 24386605 | H16: 290.734985 | I16: =IF(F16=0,1,H16/F16) -> 1 | J16: =INDEX(OFFSET($T$15,0,0,$S$13+1,1),MATCH(B16,OFFSET($Q$15,0,0,$S$13+1,1),-1)) -> 1 | K16: =ROUND($I16*C16,2) -> 290.32 | L16: =ROUND($I16*D16,2) -> 291.04 | M16: 290 | N16: 290.73 | O16: =G16*J16 -> 24386605 | U16: 2018-06-15 | V16: 1.246 | W16: =(INDEX(OFFSET($F$15,1,0,$B$10,1),MATCH(U16,OFFSET($B$15,1,0,$B$10,1),-1))) -> 277.130005 | X16: =YEAR(U16)&RIGHT("0"&MONTH(U16),2) -> 201806 | Y16: =YEAR(U16)-1&RIGHT("0"&MONTH(U16),2) -> 201706 | Z16: =OFFSET(U15,AA16,0,1,1) -> 2017-06-16 | AA16: =MATCH(Y16,OFFSET($X$15,A16,0,$V$14+1-A16,1),-1) -> 5 | AB16: =IF(OR(AND(YEAR(U16)=YEAR(Z16),MONTH(U16)=MONTH(Z16)),MONTH(U16)=MONTH(Z16)),1,0) -> 1 | AC16: =(V16+IF(AA16-AB16=0,0,IFERROR(SUM(OFFSET(V16,1,0,AA16-AB16-1,1)),0))) -> 4.929 | AD16: =AC16/(INDEX(OFFSET($F$15,1,0,$B$10,1),MATCH(U16,OFFSET($B$15,1,0,$B$10,1),-1))) -> 0.01778587634
A17: 2 | B17: 2018-09-12 | C17: 289.059998 | D17: 289.799988 | E17: 288.230011 | F17: 289.119995 | G17: 59770300 | H17: 289.119995 | I17: =IF(F17=0,1,H17/F17) -> 1 | J17: =INDEX(OFFSET($T$15,0,0,$S$13+1,1),MATCH(B17,OFFSET($Q$15,0,0,$S$13+1,1),-1)) -> 1 | K17: =ROUND($I17*C17,2) -> 289.06 | L17: =ROUND($I17*D17,2) -> 289.8 | M17: =ROUND($I17*E17,2) -> 288.23 | N17: =ROUND($I17*F17,2) -> 289.12 | O17: =G17*J17 -> 59770300 | U17: 2018-03-16 | V17: 1.097 | W17: =(INDEX(OFFSET($F$15,1,0,$B$10,1),MATCH(U17,OFFSET($B$15,1,0,$B$10,1),-1))) -> 274.200012 | X17: =YEAR(U17)&RIGHT("0"&MONTH(U17),2) -> 201803 | Y17: =YEAR(U17)-1&RIGHT("0"&MONTH(U17),2) -> 201703 | Z17: =OFFSET(U16,AA17,0,1,1) -> 2017-03-17 | AA17: =MATCH(Y17,OFFSET($X$15,A17,0,$V$14+1-A17,1),-1) -> 5 | AB17: =IF(OR(AND(YEAR(U17)=YEAR(Z17),MONTH(U17)=MONTH(Z17)),MONTH(U17)=MONTH(Z17)),1,0) -> 1 | AC17: =(V17+IF(AA17-AB17=0,0,IFERROR(SUM(OFFSET(V17,1,0,AA17-AB17-1,1)),0))) -> 4.866 | AD17: =AC17/(INDEX(OFFSET($F$15,1,0,$B$10,1),MATCH(U17,OFFSET($B$15,1,0,$B$10,1),-1))) -> 0.0177461699
A18: 3 | B18: 2018-09-11 | C18: 287.369995 | D18: 289.549988 | E18: 286.980011 | F18: 289.049988 | G18: 50530500 | H18: 289.049988 | I18: 1 | J18: 1 | K18: 287.37 | L18: 289.55 | M18: 286.98 | N18: 289.05 | O18: 50530500 | U18: 2017-12-15 | V18: 1.351 | W18: 266.51001 | X18: 201712 | Y18: 201612 | Z18: 2016-12-16 | AA18: 5 | AB18: 1 | AC18: 4.802 | AD18: 0.01801808495
A19: 4 | B19: 2018-09-10 | C19: 288.73999 | D19: 289.040009 | E19: 287.880005 | F19: 288.100006 | G19: 50210900 | H19: 288.100006 | I19: 1 | J19: 1 | K19: 288.74 | L19: 289.04 | M19: 287.88 | N19: 288.1 | O19: 50210900 | U19: 2017-09-15 | V19: 1.235 | W19: 249.190002 | X19: 201709 | Y19: 201609 | Z19: 2016-09-16 | AA19: 5 | AB19: 1 | AC19: 4.77993 | AD19: 0.0191818691
A20: 5 | B20: 2018-09-07 | C20: 286.980011 | D20: 288.700012 | E20: 286.709991 | F20: 287.600006 | G20: 73524800 | H20: 287.600006 | I20: 1 | J20: 1 | K20: 286.98 | L20: 288.7 | M20: 286.71 | N20: 287.6 | O20: 73524800 | U20: 2017-06-16 | V20: 1.183 | W20: 242.639999 | X20: 201706 | Y20: 201606 | Z20: 2016-06-17 | AA20: 5 | AB20: 1 | AC20: 4.627 | AD20: 0.01906940331
A21: 6 | B21: 2018-09-06 | C21: 289.149994 | D21: 289.48999 | E21: 287 | F21: 288.160004 | G21: 65909900 | H21: 288.160004 | I21: 1 | J21: 1 | K21: 289.15 | L21: 289.49 | M21: 287 | N21: 288.16 | O21: 65909900 | U21: 2017-03-17 | V21: 1.033 | W21: 237.029999 | X21: 201703 | Y21: 201603 | Z21: 2016-03-18 | AA21: 5 | AB21: 1 | AC21: 4.52244 | AD21: 0.01907961026
A22: 7 | B22: 2018-09-05 | C22: 289.410004 | D22: 289.640015 | E22: 287.890015 | F22: 289.029999 | G22: 72452400 | H22: 289.029999 | I22: 1 | J22: 1 | K22: 289.41 | L22: 289.64 | M22: 287.89 | N22: 289.03 | O22: 72452400 | U22: 2016-12-16 | V22: 1.32893 | W22: 225.039993 | X22: 201612 | Y22: 201512 | Z22: 2015-12-18 | AA22: 5 | AB22: 1 | AC22: 4.53904 | AD22: 0.02016992597
A23: 8 | B23: 2018-09-04 | C23: 289.839996 | D23: 290.209991 | E23: 288.679993 | F23: 289.809998 | G23: 57594400 | H23: 289.809998 | I23: 1 | J23: 1 | K23: 289.84 | L23: 290.21 | M23: 288.68 | N23: 289.81 | O23: 57594400 | U23: 2016-09-16 | V23: 1.08207 | W23: 213.369995 | X23: 201609 | Y23: 201509 | Z23: 2015-09-18 | AA23: 5 | AB23: 1 | AC23: 4.42166 | AD23: 0.02072296998
A24: 9 | B24: 2018-08-31 | C24: 289.839996 | D24: 290.809998 | E24: 289.290009 | F24: 290.309998 | G24: 66140800 | H24: 290.309998 | I24: 1 | J24: 1 | K24: 289.84 | L24: 290.81 | M24: 289.29 | N24: 290.31 | O24: 66140800 | U24: 2016-06-17 | V24: 1.07844 | W24: 206.520004 | X24: 201606 | Y24: 201506 | Z24: 2015-06-19 | AA24: 5 | AB24: 1 | AC24: 4.37302 | AD24: 0.02117480106
A25: 10 | B25: 2018-08-30 | C25: 290.940002 | D25: 291.359985 | E25: 289.630005 | F25: 290.299988 | G25: 61229500 | H25: 290.299988 | I25: 1 | J25: 1 | K25: 290.94 | L25: 291.36 | M25: 289.63 | N25: 290.3 | O25: 61229500 | U25: 2016-03-18 | V25: 1.0496 | W25: 204.380005 | X25: 201603 | Y25: 201503 | Z25: 2015-03-20 | AA25: 5 | AB25: 1 | AC25: 4.32465 | AD25: 0.02115984878
A26: 11 | B26: 2018-08-29 | C26: 290.160004 | D26: 291.73999 | E26: 289.890015 | F26: 291.480011 | G26: 61485500 | H26: 291.480011 | I26: 1 | J26: 1 | K26: 290.16 | L26: 291.74 | M26: 289.89 | N26: 291.48 | O26: 61485500 | U26: 2015-12-18 | V26: 1.21155 | W26: 200.020004 | X26: 201512 | Y26: 201412 | Z26: 2014-12-19 | AA26: 5 | AB26: 1 | AC26: 4.20586 | AD26: 0.02102719686
A27: 12 | B27: 2018-08-28 | C27: 290.299988 | D27: 290.420013 | E27: 289.399994 | F27: 289.920013 | G27: 46943500 | H27: 289.920013 | I27: 1 | J27: 1 | K27: 290.3 | L27: 290.42 | M27: 289.4 | N27: 289.92 | O27: 46943500 | U27: 2015-09-18 | V27: 1.03343 | W27: 195.360001 | X27: 201509 | Y27: 201409 | Z27: 2014-09-19 | AA27: 5 | AB27: 1 | AC27: 4.12923 | AD27: 0.02113651709
A28: 13 | B28: 2018-08-27 | C28: 288.859985 | D28: 289.899994 | E28: 288.679993 | F28: 289.779999 | G28: 57072400 | H28: 289.779999 | I28: 1 | J28: 1 | K28: 288.86 | L28: 289.9 | M28: 288.68 | N28: 289.78 | O28: 57072400 | U28: 2015-06-19 | V28: 1.03007 | W28: 210.809998 | X28: 201506 | Y28: 201406 | Z28: 2014-06-20 | AA28: 5 | AB28: 1 | AC28: 4.03499 | AD28: 0.01914041098
A29: 14 | B29: 2018-08-24 | C29: 286.440002 | D29: 287.670013 | E29: 286.380005 | F29: 287.51001 | G29: 57487400 | H29: 287.51001 | I29: 1 | J29: 1 | K29: 286.44 | L29: 287.67 | M29: 286.38 | N29: 287.51 | O29: 57487400 | U29: 2015-03-20 | V29: 0.93081 | W29: 210.410004 | X29: 201503 | Y29: 201403 | Z29: 2014-03-21 | AA29: 5 | AB29: 1 | AC29: 3.94161 | AD29: 0.01873299712
A30: 15 | B30: 2018-08-23 | C30: 285.970001 | D30: 286.940002 | E30: 285.429993 | F30: 285.790009 | G30: 49204900 | H30: 285.790009 | I30: 1 | J30: 1 | K30: 285.97 | L30: 286.94 | M30: 285.43 | N30: 285.79 | O30: 49204900 | U30: 2014-12-19 | V30: 1.13492 | W30: 206.520004 | X30: 201412 | Y30: 201312 | Z30: 2013-12-20 | AA30: 5 | AB30: 1 | AC30: 3.83541 | AD30: 0.01857161498
A31: 16 | B31: 2018-08-22 | C31: 285.880005 | D31: 286.76001 | E31: 285.579987 | F31: 286.170013 | G31: 44993300 | H31: 286.170013 | I31: 1 | J31: 1 | K31: 285.88 | L31: 286.76 | M31: 285.58 | N31: 286.17 | O31: 44993300 | U31: 2014-09-19 | V31: 0.93919 | W31: 200.699997 | X31: 201409 | Y31: 201309 | Z31: 2013-09-20 | AA31: 5 | AB31: 1 | AC31: 3.68074 | AD31: 0.01833951198
A32: 17 | B32: 2018-08-21 | C32: 286.25 | D32: 287.309998 | E32: 285.709991 | F32: 286.339996 | G32: 67272000 | H32: 286.339996 | I32: 1 | J32: 1 | K32: 286.25 | L32: 287.31 | M32: 285.71 | N32: 286.34 | O32: 67272000 | U32: 2014-06-20 | V32: 0.93669 | W32: 195.940002 | X32: 201406 | Y32: 201306 | Z32: 2013-06-21 | AA32: 5 | AB32: 1 | AC32: 3.5795 | AD32: 0.01826834727
A33: 18 | B33: 2018-08-20 | C33: 285.570007 | D33: 285.970001 | E33: 285.059998 | F33: 285.670013 | G33: 39807500 | H33: 285.670013 | I33: 1 | J33: 1 | K33: 285.57 | L33: 285.97 | M33: 285.06 | N33: 285.67 | O33: 39807500 | U33: 2014-03-21 | V33: 0.82461 | W33: 186.199997 | X33: 201403 | Y33: 201303 | Z33: 2013-03-15 | AA33: 5 | AB33: 1 | AC33: 3.48181 | AD33: 0.01869930213
A34: 19 | B34: 2018-08-17 | C34: 283.829987 | D34: 285.559998 | E34: 283.369995 | F34: 285.059998 | G34: 65618500 | H34: 285.059998 | I34: 1 | J34: 1 | K34: 283.83 | L34: 285.56 | M34: 283.37 | N34: 285.06 | O34: 65618500 | U34: 2013-12-20 | V34: 0.98025 | W34: 181.559998 | X34: 201312 | Y34: 201212 | Z34: 2012-12-21 | AA34: 5 | AB34: 1 | AC34: 3.3512 | AD34: 0.01845781029
A35: 20 | B35: 2018-08-16 | C35: 283.399994 | D35: 285.040009 | E35: 283.359985 | F35: 284.059998 | G35: 69967900 | H35: 284.059998 | I35: 1 | J35: 1 | K35: 283.4 | L35: 285.04 | M35: 283.36 | N35: 284.06 | O35: 69967900 | U35: 2013-09-20 | V35: 0.83795 | W35: 170.720001 | X35: 201309 | Y35: 201209 | Z35: 2012-09-21 | AA35: 5 | AB35: 1 | AC35: 3.39295 | AD35: 0.01987435555
A36: 21 | B36: 2018-08-15 | C36: 282.380005 | D36: 282.540009 | E36: 280.160004 | F36: 281.779999 | G36: 102925400 | H36: 281.779999 | I36: 1 | J36: 1 | K36: 282.38 | L36: 282.54 | M36: 280.16 | N36: 281.78 | O36: 102925400 | U36: 2013-06-21 | V36: 0.839 | W36: 159.070007 | X36: 201306 | Y36: 201206 | Z36: 2012-06-15 | AA36: 5 | AB36: 1 | AC36: 3.334 | AD36: 0.02095932516
A37: 22 | B37: 2018-08-14 | C37: 282.920013 | D37: 284.170013 | E37: 282.480011 | F37: 283.899994 | G37: 43842000 | H37: 283.899994 | I37: 1 | J37: 1 | K37: 282.92 | L37: 284.17 | M37: 282.48 | N37: 283.9 | O37: 43842000 | U37: 2013-03-15 | V37: 0.694 | W37: 155.830002 | X37: 201303 | Y37: 201203 | Z37: 2012-03-16 | AA37: 5 | AB37: 1 | AC37: 3.183 | AD37: 0.02042610511
A38: 23 | B38: 2018-08-13 | C38: 283.470001 | D38: 284.160004 | E38: 281.769989 | F38: 282.100006 | G38: 65686900 | H38: 282.100006 | I38: 1 | J38: 1 | K38: 283.47 | L38: 284.16 | M38: 281.77 | N38: 282.1 | O38: 65686900 | U38: 2012-12-21 | V38: 1.022 | W38: 142.789993 | X38: 201212 | Y38: 201112 | Z38: 2011-12-16 | AA38: 5 | AB38: 1 | AC38: 3.103 | AD38: 0.02173121474
A39: 24 | B39: 2018-08-10 | C39: 283.450012 | D39: 284.059998 | E39: 282.359985 | F39: 283.160004 | G39: 77076000 | H39: 283.160004 | I39: 1 | J39: 1 | K39: 283.45 | L39: 284.06 | M39: 282.36 | N39: 283.16 | O39: 77076000 | U39: 2012-09-21 | V39: 0.779 | W39: 145.869995 | X39: 201209 | Y39: 201109 | Z39: 2011-09-16 | AA39: 5 | AB39: 1 | AC39: 2.851 | AD39: 0.01954480083
A40: 25 | B40: 2018-08-09 | C40: 285.529999 | D40: 285.970001 | E40: 284.920013 | F40: 285.070007 | G40: 35652400 | H40: 285.070007 | I40: 1 | J40: 1 | K40: 285.53 | L40: 285.97 | M40: 284.92 | N40: 285.07 | O40: 35652400 | U40: 2012-06-15 | V40: 0.688 | W40: 134.139999 | X40: 201206 | Y40: 201106 | Z40: 2011-06-17 | AA40: 5 | AB40: 1 | AC40: 2.697 | AD40: 0.0201058597
A41: 26 | B41: 2018-08-08 | C41: 285.390015 | D41: 285.910004 | E41: 284.940002 | F41: 285.459991 | G41: 42114600 | H41: 285.459991 | I41: 1 | J41: 1 | K41: 285.39 | L41: 285.91 | M41: 284.94 | N41: 285.46 | O41: 42114600 | U41: 2012-03-16 | V41: 0.614 | W41: 140.300003 | X41: 201203 | Y41: 201103 | Z41: 2011-03-18 | AA41: 5 | AB41: 1 | AC41: 2.637 | AD41: 0.01879543794
A42: 27 | B42: 2018-08-07 | C42: 285.390015 | D42: 286.01001 | E42: 285.23999 | F42: 285.579987 | G42: 43196600 | H42: 285.579987 | I42: 1 | J42: 1 | K42: 285.39 | L42: 286.01 | M42: 285.24 | N42: 285.58 | O42: 43196600 | U42: 2011-12-16 | V42: 0.77 | W42: 121.589996 | X42: 201112 | Y42: 201012 | Z42: 2010-12-17 | AA42: 5 | AB42: 1 | AC42: 2.576 | AD42: 0.02118595349
A43: 28 | B43: 2018-08-06 | C43: 283.640015 | D43: 284.98999 | E43: 283.200012 | F43: 284.640015 | G43: 39400900 | H43: 284.640015 | I43: 1 | J43: 1 | K43: 283.64 | L43: 284.99 | M43: 283.2 | N43: 284.64 | O43: 39400900 | U43: 2011-09-16 | V43: 0.625 | W43: 121.519997 | X43: 201109 | Y43: 201009 | Z43: 2010-09-17 | AA43: 5 | AB43: 1 | AC43: 2.459 | AD43: 0.0202353527
A44: 29 | B44: 2018-08-03 | C44: 282.529999 | D44: 283.660004 | E44: 282.329987 | F44: 283.600006 | G44: 53935400 | H44: 283.600006 | I44: 1 | J44: 1 | K44: 282.53 | L44: 283.66 | M44: 282.33 | N44: 283.6 | O44: 53935400 | U44: 2011-06-17 | V44: 0.628 | W44: 127.050003 | X44: 201106 | Y44: 201006 | Z44: 2010-06-18 | AA44: 5 | AB44: 1 | AC44: 2.436 | AD44: 0.01917355327
A45: 30 | B45: 2018-08-02 | C45: 279.390015 | D45: 282.579987 | E45: 279.160004 | F45: 282.390015 | G45: 63426400 | H45: 282.390015 | I45: 1 | J45: 1 | K45: 279.39 | L45: 282.58 | M45: 279.16 | N45: 282.39 | O45: 63426400 | U45: 2011-03-18 | V45: 0.553 | W45: 127.760002 | X45: 201103 | Y45: 201003 | Z45: 2010-03-19 | AA45: 5 | AB45: 1 | AC45: 2.339 | AD45: 0.01830776427
A46: 31 | B46: 2018-08-01 | C46: 281.559998 | D46: 282.130005 | E46: 280.130005 | F46: 280.859985 | G46: 53853300 | H46: 280.859985 | I46: 1 | J46: 1 | K46: 281.56 | L46: 282.13 | M46: 280.13 | N46: 280.86 | O46: 53853300 | U46: 2010-12-17 | V46: 0.653 | W46: 124.300003 | X46: 201012 | Y46: 200912 | Z46: 2009-12-18 | AA46: 5 | AB46: 1 | AC46: 2.266 | AD46: 0.01823008806
A47: 32 | B47: 2018-07-31 | C47: 280.809998 | D47: 282.019989 | E47: 280.380005 | F47: 281.329987 | G47: 68570500 | H47: 281.329987 | I47: 1 | J47: 1 | K47: 280.81 | L47: 282.02 | M47: 280.38 | N47: 281.33 | O47: 68570500 | U47: 2010-09-17 | V47: 0.602 | W47: 112.489998 | X47: 201009 | Y47: 200909 | Z47: 2009-09-18 | AA47: 5 | AB47: 1 | AC47: 2.203 | AD47: 0.01958396337
A48: 33 | B48: 2018-07-30 | C48: 281.51001 | D48: 281.690002 | E48: 279.359985 | F48: 279.950012 | G48: 63742500 | H48: 279.950012 | I48: 1 | J48: 1 | K48: 281.51 | L48: 281.69 | M48: 279.36 | N48: 279.95 | O48: 63742500 | U48: 2010-06-18 | V48: 0.531 | W48: 111.730003 | X48: 201006 | Y48: 200906 | Z48: 2009-06-19 | AA48: 5 | AB48: 1 | AC48: 2.109 | AD48: 0.01887586094
A49: 34 | B49: 2018-07-27 | C49: 283.709991 | D49: 283.820007 | E49: 280.380005 | F49: 281.420013 | G49: 76768700 | H49: 281.420013 | I49: 1 | J49: 1 | K49: 283.71 | L49: 283.82 | M49: 280.38 | N49: 281.42 | O49: 76768700 | U49: 2010-03-19 | V49: 0.48 | W49: 115.970001 | X49: 201003 | Y49: 200903 | Z49: 2009-03-20 | AA49: 5 | AB49: 1 | AC49: 2.096 | AD49: 0.01807363958
A50: 35 | B50: 2018-07-26 | C50: 283.200012 | D50: 284.109985 | E50: 283.089996 | F50: 283.339996 | G50: 57919500 | H50: 283.339996 | I50: 1 | J50: 1 | K50: 283.2 | L50: 284.11 | M50: 283.09 | N50: 283.34 | O50: 57919500 | U50: 2009-12-18 | V50: 0.59 | W50: 110.209999 | X50: 200912 | Y50: 200812 | Z50: 2008-12-19 | AA50: 5 | AB50: 1 | AC50: 2.177 | AD50: 0.01975319862
A51: 36 | B51: 2018-07-25 | C51: 281.329987 | D51: 284.369995 | E51: 281.279999 | F51: 284.01001 | G51: 78882900 | H51: 284.01001 | I51: 1 | J51: 1 | K51: 281.33 | L51: 284.37 | M51: 281.28 | N51: 284.01 | O51: 78882900 | U51: 2009-09-18 | V51: 0.508 | W51: 106.720001 | X51: 200909 | Y51: 200809 | Z51: 2008-09-19 | AA51: 5 | AB51: 1 | AC51: 2.306 | AD51: 0.02160794582
A52: 37 | B52: 2018-07-24 | C52: 281.790009 | D52: 282.559998 | E52: 280.630005 | F52: 281.609985 | G52: 68026900 | H52: 281.609985 | I52: 1 | J52: 1 | K52: 281.79 | L52: 282.56 | M52: 280.63 | N52: 281.61 | O52: 68026900 | U52: 2009-06-19 | V52: 0.518 | W52: 92.040001 | X52: 200906 | Y52: 200806 | Z52: 2008-06-20 | AA52: 5 | AB52: 1 | AC52: 2.489 | AD52: 0.02704258988
A53: 38 | B53: 2018-07-23 | C53: 279.450012 | D53: 280.429993 | E53: 279.059998 | F53: 280.200012 | G53: 47047600 | H53: 280.200012 | I53: 1 | J53: 1 | K53: 279.45 | L53: 280.43 | M53: 279.06 | N53: 280.2 | O53: 47047600 | U53: 2009-03-20 | V53: 0.561 | W53: 76.709999 | X53: 200903 | Y53: 200803 | Z53: 2008-03-20 | AA53: 5 | AB53: 1 | AC53: 2.64 | AD53: 0.03441533091
A54: 39 | B54: 2018-07-20 | C54: 279.769989 | D54: 280.480011 | E54: 279.5 | F54: 279.679993 | G54: 82337700 | H54: 279.679993 | I54: 1 | J54: 1 | K54: 279.77 | L54: 280.48 | M54: 279.5 | N54: 279.68 | O54: 82337700 | U54: 2008-12-19 | V54: 0.719 | W54: 88.190002 | X54: 200812 | Y54: 200712 | Z54: 2007-12-21 | AA54: 5 | AB54: 1 | AC54: 2.721 | AD54: 0.0308538376
A55: 40 | B55: 2018-07-19 | C55: 280.309998 | D55: 280.73999 | E55: 279.459991 | F55: 280 | G55: 61412100 | H55: 280 | I55: 1 | J55: 1 | K55: 280.31 | L55: 280.74 | M55: 279.46 | N55: 280 | O55: 61412100 | U55: 2008-09-19 | V55: 0.691 | W55: 124.120003 | X55: 200809 | Y55: 200709 | Z55: 2007-09-21 | AA55: 5 | AB55: 1 | AC55: 2.777 | AD55: 0.02237350897
A56: 41 | B56: 2018-07-18 | C56: 280.559998 | D56: 281.179993 | E56: 280.059998 | F56: 281.059998 | G56: 44593500 | H56: 281.059998 | I56: 1 | J56: 1 | K56: 280.56 | L56: 281.18 | M56: 280.06 | N56: 281.06 | O56: 44593500 | U56: 2008-06-20 | V56: 0.669 | W56: 131.580002 | X56: 200806 | Y56: 200706 | Z56: 2007-06-15 | AA56: 5 | AB56: 1 | AC56: 2.805 | AD56: 0.02131782913
A57: 42 | B57: 2018-07-17 | C57: 278.470001 | D57: 280.910004 | E57: 278.410004 | F57: 280.470001 | G57: 52315500 | H57: 280.470001 | I57: 1 | J57: 1 | K57: 278.47 | L57: 280.91 | M57: 278.41 | N57: 280.47 | O57: 52315500 | U57: 2008-03-20 | V57: 0.642 | W57: 132.080002 | X57: 200803 | Y57: 200703 | Z57: 2007-03-16 | AA57: 5 | AB57: 1 | AC57: 2.792 | AD57: 0.0211387035
A58: 43 | B58: 2018-07-16 | C58: 279.640015 | D58: 279.799988 | E58: 278.839996 | F58: 279.339996 | G58: 48201000 | H58: 279.339996 | I58: 1 | J58: 1 | K58: 279.64 | L58: 279.8 | M58: 278.84 | N58: 279.34 | O58: 48201000 | U58: 2007-12-21 | V58: 0.775 | W58: 148.130005 | X58: 200712 | Y58: 200612 | Z58: 2006-12-15 | AA58: 5 | AB58: 1 | AC58: 2.701 | AD58: 0.01823398305
A59: 44 | B59: 2018-07-13 | C59: 279.170013 | D59: 279.929993 | E59: 278.660004 | F59: 279.589996 | G59: 48216000 | H59: 279.589996 | I59: 1 | J59: 1 | K59: 279.17 | L59: 279.93 | M59: 278.66 | N59: 279.59 | O59: 48216000 | U59: 2007-09-21 | V59: 0.719 | W59: 151.970001 | X59: 200709 | Y59: 200609 | Z59: 2006-09-15 | AA59: 5 | AB59: 1 | AC59: 2.719 | AD59: 0.01789168903
A60: 45 | B60: 2018-07-12 | C60: 278.279999 | D60: 279.429993 | E60: 277.600006 | F60: 279.369995 | G60: 60124700 | H60: 279.369995 | I60: 1 | J60: 1 | K60: 278.28 | L60: 279.43 | M60: 277.6 | N60: 279.37 | O60: 60124700 | U60: 2007-06-15 | V60: 0.656 | W60: 153.070007 | X60: 200706 | Y60: 200606 | Z60: 2006-06-16 | AA60: 5 | AB60: 1 | AC60: 2.579 | AD60: 0.01684849992
A61: 46 | B61: 2018-07-11 | C61: 277.149994 | D61: 278.040009 | E61: 276.519989 | F61: 276.859985 | G61: 77054700 | H61: 276.859985 | I61: 1 | J61: 1 | K61: 277.15 | L61: 278.04 | M61: 276.52 | N61: 276.86 | O61: 77054700 | U61: 2007-03-16 | V61: 0.551 | W61: 138.529999 | X61: 200703 | Y61: 200603 | Z61: 2006-03-17 | AA61: 5 | AB61: 1 | AC61: 2.478 | AD61: 0.01788782226
A62: 47 | B62: 2018-07-10 | C62: 278.410004 | D62: 279.01001 | E62: 278.079987 | F62: 278.899994 | G62: 51966800 | H62: 278.899994 | I62: 1 | J62: 1 | K62: 278.41 | L62: 279.01 | M62: 278.08 | N62: 278.9 | O62: 51966800 | U62: 2006-12-15 | V62: 0.793 | W62: 142.339996 | X62: 200612 | Y62: 200512 | Z62: 2005-12-16 | AA62: 5 | AB62: 1 | AC62: 2.446 | AD62: 0.01718420731
A63: 48 | B63: 2018-07-09 | C63: 276.549988 | D63: 277.959991 | E63: 276.5 | F63: 277.899994 | G63: 50550400 | H63: 277.899994 | I63: 1 | J63: 1 | K63: 276.55 | L63: 277.96 | M63: 276.5 | N63: 277.9 | O63: 50550400 | U63: 2006-09-15 | V63: 0.579 | W63: 131.960007 | X63: 200609 | Y63: 200509 | Z63: 2005-09-16 | AA63: 5 | AB63: 1 | AC63: 2.325 | AD63: 0.01761897451
A64: 49 | B64: 2018-07-06 | C64: 273.140015 | D64: 275.839996 | E64: 272.709991 | F64: 275.420013 | G64: 66493700 | H64: 275.420013 | I64: 1 | J64: 1 | K64: 273.14 | L64: 275.84 | M64: 272.71 | N64: 275.42 | O64: 66493700 | U64: 2006-06-16 | V64: 0.555 | W64: 124.650002 | X64: 200606 | Y64: 200506 | Z64: 2005-06-17 | AA64: 5 | AB64: 1 | AC64: 2.268 | AD64: 0.01819494556
A65: 50 | B65: 2018-07-05 | C65: 272.170013 | D65: 273.179993 | E65: 270.959991 | F65: 273.109985 | G65: 56925900 | H65: 273.109985 | I65: 1 | J65: 1 | K65: 272.17 | L65: 273.18 | M65: 270.96 | N65: 273.11 | O65: 56925900 | U65: 2006-03-17 | V65: 0.519 | W65: 130.619995 | X65: 200603 | Y65: 200503 | Z65: 2005-03-18 | AA65: 5 | AB65: 1 | AC65: 2.201 | AD65: 0.0168504064
A66: 51 | B66: 2018-07-03 | C66: 272.869995 | D66: 272.980011 | E66: 270.420013 | F66: 270.899994 | G66: 42187100 | H66: 270.899994 | I66: 1 | J66: 1 | K66: 272.87 | L66: 272.98 | M66: 270.42 | N66: 270.9 | O66: 42187100 | U66: 2005-12-16 | V66: 0.672 | W66: 126.360001 | X66: 200512 | Y66: 200412 | Z66: 2004-12-17 | AA66: 5 | AB66: 1 | AC66: 2.149 | AD66: 0.01700696409
A67: 52 | B67: 2018-07-02 | C67: 269.51001 | D67: 272.040009 | E67: 269.23999 | F67: 271.859985 | G67: 63554800 | H67: 271.859985 | I67: 1 | J67: 1 | K67: 269.51 | L67: 272.04 | M67: 269.24 | N67: 271.86 | O67: 63554800 | U67: 2005-09-16 | V67: 0.522 | W67: 123.5 | X67: 200509 | Y67: 200409 | Z67: 2004-09-17 | AA67: 6 | AB67: 1 | AC67: 2.396 | AD67: 0.01940080972
A68: 53 | B68: 2018-06-29 | C68: 272.119995 | D68: 273.660004 | E68: 271.149994 | F68: 271.279999 | G68: 97592500 | H68: 271.279999 | I68: 1 | J68: 1 | K68: 272.12 | L68: 273.66 | M68: 271.15 | N68: 271.28 | O68: 97592500 | U68: 2005-06-17 | V68: 0.488 | W68: 121.360001 | X68: 200506 | Y68: 200406 | Z68: 2004-06-18 | AA68: 6 | AB68: 1 | AC68: 2.343 | AD68: 0.01930619628
A69: 54 | B69: 2018-06-28 | C69: 269.290009 | D69: 271.75 | E69: 268.48999 | F69: 270.890015 | G69: 76650500 | H69: 270.890015 | I69: 1 | J69: 1 | K69: 269.29 | L69: 271.75 | M69: 268.49 | N69: 270.89 | O69: 76650500 | U69: 2005-03-18 | V69: 0.467 | W69: 118.540001 | X69: 200503 | Y69: 200403 | Z69: 2004-03-19 | AA69: 6 | AB69: 1 | AC69: 2.269 | AD69: 0.01914121799
A70: 55 | B70: 2018-06-27 | C70: 272.26001 | D70: 273.869995 | E70: 269.179993 | F70: 269.350006 | G70: 105110700 | H70: 269.350006 | I70: 1 | J70: 1 | K70: 272.26 | L70: 273.87 | M70: 269.18 | N70: 269.35 | O70: 105110700 | U70: 2004-12-17 | V70: 0.568 | W70: 119.440002 | X70: 200412 | Y70: 200312 | Z70: 2003-12-19 | AA70: 6 | AB70: 1 | AC70: 2.197 | AD70: 0.0183941725
A71: 56 | B71: 2018-06-26 | C71: 271.640015 | D71: 272.559998 | E71: 270.790009 | F71: 271.600006 | G71: 68547400 | H71: 271.600006 | I71: 1 | J71: 1 | K71: 271.64 | L71: 272.56 | M71: 270.79 | N71: 271.6 | O71: 68547400 | U71: 2004-11-15 | V71: 0.351 | W71: 118.730003 | X71: 200411 | Y71: 200311 | Z71: 2003-12-19 | AA71: 5 | AB71: 0 | AC71: 2.145 | AD71: 0.01806620017
A72: 57 | B72: 2018-06-25 | C72: 273.440002 | D72: 273.619995 | E72: 269.100006 | F72: 271 | G72: 137854200 | H72: 271 | I72: 1 | J72: 1 | K72: 273.44 | L72: 273.62 | M72: 269.1 | N72: 271 | O72: 137854200 | U72: 2004-09-17 | V72: 0.469 | W72: 113.150002 | X72: 200409 | Y72: 200309 | Z72: 2003-09-19 | AA72: 5 | AB72: 1 | AC72: 1.794 | AD72: 0.01585505938
A73: 58 | B73: 2018-06-22 | C73: 275.660004 | D73: 275.790009 | E73: 274.48999 | F73: 274.73999 | G73: 54898500 | H73: 274.73999 | I73: 1 | J73: 1 | K73: 275.66 | L73: 275.79 | M73: 274.49 | N73: 274.74 | O73: 54898500 | U73: 2004-06-18 | V73: 0.414 | W73: 113.629997 | X73: 200406 | Y73: 200306 | Z73: 2003-06-20 | AA73: 5 | AB73: 1 | AC73: 1.725 | AD73: 0.01518085053
A74: 59 | B74: 2018-06-21 | C74: 275.959991 | D74: 275.980011 | E74: 273.679993 | F74: 274.23999 | G74: 71061400 | H74: 274.23999 | I74: 1 | J74: 1 | K74: 275.96 | L74: 275.98 | M74: 273.68 | N74: 274.24 | O74: 71061400 | U74: 2004-03-19 | V74: 0.395 | W74: 111.059998 | X74: 200403 | Y74: 200303 | Z74: 2003-03-21 | AA74: 5 | AB74: 1 | AC74: 1.671 | AD74: 0.01504592139
A75: 60 | B75: 2018-06-20 | C75: 276.269989 | D75: 276.720001 | E75: 275.589996 | F75: 275.970001 | G75: 53785500 | H75: 275.970001 | I75: 1 | J75: 1 | K75: 276.27 | L75: 276.72 | M75: 275.59 | N75: 275.97 | O75: 53785500 | U75: 2003-12-19 | V75: 0.516 | W75: 108.900002 | X75: 200312 | Y75: 200212 | Z75: 2002-12-20 | AA75: 5 | AB75: 1 | AC75: 1.63 | AD75: 0.01496786015
A76: 61 | B76: 2018-06-19 | C76: 274 | D76: 275.75 | E76: 273.529999 | F76: 275.5 | G76: 97531500 | H76: 275.5 | I76: 1 | J76: 1 | K76: 274 | L76: 275.75 | M76: 273.53 | N76: 275.5 | O76: 97531500 | U76: 2003-09-19 | V76: 0.4 | W76: 103.669998 | X76: 200309 | Y76: 200209 | Z76: 2002-09-20 | AA76: 5 | AB76: 1 | AC76: 1.55 | AD76: 0.01495128803
A77: 62 | B77: 2018-06-18 | C77: 275.48999 | D77: 276.700012 | E77: 274.950012 | F77: 276.559998 | G77: 52917600 | H77: 276.559998 | I77: 1 | J77: 1 | K77: 275.49 | L77: 276.7 | M77: 274.95 | N77: 276.56 | O77: 52917600 | U77: 2003-06-20 | V77: 0.36 | W77: 99.440002 | X77: 200306 | Y77: 200206 | Z77: 2002-06-21 | AA77: 5 | AB77: 1 | AC77: 1.528 | AD77: 0.01536604957
A78: 63 | B78: 2018-06-15 | C78: 276.600006 | D78: 277.51001 | E78: 275.350006 | F78: 277.130005 | G78: 120041600 | H78: 277.130005 | I78: 1 | J78: 1 | K78: 276.6 | L78: 277.51 | M78: 275.35 | N78: 277.13 | O78: 120041600 | U78: 2003-03-21 | V78: 0.354 | W78: 89.669998 | X78: 200303 | Y78: 200203 | Z78: 2002-03-15 | AA78: 5 | AB78: 1 | AC78: 1.521 | AD78: 0.01696219509
A79: 64 | B79: 2018-06-14 | C79: 279.01001 | D79: 279.329987 | E79: 278.059998 | F79: 278.730011 | G79: 77097600 | H79: 277.484009 | I79: 0.9955297171 | J79: 1 | K79: 277.76 | L79: 278.08 | M79: 276.82 | N79: 277.48 | O79: 77097600 | U79: 2002-12-20 | V79: 0.436 | W79: 89.989998 | X79: 200212 | Y79: 200112 | Z79: 2001-12-21 | AA79: 5 | AB79: 1 | AC79: 1.498 | AD79: 0.0166462944
A80: 65 | B80: 2018-06-13 | C80: 279.190002 | D80: 279.480011 | E80: 277.799988 | F80: 278.029999 | G80: 79070600 | H80: 276.787109 | I80: 0.9955296551 | J80: 1 | K80: 277.94 | L80: 278.23 | M80: 276.56 | N80: 276.79 | O80: 79070600 | U80: 2002-09-20 | V80: 0.378 | W80: 84.349998 | X80: 200209 | Y80: 200109 | Z80: 2001-09-21 | AA80: 5 | AB80: 1 | AC80: 1.455 | AD80: 0.01724955583
A81: 66 | B81: 2018-06-12 | C81: 279.029999 | D81: 279.329987 | E81: 278.190002 | F81: 278.920013 | G81: 72329000 | H81: 277.673157 | I81: =IF(F81=0,1,H81/F81) -> 0.9955297005 | J81: =INDEX(OFFSET($T$15,0,0,$S$13+1,1),MATCH(B81,OFFSET($Q$15,0,0,$S$13+1,1),-1)) -> 1 | K81: =ROUND($I81*C81,2) -> 277.78 | L81: =ROUND($I81*D81,2) -> 278.08 | M81: =ROUND($I81*E81,2) -> 276.95 | N81: =ROUND($I81*F81,2) -> 277.67 | O81: =G81*J81 -> 72329000 | U81: 2002-06-21 | V81: 0.353 | W81: =(INDEX(OFFSET($F$15,1,0,$B$10,1),MATCH(U81,OFFSET($B$15,1,0,$B$10,1),-1))) -> 99.279999 | X81: =YEAR(U81)&RIGHT("0"&MONTH(U81),2) -> 200206 | Y81: =YEAR(U81)-1&RIGHT("0"&MONTH(U81),2) -> 200106 | Z81: =OFFSET(U80,AA81,0,1,1) -> 2001-06-15 | AA81: =MATCH(Y81,OFFSET($X$15,A81,0,$V$14+1-A81,1),-1) -> 5 | AB81: =IF(OR(AND(YEAR(U81)=YEAR(Z81),MONTH(U81)=MONTH(Z81)),MONTH(U81)=MONTH(Z81)),1,0) -> 1 | AC81: =(V81+IF(AA81-AB81=0,0,IFERROR(SUM(OFFSET(V81,1,0,AA81-AB81-1,1)),0))) -> 1.446 | AD81: =AC81/(INDEX(OFFSET($F$15,1,0,$B$10,1),MATCH(U81,OFFSET($B$15,1,0,$B$10,1),-1))) -> 0.01456486719
A82: 67 | B82: 2018-06-11 | C82: 278.440002 | D82: 279.369995 | E82: 278.309998 | F82: 278.559998 | G82: 58892500 | H82: 277.314758 | I82: 0.9955297243 | J82: 1 | K82: 277.2 | L82: 278.12 | M82: 277.07 | N82: 277.31 | O82: 58892500 | U82: 2002-03-15 | V82: 0.331 | W82: 116.650002 | X82: 200203 | Y82: 200103 | Z82: 2001-03-16 | AA82: 5 | AB82: 1 | AC82: 1.439 | AD82: 0.0123360478
A83: 68 | B83: 2018-06-08 | C83: 276.850006 | D83: 278.25 | E83: 276.660004 | F83: 278.190002 | G83: 72139700 | H83: 276.946411 | I83: 0.9955297063 | J83: 1 | K83: 275.61 | L83: 277.01 | M83: 275.42 | N83: 276.95 | O83: 72139700 | U83: 2001-12-21 | V83: 0.393 | W83: 114.949997 | X83: 200112 | Y83: 200012 | Z83: 2000-12-27 | AA83: 5 | AB83: 1 | AC83: 1.424 | AD83: 0.0123879951
A84: 69 | B84: 2018-06-07 | C84: 277.950012 | D84: 278.279999 | E84: 276.339996 | F84: 277.369995 | G84: 72969400 | H84: 276.130066 | I84: 0.9955296931 | J84: 1 | K84: 276.71 | L84: 277.04 | M84: 275.1 | N84: 276.13 | O84: 72969400 | U84: 2001-09-21 | V84: 0.369 | W84: 97.279999 | X84: 200109 | Y84: 200009 | Z84: 2000-09-15 | AA84: 6 | AB84: 1 | AC84: 1.442 | AD84: 0.01482319094
A85: 70 | B85: 2018-06-06 | C85: 275.790009 | D85: 277.519989 | E85: 275.089996 | F85: 277.399994 | G85: 62732200 | H85: 276.159943 | I85: 0.9955297367 | J85: 1 | K85: 274.56 | L85: 276.28 | M85: 273.86 | N85: 276.16 | O85: 62732200 | U85: 2001-06-15 | V85: 0.346 | W85: 121.849998 | X85: 200106 | Y85: 200006 | Z85: 2000-06-16 | AA85: 7 | AB85: 1 | AC85: 1.448 | AD85: 0.01188346347
A86: 71 | B86: 2018-06-05 | C86: 275.049988 | D86: 275.529999 | E86: 274.179993 | F86: 275.100006 | G86: 51135000 | H86: 273.870239 | I86: 0.9955297456 | J86: 1 | K86: 273.82 | L86: 274.3 | M86: 272.95 | N86: 273.87 | O86: 51135000 | U86: 2001-03-16 | V86: 0.316 | W86: 115.010002 | X86: 200103 | Y86: 200003 | Z86: 2000-03-17 | AA86: 7 | AB86: 1 | AC86: 1.45 | AD86: 0.01260759912
A87: 72 | B87: 2018-06-04 | C87: 274.529999 | D87: 275.190002 | E87: 274.26001 | F87: 274.899994 | G87: 44165500 | H87: 273.671112 | I87: 0.9955297125 | J87: 1 | K87: 273.3 | L87: 273.96 | M87: 273.03 | N87: 273.67 | O87: 44165500 | U87: 2000-12-27 | V87: 0 | W87: 133.3125 | X87: 200012 | Y87: 199912 | Z87: 1999-12-17 | AA87: 7 | AB87: 1 | AC87: 1.505 | AD87: 0.01128926395
A88: 73 | B88: 2018-06-01 | C88: 272.410004 | D88: 273.940002 | E88: 272.329987 | F88: 273.600006 | G88: 68905300 | H88: 272.376923 | I88: 0.9955296675 | J88: 1 | K88: 271.19 | L88: 272.72 | M88: 271.11 | N88: 272.38 | O88: 68905300 | U88: 2000-12-15 | V88: 0.411 | W88: 130.968704 | X88: 200012 | Y88: 199912 | Z88: 1999-12-17 | AA88: 6 | AB88: 1 | AC88: 1.505 | AD88: 0.0114912949
A89: 74 | B89: 2018-05-31 | C89: 272.149994 | D89: 272.48999 | E89: 270.26001 | F89: 270.940002 | G89: 93519900 | H89: 269.728821 | I89: 0.9955297077 | J89: 1 | K89: 270.93 | L89: 271.27 | M89: 269.05 | N89: 269.73 | O89: 93519900 | U89: 2000-09-15 | V89: 0.375 | W89: 146 | X89: 200009 | Y89: 199909 | Z89: 1999-09-17 | AA89: 6 | AB89: 1 | AC89: 1.442 | AD89: 0.009876712329
A90: 75 | B90: 2018-05-30 | C90: 270.5 | D90: 273.109985 | E90: 270.420013 | F90: 272.609985 | G90: 69678400 | H90: 271.391327 | I90: 0.9955296648 | J90: 1 | K90: 269.29 | L90: 271.89 | M90: 269.21 | N90: 271.39 | O90: 69678400 | U90: 2000-09-14 | V90: 0 | W90: 149.640594 | X90: 200009 | Y90: 199909 | Z90: 1999-09-17 | AA90: 5 | AB90: 1 | AC90: 1.067 | AD90: 0.0071304181
A91: 76 | B91: 2018-05-29 | C91: 270.309998 | D91: 271.170013 | E91: 267.76001 | F91: 269.019989 | G91: 114128800 | H91: 267.817383 | I91: 0.9955296779 | J91: 1 | K91: 269.1 | L91: 269.96 | M91: 266.56 | N91: 267.82 | O91: 114128800 | U91: 2000-06-16 | V91: 0.348 | W91: 146.593704 | X91: 200006 | Y91: 199906 | Z91: 1999-06-18 | AA91: 5 | AB91: 1 | AC91: 1.439 | AD91: 0.009816246952
A92: 77 | B92: 2018-05-25 | C92: 272.149994 | D92: 272.859985 | E92: 271.579987 | F92: 272.149994 | G92: 56374800 | H92: 270.933411 | I92: 0.9955297335 | J92: 1 | K92: 270.93 | L92: 271.64 | M92: 270.37 | N92: 270.93 | O92: 56374800 | U92: 2000-03-17 | V92: 0.371 | W92: 146.9375 | X92: 200003 | Y92: 199903 | Z92: 1999-03-19 | AA92: 5 | AB92: 1 | AC92: 1.496 | AD92: 0.01018119949
A93: 78 | B93: 2018-05-24 | C93: 272.910004 | D93: 273.220001 | E93: 270.779999 | F93: 272.799988 | G93: 74295200 | H93: 271.580505 | I93: 0.9955297542 | J93: 1 | K93: 271.69 | L93: 272 | M93: 269.57 | N93: 271.58 | O93: 74295200 | U93: 1999-12-17 | V93: 0.348 | W93: 142.6875 | X93: 199912 | Y93: 199812 | Z93: 1998-12-18 | AA93: 5 | AB93: 1 | AC93: 1.445 | AD93: 0.01012702584
A94: 79 | B94: 2018-05-23 | C94: 271.170013 | D94: 273.390015 | E94: 270.98999 | F94: 273.359985 | G94: 61021700 | H94: 272.138 | I94: 0.995529759 | J94: 1 | K94: 269.96 | L94: 272.17 | M94: 269.78 | N94: 272.14 | O94: 61021700 | U94: 1999-09-17 | V94: 0.372 | W94: 133.75 | X94: 199909 | Y94: 199809 | Z94: 1998-09-18 | AA94: 5 | AB94: 1 | AC94: 1.489 | AD94: 0.01113271028
A95: 80 | B95: 2018-05-22 | C95: 273.959991 | D95: 274.25 | E95: 272.23999 | F95: 272.609985 | G95: 52966400 | H95: 271.391327 | I95: 0.9955296648 | J95: 1 | K95: 272.74 | L95: 273.02 | M95: 271.02 | N95: 271.39 | O95: 52966400 | U95: 1999-06-18 | V95: 0.405 | W95: 134.3125 | X95: 199906 | Y95: 199806 | Z95: 1998-06-19 | AA95: 5 | AB95: 1 | AC95: 1.476 | AD95: 0.01098929735
A96: 81 | B96: 2018-05-21 | C96: 273.01001 | D96: 273.980011 | E96: 272.570007 | F96: 273.369995 | G96: 58025900 | H96: 272.147949 | I96: 0.9955296996 | J96: 1 | K96: 271.79 | L96: 272.76 | M96: 271.35 | N96: 272.15 | O96: 58025900 | U96: 1999-03-19 | V96: 0.32 | W96: 129.6875 | X96: 199903 | Y96: 199803 | Z96: 1998-03-20 | AA96: 5 | AB96: 1 | AC96: 1.423 | AD96: 0.01097253012
A97: 82 | B97: 2018-05-18 | C97: 271.619995 | D97: 272.029999 | E97: 270.929993 | F97: 271.329987 | G97: 64368000 | H97: 270.117065 | I97: 0.9955297164 | J97: 1 | K97: 270.41 | L97: 270.81 | M97: 269.72 | N97: 270.12 | O97: 64368000 | U97: 1998-12-18 | V97: 0.392 | W97: 118.5 | X97: 199812 | Y97: 199712 | Z97: 1997-12-19 | AA97: 5 | AB97: 1 | AC97: 1.416 | AD97: 0.01194936709
A98: 83 | B98: 2018-05-17 | C98: 271.940002 | D98: 273.230011 | E98: 271.130005 | F98: 272.01001 | G98: 56536400 | H98: 270.794037 | I98: 0.9955296755 | J98: 1 | K98: 270.72 | L98: 272.01 | M98: 269.92 | N98: 270.79 | O98: 56536400 | U98: 1998-09-18 | V98: 0.359 | W98: 102.093697 | X98: 199809 | Y98: 199709 | Z98: 1997-09-19 | AA98: 5 | AB98: 1 | AC98: 1.404 | AD98: 0.01375207325
A99: 84 | B99: 2018-05-16 | C99: 271.140015 | D99: 272.76001 | E99: 271.109985 | F99: 272.23999 | G99: 53942600 | H99: 271.02301 | I99: 0.995529753 | J99: 1 | K99: 269.93 | L99: 271.54 | M99: 269.9 | N99: 271.02 | O99: 53942600 | U99: 1998-06-19 | V99: 0.352 | W99: 110.0625 | X99: 199806 | Y99: 199706 | Z99: 1997-06-20 | AA99: 5 | AB99: 1 | AC99: 1.393 | AD99: 0.0126564452
A100: 85 | B100: 2018-05-15 | C100: 271.589996 | D100: 271.609985 | E100: 270.029999 | F100: 271.100006 | G100: 87036100 | H100: 269.888123 | I100: 0.9955297566 | J100: 1 | K100: 270.38 | L100: 270.4 | M100: 268.82 | N100: 269.89 | O100: 87036100 | U100: 1998-03-20 | V100: 0.313 | W100: 109.875 | X100: 199803 | Y100: 199703 | Z100: 1997-03-21 | AA100: 5 | AB100: 1 | AC100: 1.391 | AD100: 0.01265984073
A101: 86 | B101: 2018-05-14 | C101: 273.339996 | D101: 274.079987 | E101: 272.359985 | F101: 272.980011 | G101: 54790600 | H101: 271.759705 | I101: 0.9955296873 | J101: 1 | K101: 272.12 | L101: 272.85 | M101: 271.14 | N101: 271.76 | O101: 54790600 | U101: 1997-12-19 | V101: 0.38 | W101: 94.781197 | X101: 199712 | Y101: 199612 | Z101: 1996-12-20 | AA101: 5 | AB101: 1 | AC101: 1.377 | AD101: 0.01452819803
A102: 87 | B102: 2018-05-11 | C102: 272.160004 | D102: 273.149994 | E102: 271.579987 | F102: 272.850006 | G102: 59871500 | H102: 271.63028 | I102: 0.9955296831 | J102: 1 | K102: 270.94 | L102: 271.93 | M102: 270.37 | N102: 271.63 | O102: 59871500 | U102: 1997-09-19 | V102: 0.348 | W102: 95.031197 | X102: 199709 | Y102: 199609 | Z102: 1996-09-20 | AA102: 5 | AB102: 1 | AC102: 1.364 | AD102: 0.0143531813
A103: 88 | B103: 2018-05-10 | C103: 270.339996 | D103: 272.390015 | E103: 270.220001 | F103: 272.019989 | G103: 72063900 | H103: 270.803986 | I103: 0.9955297293 | J103: 1 | K103: 269.13 | L103: 271.17 | M103: 269.01 | N103: 270.8 | O103: 72063900 | U103: 1997-06-20 | V103: 0.35 | W103: 89.578102 | X103: 199706 | Y103: 199606 | Z103: 1996-06-21 | AA103: 5 | AB103: 1 | AC103: 1.368 | AD103: 0.01527158948
A104: 89 | B104: 2018-05-09 | C104: 267.679993 | D104: 269.869995 | E104: 267.089996 | F104: 269.5 | G104: 59666100 | H104: 268.295258 | I104: 0.9955297143 | J104: 1 | K104: 266.48 | L104: 268.66 | M104: 265.9 | N104: 268.3 | O104: 59666100 | U104: 1997-03-21 | V104: 0.299 | W104: 78.4375 | X104: 199703 | Y104: 199603 | Z104: 1996-03-15 | AA104: 5 | AB104: 1 | AC104: 1.369 | AD104: 0.01745338645
A105: 90 | B105: 2018-05-08 | C105: 266.5 | D105: 267.329987 | E105: 265.149994 | F105: 266.920013 | G105: 67499200 | H105: 265.726807 | I105: 0.9955297245 | J105: 1 | K105: 265.31 | L105: 266.13 | M105: 263.96 | N105: 265.73 | O105: 67499200 | U105: 1996-12-20 | V105: 0.367 | W105: 74.843697 | X105: 199612 | Y105: 199512 | Z105: 1995-12-15 | AA105: 5 | AB105: 1 | AC105: 1.355 | AD105: 0.01810439695
A106: 91 | B106: 2018-05-07 | C106: 266.890015 | D106: 268.019989 | E106: 266.109985 | F106: 266.920013 | G106: 55304900 | H106: 265.726807 | I106: 0.9955297245 | J106: 1 | K106: 265.7 | L106: 266.82 | M106: 264.92 | N106: 265.73 | O106: 55304900 | U106: 1996-09-20 | V106: 0.352 | W106: 68.640602 | X106: 199609 | Y106: 199509 | Z106: 1995-09-15 | AA106: 5 | AB106: 1 | AC106: 1.37 | AD106: 0.01995903241
A107: 92 | B107: 2018-05-04 | C107: 261.519989 | D107: 266.790009 | E107: 261.149994 | F107: 266.019989 | G107: 91222100 | H107: 264.830811 | I107: 0.9955297419 | J107: 1 | K107: 260.35 | L107: 265.6 | M107: 259.98 | N107: 264.83 | O107: 91222100 | U107: 1996-06-21 | V107: 0.351 | W107: 66.8125 | X107: 199606 | Y107: 199506 | Z107: 1995-06-16 | AA107: 5 | AB107: 1 | AC107: 1.33 | AD107: 0.01990645463
A108: 93 | B108: 2018-05-03 | C108: 262.26001 | D108: 263.359985 | E108: 259.049988 | F108: 262.619995 | G108: 136311500 | H108: 261.446014 | I108: 0.9955297349 | J108: 1 | K108: 261.09 | L108: 262.18 | M108: 257.89 | N108: 261.45 | O108: 136311500 | U108: 1996-03-15 | V108: 0.285 | W108: 64.125 | X108: 199603 | Y108: 199503 | Z108: 1995-03-17 | AA108: 5 | AB108: 1 | AC108: 1.295 | AD108: 0.02019493177
A109: 94 | B109: 2018-05-02 | C109: 264.76001 | D109: 265.679993 | E109: 262.76001 | F109: 263.200012 | G109: 86368900 | H109: 262.023438 | I109: 0.9955297342 | J109: 1 | K109: 263.58 | L109: 264.49 | M109: 261.59 | N109: 262.02 | O109: 86368900 | U109: 1995-12-15 | V109: 0.382 | W109: 61.8125 | X109: 199512 | Y109: 199412 | Z109: 1994-12-16 | AA109: 5 | AB109: 1 | AC109: 1.278 | AD109: 0.02067542973
A110: 95 | B110: 2018-05-01 | C110: 263.869995 | D110: 265.100006 | E110: 262.109985 | F110: 264.980011 | G110: 74203400 | H110: 263.795471 | I110: 0.9955297005 | J110: 1 | K110: 262.69 | L110: 263.91 | M110: 260.94 | N110: 263.8 | O110: 74203400 | U110: 1995-09-15 | V110: 0.312 | W110: 58.4375 | X110: 199509 | Y110: 199409 | Z110: 1994-09-19 | AA110: 5 | AB110: 1 | AC110: 1.259 | AD110: 0.02154438503
A111: 96 | B111: 2018-04-30 | C111: 267.26001 | D111: 267.890015 | E111: 264.429993 | F111: 264.51001 | G111: 82182300 | H111: 263.327576 | I111: 0.9955297193 | J111: 1 | K111: 266.07 | L111: 266.69 | M111: 263.25 | N111: 263.33 | O111: 82182300 | U111: 1995-06-16 | V111: 0.316 | W111: 53.9687 | X111: 199506 | Y111: 199406 | Z111: 1994-06-17 | AA111: 6 | AB111: 1 | AC111: 1.235 | AD111: 0.0228836344
A112: 97 | B112: 2018-04-27 | C112: 267 | D112: 267.339996 | E112: 265.5 | F112: 266.559998 | G112: 57053600 | H112: 265.368408 | I112: 0.9955297494 | J112: 1 | K112: 265.81 | L112: 266.14 | M112: 264.31 | N112: 265.37 | O112: 57053600 | U112: 1995-03-17 | V112: 0.268 | W112: 49.5625 | X112: 199503 | Y112: 199403 | Z112: 1994-03-18 | AA112: 6 | AB112: 1 | AC112: 1.224 | AD112: 0.02469609079
A113: 98 | B113: 2018-04-26 | C113: 264.790009 | D113: 267.25 | E113: 264.290009 | F113: 266.309998 | G113: 67731900 | H113: 265.119507 | I113: 0.9955296797 | J113: 1 | K113: 263.61 | L113: 266.06 | M113: 263.11 | N113: 265.12 | O113: 67731900 | U113: 1994-12-16 | V113: 0.363 | W113: 45.75 | X113: 199412 | Y113: 199312 | Z113: 1993-12-17 | AA113: 6 | AB113: 1 | AC113: 1.227 | AD113: 0.02681967213
A114: 99 | B114: 2018-04-25 | C114: 262.910004 | D114: 264.130005 | E114: 260.850006 | F114: 263.630005 | G114: 103840900 | H114: 262.451508 | I114: 0.9955297311 | J114: 1 | K114: 261.73 | L114: 262.95 | M114: 259.68 | N114: 262.45 | O114: 103840900 | U114: 1994-09-19 | V114: 0 | W114: 47.0625 | X114: 199409 | Y114: 199309 | Z114: 1993-09-17 | AA114: 6 | AB114: 1 | AC114: 1.181 | AD114: 0.02509428951
A115: 100 | B115: 2018-04-24 | C115: 267.730011 | D115: 267.980011 | E115: 261.279999 | F115: 262.980011 | G115: 112885500 | H115: 261.804413 | I115: 0.9955297059 | J115: 1 | K115: 266.53 | L115: 266.78 | M115: 260.11 | N115: 261.8 | O115: 112885500 | U115: 1994-09-16 | V115: 0.288 | W115: 47.015598 | X115: 199409 | Y115: 199309 | Z115: 1993-09-17 | AA115: 5 | AB115: 1 | AC115: 1.181 | AD115: 0.02511932317
A116: 101 | B116: 2018-04-23 | C116: 267.26001 | D116: 267.890015 | E116: 265.350006 | F116: 266.570007 | G116: 65558000 | H116: 265.378357 | I116: 0.9955296921 | J116: 1 | K116: 266.07 | L116: 266.69 | M116: 264.16 | N116: 265.38 | O116: 65558000 | U116: 1994-06-17 | V116: 0.305 | W116: 45.875 | X116: 199406 | Y116: 199306 | Z116: 1993-06-18 | AA116: 5 | AB116: 1 | AC116: 1.179 | AD116: 0.02570027248
A117: 102 | B117: 2018-04-20 | C117: 268.809998 | D117: 269.059998 | E117: 265.609985 | F117: 266.609985 | G117: 99953100 | H117: 265.418152 | I117: 0.9955296761 | J117: 1 | K117: 267.61 | L117: 267.86 | M117: 264.42 | N117: 265.42 | O117: 99953100 | U117: 1994-03-18 | V117: 0.271 | W117: 46.9687 | X117: 199403 | Y117: 199303 | Z117: 1993-03-19 | AA117: 5 | AB117: 1 | AC117: 1.192 | AD117: 0.0253786032
A118: 103 | B118: 2018-04-19 | C118: 269.649994 | D118: 269.880005 | E118: 267.720001 | F118: 268.890015 | G118: 77655900 | H118: 267.687988 | I118: 0.9955296704 | J118: 1 | K118: 268.44 | L118: 268.67 | M118: 266.52 | N118: 267.69 | O118: 77655900 | U118: 1993-12-17 | V118: 0.317 | W118: 46.5625 | X118: 199312 | Y118: 199212 | Z118: 1993-03-19 | AA118: 4 | AB118: 0 | AC118: 1.134 | AD118: 0.02435436242
A119: 104 | B119: 2018-04-18 | C119: 270.690002 | D119: 271.299988 | E119: 269.869995 | F119: 270.390015 | G119: 57303900 | H119: 269.181305 | I119: 0.9955297536 | J119: 1 | K119: 269.48 | L119: 270.09 | M119: 268.66 | N119: 269.18 | O119: 57303900 | U119: 1993-09-17 | V119: 0.286 | W119: 45.8125 | X119: 199309 | Y119: 199209 | Z119: 1993-03-19 | AA119: 3 | AB119: 0 | AC119: 0.817 | AD119: 0.01783356071
A120: 105 | B120: 2018-04-17 | C120: 269.329987 | D120: 270.869995 | E120: 268.75 | F120: 270.190002 | G120: 64682000 | H120: 268.982178 | I120: 0.9955297236 | J120: 1 | K120: 268.13 | L120: 269.66 | M120: 267.55 | N120: 268.98 | O120: 64682000 | U120: 1993-06-18 | V120: 0.318 | W120: 44.5 | X120: 199306 | Y120: 199206 | Z120: 1993-03-19 | AA120: 2 | AB120: 0 | AC120: 0.531 | AD120: 0.01193258427
A121: 106 | B121: 2018-04-16 | C121: 267 | D121: 268.200012 | E121: 266.070007 | F121: 267.329987 | G121: 63405300 | H121: 266.134949 | I121: 0.9955297271 | J121: 1 | K121: 265.81 | L121: 267 | M121: 264.88 | N121: 266.13 | O121: 63405300 | U121: 1993-03-19 | V121: 0.213 | W121: 45.0312 | X121: 199303 | Y121: 199203 | Z121: 1993-03-19 | AA121: 1 | AB121: 1 | AC121: 0.213 | AD121: 0.004730053829
A122: 107 | B122: 2018-04-13 | C122: 267.410004 | D122: 267.540009 | E122: 264.01001 | F122: 265.149994 | G122: 85079200 | H122: 263.964691 | I122: 0.9955296888 | J122: 1 | K122: 266.21 | L122: 266.34 | M122: 262.83 | N122: 263.96 | O122: 85079200
A123: 108 | B123: 2018-04-12 | C123: 265.26001 | D123: 267 | E123: 265.059998 | F123: 265.929993 | G123: 68890500 | H123: 264.741211 | I123: 0.9955297182 | J123: 1 | K123: 264.07 | L123: 265.81 | M123: 263.88 | N123: 264.74 | O123: 68890500
A124: 109 | B124: 2018-04-11 | C124: 263.470001 | D124: 265.640015 | E124: 263.390015 | F124: 263.76001 | G124: 91140200 | H124: 262.580933 | I124: 0.9955297355 | J124: 1 | K124: 262.29 | L124: 264.45 | M124: 262.21 | N124: 262.58 | O124: 91140200
A125: 110 | B125: 2018-04-10 | C125: 264.269989 | D125: 266.040009 | E125: 262.980011 | F125: 265.149994 | G125: 103529000 | H125: 263.964691 | I125: 0.9955296888 | J125: 1 | K125: 263.09 | L125: 264.85 | M125: 261.8 | N125: 263.96 | O125: 103529000
A126: 111 | B126: 2018-04-09 | C126: 261.369995 | D126: 264.839996 | E126: 259.940002 | F126: 261 | G126: 105442900 | H126: 259.833252 | I126: 0.9955297011 | J126: 1 | K126: 260.2 | L126: 263.66 | M126: 258.78 | N126: 259.83 | O126: 105442900
A127: 112 | B127: 2018-04-06 | C127: 263.420013 | D127: 265.109985 | E127: 258 | F127: 259.720001 | G127: 179521200 | H127: 258.55899 | I127: 0.995529759 | J127: 1 | K127: 262.24 | L127: 263.92 | M127: 256.85 | N127: 258.56 | O127: 179521200
A128: 113 | B128: 2018-04-05 | C128: 265.549988 | D128: 266.640015 | E128: 264.320007 | F128: 265.640015 | G128: 82652600 | H128: 264.452515 | I128: 0.9955296645 | J128: 1 | K128: 264.36 | L128: 265.45 | M128: 263.14 | N128: 264.45 | O128: 82652600
A129: 114 | B129: 2018-04-04 | C129: 256.75 | D129: 264.359985 | E129: 256.600006 | F129: 263.559998 | G129: 123715300 | H129: 262.381805 | I129: 0.9955296972 | J129: 1 | K129: 255.6 | L129: 263.18 | M129: 255.45 | N129: 262.38 | O129: 123715300
A130: 115 | B130: 2018-04-03 | C130: 258.869995 | D130: 261.309998 | E130: 256.839996 | F130: 260.769989 | G130: 119956900 | H130: 259.604279 | I130: 0.9955297387 | J130: 1 | K130: 257.71 | L130: 260.14 | M130: 255.69 | N130: 259.6 | O130: 119956900
A131: 116 | B131: 2018-04-02 | C131: 262.549988 | D131: 263.130005 | E131: 254.669998 | F131: 257.470001 | G131: 186286300 | H131: 256.319031 | I131: 0.9955296928 | J131: 1 | K131: 261.38 | L131: 261.95 | M131: 253.53 | N131: 256.32 | O131: 186286300
A132: 117 | B132: 2018-03-29 | C132: 261.119995 | D132: 265.26001 | E132: 259.839996 | F132: 263.149994 | G132: 111601600 | H132: 261.973633 | I132: 0.995529694 | J132: 1 | K132: 259.95 | L132: 264.07 | M132: 258.68 | N132: 261.97 | O132: 111601600
A133: 118 | B133: 2018-03-28 | C133: 260.75 | D133: 262.640015 | E133: 258.579987 | F133: 259.829987 | G133: 146452300 | H133: 258.668457 | I133: 0.9955296538 | J133: 1 | K133: 259.58 | L133: 261.47 | M133: 257.42 | N133: 258.67 | O133: 146452300
A134: 119 | B134: 2018-03-27 | C134: 266.170013 | D134: 266.769989 | E134: 258.839996 | F134: 260.600006 | G134: 129941400 | H134: 259.435059 | I134: 0.9955297507 | J134: 1 | K134: 264.98 | L134: 265.58 | M134: 257.68 | N134: 259.44 | O134: 129941400
A135: 120 | B135: 2018-03-26 | C135: 262.130005 | D135: 265.429993 | E135: 259.410004 | F135: 265.109985 | G135: 141956100 | H135: 263.924866 | I135: 0.9955297082 | J135: 1 | K135: 260.96 | L135: 264.24 | M135: 258.25 | N135: 263.92 | O135: 141956100
A136: 121 | B136: 2018-03-23 | C136: 264.170013 | D136: 264.540009 | E136: 257.829987 | F136: 258.049988 | G136: 183534800 | H136: 256.896423 | I136: 0.995529684 | J136: 1 | K136: 262.99 | L136: 263.36 | M136: 256.68 | N136: 256.9 | O136: 183534800
A137: 122 | B137: 2018-03-22 | C137: 267.910004 | D137: 268.869995 | E137: 263.359985 | F137: 263.670013 | G137: 148785900 | H137: 262.491333 | I137: 0.9955297154 | J137: 1 | K137: 266.71 | L137: 267.67 | M137: 262.18 | N137: 262.49 | O137: 148785900
A138: 123 | B138: 2018-03-21 | C138: 270.899994 | D138: 273.269989 | E138: 270.190002 | F138: 270.429993 | G138: 78709600 | H138: 269.2211 | I138: 0.9955297377 | J138: 1 | K138: 269.69 | L138: 272.05 | M138: 268.98 | N138: 269.22 | O138: 78709600
A139: 124 | B139: 2018-03-20 | C139: 270.940002 | D139: 271.670013 | E139: 270.179993 | F139: 270.950012 | G139: 59757300 | H139: 269.7388 | I139: 0.9955297585 | J139: 1 | K139: 269.73 | L139: 270.46 | M139: 268.97 | N139: 269.74 | O139: 59757300
A140: 125 | B140: 2018-03-19 | C140: 273.350006 | D140: 274.399994 | E140: 268.619995 | F140: 270.48999 | G140: 109208400 | H140: 269.280823 | I140: 0.9955297163 | J140: 1 | K140: 272.13 | L140: 273.17 | M140: 267.42 | N140: 269.28 | O140: 109208400
A141: 126 | B141: 2018-03-16 | C141: 274.5 | D141: 275.390015 | E141: 274.140015 | F141: 274.200012 | G141: 100343700 | H141: 272.974274 | I141: 0.9955297668 | J141: 1 | K141: 273.27 | L141: 274.16 | M141: 272.91 | N141: 272.97 | O141: 100343700
A142: 127 | B142: 2018-03-15 | C142: 275.880005 | D142: 276.609985 | E142: 274.429993 | F142: 275 | G142: 83433000 | H142: 272.678558 | I142: 0.9915583927 | J142: 1 | K142: 273.55 | L142: 274.27 | M142: 272.11 | N142: 272.68 | O142: 83433000
A143: 128 | B143: 2018-03-14 | C143: 277.809998 | D143: 278.019989 | E143: 274.670013 | F143: 275.299988 | G143: 105895100 | H143: 272.976013 | I143: 0.9915583905 | J143: 1 | K143: 275.46 | L143: 275.67 | M143: 272.35 | N143: 272.98 | O143: 105895100
A144: 129 | B144: 2018-03-13 | C144: 279.839996 | D144: 280.410004 | E144: 276.029999 | F144: 276.720001 | G144: 91968900 | H144: 274.384033 | I144: 0.9915583695 | J144: 1 | K144: 277.48 | L144: 278.04 | M144: 273.7 | N144: 274.38 | O144: 91968900
A145: 130 | B145: 2018-03-12 | C145: 279.200012 | D145: 279.910004 | E145: 278.079987 | F145: 278.519989 | G145: 71924800 | H145: 276.168854 | I145: =IF(F145=0,1,H145/F145) -> 0.9915584694 | J145: =INDEX(OFFSET($T$15,0,0,$S$13+1,1),MATCH(B145,OFFSET($Q$15,0,0,$S$13+1,1),-1)) -> 1 | K145: =ROUND($I145*C145,2) -> 276.84 | L145: =ROUND($I145*D145,2) -> 277.55 | M145: =ROUND($I145*E145,2) -> 275.73 | N145: =ROUND($I145*F145,2) -> 276.17 | O145: =G145*J145 -> 71924800
A146: 131 | B146: 2018-03-09 | C146: 275.700012 | D146: 278.869995 | E146: 275.339996 | F146: 278.869995 | G146: 113625300 | H146: 276.5159 | I146: 0.99155845 | J146: 1 | K146: 273.37 | L146: 276.52 | M146: 273.02 | N146: 276.52 | O146: 113625300
A147: 132 | B147: 2018-03-08 | C147: 273.549988 | D147: 274.23999 | E147: 272.420013 | F147: 274.100006 | G147: 66901200 | H147: 271.786163 | I147: 0.9915583986 | J147: 1 | K147: 271.24 | L147: 271.92 | M147: 270.12 | N147: 271.79 | O147: 66901200
A148: 133 | B148: 2018-03-07 | C148: 270.420013 | D148: 273.179993 | E148: 270.200012 | F148: 272.779999 | G148: 87063500 | H148: 270.477325 | I148: 0.991558494 | J148: 1 | K148: 268.14 | L148: 270.87 | M148: 267.92 | N148: 270.48 | O148: 87063500
A149: 134 | B149: 2018-03-06 | C149: 273.299988 | D149: 273.390015 | E149: 271.179993 | F149: 272.880005 | G149: 79213200 | H149: 270.576477 | I149: 0.9915584581 | J149: 1 | K149: 270.99 | L149: 271.08 | M149: 268.89 | N149: 270.58 | O149: 79213200
A150: 135 | B150: 2018-03-05 | C150: 267.730011 | D150: 272.890015 | E150: 267.609985 | F150: 272.190002 | G150: 97307400 | H150: 269.892303 | I150: 0.9915584739 | J150: 1 | K150: 265.47 | L150: 270.59 | M150: 265.35 | N150: 269.89 | O150: 97307400
A151: 136 | B151: 2018-03-02 | C151: 265.799988 | D151: 269.720001 | E151: 264.820007 | F151: 269.079987 | G151: 139083200 | H151: 266.808533 | I151: 0.9915584432 | J151: 1 | K151: 263.56 | L151: 267.44 | M151: 262.58 | N151: 266.81 | O151: 139083200
A152: 137 | B152: 2018-03-01 | C152: 271.410004 | D152: 273.170013 | E152: 266 | F152: 267.700012 | G152: 176855100 | H152: 265.440216 | I152: 0.9915584763 | J152: 1 | K152: 269.12 | L152: 270.86 | M152: 263.75 | N152: 265.44 | O152: 176855100
A153: 138 | B153: 2018-02-28 | C153: 275.679993 | D153: 276.190002 | E153: 271.290009 | F153: 271.649994 | G153: 121907800 | H153: 269.356842 | I153: 0.9915584316 | J153: 1 | K153: 273.35 | L153: 273.86 | M153: 269 | N153: 269.36 | O153: 121907800
A154: 139 | B154: 2018-02-27 | C154: 278.109985 | D154: 278.920013 | E154: 274.359985 | F154: 274.429993 | G154: 99099200 | H154: 272.113373 | I154: 0.99155843 | J154: 1 | K154: 275.76 | L154: 276.57 | M154: 272.04 | N154: 272.11 | O154: 99099200
A155: 140 | B155: 2018-02-26 | C155: 275.929993 | D155: 278.01001 | E155: 275.26001 | F155: 277.899994 | G155: 86491400 | H155: 275.554108 | I155: 0.9915585245 | J155: 1 | K155: 273.6 | L155: 275.66 | M155: 272.94 | N155: 275.55 | O155: 86491400
A156: 141 | B156: 2018-02-23 | C156: 271.790009 | D156: 274.709991 | E156: 271.25 | F156: 274.709991 | G156: 92766400 | H156: 272.391022 | I156: 0.9915584832 | J156: 1 | K156: 269.5 | L156: 272.39 | M156: 268.96 | N156: 272.39 | O156: 92766400
A157: 142 | B157: 2018-02-22 | C157: 271.100006 | D157: 273.049988 | E157: 269.640015 | F157: 270.399994 | G157: 110511300 | H157: 268.117401 | I157: 0.9915584577 | J157: 1 | K157: 268.81 | L157: 270.75 | M157: 267.36 | N157: 268.12 | O157: 110511300
A158: 143 | B158: 2018-02-21 | C158: 271.899994 | D158: 274.720001 | E158: 269.940002 | F158: 270.049988 | G158: 98883700 | H158: 267.770325 | I158: 0.9915583666 | J158: 1 | K158: 269.6 | L158: 272.4 | M158: 267.66 | N158: 267.77 | O158: 98883700
A159: 144 | B159: 2018-02-20 | C159: 272.029999 | D159: 273.670013 | E159: 270.5 | F159: 271.399994 | G159: 86369700 | H159: 269.108978 | I159: 0.991558526 | J159: 1 | K159: 269.73 | L159: 271.36 | M159: 268.22 | N159: 269.11 | O159: 86369700
A160: 145 | B160: 2018-02-16 | C160: 272.320007 | D160: 275.320007 | E160: 272.269989 | F160: 273.109985 | G160: 160420100 | H160: 270.804504 | I160: 0.9915584156 | J160: 1 | K160: 270.02 | L160: 273 | M160: 269.97 | N160: 270.8 | O160: 160420100
A161: 146 | B161: 2018-02-15 | C161: 271.570007 | D161: 273.040009 | E161: 268.769989 | F161: 273.029999 | G161: 111200300 | H161: 270.725189 | I161: 0.9915584001 | J161: 1 | K161: 269.28 | L161: 270.74 | M161: 266.5 | N161: 270.73 | O161: 111200300
A162: 147 | B162: 2018-02-14 | C162: 264.309998 | D162: 270 | E162: 264.299988 | F162: 269.589996 | G162: 120735700 | H162: 267.31424 | I162: 0.9915584553 | J162: 1 | K162: 262.08 | L162: 267.72 | M162: 262.07 | N162: 267.31 | O162: 120735700
A163: 148 | B163: 2018-02-13 | C163: 263.970001 | D163: 266.619995 | E163: 263.309998 | F163: 266 | G163: 81223600 | H163: 263.754547 | I163: 0.9915584474 | J163: 1 | K163: 261.74 | L163: 264.37 | M163: 261.09 | N163: 263.75 | O163: 81223600
A164: 149 | B164: 2018-02-12 | C164: 263.829987 | D164: 267.01001 | E164: 261.660004 | F164: 265.339996 | G164: 143736000 | H164: 263.100098 | I164: 0.9915583853 | J164: 1 | K164: 261.6 | L164: 264.76 | M164: 259.45 | N164: 263.1 | O164: 143736000
A165: 150 | B165: 2018-02-09 | C165: 260.799988 | D165: 263.609985 | E165: 252.919998 | F165: 261.5 | G165: 283565300 | H165: 259.292542 | I165: 0.991558478 | J165: 1 | K165: 258.6 | L165: 261.38 | M165: 250.78 | N165: 259.29 | O165: 283565300
A166: 151 | B166: 2018-02-08 | C166: 268.01001 | D166: 268.170013 | E166: 257.589996 | F166: 257.630005 | G166: 246449500 | H166: 255.455215 | I166: 0.9915584755 | J166: 1 | K166: 265.75 | L166: 265.91 | M166: 255.42 | N166: 255.46 | O166: 246449500
A167: 152 | B167: 2018-02-07 | C167: 268.5 | D167: 272.359985 | E167: 267.579987 | F167: 267.670013 | G167: 167376100 | H167: 265.410461 | I167: 0.9915584418 | J167: 1 | K167: 266.23 | L167: 270.06 | M167: 265.32 | N167: 265.41 | O167: 167376100
A168: 153 | B168: 2018-02-06 | C168: 259.940002 | D168: 269.700012 | E168: 258.700012 | F168: 269.130005 | G168: 355026800 | H168: 266.858124 | I168: 0.9915584255 | J168: 1 | K168: 257.75 | L168: 267.42 | M168: 256.52 | N168: 266.86 | O168: 355026800
A169: 154 | B169: 2018-02-05 | C169: 273.450012 | D169: 275.850006 | E169: 263.309998 | F169: 263.929993 | G169: 294681800 | H169: 261.702026 | I169: 0.9915584926 | J169: 1 | K169: 271.14 | L169: 273.52 | M169: 261.09 | N169: 261.7 | O169: 294681800
A170: 155 | B170: 2018-02-02 | C170: 280.079987 | D170: 280.230011 | E170: 275.410004 | F170: 275.450012 | G170: 173174800 | H170: 273.124786 | I170: 0.9915584465 | J170: 1 | K170: 277.72 | L170: 277.86 | M170: 273.09 | N170: 273.12 | O170: 173174800
A171: 156 | B171: 2018-02-01 | C171: 281.070007 | D171: 283.059998 | E171: 280.679993 | F171: 281.579987 | G171: 90102500 | H171: 279.203003 | I171: 0.9915584057 | J171: 1 | K171: 278.7 | L171: 280.67 | M171: 278.31 | N171: 279.2 | O171: 90102500
A172: 157 | B172: 2018-01-31 | C172: 282.730011 | D172: 283.299988 | E172: 280.679993 | F172: 281.899994 | G172: 108364800 | H172: 279.520325 | I172: 0.9915584638 | J172: 1 | K172: 280.34 | L172: 280.91 | M172: 278.31 | N172: 279.52 | O172: 108364800
A173: 158 | B173: 2018-01-30 | C173: 282.600006 | D173: 284.73999 | E173: 281.220001 | F173: 281.76001 | G173: 131796400 | H173: 279.3815 | I173: 0.9915583833 | J173: 1 | K173: 280.21 | L173: 282.34 | M173: 278.85 | N173: 279.38 | O173: 131796400
A174: 159 | B174: 2018-01-29 | C174: 285.929993 | D174: 286.429993 | E174: 284.5 | F174: 284.679993 | G174: 90118300 | H174: 282.276825 | I174: 0.991558353 | J174: 1 | K174: 283.52 | L174: 284.01 | M174: 282.1 | N174: 282.28 | O174: 90118300
A175: 160 | B175: 2018-01-26 | C175: 284.25 | D175: 286.630005 | E175: 283.959991 | F175: 286.579987 | G175: 107743100 | H175: 284.160797 | I175: 0.9915584126 | J175: 1 | K175: 281.85 | L175: 284.21 | M175: 281.56 | N175: 284.16 | O175: 107743100
A176: 161 | B176: 2018-01-25 | C176: 284.160004 | D176: 284.269989 | E176: 282.399994 | F176: 283.299988 | G176: 84587300 | H176: 280.908508 | I176: 0.9915584889 | J176: 1 | K176: 281.76 | L176: 281.87 | M176: 280.02 | N176: 280.91 | O176: 84587300
A177: 162 | B177: 2018-01-24 | C177: 284.019989 | D177: 284.700012 | E177: 281.839996 | F177: 283.179993 | G177: 134816100 | H177: 280.78952 | I177: 0.9915584679 | J177: 1 | K177: 281.62 | L177: 282.3 | M177: 279.46 | N177: 280.79 | O177: 134816100
A178: 163 | B178: 2018-01-23 | C178: 282.73999 | D178: 283.619995 | E178: 282.369995 | F178: 283.290009 | G178: 97084700 | H178: 280.89859 | I178: 0.9915584068 | J178: 1 | K178: 280.35 | L178: 281.23 | M178: 279.99 | N178: 280.9 | O178: 97084700
A179: 164 | B179: 2018-01-22 | C179: 280.170013 | D179: 282.690002 | E179: 280.109985 | F179: 282.690002 | G179: 91322400 | H179: 280.30365 | I179: 0.9915584139 | J179: 1 | K179: 277.8 | L179: 280.3 | M179: 277.75 | N179: 280.3 | O179: 91322400
A180: 165 | B180: 2018-01-19 | C180: 279.799988 | D180: 280.410004 | E180: 279.140015 | F180: 280.410004 | G180: 140920100 | H180: 278.042908 | I180: 0.9915584467 | J180: 1 | K180: 277.44 | L180: 278.04 | M180: 276.78 | N180: 278.04 | O180: 140920100
A181: 166 | B181: 2018-01-18 | C181: 279.480011 | D181: 279.959991 | E181: 278.579987 | F181: 279.140015 | G181: 100728000 | H181: 276.78363 | I181: 0.991558412 | J181: 1 | K181: 277.12 | L181: 277.6 | M181: 276.23 | N181: 276.78 | O181: 100728000
A182: 167 | B182: 2018-01-17 | C182: 278.029999 | D182: 280.049988 | E182: 276.970001 | F182: 279.609985 | G182: 109354500 | H182: 277.249634 | I182: 0.9915584166 | J182: 1 | K182: 275.68 | L182: 277.69 | M182: 274.63 | N182: 277.25 | O182: 109354500
A183: 168 | B183: 2018-01-16 | C183: 279.350006 | D183: 280.089996 | E183: 276.179993 | F183: 276.970001 | G183: 106555100 | H183: 274.631958 | I183: 0.9915584973 | J183: 1 | K183: 276.99 | L183: 277.73 | M183: 273.85 | N183: 274.63 | O183: 106555100
A184: 169 | B184: 2018-01-12 | C184: 276.420013 | D184: 278.109985 | E184: 276.079987 | F184: 277.920013 | G184: 90816100 | H184: 275.573944 | I184: 0.9915584741 | J184: 1 | K184: 274.09 | L184: 275.76 | M184: 273.75 | N184: 275.57 | O184: 90816100
A185: 170 | B185: 2018-01-11 | C185: 274.75 | D185: 276.119995 | E185: 274.559998 | F185: 276.119995 | G185: 62361500 | H185: 273.789093 | I185: 0.991558373 | J185: 1 | K185: 272.43 | L185: 273.79 | M185: 272.24 | N185: 273.79 | O185: 62361500
A186: 171 | B186: 2018-01-10 | C186: 273.679993 | D186: 274.420013 | E186: 272.920013 | F186: 274.119995 | G186: 69574300 | H186: 271.806 | I186: 0.9915584596 | J186: 1 | K186: 271.37 | L186: 272.1 | M186: 270.62 | N186: 271.81 | O186: 69574300
A187: 172 | B187: 2018-01-09 | C187: 274.399994 | D187: 275.25 | E187: 274.079987 | F187: 274.540009 | G187: 57254000 | H187: 272.222473 | I187: 0.9915584763 | J187: 1 | K187: 272.08 | L187: 272.93 | M187: 271.77 | N187: 272.22 | O187: 57254000
A188: 173 | B188: 2018-01-08 | C188: 273.309998 | D188: 274.100006 | E188: 272.980011 | F188: 273.920013 | G188: 57319200 | H188: 271.607727 | I188: 0.9915585357 | J188: 1 | K188: 271 | L188: 271.79 | M188: 270.68 | N188: 271.61 | O188: 57319200
A189: 174 | B189: 2018-01-05 | C189: 272.51001 | D189: 273.559998 | E189: 271.950012 | F189: 273.420013 | G189: 83524000 | H189: 271.111938 | I189: 0.9915585001 | J189: 1 | K189: 270.21 | L189: 271.25 | M189: 269.65 | N189: 271.11 | O189: 83524000
A190: 175 | B190: 2018-01-04 | C190: 271.200012 | D190: 272.160004 | E190: 270.540009 | F190: 271.609985 | G190: 80636400 | H190: 269.317169 | I190: 0.9915584252 | J190: 1 | K190: 268.91 | L190: 269.86 | M190: 268.26 | N190: 269.32 | O190: 80636400
A191: 176 | B191: 2018-01-03 | C191: 268.959991 | D191: 270.640015 | E191: 268.959991 | F191: 270.470001 | G191: 90070400 | H191: 268.186829 | I191: 0.9915585019 | J191: 1 | K191: 266.69 | L191: 268.36 | M191: 266.69 | N191: 268.19 | O191: 90070400
A192: 177 | B192: 2018-01-02 | C192: 267.839996 | D192: 268.809998 | E192: 267.399994 | F192: 268.769989 | G192: 86655700 | H192: 266.50116 | I192: 0.9915584734 | J192: 1 | K192: 265.58 | L192: 266.54 | M192: 265.14 | N192: 266.5 | O192: 86655700
A193: 178 | B193: 2017-12-29 | C193: 268.529999 | D193: 268.549988 | E193: 266.640015 | F193: 266.859985 | G193: 96007400 | H193: 264.607269 | I193: 0.9915584347 | J193: 1 | K193: 266.26 | L193: 266.28 | M193: 264.39 | N193: 264.61 | O193: 96007400
A194: 179 | B194: 2017-12-28 | C194: 267.890015 | D194: 267.920013 | E194: 267.450012 | F194: 267.869995 | G194: 45116100 | H194: 265.608765 | I194: 0.9915584797 | J194: 1 | K194: 265.63 | L194: 265.66 | M194: 265.19 | N194: 265.61 | O194: 45116100
A195: 180 | B195: 2017-12-27 | C195: 267.380005 | D195: 267.730011 | E195: 267.01001 | F195: 267.320007 | G195: 57751000 | H195: 265.063416 | I195: 0.9915584657 | J195: 1 | K195: 265.12 | L195: 265.47 | M195: 264.76 | N195: 265.06 | O195: 57751000
A196: 181 | B196: 2017-12-26 | C196: 267.049988 | D196: 267.440002 | E196: 266.890015 | F196: 267.190002 | G196: 45244400 | H196: 264.934479 | I196: 0.9915583555 | J196: 1 | K196: 264.8 | L196: 265.18 | M196: 264.64 | N196: 264.93 | O196: 45244400
A197: 182 | B197: 2017-12-22 | C197: 267.600006 | D197: 267.640015 | E197: 266.899994 | F197: 267.51001 | G197: 78720900 | H197: 265.251801 | I197: 0.9915584131 | J197: 1 | K197: 265.34 | L197: 265.38 | M197: 264.65 | N197: 265.25 | O197: 78720900
A198: 183 | B198: 2017-12-21 | C198: 267.73999 | D198: 268.390015 | E198: 267.299988 | F198: 267.579987 | G198: 67032300 | H198: 265.321198 | I198: 0.9915584531 | J198: 1 | K198: 265.48 | L198: 266.12 | M198: 265.04 | N198: 265.32 | O198: 67032300
A199: 184 | B199: 2017-12-20 | C199: 268.269989 | D199: 268.329987 | E199: 266.690002 | F199: 267.029999 | G199: 76751500 | H199: 264.775848 | I199: 0.9915584354 | J199: 1 | K199: 266.01 | L199: 266.06 | M199: 264.44 | N199: 264.78 | O199: 76751500
A200: 185 | B200: 2017-12-19 | C200: 268.480011 | D200: 268.529999 | E200: 267.089996 | F200: 267.170013 | G200: 82382900 | H200: 264.914673 | I200: 0.9915584089 | J200: 1 | K200: 266.21 | L200: 266.26 | M200: 264.84 | N200: 264.91 | O200: 82382900
... 6269 more rows

Sheet CalculationsAndCharts
A1: The Stiffness Indicator
A2: =InputPriceData!A1 -> Align Technology, Inc. (ALGN) -NasdaqGS (Daily)
A4: User Charting Controls | E4: Click to Shift Chart One Bar:
A5: Data Control
A6: =InputPriceData!$B$10 -> 4434 | B6: Available Input Data Rows | E6: Earliest: | F6: =OFFSET(InputPriceData!B15,CalculationsAndCharts!A6,0,1,1) -> 2001-01-30
B7: Use Close Adjusted: | C7: TRUE | E7: Latest: | F7: =OFFSET(InputPriceData!B15,1,0,1,1) -> 2018-09-13
A8: =MIN(A6-A11,LOOKUP(2,1/(B:B<>0),ROW(A:A))-32) -> 1000 | B8: Logically Available for Calc / Plot | E8: $ Change: | F8: =G33-G34 -> 6.09
F10: Y-axis Range
A11: 48 | B11: Input Data Offset (Pan) | E11: Max High+ | F11: =CEILING(MAX(MAX(OFFSET($E$33,0,0,$A$12,1)))+2*F14,0.1) -> 403.1
A12: 618 | B12: Data Points to Plot (Zoom) | E12: Min Low- | F12: =FLOOR(MIN(MIN(OFFSET($F$33,0,0,$A$12,1)))-2*F14,0.1) -> 26
B13: First: | C13: =OFFSET(B32,A12,0,1,1) -> 2016-01-25 | E13: White space %: | F13: 0.05
B14: ="Last: " & IF(OFFSET(InputPriceData!P15,1+A11,0,1,1)="","",TEXT(OFFSET(InputPriceData!P15,1+A11,0,1,1),"H:MM AM/PM")) -> Last: | C14: =B33 -> 2018-07-06 | E14: Allowance: | F14: =FLOOR((CEILING(MAX(MAX(OFFSET($E$33,0,0,$A$12,1))),1)-FLOOR(MIN(MIN(OFFSET($F$33,0,0,$A$12,1))),1))*F13,0.01) -> 15.75
A15: User Controls
C16: Alpha | D16: 1-Alpha
A17: 60 | B17: Stiff Period
A18: 100 | B18: MA Period
A19: 3 | B19: Smooth Coef. | C19: =2/(A19+1) -> 0.5 | D19: =1-C19 -> 0.5
A20: 90 | B20: Stiff Critical
A21: 0.2 | B21: Min StdDev
A22: 100 | B22: SpyEmaPeriod | C22: =2/(A22+1) -> 0.0198019802 | D22: =1-C22 -> 0.9801980198
A23: 50 | B23: Stiff Exit Level
A24: 4 | B24: <=Months - Duration Exit - Bars=> | D24: =21*A24 -> 84
A25: Help! I would like to plot data
A26: From | B26: 2016-01-25 | C26: =OFFSET(InputPriceData!$A$15,MATCH(B26,OFFSET(InputPriceData!B15,1,0,InputPriceData!$B$10,1),0),0,1,1)-C27 -> 618 | E26: 529
A27: To | B27: 2018-07-06 | C27: =OFFSET(InputPriceData!$A$15,MATCH(B27,OFFSET(InputPriceData!$B$15,1,0,InputPriceData!$B$10,1),0),0,1,1)-1 -> 48 | E27: =$A$12-$E$26+1 -> 90
A28: ='Transaction Summary'!B6 -> 7 | B28: Winners | C28: ='Transaction Summary'!I6 -> 162.7 | D28: Gains | H28: @ Cursor => | I28: =OFFSET(A32,$E$27,0,1,1)&"(RR)" -> 90(RR) | J28: =OFFSET($B$32,E27,0,1,1) -> 2018-02-28 | K28: =TEXT(OFFSET(D32,$E$27,0,1,1),"#,##0.00")&"(o)" -> 264.90(o) | L28: =TEXT(OFFSET(E32,$E$27,0,1,1),"#,##0.00")&"(h)" -> 267.78(h) | M28: =TEXT(OFFSET(F32,$E$27,0,1,1),"#,##0.00")&"(l)" -> 262.44(l) | N28: =TEXT(OFFSET(G32,$E$27,0,1,1),"#,##0.00")&"(c)" -> 262.52(c) | O28: =IF(OFFSET(C32,$E$27,0,1,1)>9999999,TEXT(OFFSET(C32,$E$27,0,1,1)/1000000,"#,##0.00")&"M",TEXT(OFFSET(C32,$E$27,0,1,1),"#,##0"))&"(v)" -> 657,300(v)
A29: ='Transaction Summary'!B7 -> 1 | B29: Loss | C29: ='Transaction Summary'!I7 -> -6.06 | D29: Losses | E29: Cursor ==> | AU29: Chart Cursor work area
C30: ='Transaction Summary'!I8 -> 156.64 | D30: Net
A31: Rel Row | J31: MA2 | S31: ="SPY EMA("&A22&")" -> SPY EMA(100) | U31: Stiffness Signals | W31: Transaction | X31: Days In Trade | Y31: Duration Exit | Z31: Trigger | AB31: Prices | AD31: Stiff Exit | AP31: Used To Color Vol Bars
B32: Date | C32: Volume | D32: Open | E32: High | F32: Low | G32: Close | H32: StdDev | I32: ="MA(" & $A$18 & ")" -> MA(100) | J32: ="MA(" & $A$18 & ") -" & $A$21 & "std Dev" -> MA(100) -0.2std Dev | K32: CL>MA2 | L32: PENS | M32: Stif | N32: Stiffness | O32: StifCrit | P32: GT Crit | Q32: Shadow | R32: Spy Close | T32: Spy Up | U32: Buy | V32: Sell | W32: In Flight | Z32: Buy | AA32: Sell | AB32: Buy | AC32: Sell | AD32: Exit Level | AE32: Signal | AP32: Up Vol | AQ32: Dn Vol | AU32: Volume Cursor | AV32: =MAX(OFFSET(C33,0,0,A12,1)) -> 17940200 | AW32: Stiffness Cursor | AY32: Price Chart Cursor
A33: 1 | B33: =OFFSET(InputPriceData!B$15,CalculationsAndCharts!$A33+$A$11,0,1,1) -> 2018-07-06 | C33: =OFFSET(InputPriceData!G$15,CalculationsAndCharts!$A33+$A$11,IF($C$7,8,0),1,1) -> 641600 | D33: =OFFSET(InputPriceData!C$15,CalculationsAndCharts!$A33+$A$11,IF($C$7,8,0),1,1) -> 341.39 | E33: =OFFSET(InputPriceData!D$15,CalculationsAndCharts!$A33+$A$11,IF($C$7,8,0),1,1) -> 349.7 | F33: =OFFSET(InputPriceData!E$15,CalculationsAndCharts!$A33+$A$11,IF($C$7,8,0),1,1) -> 338.8 | G33: =OFFSET(InputPriceData!F$15,CalculationsAndCharts!$A33+$A$11,IF($C$7,8,0),1,1) -> 347.47 | H33: =_xlfn.STDEV.P(OFFSET($G33,0,0,$A$18,1)) -> 41.07276963 | I33: =AVERAGE(OFFSET($G33,0,0,$A$18,1)) -> 287.6563 | J33: =I33-$A$21*H33 -> 279.4417461 | K33: =G33>J33 -> TRUE | L33: =COUNTIF(OFFSET($K33,0,0,$A$17,1),TRUE) -> 56 | M33: =L33*100/$A$17 -> 93.33333333 | N33: =$C$19*M33+$D$19*N34 -> 93.20800781 | O33: =$A$20 -> 90 | P33: =N33>O33 -> TRUE | Q33: =IF(P33,$AZ$34,NA()) -> 380.83875 | R33: =OFFSET(InputSpyData!F$15,CalculationsAndCharts!$A33+$A$11,IF($C$7,8,0),1,1) -> 275.42 | S33: =$C$22*R33+$D$22*S34 -> 269.3098084 | T33: =S33>=S35 -> TRUE | U33: =AND(P33,NOT(W33),T33) -> FALSE | V33: =OR(AND(AE33,W33,$A$8<>A33),Y33) -> FALSE | W33: =IF($A$8<>A33,IF(AND(NOT(W34),U34),TRUE,IF(AND(W34,V34),FALSE,W34)),FALSE) -> TRUE | X33: =IF(W33,1+X34,0) -> 6 | Y33: =X33=$D$24 -> FALSE | Z33: =AND(W33,NOT(W34)) -> FALSE | AA33: =AND(W34,NOT(W33),$A$8<>A33) -> FALSE | AB33: =IF(U34,$D33,NA()) ->  | AC33: =IF(V34,$D33,NA()) ->  | AD33: =$A$23 -> 50 | AE33: =N33<$A$23 -> FALSE | AP33: =IF(G33>=D33,C33,NA()) -> 641600 | AQ33: =IF(G33<D33,C33,NA()) ->  | AU33: =$E$27 -> 90 | AV33: 0 | AW33: =$E$27 -> 90 | AX33: 0 | AY33: =E27 -> 90 | AZ33: 56.07225
A34: 2 | B34: =OFFSET(InputPriceData!B$15,CalculationsAndCharts!$A34+$A$11,0,1,1) -> 2018-07-05 | C34: =OFFSET(InputPriceData!G$15,CalculationsAndCharts!$A34+$A$11,IF($C$7,8,0),1,1) -> 737500 | D34: =OFFSET(InputPriceData!C$15,CalculationsAndCharts!$A34+$A$11,IF($C$7,8,0),1,1) -> 342.18 | E34: =OFFSET(InputPriceData!D$15,CalculationsAndCharts!$A34+$A$11,IF($C$7,8,0),1,1) -> 343.23 | F34: =OFFSET(InputPriceData!E$15,CalculationsAndCharts!$A34+$A$11,IF($C$7,8,0),1,1) -> 333.57 | G34: =OFFSET(InputPriceData!F$15,CalculationsAndCharts!$A34+$A$11,IF($C$7,8,0),1,1) -> 341.38 | H34: 40.98316031 | I34: 286.5129 | J34: 278.3162679 | K34: TRUE | L34: 56 | M34: 93.33333333 | N34: 93.08268229 | O34: 90 | P34: =N34>O34 -> TRUE | Q34: =IF(P34,$AZ$34,NA()) -> 380.83875 | R34: =OFFSET(InputSpyData!F$15,CalculationsAndCharts!$A34+$A$11,IF($C$7,8,0),1,1) -> 273.11 | S34: 269.1863702 | T34: =S34>=S36 -> TRUE | U34: FALSE | V34: =OR(AND(AE34,W34,$A$8<>A34),Y34) -> FALSE | W34: TRUE | X34: 5 | Y34: FALSE | Z34: FALSE | AA34: FALSE | AD34: =$A$23 -> 50 | AE34: =N34<$A$23 -> FALSE | AP34: =IF(G34>=D34,C34,NA()) ->  | AQ34: =IF(G34<D34,C34,NA()) -> 737500 | AU34: =$E$27 -> 90 | AV34: =CEILING(AV32,10^INT(LOG10(AV32))) -> 20000000 | AW34: =$E$27 -> 90 | AX34: 100 | AY34: =E27 -> 90 | AZ34: 380.83875
A35: 3 | B35: =OFFSET(InputPriceData!B$15,CalculationsAndCharts!$A35+$A$11,0,1,1) -> 2018-07-03 | C35: =OFFSET(InputPriceData!G$15,CalculationsAndCharts!$A35+$A$11,IF($C$7,8,0),1,1) -> 475400 | D35: =OFFSET(InputPriceData!C$15,CalculationsAndCharts!$A35+$A$11,IF($C$7,8,0),1,1) -> 341.1 | E35: =OFFSET(InputPriceData!D$15,CalculationsAndCharts!$A35+$A$11,IF($C$7,8,0),1,1) -> 344.52 | F35: =OFFSET(InputPriceData!E$15,CalculationsAndCharts!$A35+$A$11,IF($C$7,8,0),1,1) -> 337.11 | G35: =OFFSET(InputPriceData!F$15,CalculationsAndCharts!$A35+$A$11,IF($C$7,8,0),1,1) -> 338.68 | H35: 40.99895033 | I35: 285.3928 | J35: 277.1930099 | K35: TRUE | L35: 56 | M35: 93.33333333 | N35: 92.83203125 | O35: 90 | P35: TRUE | Q35: 380.83875 | R35: =OFFSET(InputSpyData!F$15,CalculationsAndCharts!$A35+$A$11,IF($C$7,8,0),1,1) -> 270.9 | S35: 269.1071049 | T35: TRUE | U35: =AND(P35,NOT(W35),T35) -> FALSE | V35: FALSE | W35: TRUE | X35: 4 | Y35: FALSE | Z35: FALSE | AA35: FALSE | AD35: 50 | AE35: FALSE | AP35: =IF(G35>=D35,C35,NA()) ->  | AQ35: =IF(G35<D35,C35,NA()) -> 475400
A36: 4 | B36: =OFFSET(InputPriceData!B$15,CalculationsAndCharts!$A36+$A$11,0,1,1) -> 2018-07-02 | C36: =OFFSET(InputPriceData!G$15,CalculationsAndCharts!$A36+$A$11,IF($C$7,8,0),1,1) -> 1047100 | D36: =OFFSET(InputPriceData!C$15,CalculationsAndCharts!$A36+$A$11,IF($C$7,8,0),1,1) -> 334.9 | E36: =OFFSET(InputPriceData!D$15,CalculationsAndCharts!$A36+$A$11,IF($C$7,8,0),1,1) -> 341.05 | F36: =OFFSET(InputPriceData!E$15,CalculationsAndCharts!$A36+$A$11,IF($C$7,8,0),1,1) -> 332.01 | G36: =OFFSET(InputPriceData!F$15,CalculationsAndCharts!$A36+$A$11,IF($C$7,8,0),1,1) -> 340.28 | H36: 41.14566351 | I36: 284.2131 | J36: 275.9839673 | K36: TRUE | L36: 56 | M36: 93.33333333 | N36: 92.33072917 | O36: 90 | P36: TRUE | Q36: 380.83875 | R36: =OFFSET(InputSpyData!F$15,CalculationsAndCharts!$A36+$A$11,IF($C$7,8,0),1,1) -> 271.86 | S36: 269.0708848 | T36: TRUE | U36: FALSE | V36: FALSE | W36: TRUE | X36: 3 | Y36: FALSE | Z36: FALSE | AA36: FALSE | AD36: 50 | AE36: FALSE | AP36: =IF(G36>=D36,C36,NA()) -> 1047100 | AQ36: =IF(G36<D36,C36,NA()) -> 
A37: 5 | B37: =OFFSET(InputPriceData!B$15,CalculationsAndCharts!$A37+$A$11,0,1,1) -> 2018-06-29 | C37: =OFFSET(InputPriceData!G$15,CalculationsAndCharts!$A37+$A$11,IF($C$7,8,0),1,1) -> 937600 | D37: =OFFSET(InputPriceData!C$15,CalculationsAndCharts!$A37+$A$11,IF($C$7,8,0),1,1) -> 345.71 | E37: =OFFSET(InputPriceData!D$15,CalculationsAndCharts!$A37+$A$11,IF($C$7,8,0),1,1) -> 346.13 | F37: =OFFSET(InputPriceData!E$15,CalculationsAndCharts!$A37+$A$11,IF($C$7,8,0),1,1) -> 341.7 | G37: =OFFSET(InputPriceData!F$15,CalculationsAndCharts!$A37+$A$11,IF($C$7,8,0),1,1) -> 342.14 | H37: 41.05230017 | I37: 283.1536 | J37: 274.94314 | K37: TRUE | L37: 55 | M37: 91.66666667 | N37: 91.328125 | O37: 90 | P37: TRUE | Q37: 380.83875 | R37: =OFFSET(InputSpyData!F$15,CalculationsAndCharts!$A37+$A$11,IF($C$7,8,0),1,1) -> 271.28 | S37: 269.0145391 | T37: TRUE | U37: FALSE | V37: FALSE | W37: TRUE | X37: 2 | Y37: FALSE | Z37: FALSE | AA37: FALSE | AD37: 50 | AE37: FALSE | AQ37: 937600
A38: 6 | B38: =OFFSET(InputPriceData!B$15,CalculationsAndCharts!$A38+$A$11,0,1,1) -> 2018-06-28 | C38: =OFFSET(InputPriceData!G$15,CalculationsAndCharts!$A38+$A$11,IF($C$7,8,0),1,1) -> 1262200 | D38: =OFFSET(InputPriceData!C$15,CalculationsAndCharts!$A38+$A$11,IF($C$7,8,0),1,1) -> 340.57 | E38: =OFFSET(InputPriceData!D$15,CalculationsAndCharts!$A38+$A$11,IF($C$7,8,0),1,1) -> 345.9 | F38: =OFFSET(InputPriceData!E$15,CalculationsAndCharts!$A38+$A$11,IF($C$7,8,0),1,1) -> 334.44 | G38: =OFFSET(InputPriceData!F$15,CalculationsAndCharts!$A38+$A$11,IF($C$7,8,0),1,1) -> 343.8 | H38: 40.82738603 | I38: 282.1467 | J38: 273.9812228 | K38: TRUE | L38: 55 | M38: 91.66666667 | N38: 90.98958333 | O38: 90 | P38: TRUE | Q38: 380.83875 | R38: =OFFSET(InputSpyData!F$15,CalculationsAndCharts!$A38+$A$11,IF($C$7,8,0),1,1) -> 270.89 | S38: 268.9687722 | T38: TRUE | U38: FALSE | V38: FALSE | W38: TRUE | X38: 1 | Y38: FALSE | Z38: TRUE | AA38: FALSE | AB38: 340.57 | AD38: 50 | AE38: FALSE | AP38: 1262200
A39: 7 | B39: =OFFSET(InputPriceData!B$15,CalculationsAndCharts!$A39+$A$11,0,1,1) -> 2018-06-27 | C39: =OFFSET(InputPriceData!G$15,CalculationsAndCharts!$A39+$A$11,IF($C$7,8,0),1,1) -> 1009800 | D39: =OFFSET(InputPriceData!C$15,CalculationsAndCharts!$A39+$A$11,IF($C$7,8,0),1,1) -> 352.42 | E39: =OFFSET(InputPriceData!D$15,CalculationsAndCharts!$A39+$A$11,IF($C$7,8,0),1,1) -> 356.47 | F39: =OFFSET(InputPriceData!E$15,CalculationsAndCharts!$A39+$A$11,IF($C$7,8,0),1,1) -> 342.26 | G39: =OFFSET(InputPriceData!F$15,CalculationsAndCharts!$A39+$A$11,IF($C$7,8,0),1,1) -> 342.78 | H39: 40.54175578 | I39: 281.1327 | J39: 273.0243488 | K39: TRUE | L39: 55 | M39: 91.66666667 | N39: 90.3125 | O39: 90 | P39: TRUE | Q39: 380.83875 | R39: =OFFSET(InputSpyData!F$15,CalculationsAndCharts!$A39+$A$11,IF($C$7,8,0),1,1) -> 269.35 | S39: 268.9299595 | T39: TRUE | U39: TRUE | V39: FALSE | W39: FALSE | X39: 0 | Y39: FALSE | Z39: FALSE | AA39: FALSE | AD39: 50 | AE39: FALSE | AQ39: 1009800
A40: 8 | B40: =OFFSET(InputPriceData!B$15,CalculationsAndCharts!$A40+$A$11,0,1,1) -> 2018-06-26 | C40: =OFFSET(InputPriceData!G$15,CalculationsAndCharts!$A40+$A$11,IF($C$7,8,0),1,1) -> 939900 | D40: =OFFSET(InputPriceData!C$15,CalculationsAndCharts!$A40+$A$11,IF($C$7,8,0),1,1) -> 349.27 | E40: =OFFSET(InputPriceData!D$15,CalculationsAndCharts!$A40+$A$11,IF($C$7,8,0),1,1) -> 357.69 | F40: =OFFSET(InputPriceData!E$15,CalculationsAndCharts!$A40+$A$11,IF($C$7,8,0),1,1) -> 348.3 | G40: =OFFSET(InputPriceData!F$15,CalculationsAndCharts!$A40+$A$11,IF($C$7,8,0),1,1) -> 352.42 | H40: 40.13156684 | I40: 280.2787 | J40: 272.2523866 | K40: TRUE | L40: 54 | M40: 90 | N40: 88.95833333 | O40: 90 | P40: FALSE | R40: =OFFSET(InputSpyData!F$15,CalculationsAndCharts!$A40+$A$11,IF($C$7,8,0),1,1) -> 271.6 | S40: 268.9214738 | T40: TRUE | U40: FALSE | V40: FALSE | W40: FALSE | X40: 0 | Y40: FALSE | Z40: FALSE | AA40: FALSE | AD40: 50 | AE40: FALSE | AP40: 939900
A41: 9 | B41: =OFFSET(InputPriceData!B$15,CalculationsAndCharts!$A41+$A$11,0,1,1) -> 2018-06-25 | C41: =OFFSET(InputPriceData!G$15,CalculationsAndCharts!$A41+$A$11,IF($C$7,8,0),1,1) -> 1174100 | D41: =OFFSET(InputPriceData!C$15,CalculationsAndCharts!$A41+$A$11,IF($C$7,8,0),1,1) -> 350 | E41: =OFFSET(InputPriceData!D$15,CalculationsAndCharts!$A41+$A$11,IF($C$7,8,0),1,1) -> 350.47 | F41: =OFFSET(InputPriceData!E$15,CalculationsAndCharts!$A41+$A$11,IF($C$7,8,0),1,1) -> 341.28 | G41: =OFFSET(InputPriceData!F$15,CalculationsAndCharts!$A41+$A$11,IF($C$7,8,0),1,1) -> 346.3 | H41: 39.54321929 | I41: 279.3102 | J41: 271.4015561 | K41: TRUE | L41: 53 | M41: 88.33333333 | N41: 87.91666667 | O41: 90 | P41: FALSE | R41: =OFFSET(InputSpyData!F$15,CalculationsAndCharts!$A41+$A$11,IF($C$7,8,0),1,1) -> 271 | S41: 268.8673622 | T41: TRUE | U41: FALSE | V41: FALSE | W41: FALSE | X41: 0 | Y41: FALSE | Z41: FALSE | AA41: FALSE | AD41: 50 | AE41: FALSE | AQ41: 1174100
A42: 10 | B42: =OFFSET(InputPriceData!B$15,CalculationsAndCharts!$A42+$A$11,0,1,1) -> 2018-06-22 | C42: =OFFSET(InputPriceData!G$15,CalculationsAndCharts!$A42+$A$11,IF($C$7,8,0),1,1) -> 1296500 | D42: =OFFSET(InputPriceData!C$15,CalculationsAndCharts!$A42+$A$11,IF($C$7,8,0),1,1) -> 361.57 | E42: =OFFSET(InputPriceData!D$15,CalculationsAndCharts!$A42+$A$11,IF($C$7,8,0),1,1) -> 363.96 | F42: =OFFSET(InputPriceData!E$15,CalculationsAndCharts!$A42+$A$11,IF($C$7,8,0),1,1) -> 347.15 | G42: =OFFSET(InputPriceData!F$15,CalculationsAndCharts!$A42+$A$11,IF($C$7,8,0),1,1) -> 353.27 | H42: 39.00096973 | I42: 278.4672 | J42: 270.6670061 | K42: TRUE | L42: 53 | M42: 88.33333333 | N42: 87.5 | O42: 90 | P42: FALSE | R42: =OFFSET(InputSpyData!F$15,CalculationsAndCharts!$A42+$A$11,IF($C$7,8,0),1,1) -> 274.74 | S42: 268.8242786 | T42: TRUE | U42: FALSE | V42: FALSE | W42: FALSE | X42: 0 | Y42: FALSE | Z42: FALSE | AA42: FALSE | AD42: 50 | AE42: FALSE | AQ42: 1296500
A43: 11 | B43: =OFFSET(InputPriceData!B$15,CalculationsAndCharts!$A43+$A$11,0,1,1) -> 2018-06-21 | C43: =OFFSET(InputPriceData!G$15,CalculationsAndCharts!$A43+$A$11,IF($C$7,8,0),1,1) -> 1019500 | D43: =OFFSET(InputPriceData!C$15,CalculationsAndCharts!$A43+$A$11,IF($C$7,8,0),1,1) -> 365.66 | E43: =OFFSET(InputPriceData!D$15,CalculationsAndCharts!$A43+$A$11,IF($C$7,8,0),1,1) -> 369 | F43: =OFFSET(InputPriceData!E$15,CalculationsAndCharts!$A43+$A$11,IF($C$7,8,0),1,1) -> 359.15 | G43: =OFFSET(InputPriceData!F$15,CalculationsAndCharts!$A43+$A$11,IF($C$7,8,0),1,1) -> 359.6 | H43: 38.27704854 | I43: 277.6353 | J43: 269.9798903 | K43: TRUE | L43: 52 | M43: 86.66666667 | N43: 86.66666667 | O43: 90 | P43: FALSE | R43: =OFFSET(InputSpyData!F$15,CalculationsAndCharts!$A43+$A$11,IF($C$7,8,0),1,1) -> 274.24 | S43: 268.7047691 | T43: TRUE | U43: FALSE | V43: FALSE | W43: FALSE | X43: 0 | Y43: FALSE | Z43: FALSE | AA43: FALSE | AD43: 50 | AE43: FALSE | AQ43: 1019500
A44: 12 | B44: =OFFSET(InputPriceData!B$15,CalculationsAndCharts!$A44+$A$11,0,1,1) -> 2018-06-20 | C44: =OFFSET(InputPriceData!G$15,CalculationsAndCharts!$A44+$A$11,IF($C$7,8,0),1,1) -> 794200 | D44: =OFFSET(InputPriceData!C$15,CalculationsAndCharts!$A44+$A$11,IF($C$7,8,0),1,1) -> 368.01 | E44: =OFFSET(InputPriceData!D$15,CalculationsAndCharts!$A44+$A$11,IF($C$7,8,0),1,1) -> 369.2 | F44: =OFFSET(InputPriceData!E$15,CalculationsAndCharts!$A44+$A$11,IF($C$7,8,0),1,1) -> 362.69 | G44: =OFFSET(InputPriceData!F$15,CalculationsAndCharts!$A44+$A$11,IF($C$7,8,0),1,1) -> 364.7 | H44: 37.38009806 | I44: 276.807 | J44: 269.3309804 | K44: TRUE | L44: 52 | M44: 86.66666667 | N44: 86.66666667 | O44: 90 | P44: FALSE | R44: =OFFSET(InputSpyData!F$15,CalculationsAndCharts!$A44+$A$11,IF($C$7,8,0),1,1) -> 275.97 | S44: 268.5929462 | T44: TRUE | U44: FALSE | V44: FALSE | W44: FALSE | X44: 0 | Y44: FALSE | Z44: FALSE | AA44: FALSE | AD44: 50 | AE44: FALSE | AQ44: 794200
A45: 13 | B45: =OFFSET(InputPriceData!B$15,CalculationsAndCharts!$A45+$A$11,0,1,1) -> 2018-06-19 | C45: =OFFSET(InputPriceData!G$15,CalculationsAndCharts!$A45+$A$11,IF($C$7,8,0),1,1) -> 847500 | D45: =OFFSET(InputPriceData!C$15,CalculationsAndCharts!$A45+$A$11,IF($C$7,8,0),1,1) -> 366.2 | E45: =OFFSET(InputPriceData!D$15,CalculationsAndCharts!$A45+$A$11,IF($C$7,8,0),1,1) -> 369.08 | F45: =OFFSET(InputPriceData!E$15,CalculationsAndCharts!$A45+$A$11,IF($C$7,8,0),1,1) -> 358.67 | G45: =OFFSET(InputPriceData!F$15,CalculationsAndCharts!$A45+$A$11,IF($C$7,8,0),1,1) -> 365.24 | H45: 36.3301705 | I45: 275.9997 | J45: 268.7336659 | K45: TRUE | L45: 52 | M45: 86.66666667 | N45: 86.66666667 | O45: 90 | P45: FALSE | R45: =OFFSET(InputSpyData!F$15,CalculationsAndCharts!$A45+$A$11,IF($C$7,8,0),1,1) -> 275.5 | S45: 268.4439149 | T45: TRUE | U45: FALSE | V45: FALSE | W45: FALSE | X45: 0 | Y45: FALSE | Z45: FALSE | AA45: FALSE | AD45: 50 | AE45: FALSE | AQ45: 847500
A46: 14 | B46: =OFFSET(InputPriceData!B$15,CalculationsAndCharts!$A46+$A$11,0,1,1) -> 2018-06-18 | C46: =OFFSET(InputPriceData!G$15,CalculationsAndCharts!$A46+$A$11,IF($C$7,8,0),1,1) -> 874700 | D46: =OFFSET(InputPriceData!C$15,CalculationsAndCharts!$A46+$A$11,IF($C$7,8,0),1,1) -> 361.01 | E46: =OFFSET(InputPriceData!D$15,CalculationsAndCharts!$A46+$A$11,IF($C$7,8,0),1,1) -> 371.55 | F46: =OFFSET(InputPriceData!E$15,CalculationsAndCharts!$A46+$A$11,IF($C$7,8,0),1,1) -> 357.11 | G46: =OFFSET(InputPriceData!F$15,CalculationsAndCharts!$A46+$A$11,IF($C$7,8,0),1,1) -> 370.1 | H46: 35.20599348 | I46: 275.0829 | J46: 268.0417013 | K46: TRUE | L46: 52 | M46: 86.66666667 | N46: 86.66666667 | O46: 90 | P46: FALSE | R46: =OFFSET(InputSpyData!F$15,CalculationsAndCharts!$A46+$A$11,IF($C$7,8,0),1,1) -> 276.56 | S46: 268.3013677 | T46: TRUE | U46: FALSE | V46: FALSE | W46: FALSE | X46: 0 | Y46: FALSE | Z46: FALSE | AA46: FALSE | AD46: 50 | AE46: FALSE | AP46: 874700
A47: 15 | B47: =OFFSET(InputPriceData!B$15,CalculationsAndCharts!$A47+$A$11,0,1,1) -> 2018-06-15 | C47: =OFFSET(InputPriceData!G$15,CalculationsAndCharts!$A47+$A$11,IF($C$7,8,0),1,1) -> 1143500 | D47: =OFFSET(InputPriceData!C$15,CalculationsAndCharts!$A47+$A$11,IF($C$7,8,0),1,1) -> 364.81 | E47: =OFFSET(InputPriceData!D$15,CalculationsAndCharts!$A47+$A$11,IF($C$7,8,0),1,1) -> 366.89 | F47: =OFFSET(InputPriceData!E$15,CalculationsAndCharts!$A47+$A$11,IF($C$7,8,0),1,1) -> 358.27 | G47: =OFFSET(InputPriceData!F$15,CalculationsAndCharts!$A47+$A$11,IF($C$7,8,0),1,1) -> 362.66 | H47: 33.88659279 | I47: 274.1047 | J47: 267.3273814 | K47: TRUE | L47: 52 | M47: 86.66666667 | N47: 86.66666666 | O47: 90 | P47: FALSE | R47: =OFFSET(InputSpyData!F$15,CalculationsAndCharts!$A47+$A$11,IF($C$7,8,0),1,1) -> 277.13 | S47: 268.1345266 | T47: TRUE | U47: FALSE | V47: FALSE | W47: FALSE | X47: 0 | Y47: FALSE | Z47: FALSE | AA47: FALSE | AD47: 50 | AE47: FALSE | AQ47: 1143500
A48: 16 | B48: =OFFSET(InputPriceData!B$15,CalculationsAndCharts!$A48+$A$11,0,1,1) -> 2018-06-14 | C48: =OFFSET(InputPriceData!G$15,CalculationsAndCharts!$A48+$A$11,IF($C$7,8,0),1,1) -> 872400 | D48: =OFFSET(InputPriceData!C$15,CalculationsAndCharts!$A48+$A$11,IF($C$7,8,0),1,1) -> 364.35 | E48: =OFFSET(InputPriceData!D$15,CalculationsAndCharts!$A48+$A$11,IF($C$7,8,0),1,1) -> 370.47 | F48: =OFFSET(InputPriceData!E$15,CalculationsAndCharts!$A48+$A$11,IF($C$7,8,0),1,1) -> 363.7 | G48: =OFFSET(InputPriceData!F$15,CalculationsAndCharts!$A48+$A$11,IF($C$7,8,0),1,1) -> 366.27 | H48: 32.69708784 | I48: 273.1997 | J48: 266.6602824 | K48: TRUE | L48: 52 | M48: 86.66666667 | N48: 86.66666666 | O48: 90 | P48: FALSE | R48: =OFFSET(InputSpyData!F$15,CalculationsAndCharts!$A48+$A$11,IF($C$7,8,0),1,1) -> 277.48 | S48: 267.9527999 | T48: TRUE | U48: FALSE | V48: FALSE | W48: FALSE | X48: 0 | Y48: FALSE | Z48: FALSE | AA48: FALSE | AD48: 50 | AE48: FALSE | AP48: 872400
A49: 17 | B49: =OFFSET(InputPriceData!B$15,CalculationsAndCharts!$A49+$A$11,0,1,1) -> 2018-06-13 | C49: =OFFSET(InputPriceData!G$15,CalculationsAndCharts!$A49+$A$11,IF($C$7,8,0),1,1) -> 1231800 | D49: =OFFSET(InputPriceData!C$15,CalculationsAndCharts!$A49+$A$11,IF($C$7,8,0),1,1) -> 356 | E49: =OFFSET(InputPriceData!D$15,CalculationsAndCharts!$A49+$A$11,IF($C$7,8,0),1,1) -> 365.76 | F49: =OFFSET(InputPriceData!E$15,CalculationsAndCharts!$A49+$A$11,IF($C$7,8,0),1,1) -> 354.59 | G49: =OFFSET(InputPriceData!F$15,CalculationsAndCharts!$A49+$A$11,IF($C$7,8,0),1,1) -> 363.49 | H49: 31.33476249 | I49: 272.208 | J49: 265.9410475 | K49: TRUE | L49: 52 | M49: 86.66666667 | N49: 86.66666665 | O49: 90 | P49: FALSE | R49: =OFFSET(InputSpyData!F$15,CalculationsAndCharts!$A49+$A$11,IF($C$7,8,0),1,1) -> 276.79 | S49: 267.7603312 | T49: TRUE | U49: FALSE | V49: FALSE | W49: FALSE | X49: 0 | Y49: FALSE | Z49: FALSE | AA49: FALSE | AD49: 50 | AE49: FALSE | AP49: 1231800
A50: 18 | B50: =OFFSET(InputPriceData!B$15,CalculationsAndCharts!$A50+$A$11,0,1,1) -> 2018-06-12 | C50: =OFFSET(InputPriceData!G$15,CalculationsAndCharts!$A50+$A$11,IF($C$7,8,0),1,1) -> 861900 | D50: =OFFSET(InputPriceData!C$15,CalculationsAndCharts!$A50+$A$11,IF($C$7,8,0),1,1) -> 349.6 | E50: =OFFSET(InputPriceData!D$15,CalculationsAndCharts!$A50+$A$11,IF($C$7,8,0),1,1) -> 355.98 | F50: =OFFSET(InputPriceData!E$15,CalculationsAndCharts!$A50+$A$11,IF($C$7,8,0),1,1) -> 349.29 | G50: =OFFSET(InputPriceData!F$15,CalculationsAndCharts!$A50+$A$11,IF($C$7,8,0),1,1) -> 354.25 | H50: 29.96222047 | I50: 271.2677 | J50: 265.2752559 | K50: TRUE | L50: 52 | M50: 86.66666667 | N50: 86.66666664 | O50: 90 | P50: FALSE | R50: =OFFSET(InputSpyData!F$15,CalculationsAndCharts!$A50+$A$11,IF($C$7,8,0),1,1) -> 277.67 | S50: 267.5779136 | T50: TRUE | U50: FALSE | V50: FALSE | W50: FALSE | X50: 0 | Y50: FALSE | Z50: FALSE | AA50: FALSE | AD50: 50 | AE50: FALSE | AP50: 861900
A51: 19 | B51: =OFFSET(InputPriceData!B$15,CalculationsAndCharts!$A51+$A$11,0,1,1) -> 2018-06-11 | C51: =OFFSET(InputPriceData!G$15,CalculationsAndCharts!$A51+$A$11,IF($C$7,8,0),1,1) -> 635000 | D51: =OFFSET(InputPriceData!C$15,CalculationsAndCharts!$A51+$A$11,IF($C$7,8,0),1,1) -> 345.28 | E51: =OFFSET(InputPriceData!D$15,CalculationsAndCharts!$A51+$A$11,IF($C$7,8,0),1,1) -> 349.79 | F51: =OFFSET(InputPriceData!E$15,CalculationsAndCharts!$A51+$A$11,IF($C$7,8,0),1,1) -> 343.72 | G51: =OFFSET(InputPriceData!F$15,CalculationsAndCharts!$A51+$A$11,IF($C$7,8,0),1,1) -> 348.44 | H51: 28.77810274 | I51: 270.4322 | J51: 264.6765795 | K51: TRUE | L51: 52 | M51: 86.66666667 | N51: 86.66666662 | O51: 90 | P51: FALSE | R51: =OFFSET(InputSpyData!F$15,CalculationsAndCharts!$A51+$A$11,IF($C$7,8,0),1,1) -> 277.31 | S51: 267.3740331 | T51: TRUE | U51: FALSE | V51: FALSE | W51: FALSE | X51: 0 | Y51: FALSE | Z51: FALSE | AA51: FALSE | AD51: 50 | AE51: FALSE | AP51: 635000
A52: 20 | B52: =OFFSET(InputPriceData!B$15,CalculationsAndCharts!$A52+$A$11,0,1,1) -> 2018-06-08 | C52: =OFFSET(InputPriceData!G$15,CalculationsAndCharts!$A52+$A$11,IF($C$7,8,0),1,1) -> 774400 | D52: =OFFSET(InputPriceData!C$15,CalculationsAndCharts!$A52+$A$11,IF($C$7,8,0),1,1) -> 337.03 | E52: =OFFSET(InputPriceData!D$15,CalculationsAndCharts!$A52+$A$11,IF($C$7,8,0),1,1) -> 347.44 | F52: =OFFSET(InputPriceData!E$15,CalculationsAndCharts!$A52+$A$11,IF($C$7,8,0),1,1) -> 333 | G52: =OFFSET(InputPriceData!F$15,CalculationsAndCharts!$A52+$A$11,IF($C$7,8,0),1,1) -> 346.67 | H52: 27.69078513 | I52: 269.6703 | J52: 264.132143 | K52: TRUE | L52: 52 | M52: 86.66666667 | N52: 86.66666657 | O52: 90 | P52: FALSE | R52: =OFFSET(InputSpyData!F$15,CalculationsAndCharts!$A52+$A$11,IF($C$7,8,0),1,1) -> 276.95 | S52: 267.1733065 | T52: TRUE | U52: FALSE | V52: FALSE | W52: FALSE | X52: 0 | Y52: FALSE | Z52: FALSE | AA52: FALSE | AD52: 50 | AE52: FALSE | AP52: 774400
A53: 21 | B53: =OFFSET(InputPriceData!B$15,CalculationsAndCharts!$A53+$A$11,0,1,1) -> 2018-06-07 | C53: =OFFSET(InputPriceData!G$15,CalculationsAndCharts!$A53+$A$11,IF($C$7,8,0),1,1) -> 1225400 | D53: =OFFSET(InputPriceData!C$15,CalculationsAndCharts!$A53+$A$11,IF($C$7,8,0),1,1) -> 346.86 | E53: =OFFSET(InputPriceData!D$15,CalculationsAndCharts!$A53+$A$11,IF($C$7,8,0),1,1) -> 347.85 | F53: =OFFSET(InputPriceData!E$15,CalculationsAndCharts!$A53+$A$11,IF($C$7,8,0),1,1) -> 333.3 | G53: =OFFSET(InputPriceData!F$15,CalculationsAndCharts!$A53+$A$11,IF($C$7,8,0),1,1) -> 339.32 | H53: 26.59210222 | I53: 268.8424 | J53: 263.5239796 | K53: TRUE | L53: 52 | M53: 86.66666667 | N53: 86.66666647 | O53: 90 | P53: FALSE | R53: =OFFSET(InputSpyData!F$15,CalculationsAndCharts!$A53+$A$11,IF($C$7,8,0),1,1) -> 276.13 | S53: 266.9757975 | T53: TRUE | U53: FALSE | V53: FALSE | W53: FALSE | X53: 0 | Y53: FALSE | Z53: FALSE | AA53: FALSE | AD53: 50 | AE53: FALSE | AQ53: 1225400
A54: 22 | B54: =OFFSET(InputPriceData!B$15,CalculationsAndCharts!$A54+$A$11,0,1,1) -> 2018-06-06 | C54: =OFFSET(InputPriceData!G$15,CalculationsAndCharts!$A54+$A$11,IF($C$7,8,0),1,1) -> 768000 | D54: =OFFSET(InputPriceData!C$15,CalculationsAndCharts!$A54+$A$11,IF($C$7,8,0),1,1) -> 347.25 | E54: =OFFSET(InputPriceData!D$15,CalculationsAndCharts!$A54+$A$11,IF($C$7,8,0),1,1) -> 347.97 | F54: =OFFSET(InputPriceData!E$15,CalculationsAndCharts!$A54+$A$11,IF($C$7,8,0),1,1) -> 342.83 | G54: =OFFSET(InputPriceData!F$15,CalculationsAndCharts!$A54+$A$11,IF($C$7,8,0),1,1) -> 346.37 | H54: 25.6495388 | I54: 268.0335 | J54: 262.9035922 | K54: TRUE | L54: 52 | M54: 86.66666667 | N54: 86.66666627 | O54: 90 | P54: FALSE | R54: =OFFSET(InputSpyData!F$15,CalculationsAndCharts!$A54+$A$11,IF($C$7,8,0),1,1) -> 276.16 | S54: 266.7908642 | T54: TRUE | U54: FALSE | V54: FALSE | W54: FALSE | X54: 0 | Y54: FALSE | Z54: FALSE | AA54: FALSE | AD54: 50 | AE54: FALSE | AQ54: 768000
A55: 23 | B55: =OFFSET(InputPriceData!B$15,CalculationsAndCharts!$A55+$A$11,0,1,1) -> 2018-06-05 | C55: =OFFSET(InputPriceData!G$15,CalculationsAndCharts!$A55+$A$11,IF($C$7,8,0),1,1) -> 925200 | D55: =OFFSET(InputPriceData!C$15,CalculationsAndCharts!$A55+$A$11,IF($C$7,8,0),1,1) -> 343.21 | E55: =OFFSET(InputPriceData!D$15,CalculationsAndCharts!$A55+$A$11,IF($C$7,8,0),1,1) -> 346.55 | F55: =OFFSET(InputPriceData!E$15,CalculationsAndCharts!$A55+$A$11,IF($C$7,8,0),1,1) -> 341.54 | G55: =OFFSET(InputPriceData!F$15,CalculationsAndCharts!$A55+$A$11,IF($C$7,8,0),1,1) -> 346.08 | H55: 24.45294448 | I55: 267.0989 | J55: 262.2083111 | K55: TRUE | L55: 52 | M55: 86.66666667 | N55: 86.66666588 | O55: 90 | P55: FALSE | R55: =OFFSET(InputSpyData!F$15,CalculationsAndCharts!$A55+$A$11,IF($C$7,8,0),1,1) -> 273.87 | S55: 266.6015887 | T55: TRUE | U55: FALSE | V55: FALSE | W55: FALSE | X55: 0 | Y55: FALSE | Z55: FALSE | AA55: FALSE | AD55: 50 | AE55: FALSE | AP55: 925200
A56: 24 | B56: =OFFSET(InputPriceData!B$15,CalculationsAndCharts!$A56+$A$11,0,1,1) -> 2018-06-04 | C56: =OFFSET(InputPriceData!G$15,CalculationsAndCharts!$A56+$A$11,IF($C$7,8,0),1,1) -> 793800 | D56: =OFFSET(InputPriceData!C$15,CalculationsAndCharts!$A56+$A$11,IF($C$7,8,0),1,1) -> 335.54 | E56: =OFFSET(InputPriceData!D$15,CalculationsAndCharts!$A56+$A$11,IF($C$7,8,0),1,1) -> 343.88 | F56: =OFFSET(InputPriceData!E$15,CalculationsAndCharts!$A56+$A$11,IF($C$7,8,0),1,1) -> 333.22 | G56: =OFFSET(InputPriceData!F$15,CalculationsAndCharts!$A56+$A$11,IF($C$7,8,0),1,1) -> 343.2 | H56: 23.19785944 | I56: 266.1212 | J56: 261.4816281 | K56: TRUE | L56: 52 | M56: 86.66666667 | N56: 86.66666509 | O56: 90 | P56: FALSE | R56: =OFFSET(InputSpyData!F$15,CalculationsAndCharts!$A56+$A$11,IF($C$7,8,0),1,1) -> 273.67 | S56: 266.4547521 | T56: TRUE | U56: FALSE | V56: FALSE | W56: FALSE | X56: 0 | Y56: FALSE | Z56: FALSE | AA56: FALSE | AD56: 50 | AE56: FALSE | AP56: 793800
A57: 25 | B57: =OFFSET(InputPriceData!B$15,CalculationsAndCharts!$A57+$A$11,0,1,1) -> 2018-06-01 | C57: =OFFSET(InputPriceData!G$15,CalculationsAndCharts!$A57+$A$11,IF($C$7,8,0),1,1) -> 1075300 | D57: =OFFSET(InputPriceData!C$15,CalculationsAndCharts!$A57+$A$11,IF($C$7,8,0),1,1) -> 333.17 | E57: =OFFSET(InputPriceData!D$15,CalculationsAndCharts!$A57+$A$11,IF($C$7,8,0),1,1) -> 335.35 | F57: =OFFSET(InputPriceData!E$15,CalculationsAndCharts!$A57+$A$11,IF($C$7,8,0),1,1) -> 325.28 | G57: =OFFSET(InputPriceData!F$15,CalculationsAndCharts!$A57+$A$11,IF($C$7,8,0),1,1) -> 333.09 | H57: 21.90987574 | I57: 265.2036 | J57: 260.8216249 | K57: TRUE | L57: 52 | M57: 86.66666667 | N57: 86.66666351 | O57: 90 | P57: FALSE | R57: =OFFSET(InputSpyData!F$15,CalculationsAndCharts!$A57+$A$11,IF($C$7,8,0),1,1) -> 272.38 | S57: 266.3089895 | T57: TRUE | U57: FALSE | V57: FALSE | W57: FALSE | X57: 0 | Y57: FALSE | Z57: FALSE | AA57: FALSE | AD57: 50 | AE57: FALSE | AQ57: 1075300
A58: 26 | B58: =OFFSET(InputPriceData!B$15,CalculationsAndCharts!$A58+$A$11,0,1,1) -> 2018-05-31 | C58: =OFFSET(InputPriceData!G$15,CalculationsAndCharts!$A58+$A$11,IF($C$7,8,0),1,1) -> 1421700 | D58: =OFFSET(InputPriceData!C$15,CalculationsAndCharts!$A58+$A$11,IF($C$7,8,0),1,1) -> 331.7 | E58: =OFFSET(InputPriceData!D$15,CalculationsAndCharts!$A58+$A$11,IF($C$7,8,0),1,1) -> 338.5 | F58: =OFFSET(InputPriceData!E$15,CalculationsAndCharts!$A58+$A$11,IF($C$7,8,0),1,1) -> 330.21 | G58: =OFFSET(InputPriceData!F$15,CalculationsAndCharts!$A58+$A$11,IF($C$7,8,0),1,1) -> 331.95 | H58: 20.87836919 | I58: 264.3617 | J58: 260.1860262 | K58: TRUE | L58: 52 | M58: 86.66666667 | N58: 86.66666036 | O58: 90 | P58: FALSE | R58: =OFFSET(InputSpyData!F$15,CalculationsAndCharts!$A58+$A$11,IF($C$7,8,0),1,1) -> 269.73 | S58: 266.1863428 | T58: TRUE | U58: FALSE | V58: FALSE | W58: FALSE | X58: 0 | Y58: FALSE | Z58: FALSE | AA58: FALSE | AD58: 50 | AE58: FALSE | AP58: 1421700
A59: 27 | B59: =OFFSET(InputPriceData!B$15,CalculationsAndCharts!$A59+$A$11,0,1,1) -> 2018-05-30 | C59: =OFFSET(InputPriceData!G$15,CalculationsAndCharts!$A59+$A$11,IF($C$7,8,0),1,1) -> 903300 | D59: =OFFSET(InputPriceData!C$15,CalculationsAndCharts!$A59+$A$11,IF($C$7,8,0),1,1) -> 327.92 | E59: =OFFSET(InputPriceData!D$15,CalculationsAndCharts!$A59+$A$11,IF($C$7,8,0),1,1) -> 333.34 | F59: =OFFSET(InputPriceData!E$15,CalculationsAndCharts!$A59+$A$11,IF($C$7,8,0),1,1) -> 327.23 | G59: =OFFSET(InputPriceData!F$15,CalculationsAndCharts!$A59+$A$11,IF($C$7,8,0),1,1) -> 331.45 | H59: 19.87016942 | I59: 263.4529 | J59: 259.4788661 | K59: TRUE | L59: 52 | M59: 86.66666667 | N59: 86.66665404 | O59: 90 | P59: FALSE | R59: =OFFSET(InputSpyData!F$15,CalculationsAndCharts!$A59+$A$11,IF($C$7,8,0),1,1) -> 271.39 | S59: 266.1147538 | T59: TRUE | U59: FALSE | V59: FALSE | W59: FALSE | X59: 0 | Y59: FALSE | Z59: FALSE | AA59: FALSE | AD59: 50 | AE59: FALSE | AP59: 903300
A60: 28 | B60: =OFFSET(InputPriceData!B$15,CalculationsAndCharts!$A60+$A$11,0,1,1) -> 2018-05-29 | C60: =OFFSET(InputPriceData!G$15,CalculationsAndCharts!$A60+$A$11,IF($C$7,8,0),1,1) -> 1026200 | D60: =OFFSET(InputPriceData!C$15,CalculationsAndCharts!$A60+$A$11,IF($C$7,8,0),1,1) -> 318.19 | E60: =OFFSET(InputPriceData!D$15,CalculationsAndCharts!$A60+$A$11,IF($C$7,8,0),1,1) -> 326.82 | F60: =OFFSET(InputPriceData!E$15,CalculationsAndCharts!$A60+$A$11,IF($C$7,8,0),1,1) -> 317.86 | G60: =OFFSET(InputPriceData!F$15,CalculationsAndCharts!$A60+$A$11,IF($C$7,8,0),1,1) -> 326.18 | H60: 18.8869322 | I60: 262.4714 | J60: 258.6940136 | K60: TRUE | L60: 52 | M60: 86.66666667 | N60: 86.66664142 | O60: 90 | P60: FALSE | R60: =OFFSET(InputSpyData!F$15,CalculationsAndCharts!$A60+$A$11,IF($C$7,8,0),1,1) -> 267.82 | S60: 266.0081832 | T60: TRUE | U60: FALSE | V60: FALSE | W60: FALSE | X60: 0 | Y60: FALSE | Z60: FALSE | AA60: FALSE | AD60: 50 | AE60: FALSE | AP60: 1026200
A61: 29 | B61: =OFFSET(InputPriceData!B$15,CalculationsAndCharts!$A61+$A$11,0,1,1) -> 2018-05-25 | C61: =OFFSET(InputPriceData!G$15,CalculationsAndCharts!$A61+$A$11,IF($C$7,8,0),1,1) -> 1268100 | D61: =OFFSET(InputPriceData!C$15,CalculationsAndCharts!$A61+$A$11,IF($C$7,8,0),1,1) -> 318.08 | E61: =OFFSET(InputPriceData!D$15,CalculationsAndCharts!$A61+$A$11,IF($C$7,8,0),1,1) -> 322.67 | F61: =OFFSET(InputPriceData!E$15,CalculationsAndCharts!$A61+$A$11,IF($C$7,8,0),1,1) -> 316.38 | G61: =OFFSET(InputPriceData!F$15,CalculationsAndCharts!$A61+$A$11,IF($C$7,8,0),1,1) -> 318.54 | H61: 18.02790158 | I61: 261.5216 | J61: 257.9160197 | K61: TRUE | L61: 52 | M61: 86.66666667 | N61: 86.66661618 | O61: 90 | P61: FALSE | R61: =OFFSET(InputSpyData!F$15,CalculationsAndCharts!$A61+$A$11,IF($C$7,8,0),1,1) -> 270.93 | S61: 265.9715808 | T61: TRUE | U61: FALSE | V61: FALSE | W61: FALSE | X61: 0 | Y61: FALSE | Z61: FALSE | AA61: FALSE | AD61: 50 | AE61: FALSE | AP61: 1268100
A62: 30 | B62: =OFFSET(InputPriceData!B$15,CalculationsAndCharts!$A62+$A$11,0,1,1) -> 2018-05-24 | C62: =OFFSET(InputPriceData!G$15,CalculationsAndCharts!$A62+$A$11,IF($C$7,8,0),1,1) -> 1347400 | D62: =OFFSET(InputPriceData!C$15,CalculationsAndCharts!$A62+$A$11,IF($C$7,8,0),1,1) -> 310.13 | E62: =OFFSET(InputPriceData!D$15,CalculationsAndCharts!$A62+$A$11,IF($C$7,8,0),1,1) -> 318.59 | F62: =OFFSET(InputPriceData!E$15,CalculationsAndCharts!$A62+$A$11,IF($C$7,8,0),1,1) -> 308.01 | G62: =OFFSET(InputPriceData!F$15,CalculationsAndCharts!$A62+$A$11,IF($C$7,8,0),1,1) -> 317.04 | H62: 17.47081682 | I62: 260.5824 | J62: 257.0882366 | K62: TRUE | L62: 52 | M62: 86.66666667 | N62: 86.66656569 | O62: 90 | P62: FALSE | R62: =OFFSET(InputSpyData!F$15,CalculationsAndCharts!$A62+$A$11,IF($C$7,8,0),1,1) -> 271.58 | S62: 265.8714107 | T62: TRUE | U62: FALSE | V62: FALSE | W62: FALSE | X62: 0 | Y62: FALSE | Z62: FALSE | AA62: FALSE | AD62: 50 | AE62: FALSE | AP62: 1347400
A63: 31 | B63: =OFFSET(InputPriceData!B$15,CalculationsAndCharts!$A63+$A$11,0,1,1) -> 2018-05-23 | C63: =OFFSET(InputPriceData!G$15,CalculationsAndCharts!$A63+$A$11,IF($C$7,8,0),1,1) -> 1236300 | D63: =OFFSET(InputPriceData!C$15,CalculationsAndCharts!$A63+$A$11,IF($C$7,8,0),1,1) -> 297.86 | E63: =OFFSET(InputPriceData!D$15,CalculationsAndCharts!$A63+$A$11,IF($C$7,8,0),1,1) -> 308.67 | F63: =OFFSET(InputPriceData!E$15,CalculationsAndCharts!$A63+$A$11,IF($C$7,8,0),1,1) -> 297.17 | G63: =OFFSET(InputPriceData!F$15,CalculationsAndCharts!$A63+$A$11,IF($C$7,8,0),1,1) -> 308.2 | H63: 16.94682701 | I63: 259.6339 | J63: 256.2445346 | K63: TRUE | L63: 52 | M63: 86.66666667 | N63: 86.66646471 | O63: 90 | P63: FALSE | R63: =OFFSET(InputSpyData!F$15,CalculationsAndCharts!$A63+$A$11,IF($C$7,8,0),1,1) -> 272.14 | S63: 265.7560857 | T63: TRUE | U63: FALSE | V63: FALSE | W63: FALSE | X63: 0 | Y63: FALSE | Z63: FALSE | AA63: FALSE | AD63: 50 | AE63: FALSE | AP63: 1236300
A64: 32 | B64: =OFFSET(InputPriceData!B$15,CalculationsAndCharts!$A64+$A$11,0,1,1) -> 2018-05-22 | C64: =OFFSET(InputPriceData!G$15,CalculationsAndCharts!$A64+$A$11,IF($C$7,8,0),1,1) -> 856100 | D64: =OFFSET(InputPriceData!C$15,CalculationsAndCharts!$A64+$A$11,IF($C$7,8,0),1,1) -> 305.96 | E64: =OFFSET(InputPriceData!D$15,CalculationsAndCharts!$A64+$A$11,IF($C$7,8,0),1,1) -> 306.11 | F64: =OFFSET(InputPriceData!E$15,CalculationsAndCharts!$A64+$A$11,IF($C$7,8,0),1,1) -> 294 | G64: =OFFSET(InputPriceData!F$15,CalculationsAndCharts!$A64+$A$11,IF($C$7,8,0),1,1) -> 297.86 | H64: 16.55089968 | I64: 258.8167 | J64: 255.5065201 | K64: TRUE | L64: 52 | M64: 86.66666667 | N64: 86.66626275 | O64: 90 | P64: FALSE | R64: =OFFSET(InputSpyData!F$15,CalculationsAndCharts!$A64+$A$11,IF($C$7,8,0),1,1) -> 271.39 | S64: 265.6271177 | T64: TRUE | U64: FALSE | V64: FALSE | W64: FALSE | X64: 0 | Y64: FALSE | Z64: FALSE | AA64: FALSE | AD64: 50 | AE64: FALSE | AQ64: 856100
A65: 33 | B65: =OFFSET(InputPriceData!B$15,CalculationsAndCharts!$A65+$A$11,0,1,1) -> 2018-05-21 | C65: =OFFSET(InputPriceData!G$15,CalculationsAndCharts!$A65+$A$11,IF($C$7,8,0),1,1) -> 853700 | D65: =OFFSET(InputPriceData!C$15,CalculationsAndCharts!$A65+$A$11,IF($C$7,8,0),1,1) -> 300 | E65: =OFFSET(InputPriceData!D$15,CalculationsAndCharts!$A65+$A$11,IF($C$7,8,0),1,1) -> 304.99 | F65: =OFFSET(InputPriceData!E$15,CalculationsAndCharts!$A65+$A$11,IF($C$7,8,0),1,1) -> 299.47 | G65: =OFFSET(InputPriceData!F$15,CalculationsAndCharts!$A65+$A$11,IF($C$7,8,0),1,1) -> 302.46 | H65: 16.39068581 | I65: 258.1026 | J65: 254.8244628 | K65: TRUE | L65: 52 | M65: 86.66666667 | N65: 86.66585883 | O65: 90 | P65: FALSE | R65: =OFFSET(InputSpyData!F$15,CalculationsAndCharts!$A65+$A$11,IF($C$7,8,0),1,1) -> 272.15 | S65: 265.5106959 | T65: TRUE | U65: FALSE | V65: FALSE | W65: FALSE | X65: 0 | Y65: FALSE | Z65: FALSE | AA65: FALSE | AD65: 50 | AE65: FALSE | AP65: 853700
A66: 34 | B66: =OFFSET(InputPriceData!B$15,CalculationsAndCharts!$A66+$A$11,0,1,1) -> 2018-05-18 | C66: =OFFSET(InputPriceData!G$15,CalculationsAndCharts!$A66+$A$11,IF($C$7,8,0),1,1) -> 900800 | D66: =OFFSET(InputPriceData!C$15,CalculationsAndCharts!$A66+$A$11,IF($C$7,8,0),1,1) -> 293.49 | E66: =OFFSET(InputPriceData!D$15,CalculationsAndCharts!$A66+$A$11,IF($C$7,8,0),1,1) -> 299.46 | F66: =OFFSET(InputPriceData!E$15,CalculationsAndCharts!$A66+$A$11,IF($C$7,8,0),1,1) -> 292.76 | G66: =OFFSET(InputPriceData!F$15,CalculationsAndCharts!$A66+$A$11,IF($C$7,8,0),1,1) -> 298 | H66: 16.13386775 | I66: 257.3134 | J66: 254.0866265 | K66: TRUE | L66: 52 | M66: 86.66666667 | N66: 86.66505098 | O66: 90 | P66: FALSE | R66: =OFFSET(InputSpyData!F$15,CalculationsAndCharts!$A66+$A$11,IF($C$7,8,0),1,1) -> 270.12 | S66: 265.3765685 | T66: TRUE | U66: FALSE | V66: FALSE | W66: FALSE | X66: 0 | Y66: FALSE | Z66: FALSE | AA66: FALSE | AD66: 50 | AE66: FALSE | AP66: 900800
A67: 35 | B67: =OFFSET(InputPriceData!B$15,CalculationsAndCharts!$A67+$A$11,0,1,1) -> 2018-05-17 | C67: =OFFSET(InputPriceData!G$15,CalculationsAndCharts!$A67+$A$11,IF($C$7,8,0),1,1) -> 927900 | D67: =OFFSET(InputPriceData!C$15,CalculationsAndCharts!$A67+$A$11,IF($C$7,8,0),1,1) -> 289.52 | E67: =OFFSET(InputPriceData!D$15,CalculationsAndCharts!$A67+$A$11,IF($C$7,8,0),1,1) -> 294.91 | F67: =OFFSET(InputPriceData!E$15,CalculationsAndCharts!$A67+$A$11,IF($C$7,8,0),1,1) -> 287.73 | G67: =OFFSET(InputPriceData!F$15,CalculationsAndCharts!$A67+$A$11,IF($C$7,8,0),1,1) -> 292.72 | H67: 15.96492652 | I67: 256.5646 | J67: 253.3716147 | K67: TRUE | L67: 52 | M67: 86.66666667 | N67: 86.6634353 | O67: 90 | P67: FALSE | R67: =OFFSET(InputSpyData!F$15,CalculationsAndCharts!$A67+$A$11,IF($C$7,8,0),1,1) -> 270.79 | S67: 265.2807416 | T67: TRUE | U67: FALSE | V67: FALSE | W67: FALSE | X67: 0 | Y67: FALSE | Z67: FALSE | AA67: FALSE | AD67: 50 | AE67: FALSE | AP67: 927900
A68: 36 | B68: =OFFSET(InputPriceData!B$15,CalculationsAndCharts!$A68+$A$11,0,1,1) -> 2018-05-16 | C68: =OFFSET(InputPriceData!G$15,CalculationsAndCharts!$A68+$A$11,IF($C$7,8,0),1,1) -> 880800 | D68: =OFFSET(InputPriceData!C$15,CalculationsAndCharts!$A68+$A$11,IF($C$7,8,0),1,1) -> 283.5 | E68: =OFFSET(InputPriceData!D$15,CalculationsAndCharts!$A68+$A$11,IF($C$7,8,0),1,1) -> 292.82 | F68: =OFFSET(InputPriceData!E$15,CalculationsAndCharts!$A68+$A$11,IF($C$7,8,0),1,1) -> 281.61 | G68: =OFFSET(InputPriceData!F$15,CalculationsAndCharts!$A68+$A$11,IF($C$7,8,0),1,1) -> 287.96 | H68: 15.98598195 | I68: 255.825 | J68: 252.6278036 | K68: TRUE | L68: 52 | M68: 86.66666667 | N68: 86.66020394 | O68: 90 | P68: FALSE | R68: =OFFSET(InputSpyData!F$15,CalculationsAndCharts!$A68+$A$11,IF($C$7,8,0),1,1) -> 271.02 | S68: 265.1694435 | T68: TRUE | U68: FALSE | V68: FALSE | W68: FALSE | X68: 0 | Y68: FALSE | Z68: FALSE | AA68: FALSE | AD68: 50 | AE68: FALSE | AP68: 880800
A69: 37 | B69: =OFFSET(InputPriceData!B$15,CalculationsAndCharts!$A69+$A$11,0,1,1) -> 2018-05-15 | C69: =OFFSET(InputPriceData!G$15,CalculationsAndCharts!$A69+$A$11,IF($C$7,8,0),1,1) -> 868300 | D69: =OFFSET(InputPriceData!C$15,CalculationsAndCharts!$A69+$A$11,IF($C$7,8,0),1,1) -> 283.53 | E69: =OFFSET(InputPriceData!D$15,CalculationsAndCharts!$A69+$A$11,IF($C$7,8,0),1,1) -> 284.26 | F69: =OFFSET(InputPriceData!E$15,CalculationsAndCharts!$A69+$A$11,IF($C$7,8,0),1,1) -> 276.81 | G69: =OFFSET(InputPriceData!F$15,CalculationsAndCharts!$A69+$A$11,IF($C$7,8,0),1,1) -> 283.77 | H69: 15.80656147 | I69: 255.2819 | J69: 252.1205877 | K69: TRUE | L69: 52 | M69: 86.66666667 | N69: 86.65374121 | O69: 90 | P69: FALSE | R69: =OFFSET(InputSpyData!F$15,CalculationsAndCharts!$A69+$A$11,IF($C$7,8,0),1,1) -> 269.89 | S69: 265.0512504 | T69: TRUE | U69: FALSE | V69: FALSE | W69: FALSE | X69: 0 | Y69: FALSE | Z69: FALSE | AA69: FALSE | AD69: 50 | AE69: FALSE | AP69: 868300
A70: 38 | B70: =OFFSET(InputPriceData!B$15,CalculationsAndCharts!$A70+$A$11,0,1,1) -> 2018-05-14 | C70: =OFFSET(InputPriceData!G$15,CalculationsAndCharts!$A70+$A$11,IF($C$7,8,0),1,1) -> 1231100 | D70: =OFFSET(InputPriceData!C$15,CalculationsAndCharts!$A70+$A$11,IF($C$7,8,0),1,1) -> 286.99 | E70: =OFFSET(InputPriceData!D$15,CalculationsAndCharts!$A70+$A$11,IF($C$7,8,0),1,1) -> 296.47 | F70: =OFFSET(InputPriceData!E$15,CalculationsAndCharts!$A70+$A$11,IF($C$7,8,0),1,1) -> 284.75 | G70: =OFFSET(InputPriceData!F$15,CalculationsAndCharts!$A70+$A$11,IF($C$7,8,0),1,1) -> 286.42 | H70: 15.67123482 | I70: 254.7947 | J70: 251.660453 | K70: TRUE | L70: 52 | M70: 86.66666667 | N70: 86.64081575 | O70: 90 | P70: FALSE | R70: =OFFSET(InputSpyData!F$15,CalculationsAndCharts!$A70+$A$11,IF($C$7,8,0),1,1) -> 271.76 | S70: 264.9534979 | T70: TRUE | U70: FALSE | V70: FALSE | W70: FALSE | X70: 0 | Y70: FALSE | Z70: FALSE | AA70: FALSE | AD70: 50 | AE70: FALSE | AQ70: 1231100
A71: 39 | B71: =OFFSET(InputPriceData!B$15,CalculationsAndCharts!$A71+$A$11,0,1,1) -> 2018-05-11 | C71: =OFFSET(InputPriceData!G$15,CalculationsAndCharts!$A71+$A$11,IF($C$7,8,0),1,1) -> 1471600 | D71: =OFFSET(InputPriceData!C$15,CalculationsAndCharts!$A71+$A$11,IF($C$7,8,0),1,1) -> 278.29 | E71: =OFFSET(InputPriceData!D$15,CalculationsAndCharts!$A71+$A$11,IF($C$7,8,0),1,1) -> 288.36 | F71: =OFFSET(InputPriceData!E$15,CalculationsAndCharts!$A71+$A$11,IF($C$7,8,0),1,1) -> 277.99 | G71: =OFFSET(InputPriceData!F$15,CalculationsAndCharts!$A71+$A$11,IF($C$7,8,0),1,1) -> 286.49 | H71: 15.4615929 | I71: 254.2852 | J71: 251.1928814 | K71: TRUE | L71: 52 | M71: 86.66666667 | N71: 86.61496483 | O71: 90 | P71: FALSE | R71: =OFFSET(InputSpyData!F$15,CalculationsAndCharts!$A71+$A$11,IF($C$7,8,0),1,1) -> 271.63 | S71: 264.8159928 | T71: TRUE | U71: FALSE | V71: FALSE | W71: FALSE | X71: 0 | Y71: FALSE | Z71: FALSE | AA71: FALSE | AD71: 50 | AE71: FALSE | AP71: 1471600
A72: 40 | B72: =OFFSET(InputPriceData!B$15,CalculationsAndCharts!$A72+$A$11,0,1,1) -> 2018-05-10 | C72: =OFFSET(InputPriceData!G$15,CalculationsAndCharts!$A72+$A$11,IF($C$7,8,0),1,1) -> 1202500 | D72: =OFFSET(InputPriceData!C$15,CalculationsAndCharts!$A72+$A$11,IF($C$7,8,0),1,1) -> 268.01 | E72: =OFFSET(InputPriceData!D$15,CalculationsAndCharts!$A72+$A$11,IF($C$7,8,0),1,1) -> 280.25 | F72: =OFFSET(InputPriceData!E$15,CalculationsAndCharts!$A72+$A$11,IF($C$7,8,0),1,1) -> 267.13 | G72: =OFFSET(InputPriceData!F$15,CalculationsAndCharts!$A72+$A$11,IF($C$7,8,0),1,1) -> 277.73 | H72: 15.2547889 | I72: 253.7558 | J72: 250.7048422 | K72: TRUE | L72: 52 | M72: 86.66666667 | N72: 86.563263 | O72: 90 | P72: FALSE | R72: =OFFSET(InputSpyData!F$15,CalculationsAndCharts!$A72+$A$11,IF($C$7,8,0),1,1) -> 270.8 | S72: 264.6783361 | T72: TRUE | U72: FALSE | V72: FALSE | W72: FALSE | X72: 0 | Y72: FALSE | Z72: FALSE | AA72: FALSE | AD72: 50 | AE72: FALSE | AP72: 1202500
A73: 41 | B73: =OFFSET(InputPriceData!B$15,CalculationsAndCharts!$A73+$A$11,0,1,1) -> 2018-05-09 | C73: =OFFSET(InputPriceData!G$15,CalculationsAndCharts!$A73+$A$11,IF($C$7,8,0),1,1) -> 747000 | D73: =OFFSET(InputPriceData!C$15,CalculationsAndCharts!$A73+$A$11,IF($C$7,8,0),1,1) -> 265.49 | E73: =OFFSET(InputPriceData!D$15,CalculationsAndCharts!$A73+$A$11,IF($C$7,8,0),1,1) -> 270.6 | F73: =OFFSET(InputPriceData!E$15,CalculationsAndCharts!$A73+$A$11,IF($C$7,8,0),1,1) -> 265.49 | G73: =OFFSET(InputPriceData!F$15,CalculationsAndCharts!$A73+$A$11,IF($C$7,8,0),1,1) -> 268 | H73: 15.19046796 | I73: 253.3165 | J73: 250.2784064 | K73: TRUE | L73: 52 | M73: 86.66666667 | N73: 86.45985933 | O73: 90 | P73: FALSE | R73: =OFFSET(InputSpyData!F$15,CalculationsAndCharts!$A73+$A$11,IF($C$7,8,0),1,1) -> 268.3 | S73: 264.5546661 | T73: TRUE | U73: FALSE | V73: FALSE | W73: FALSE | X73: 0 | Y73: FALSE | Z73: FALSE | AA73: FALSE | AD73: 50 | AE73: FALSE | AP73: 747000
A74: 42 | B74: =OFFSET(InputPriceData!B$15,CalculationsAndCharts!$A74+$A$11,0,1,1) -> 2018-05-08 | C74: =OFFSET(InputPriceData!G$15,CalculationsAndCharts!$A74+$A$11,IF($C$7,8,0),1,1) -> 820800 | D74: =OFFSET(InputPriceData!C$15,CalculationsAndCharts!$A74+$A$11,IF($C$7,8,0),1,1) -> 263.54 | E74: =OFFSET(InputPriceData!D$15,CalculationsAndCharts!$A74+$A$11,IF($C$7,8,0),1,1) -> 266.08 | F74: =OFFSET(InputPriceData!E$15,CalculationsAndCharts!$A74+$A$11,IF($C$7,8,0),1,1) -> 260.23 | G74: =OFFSET(InputPriceData!F$15,CalculationsAndCharts!$A74+$A$11,IF($C$7,8,0),1,1) -> 265.46 | H74: 15.21898834 | I74: 252.9928 | J74: 249.9490023 | K74: TRUE | L74: 52 | M74: 86.66666667 | N74: 86.253052 | O74: 90 | P74: FALSE | R74: =OFFSET(InputSpyData!F$15,CalculationsAndCharts!$A74+$A$11,IF($C$7,8,0),1,1) -> 265.73 | S74: 264.4790028 | T74: TRUE | U74: FALSE | V74: FALSE | W74: FALSE | X74: 0 | Y74: FALSE | Z74: FALSE | AA74: FALSE | AD74: 50 | AE74: FALSE | AP74: 820800
A75: 43 | B75: =OFFSET(InputPriceData!B$15,CalculationsAndCharts!$A75+$A$11,0,1,1) -> 2018-05-07 | C75: =OFFSET(InputPriceData!G$15,CalculationsAndCharts!$A75+$A$11,IF($C$7,8,0),1,1) -> 1186300 | D75: =OFFSET(InputPriceData!C$15,CalculationsAndCharts!$A75+$A$11,IF($C$7,8,0),1,1) -> 259.25 | E75: =OFFSET(InputPriceData!D$15,CalculationsAndCharts!$A75+$A$11,IF($C$7,8,0),1,1) -> 267.04 | F75: =OFFSET(InputPriceData!E$15,CalculationsAndCharts!$A75+$A$11,IF($C$7,8,0),1,1) -> 259.23 | G75: =OFFSET(InputPriceData!F$15,CalculationsAndCharts!$A75+$A$11,IF($C$7,8,0),1,1) -> 265.03 | H75: 15.27857072 | I75: 252.6819 | J75: 249.6261859 | K75: TRUE | L75: 52 | M75: 86.66666667 | N75: 85.83943733 | O75: 90 | P75: FALSE | R75: =OFFSET(InputSpyData!F$15,CalculationsAndCharts!$A75+$A$11,IF($C$7,8,0),1,1) -> 265.73 | S75: 264.4537301 | T75: TRUE | U75: FALSE | V75: FALSE | W75: FALSE | X75: 0 | Y75: FALSE | Z75: FALSE | AA75: FALSE | AD75: 50 | AE75: FALSE | AP75: 1186300
A76: 44 | B76: =OFFSET(InputPriceData!B$15,CalculationsAndCharts!$A76+$A$11,0,1,1) -> 2018-05-04 | C76: =OFFSET(InputPriceData!G$15,CalculationsAndCharts!$A76+$A$11,IF($C$7,8,0),1,1) -> 1020600 | D76: =OFFSET(InputPriceData!C$15,CalculationsAndCharts!$A76+$A$11,IF($C$7,8,0),1,1) -> 251.99 | E76: =OFFSET(InputPriceData!D$15,CalculationsAndCharts!$A76+$A$11,IF($C$7,8,0),1,1) -> 260.26 | F76: =OFFSET(InputPriceData!E$15,CalculationsAndCharts!$A76+$A$11,IF($C$7,8,0),1,1) -> 246.38 | G76: =OFFSET(InputPriceData!F$15,CalculationsAndCharts!$A76+$A$11,IF($C$7,8,0),1,1) -> 258.97 | H76: 15.34372467 | I76: 252.3682 | J76: 249.2994551 | K76: TRUE | L76: 51 | M76: 85 | N76: 85.01220799 | O76: 90 | P76: FALSE | R76: =OFFSET(InputSpyData!F$15,CalculationsAndCharts!$A76+$A$11,IF($C$7,8,0),1,1) -> 264.83 | S76: 264.4279469 | T76: FALSE | U76: FALSE | V76: FALSE | W76: FALSE | X76: 0 | Y76: FALSE | Z76: FALSE | AA76: FALSE | AD76: 50 | AE76: FALSE | AP76: 1020600
A77: 45 | B77: =OFFSET(InputPriceData!B$15,CalculationsAndCharts!$A77+$A$11,0,1,1) -> 2018-05-03 | C77: =OFFSET(InputPriceData!G$15,CalculationsAndCharts!$A77+$A$11,IF($C$7,8,0),1,1) -> 964700 | D77: =OFFSET(InputPriceData!C$15,CalculationsAndCharts!$A77+$A$11,IF($C$7,8,0),1,1) -> 249 | E77: =OFFSET(InputPriceData!D$15,CalculationsAndCharts!$A77+$A$11,IF($C$7,8,0),1,1) -> 255.41 | F77: =OFFSET(InputPriceData!E$15,CalculationsAndCharts!$A77+$A$11,IF($C$7,8,0),1,1) -> 244.4 | G77: =OFFSET(InputPriceData!F$15,CalculationsAndCharts!$A77+$A$11,IF($C$7,8,0),1,1) -> 255.14 | H77: 15.39138052 | I77: 252.1628 | J77: 249.0845239 | K77: TRUE | L77: 51 | M77: 85 | N77: 85.02441597 | O77: 90 | P77: FALSE | R77: =OFFSET(InputSpyData!F$15,CalculationsAndCharts!$A77+$A$11,IF($C$7,8,0),1,1) -> 261.45 | S77: 264.4198246 | T77: FALSE | U77: FALSE | V77: FALSE | W77: FALSE | X77: 0 | Y77: FALSE | Z77: FALSE | AA77: FALSE | AD77: 50 | AE77: FALSE | AP77: 964700
A78: 46 | B78: =OFFSET(InputPriceData!B$15,CalculationsAndCharts!$A78+$A$11,0,1,1) -> 2018-05-02 | C78: =OFFSET(InputPriceData!G$15,CalculationsAndCharts!$A78+$A$11,IF($C$7,8,0),1,1) -> 745900 | D78: =OFFSET(InputPriceData!C$15,CalculationsAndCharts!$A78+$A$11,IF($C$7,8,0),1,1) -> 250.4 | E78: =OFFSET(InputPriceData!D$15,CalculationsAndCharts!$A78+$A$11,IF($C$7,8,0),1,1) -> 252.93 | F78: =OFFSET(InputPriceData!E$15,CalculationsAndCharts!$A78+$A$11,IF($C$7,8,0),1,1) -> 249.17 | G78: =OFFSET(InputPriceData!F$15,CalculationsAndCharts!$A78+$A$11,IF($C$7,8,0),1,1) -> 249.47 | H78: 15.42561866 | I78: 252.0252 | J78: 248.9400763 | K78: TRUE | L78: 51 | M78: 85 | N78: 85.04883195 | O78: 90 | P78: FALSE | R78: =OFFSET(InputSpyData!F$15,CalculationsAndCharts!$A78+$A$11,IF($C$7,8,0),1,1) -> 262.02 | S78: 264.4798211 | T78: FALSE | U78: FALSE | V78: FALSE | W78: FALSE | X78: 0 | Y78: FALSE | Z78: FALSE | AA78: FALSE | AD78: 50 | AE78: FALSE | AQ78: 745900
A79: 47 | B79: =OFFSET(InputPriceData!B$15,CalculationsAndCharts!$A79+$A$11,0,1,1) -> 2018-05-01 | C79: =OFFSET(InputPriceData!G$15,CalculationsAndCharts!$A79+$A$11,IF($C$7,8,0),1,1) -> 570400 | D79: =OFFSET(InputPriceData!C$15,CalculationsAndCharts!$A79+$A$11,IF($C$7,8,0),1,1) -> 249.21 | E79: =OFFSET(InputPriceData!D$15,CalculationsAndCharts!$A79+$A$11,IF($C$7,8,0),1,1) -> 252.69 | F79: =OFFSET(InputPriceData!E$15,CalculationsAndCharts!$A79+$A$11,IF($C$7,8,0),1,1) -> 247.51 | G79: =OFFSET(InputPriceData!F$15,CalculationsAndCharts!$A79+$A$11,IF($C$7,8,0),1,1) -> 251.34 | H79: 15.53940493 | I79: 251.8606 | J79: 248.752719 | K79: TRUE | L79: 51 | M79: 85 | N79: 85.0976639 | O79: 90 | P79: FALSE | R79: =OFFSET(InputSpyData!F$15,CalculationsAndCharts!$A79+$A$11,IF($C$7,8,0),1,1) -> 263.8 | S79: 264.5295144 | T79: FALSE | U79: FALSE | V79: FALSE | W79: FALSE | X79: 0 | Y79: FALSE | Z79: FALSE | AA79: FALSE | AD79: 50 | AE79: FALSE | AP79: 570400
A80: 48 | B80: =OFFSET(InputPriceData!B$15,CalculationsAndCharts!$A80+$A$11,0,1,1) -> 2018-04-30 | C80: =OFFSET(InputPriceData!G$15,CalculationsAndCharts!$A80+$A$11,IF($C$7,8,0),1,1) -> 1103500 | D80: =OFFSET(InputPriceData!C$15,CalculationsAndCharts!$A80+$A$11,IF($C$7,8,0),1,1) -> 258.63 | E80: =OFFSET(InputPriceData!D$15,CalculationsAndCharts!$A80+$A$11,IF($C$7,8,0),1,1) -> 258.63 | F80: =OFFSET(InputPriceData!E$15,CalculationsAndCharts!$A80+$A$11,IF($C$7,8,0),1,1) -> 249.58 | G80: =OFFSET(InputPriceData!F$15,CalculationsAndCharts!$A80+$A$11,IF($C$7,8,0),1,1) -> 249.85 | H80: 15.7294528 | I80: 251.6208 | J80: 248.4749094 | K80: TRUE | L80: 51 | M80: 85 | N80: 85.1953278 | O80: 90 | P80: FALSE | R80: =OFFSET(InputSpyData!F$15,CalculationsAndCharts!$A80+$A$11,IF($C$7,8,0),1,1) -> 263.33 | S80: 264.5442521 | T80: FALSE | U80: FALSE | V80: FALSE | W80: FALSE | X80: 0 | Y80: FALSE | Z80: FALSE | AA80: FALSE | AD80: 50 | AE80: FALSE | AQ80: 1103500
A81: 49 | B81: =OFFSET(InputPriceData!B$15,CalculationsAndCharts!$A81+$A$11,0,1,1) -> 2018-04-27 | C81: =OFFSET(InputPriceData!G$15,CalculationsAndCharts!$A81+$A$11,IF($C$7,8,0),1,1) -> 981700 | D81: =OFFSET(InputPriceData!C$15,CalculationsAndCharts!$A81+$A$11,IF($C$7,8,0),1,1) -> 259.99 | E81: =OFFSET(InputPriceData!D$15,CalculationsAndCharts!$A81+$A$11,IF($C$7,8,0),1,1) -> 260.84 | F81: =OFFSET(InputPriceData!E$15,CalculationsAndCharts!$A81+$A$11,IF($C$7,8,0),1,1) -> 251.48 | G81: =OFFSET(InputPriceData!F$15,CalculationsAndCharts!$A81+$A$11,IF($C$7,8,0),1,1) -> 257.9 | H81: 15.93717744 | I81: 251.3803 | J81: 248.1928645 | K81: TRUE | L81: 51 | M81: 85 | N81: 85.3906556 | O81: 90 | P81: FALSE | R81: =OFFSET(InputSpyData!F$15,CalculationsAndCharts!$A81+$A$11,IF($C$7,8,0),1,1) -> 265.37 | S81: 264.5687824 | T81: TRUE | U81: FALSE | V81: FALSE | W81: FALSE | X81: 0 | Y81: FALSE | Z81: FALSE | AA81: FALSE | AD81: 50 | AE81: FALSE | AQ81: 981700
A82: 50 | B82: =OFFSET(InputPriceData!B$15,CalculationsAndCharts!$A82+$A$11,0,1,1) -> 2018-04-26 | C82: =OFFSET(InputPriceData!G$15,CalculationsAndCharts!$A82+$A$11,IF($C$7,8,0),1,1) -> 2927800 | D82: =OFFSET(InputPriceData!C$15,CalculationsAndCharts!$A82+$A$11,IF($C$7,8,0),1,1) -> 261.99 | E82: =OFFSET(InputPriceData!D$15,CalculationsAndCharts!$A82+$A$11,IF($C$7,8,0),1,1) -> 266.1 | F82: =OFFSET(InputPriceData!E$15,CalculationsAndCharts!$A82+$A$11,IF($C$7,8,0),1,1) -> 242.71 | G82: =OFFSET(InputPriceData!F$15,CalculationsAndCharts!$A82+$A$11,IF($C$7,8,0),1,1) -> 259.89 | H82: 15.9260616 | I82: 251.342 | J82: 248.1567877 | K82: TRUE | L82: 51 | M82: 85 | N82: 85.78131119 | O82: 90 | P82: FALSE | R82: =OFFSET(InputSpyData!F$15,CalculationsAndCharts!$A82+$A$11,IF($C$7,8,0),1,1) -> 265.12 | S82: 264.5525962 | T82: FALSE | U82: FALSE | V82: FALSE | W82: FALSE | X82: 0 | Y82: FALSE | Z82: FALSE | AA82: FALSE | AD82: 50 | AE82: FALSE | AP82: =IF(G82>=D82,C82,NA()) ->  | AQ82: =IF(G82<D82,C82,NA()) -> 2927800
A83: 51 | B83: =OFFSET(InputPriceData!B$15,CalculationsAndCharts!$A83+$A$11,0,1,1) -> 2018-04-25 | C83: =OFFSET(InputPriceData!G$15,CalculationsAndCharts!$A83+$A$11,IF($C$7,8,0),1,1) -> 1298100 | D83: =OFFSET(InputPriceData!C$15,CalculationsAndCharts!$A83+$A$11,IF($C$7,8,0),1,1) -> 238.47 | E83: =OFFSET(InputPriceData!D$15,CalculationsAndCharts!$A83+$A$11,IF($C$7,8,0),1,1) -> 245.78 | F83: =OFFSET(InputPriceData!E$15,CalculationsAndCharts!$A83+$A$11,IF($C$7,8,0),1,1) -> 234.4 | G83: =OFFSET(InputPriceData!F$15,CalculationsAndCharts!$A83+$A$11,IF($C$7,8,0),1,1) -> 245.63 | H83: 15.93167886 | I83: 251.3519 | J83: 248.1655642 | K83: FALSE | L83: 51 | M83: 85 | N83: 86.56262239 | O83: 90 | P83: FALSE | R83: =OFFSET(InputSpyData!F$15,CalculationsAndCharts!$A83+$A$11,IF($C$7,8,0),1,1) -> 262.45 | S83: 264.5411335 | T83: FALSE | U83: FALSE | V83: FALSE | W83: FALSE | X83: 0 | Y83: FALSE | Z83: FALSE | AA83: FALSE | AD83: 50 | AE83: FALSE | AP83: 1298100
A84: 52 | B84: =OFFSET(InputPriceData!B$15,CalculationsAndCharts!$A84+$A$11,0,1,1) -> 2018-04-24 | C84: =OFFSET(InputPriceData!G$15,CalculationsAndCharts!$A84+$A$11,IF($C$7,8,0),1,1) -> 1267400 | D84: =OFFSET(InputPriceData!C$15,CalculationsAndCharts!$A84+$A$11,IF($C$7,8,0),1,1) -> 248.62 | E84: =OFFSET(InputPriceData!D$15,CalculationsAndCharts!$A84+$A$11,IF($C$7,8,0),1,1) -> 251.47 | F84: =OFFSET(InputPriceData!E$15,CalculationsAndCharts!$A84+$A$11,IF($C$7,8,0),1,1) -> 235.83 | G84: =OFFSET(InputPriceData!F$15,CalculationsAndCharts!$A84+$A$11,IF($C$7,8,0),1,1) -> 239.66 | H84: 15.93635142 | I84: 251.4793 | J84: 248.2920297 | K84: FALSE | L84: 52 | M84: 86.66666667 | N84: 88.12524478 | O84: 90 | P84: FALSE | R84: =OFFSET(InputSpyData!F$15,CalculationsAndCharts!$A84+$A$11,IF($C$7,8,0),1,1) -> 261.8 | S84: 264.5833786 | T84: FALSE | U84: FALSE | V84: FALSE | W84: FALSE | X84: 0 | Y84: FALSE | Z84: FALSE | AA84: TRUE | AC84: 248.62 | AD84: 50 | AE84: FALSE | AQ84: 1267400
A85: 53 | B85: =OFFSET(InputPriceData!B$15,CalculationsAndCharts!$A85+$A$11,0,1,1) -> 2018-04-23 | C85: =OFFSET(InputPriceData!G$15,CalculationsAndCharts!$A85+$A$11,IF($C$7,8,0),1,1) -> 846500 | D85: =OFFSET(InputPriceData!C$15,CalculationsAndCharts!$A85+$A$11,IF($C$7,8,0),1,1) -> 248.63 | E85: =OFFSET(InputPriceData!D$15,CalculationsAndCharts!$A85+$A$11,IF($C$7,8,0),1,1) -> 251.37 | F85: =OFFSET(InputPriceData!E$15,CalculationsAndCharts!$A85+$A$11,IF($C$7,8,0),1,1) -> 245.01 | G85: =OFFSET(InputPriceData!F$15,CalculationsAndCharts!$A85+$A$11,IF($C$7,8,0),1,1) -> 247.2 | H85: 15.94163646 | I85: 251.725 | J85: 248.5366727 | K85: FALSE | L85: 53 | M85: 88.33333333 | N85: 89.58382289 | O85: 90 | P85: FALSE | R85: =OFFSET(InputSpyData!F$15,CalculationsAndCharts!$A85+$A$11,IF($C$7,8,0),1,1) -> 265.38 | S85: 264.6396085 | T85: TRUE | U85: FALSE | V85: TRUE | W85: TRUE | X85: 84 | Y85: TRUE | Z85: FALSE | AA85: FALSE | AD85: 50 | AE85: FALSE | AQ85: 846500
A86: 54 | B86: =OFFSET(InputPriceData!B$15,CalculationsAndCharts!$A86+$A$11,0,1,1) -> 2018-04-20 | C86: =OFFSET(InputPriceData!G$15,CalculationsAndCharts!$A86+$A$11,IF($C$7,8,0),1,1) -> 1323300 | D86: =OFFSET(InputPriceData!C$15,CalculationsAndCharts!$A86+$A$11,IF($C$7,8,0),1,1) -> 253.38 | E86: =OFFSET(InputPriceData!D$15,CalculationsAndCharts!$A86+$A$11,IF($C$7,8,0),1,1) -> 256.66 | F86: =OFFSET(InputPriceData!E$15,CalculationsAndCharts!$A86+$A$11,IF($C$7,8,0),1,1) -> 245.41 | G86: =OFFSET(InputPriceData!F$15,CalculationsAndCharts!$A86+$A$11,IF($C$7,8,0),1,1) -> 247.07 | H86: 15.97033757 | I86: 251.8772 | J86: 248.6831325 | K86: FALSE | L86: 54 | M86: 90 | N86: 90.83431244 | O86: 90 | P86: TRUE | Q86: 380.83875 | R86: =OFFSET(InputSpyData!F$15,CalculationsAndCharts!$A86+$A$11,IF($C$7,8,0),1,1) -> 265.42 | S86: 264.6246511 | T86: TRUE | U86: FALSE | V86: FALSE | W86: TRUE | X86: 83 | Y86: FALSE | Z86: FALSE | AA86: FALSE | AD86: 50 | AE86: FALSE | AQ86: 1323300
A87: 55 | B87: =OFFSET(InputPriceData!B$15,CalculationsAndCharts!$A87+$A$11,0,1,1) -> 2018-04-19 | C87: =OFFSET(InputPriceData!G$15,CalculationsAndCharts!$A87+$A$11,IF($C$7,8,0),1,1) -> 2458600 | D87: =OFFSET(InputPriceData!C$15,CalculationsAndCharts!$A87+$A$11,IF($C$7,8,0),1,1) -> 265.82 | E87: =OFFSET(InputPriceData!D$15,CalculationsAndCharts!$A87+$A$11,IF($C$7,8,0),1,1) -> 267.02 | F87: =OFFSET(InputPriceData!E$15,CalculationsAndCharts!$A87+$A$11,IF($C$7,8,0),1,1) -> 250.27 | G87: =OFFSET(InputPriceData!F$15,CalculationsAndCharts!$A87+$A$11,IF($C$7,8,0),1,1) -> 252.78 | H87: 15.96551854 | I87: 251.9541 | J87: 248.7609963 | K87: TRUE | L87: 55 | M87: 91.66666667 | N87: 91.66862488 | O87: 90 | P87: TRUE | Q87: 380.83875 | R87: =OFFSET(InputSpyData!F$15,CalculationsAndCharts!$A87+$A$11,IF($C$7,8,0),1,1) -> 267.69 | S87: 264.6085834 | T87: TRUE | U87: FALSE | V87: FALSE | W87: TRUE | X87: 82 | Y87: FALSE | Z87: FALSE | AA87: FALSE | AD87: 50 | AE87: FALSE | AQ87: 2458600
A88: 56 | B88: =OFFSET(InputPriceData!B$15,CalculationsAndCharts!$A88+$A$11,0,1,1) -> 2018-04-18 | C88: =OFFSET(InputPriceData!G$15,CalculationsAndCharts!$A88+$A$11,IF($C$7,8,0),1,1) -> 885900 | D88: =OFFSET(InputPriceData!C$15,CalculationsAndCharts!$A88+$A$11,IF($C$7,8,0),1,1) -> 274 | E88: =OFFSET(InputPriceData!D$15,CalculationsAndCharts!$A88+$A$11,IF($C$7,8,0),1,1) -> 280.23 | F88: =OFFSET(InputPriceData!E$15,CalculationsAndCharts!$A88+$A$11,IF($C$7,8,0),1,1) -> 270.57 | G88: =OFFSET(InputPriceData!F$15,CalculationsAndCharts!$A88+$A$11,IF($C$7,8,0),1,1) -> 277.05 | H88: 15.96713985 | I88: 251.9701 | J88: 248.776672 | K88: TRUE | L88: 55 | M88: 91.66666667 | N88: 91.67058309 | O88: 90 | P88: TRUE | Q88: 380.83875 | R88: =OFFSET(InputSpyData!F$15,CalculationsAndCharts!$A88+$A$11,IF($C$7,8,0),1,1) -> 269.18 | S88: 264.5463326 | T88: TRUE | U88: FALSE | V88: FALSE | W88: TRUE | X88: 81 | Y88: FALSE | Z88: FALSE | AA88: FALSE | AD88: 50 | AE88: FALSE | AP88: 885900
A89: 57 | B89: =OFFSET(InputPriceData!B$15,CalculationsAndCharts!$A89+$A$11,0,1,1) -> 2018-04-17 | C89: =OFFSET(InputPriceData!G$15,CalculationsAndCharts!$A89+$A$11,IF($C$7,8,0),1,1) -> 958100 | D89: =OFFSET(InputPriceData!C$15,CalculationsAndCharts!$A89+$A$11,IF($C$7,8,0),1,1) -> 269.17 | E89: =OFFSET(InputPriceData!D$15,CalculationsAndCharts!$A89+$A$11,IF($C$7,8,0),1,1) -> 274.52 | F89: =OFFSET(InputPriceData!E$15,CalculationsAndCharts!$A89+$A$11,IF($C$7,8,0),1,1) -> 267.78 | G89: =OFFSET(InputPriceData!F$15,CalculationsAndCharts!$A89+$A$11,IF($C$7,8,0),1,1) -> 272.65 | H89: 15.77390027 | I89: 251.7639 | J89: 248.6091199 | K89: TRUE | L89: 55 | M89: 91.66666667 | N89: 91.67449951 | O89: 90 | P89: TRUE | Q89: 380.83875 | R89: =OFFSET(InputSpyData!F$15,CalculationsAndCharts!$A89+$A$11,IF($C$7,8,0),1,1) -> 268.98 | S89: 264.4527232 | T89: TRUE | U89: FALSE | V89: FALSE | W89: TRUE | X89: 80 | Y89: FALSE | Z89: FALSE | AA89: FALSE | AD89: 50 | AE89: FALSE | AP89: 958100
A90: 58 | B90: =OFFSET(InputPriceData!B$15,CalculationsAndCharts!$A90+$A$11,0,1,1) -> 2018-04-16 | C90: =OFFSET(InputPriceData!G$15,CalculationsAndCharts!$A90+$A$11,IF($C$7,8,0),1,1) -> 533600 | D90: =OFFSET(InputPriceData!C$15,CalculationsAndCharts!$A90+$A$11,IF($C$7,8,0),1,1) -> 264.77 | E90: =OFFSET(InputPriceData!D$15,CalculationsAndCharts!$A90+$A$11,IF($C$7,8,0),1,1) -> 268.32 | F90: =OFFSET(InputPriceData!E$15,CalculationsAndCharts!$A90+$A$11,IF($C$7,8,0),1,1) -> 263.02 | G90: =OFFSET(InputPriceData!F$15,CalculationsAndCharts!$A90+$A$11,IF($C$7,8,0),1,1) -> 265.5 | H90: 15.63856108 | I90: 251.5925 | J90: 248.4647878 | K90: TRUE | L90: 55 | M90: 91.66666667 | N90: 91.68233236 | O90: 90 | P90: TRUE | Q90: 380.83875 | R90: =OFFSET(InputSpyData!F$15,CalculationsAndCharts!$A90+$A$11,IF($C$7,8,0),1,1) -> 266.13 | S90: 264.361263 | T90: TRUE | U90: FALSE | V90: FALSE | W90: TRUE | X90: 79 | Y90: FALSE | Z90: FALSE | AA90: FALSE | AD90: 50 | AE90: FALSE | AP90: 533600
A91: 59 | B91: =OFFSET(InputPriceData!B$15,CalculationsAndCharts!$A91+$A$11,0,1,1) -> 2018-04-13 | C91: =OFFSET(InputPriceData!G$15,CalculationsAndCharts!$A91+$A$11,IF($C$7,8,0),1,1) -> 594100 | D91: =OFFSET(InputPriceData!C$15,CalculationsAndCharts!$A91+$A$11,IF($C$7,8,0),1,1) -> 266.22 | E91: =OFFSET(InputPriceData!D$15,CalculationsAndCharts!$A91+$A$11,IF($C$7,8,0),1,1) -> 267.21 | F91: =OFFSET(InputPriceData!E$15,CalculationsAndCharts!$A91+$A$11,IF($C$7,8,0),1,1) -> 259.5 | G91: =OFFSET(InputPriceData!F$15,CalculationsAndCharts!$A91+$A$11,IF($C$7,8,0),1,1) -> 261.72 | H91: 15.57785971 | I91: 251.4764 | J91: 248.3608281 | K91: TRUE | L91: 55 | M91: 91.66666667 | N91: 91.69799805 | O91: 90 | P91: TRUE | Q91: 380.83875 | R91: =OFFSET(InputSpyData!F$15,CalculationsAndCharts!$A91+$A$11,IF($C$7,8,0),1,1) -> 263.96 | S91: 264.325531 | T91: TRUE | U91: FALSE | V91: FALSE | W91: TRUE | X91: 78 | Y91: FALSE | Z91: FALSE | AA91: FALSE | AD91: 50 | AE91: FALSE | AQ91: 594100
A92: 60 | B92: =OFFSET(InputPriceData!B$15,CalculationsAndCharts!$A92+$A$11,0,1,1) -> 2018-04-12 | C92: =OFFSET(InputPriceData!G$15,CalculationsAndCharts!$A92+$A$11,IF($C$7,8,0),1,1) -> 579300 | D92: =OFFSET(InputPriceData!C$15,CalculationsAndCharts!$A92+$A$11,IF($C$7,8,0),1,1) -> 259.62 | E92: =OFFSET(InputPriceData!D$15,CalculationsAndCharts!$A92+$A$11,IF($C$7,8,0),1,1) -> 264.88 | F92: =OFFSET(InputPriceData!E$15,CalculationsAndCharts!$A92+$A$11,IF($C$7,8,0),1,1) -> 258.47 | G92: =OFFSET(InputPriceData!F$15,CalculationsAndCharts!$A92+$A$11,IF($C$7,8,0),1,1) -> 263.76 | H92: 15.54780883 | I92: 251.4084 | J92: 248.2988382 | K92: TRUE | L92: 55 | M92: 91.66666667 | N92: 91.72932943 | O92: 90 | P92: TRUE | Q92: 380.83875 | R92: =OFFSET(InputSpyData!F$15,CalculationsAndCharts!$A92+$A$11,IF($C$7,8,0),1,1) -> 264.74 | S92: 264.3329154 | T92: FALSE | U92: FALSE | V92: FALSE | W92: TRUE | X92: 77 | Y92: FALSE | Z92: FALSE | AA92: FALSE | AD92: 50 | AE92: FALSE | AP92: 579300
A93: 61 | B93: =OFFSET(InputPriceData!B$15,CalculationsAndCharts!$A93+$A$11,0,1,1) -> 2018-04-11 | C93: =OFFSET(InputPriceData!G$15,CalculationsAndCharts!$A93+$A$11,IF($C$7,8,0),1,1) -> 490800 | D93: =OFFSET(InputPriceData!C$15,CalculationsAndCharts!$A93+$A$11,IF($C$7,8,0),1,1) -> 255.58 | E93: =OFFSET(InputPriceData!D$15,CalculationsAndCharts!$A93+$A$11,IF($C$7,8,0),1,1) -> 260.46 | F93: =OFFSET(InputPriceData!E$15,CalculationsAndCharts!$A93+$A$11,IF($C$7,8,0),1,1) -> 254.53 | G93: =OFFSET(InputPriceData!F$15,CalculationsAndCharts!$A93+$A$11,IF($C$7,8,0),1,1) -> 257.02 | H93: 15.49957173 | I93: 251.2627 | J93: 248.1627857 | K93: TRUE | L93: 55 | M93: 91.66666667 | N93: 91.79199219 | O93: 90 | P93: TRUE | Q93: 380.83875 | R93: =OFFSET(InputSpyData!F$15,CalculationsAndCharts!$A93+$A$11,IF($C$7,8,0),1,1) -> 262.58 | S93: 264.3246915 | T93: FALSE | U93: FALSE | V93: FALSE | W93: TRUE | X93: 76 | Y93: FALSE | Z93: FALSE | AA93: FALSE | AD93: 50 | AE93: FALSE | AP93: 490800
A94: 62 | B94: =OFFSET(InputPriceData!B$15,CalculationsAndCharts!$A94+$A$11,0,1,1) -> 2018-04-10 | C94: =OFFSET(InputPriceData!G$15,CalculationsAndCharts!$A94+$A$11,IF($C$7,8,0),1,1) -> 935200 | D94: =OFFSET(InputPriceData!C$15,CalculationsAndCharts!$A94+$A$11,IF($C$7,8,0),1,1) -> 254.17 | E94: =OFFSET(InputPriceData!D$15,CalculationsAndCharts!$A94+$A$11,IF($C$7,8,0),1,1) -> 259.96 | F94: =OFFSET(InputPriceData!E$15,CalculationsAndCharts!$A94+$A$11,IF($C$7,8,0),1,1) -> 252.34 | G94: =OFFSET(InputPriceData!F$15,CalculationsAndCharts!$A94+$A$11,IF($C$7,8,0),1,1) -> 258.27 | H94: 15.49130032 | I94: 251.2327 | J94: 248.1344399 | K94: TRUE | L94: 55 | M94: 91.66666667 | N94: 91.91731771 | O94: 90 | P94: TRUE | Q94: 380.83875 | R94: =OFFSET(InputSpyData!F$15,CalculationsAndCharts!$A94+$A$11,IF($C$7,8,0),1,1) -> 263.96 | S94: 264.3599378 | T94: FALSE | U94: FALSE | V94: FALSE | W94: TRUE | X94: 75 | Y94: FALSE | Z94: FALSE | AA94: FALSE | AD94: 50 | AE94: FALSE | AP94: 935200
A95: 63 | B95: =OFFSET(InputPriceData!B$15,CalculationsAndCharts!$A95+$A$11,0,1,1) -> 2018-04-09 | C95: =OFFSET(InputPriceData!G$15,CalculationsAndCharts!$A95+$A$11,IF($C$7,8,0),1,1) -> 578900 | D95: =OFFSET(InputPriceData!C$15,CalculationsAndCharts!$A95+$A$11,IF($C$7,8,0),1,1) -> 248.37 | E95: =OFFSET(InputPriceData!D$15,CalculationsAndCharts!$A95+$A$11,IF($C$7,8,0),1,1) -> 255.26 | F95: =OFFSET(InputPriceData!E$15,CalculationsAndCharts!$A95+$A$11,IF($C$7,8,0),1,1) -> 247.62 | G95: =OFFSET(InputPriceData!F$15,CalculationsAndCharts!$A95+$A$11,IF($C$7,8,0),1,1) -> 249.06 | H95: 15.47725601 | I95: 251.1873 | J95: 248.0918488 | K95: TRUE | L95: 55 | M95: 91.66666667 | N95: 92.16796875 | O95: 90 | P95: TRUE | Q95: 380.83875 | R95: =OFFSET(InputSpyData!F$15,CalculationsAndCharts!$A95+$A$11,IF($C$7,8,0),1,1) -> 259.83 | S95: 264.3680173 | T95: FALSE | U95: FALSE | V95: FALSE | W95: TRUE | X95: 74 | Y95: FALSE | Z95: FALSE | AA95: FALSE | AD95: 50 | AE95: FALSE | AP95: 578900
A96: 64 | B96: =OFFSET(InputPriceData!B$15,CalculationsAndCharts!$A96+$A$11,0,1,1) -> 2018-04-06 | C96: =OFFSET(InputPriceData!G$15,CalculationsAndCharts!$A96+$A$11,IF($C$7,8,0),1,1) -> 909700 | D96: =OFFSET(InputPriceData!C$15,CalculationsAndCharts!$A96+$A$11,IF($C$7,8,0),1,1) -> 252.4 | E96: =OFFSET(InputPriceData!D$15,CalculationsAndCharts!$A96+$A$11,IF($C$7,8,0),1,1) -> 255.72 | F96: =OFFSET(InputPriceData!E$15,CalculationsAndCharts!$A96+$A$11,IF($C$7,8,0),1,1) -> 243.2 | G96: =OFFSET(InputPriceData!F$15,CalculationsAndCharts!$A96+$A$11,IF($C$7,8,0),1,1) -> 245.23 | H96: 15.47675739 | I96: 251.1913 | J96: 248.0959485 | K96: FALSE | L96: 55 | M96: 91.66666667 | N96: 92.66927083 | O96: 90 | P96: TRUE | Q96: 380.83875 | R96: =OFFSET(InputSpyData!F$15,CalculationsAndCharts!$A96+$A$11,IF($C$7,8,0),1,1) -> 258.56 | S96: 264.4596945 | T96: FALSE | U96: FALSE | V96: FALSE | W96: TRUE | X96: 73 | Y96: FALSE | Z96: FALSE | AA96: FALSE | AD96: 50 | AE96: FALSE | AQ96: 909700
A97: 65 | B97: =OFFSET(InputPriceData!B$15,CalculationsAndCharts!$A97+$A$11,0,1,1) -> 2018-04-05 | C97: =OFFSET(InputPriceData!G$15,CalculationsAndCharts!$A97+$A$11,IF($C$7,8,0),1,1) -> 1096500 | D97: =OFFSET(InputPriceData!C$15,CalculationsAndCharts!$A97+$A$11,IF($C$7,8,0),1,1) -> 251.32 | E97: =OFFSET(InputPriceData!D$15,CalculationsAndCharts!$A97+$A$11,IF($C$7,8,0),1,1) -> 259.73 | F97: =OFFSET(InputPriceData!E$15,CalculationsAndCharts!$A97+$A$11,IF($C$7,8,0),1,1) -> 251.32 | G97: =OFFSET(InputPriceData!F$15,CalculationsAndCharts!$A97+$A$11,IF($C$7,8,0),1,1) -> 255.35 | H97: =_xlfn.STDEV.P(OFFSET($G97,0,0,$A$18,1)) -> 15.46599783 | I97: =AVERAGE(OFFSET($G97,0,0,$A$18,1)) -> 251.2353 | J97: =I97-$A$21*H97 -> 248.1421004 | K97: =G97>J97 -> TRUE | L97: =COUNTIF(OFFSET($K97,0,0,$A$17,1),TRUE) -> 56 | M97: =L97*100/$A$17 -> 93.33333333 | N97: =$C$19*M97+$D$19*N98 -> 93.671875 | O97: =$A$20 -> 90 | P97: TRUE | Q97: 380.83875 | R97: =OFFSET(InputSpyData!F$15,CalculationsAndCharts!$A97+$A$11,IF($C$7,8,0),1,1) -> 264.45 | S97: =$C$22*R97+$D$22*S98 -> 264.5788802 | T97: FALSE | U97: FALSE | V97: FALSE | W97: =IF($A$8<>A97,IF(AND(NOT(W98),U98),TRUE,IF(AND(W98,V98),FALSE,W98)),FALSE) -> TRUE | X97: =IF(W97,1+X98,0) -> 72 | Y97: =X97=$D$24 -> FALSE | Z97: =AND(W97,NOT(W98)) -> FALSE | AA97: =AND(W98,NOT(W97),$A$8<>A97) -> FALSE | AB97: =IF(U98,$D97,NA()) ->  | AC97: =IF(V98,$D97,NA()) ->  | AD97: 50 | AE97: FALSE | AP97: 1096500
A98: 66 | B98: =OFFSET(InputPriceData!B$15,CalculationsAndCharts!$A98+$A$11,0,1,1) -> 2018-04-04 | C98: =OFFSET(InputPriceData!G$15,CalculationsAndCharts!$A98+$A$11,IF($C$7,8,0),1,1) -> 752900 | D98: =OFFSET(InputPriceData!C$15,CalculationsAndCharts!$A98+$A$11,IF($C$7,8,0),1,1) -> 239.72 | E98: =OFFSET(InputPriceData!D$15,CalculationsAndCharts!$A98+$A$11,IF($C$7,8,0),1,1) -> 250.02 | F98: =OFFSET(InputPriceData!E$15,CalculationsAndCharts!$A98+$A$11,IF($C$7,8,0),1,1) -> 238.5 | G98: =OFFSET(InputPriceData!F$15,CalculationsAndCharts!$A98+$A$11,IF($C$7,8,0),1,1) -> 248.93 | H98: 15.4612335 | I98: 251.2092 | J98: 248.1169533 | K98: TRUE | L98: 56 | M98: 93.33333333 | N98: 94.01041667 | O98: 90 | P98: =N98>O98 -> TRUE | Q98: =IF(P98,$AZ$34,NA()) -> 380.83875 | R98: =OFFSET(InputSpyData!F$15,CalculationsAndCharts!$A98+$A$11,IF($C$7,8,0),1,1) -> 262.38 | S98: 264.5814839 | T98: =S98>=S100 -> FALSE | U98: FALSE | V98: =OR(AND(AE98,W98,$A$8<>A98),Y98) -> FALSE | W98: TRUE | X98: 71 | Y98: FALSE | Z98: FALSE | AA98: FALSE | AD98: =$A$23 -> 50 | AE98: =N98<$A$23 -> FALSE | AP98: 752900
A99: 67 | B99: =OFFSET(InputPriceData!B$15,CalculationsAndCharts!$A99+$A$11,0,1,1) -> 2018-04-03 | C99: =OFFSET(InputPriceData!G$15,CalculationsAndCharts!$A99+$A$11,IF($C$7,8,0),1,1) -> 847500 | D99: =OFFSET(InputPriceData!C$15,CalculationsAndCharts!$A99+$A$11,IF($C$7,8,0),1,1) -> 244.01 | E99: =OFFSET(InputPriceData!D$15,CalculationsAndCharts!$A99+$A$11,IF($C$7,8,0),1,1) -> 248.09 | F99: =OFFSET(InputPriceData!E$15,CalculationsAndCharts!$A99+$A$11,IF($C$7,8,0),1,1) -> 240.08 | G99: =OFFSET(InputPriceData!F$15,CalculationsAndCharts!$A99+$A$11,IF($C$7,8,0),1,1) -> 243.62 | H99: 15.46682685 | I99: 251.1845 | J99: 248.0911346 | K99: FALSE | L99: 56 | M99: 93.33333333 | N99: 94.6875 | O99: 90 | P99: TRUE | Q99: 380.83875 | R99: =OFFSET(InputSpyData!F$15,CalculationsAndCharts!$A99+$A$11,IF($C$7,8,0),1,1) -> 259.6 | S99: 264.6259583 | T99: FALSE | U99: =AND(P99,NOT(W99),T99) -> FALSE | V99: FALSE | W99: TRUE | X99: 70 | Y99: FALSE | Z99: FALSE | AA99: FALSE | AD99: 50 | AE99: FALSE | AQ99: 847500
A100: 68 | B100: =OFFSET(InputPriceData!B$15,CalculationsAndCharts!$A100+$A$11,0,1,1) -> 2018-04-02 | C100: =OFFSET(InputPriceData!G$15,CalculationsAndCharts!$A100+$A$11,IF($C$7,8,0),1,1) -> 927800 | D100: =OFFSET(InputPriceData!C$15,CalculationsAndCharts!$A100+$A$11,IF($C$7,8,0),1,1) -> 251 | E100: =OFFSET(InputPriceData!D$15,CalculationsAndCharts!$A100+$A$11,IF($C$7,8,0),1,1) -> 254.8 | F100: =OFFSET(InputPriceData!E$15,CalculationsAndCharts!$A100+$A$11,IF($C$7,8,0),1,1) -> 238.17 | G100: =OFFSET(InputPriceData!F$15,CalculationsAndCharts!$A100+$A$11,IF($C$7,8,0),1,1) -> 242.69 | H100: 15.46277026 | I100: 251.1933 | J100: 248.1007459 | K100: FALSE | L100: 57 | M100: 95 | N100: 96.04166667 | O100: 90 | P100: TRUE | Q100: 380.83875 | R100: =OFFSET(InputSpyData!F$15,CalculationsAndCharts!$A100+$A$11,IF($C$7,8,0),1,1) -> 256.32 | S100: 264.7274928 | T100: FALSE | U100: FALSE | V100: FALSE | W100: TRUE | X100: 69 | Y100: FALSE | Z100: FALSE | AA100: FALSE | AD100: 50 | AE100: FALSE | AQ100: 927800
A101: 69 | B101: =OFFSET(InputPriceData!B$15,CalculationsAndCharts!$A101+$A$11,0,1,1) -> 2018-03-29 | C101: =OFFSET(InputPriceData!G$15,CalculationsAndCharts!$A101+$A$11,IF($C$7,8,0),1,1) -> 1259400 | D101: =OFFSET(InputPriceData!C$15,CalculationsAndCharts!$A101+$A$11,IF($C$7,8,0),1,1) -> 245.98 | E101: =OFFSET(InputPriceData!D$15,CalculationsAndCharts!$A101+$A$11,IF($C$7,8,0),1,1) -> 257.47 | F101: =OFFSET(InputPriceData!E$15,CalculationsAndCharts!$A101+$A$11,IF($C$7,8,0),1,1) -> 243.08 | G101: =OFFSET(InputPriceData!F$15,CalculationsAndCharts!$A101+$A$11,IF($C$7,8,0),1,1) -> 251.13 | H101: 15.47071197 | I101: 251.1799 | J101: 248.0857576 | K101: TRUE | L101: 58 | M101: 96.66666667 | N101: 97.08333333 | O101: 90 | P101: TRUE | Q101: 380.83875 | R101: =OFFSET(InputSpyData!F$15,CalculationsAndCharts!$A101+$A$11,IF($C$7,8,0),1,1) -> 261.97 | S101: 264.8973411 | T101: FALSE | U101: FALSE | V101: FALSE | W101: TRUE | X101: 68 | Y101: FALSE | Z101: FALSE | AA101: FALSE | AD101: 50 | AE101: FALSE | AP101: 1259400
A102: 70 | B102: =OFFSET(InputPriceData!B$15,CalculationsAndCharts!$A102+$A$11,0,1,1) -> 2018-03-28 | C102: =OFFSET(InputPriceData!G$15,CalculationsAndCharts!$A102+$A$11,IF($C$7,8,0),1,1) -> 1175000 | D102: =OFFSET(InputPriceData!C$15,CalculationsAndCharts!$A102+$A$11,IF($C$7,8,0),1,1) -> 248.52 | E102: =OFFSET(InputPriceData!D$15,CalculationsAndCharts!$A102+$A$11,IF($C$7,8,0),1,1) -> 248.9 | F102: =OFFSET(InputPriceData!E$15,CalculationsAndCharts!$A102+$A$11,IF($C$7,8,0),1,1) -> 241.03 | G102: =OFFSET(InputPriceData!F$15,CalculationsAndCharts!$A102+$A$11,IF($C$7,8,0),1,1) -> 244.42 | H102: 15.57074571 | I102: 251.0033 | J102: 247.8891509 | K102: FALSE | L102: 58 | M102: 96.66666667 | N102: 97.5 | O102: 90 | P102: TRUE | Q102: 380.83875 | R102: =OFFSET(InputSpyData!F$15,CalculationsAndCharts!$A102+$A$11,IF($C$7,8,0),1,1) -> 258.67 | S102: 264.9564793 | T102: FALSE | U102: FALSE | V102: FALSE | W102: TRUE | X102: 67 | Y102: FALSE | Z102: FALSE | AA102: FALSE | AD102: 50 | AE102: FALSE | AQ102: 1175000
A103: 71 | B103: =OFFSET(InputPriceData!B$15,CalculationsAndCharts!$A103+$A$11,0,1,1) -> 2018-03-27 | C103: =OFFSET(InputPriceData!G$15,CalculationsAndCharts!$A103+$A$11,IF($C$7,8,0),1,1) -> 1041700 | D103: =OFFSET(InputPriceData!C$15,CalculationsAndCharts!$A103+$A$11,IF($C$7,8,0),1,1) -> 263.98 | E103: =OFFSET(InputPriceData!D$15,CalculationsAndCharts!$A103+$A$11,IF($C$7,8,0),1,1) -> 264.74 | F103: =OFFSET(InputPriceData!E$15,CalculationsAndCharts!$A103+$A$11,IF($C$7,8,0),1,1) -> 245.82 | G103: =OFFSET(InputPriceData!F$15,CalculationsAndCharts!$A103+$A$11,IF($C$7,8,0),1,1) -> 248.3 | H103: 15.63914448 | I103: 250.9086 | J103: 247.7807711 | K103: TRUE | L103: 59 | M103: 98.33333333 | N103: 98.33333333 | O103: 90 | P103: TRUE | Q103: 380.83875 | R103: =OFFSET(InputSpyData!F$15,CalculationsAndCharts!$A103+$A$11,IF($C$7,8,0),1,1) -> 259.44 | S103: 265.0834789 | T103: FALSE | U103: FALSE | V103: FALSE | W103: TRUE | X103: 66 | Y103: FALSE | Z103: FALSE | AA103: FALSE | AD103: 50 | AE103: FALSE | AQ103: 1041700
A104: 72 | B104: =OFFSET(InputPriceData!B$15,CalculationsAndCharts!$A104+$A$11,0,1,1) -> 2018-03-26 | C104: =OFFSET(InputPriceData!G$15,CalculationsAndCharts!$A104+$A$11,IF($C$7,8,0),1,1) -> 893500 | D104: =OFFSET(InputPriceData!C$15,CalculationsAndCharts!$A104+$A$11,IF($C$7,8,0),1,1) -> 254 | E104: =OFFSET(InputPriceData!D$15,CalculationsAndCharts!$A104+$A$11,IF($C$7,8,0),1,1) -> 261.87 | F104: =OFFSET(InputPriceData!E$15,CalculationsAndCharts!$A104+$A$11,IF($C$7,8,0),1,1) -> 250.15 | G104: =OFFSET(InputPriceData!F$15,CalculationsAndCharts!$A104+$A$11,IF($C$7,8,0),1,1) -> 261.52 | H104: 15.68212425 | I104: 250.8154 | J104: 247.6789752 | K104: TRUE | L104: 59 | M104: 98.33333333 | N104: 98.33333333 | O104: 90 | P104: TRUE | Q104: 380.83875 | R104: =OFFSET(InputSpyData!F$15,CalculationsAndCharts!$A104+$A$11,IF($C$7,8,0),1,1) -> 263.92 | S104: 265.1974886 | T104: FALSE | U104: FALSE | V104: FALSE | W104: TRUE | X104: 65 | Y104: FALSE | Z104: FALSE | AA104: FALSE | AD104: 50 | AE104: FALSE | AP104: 893500
A105: 73 | B105: =OFFSET(InputPriceData!B$15,CalculationsAndCharts!$A105+$A$11,0,1,1) -> 2018-03-23 | C105: =OFFSET(InputPriceData!G$15,CalculationsAndCharts!$A105+$A$11,IF($C$7,8,0),1,1) -> 996900 | D105: =OFFSET(InputPriceData!C$15,CalculationsAndCharts!$A105+$A$11,IF($C$7,8,0),1,1) -> 260.13 | E105: =OFFSET(InputPriceData!D$15,CalculationsAndCharts!$A105+$A$11,IF($C$7,8,0),1,1) -> 265.84 | F105: =OFFSET(InputPriceData!E$15,CalculationsAndCharts!$A105+$A$11,IF($C$7,8,0),1,1) -> 250.28 | G105: =OFFSET(InputPriceData!F$15,CalculationsAndCharts!$A105+$A$11,IF($C$7,8,0),1,1) -> 250.92 | H105: 15.71750674 | I105: 250.5559 | J105: 247.4123987 | K105: TRUE | L105: 59 | M105: 98.33333333 | N105: 98.33333333 | O105: 90 | P105: TRUE | Q105: 380.83875 | R105: =OFFSET(InputSpyData!F$15,CalculationsAndCharts!$A105+$A$11,IF($C$7,8,0),1,1) -> 256.9 | S105: 265.2232964 | T105: FALSE | U105: FALSE | V105: FALSE | W105: TRUE | X105: 64 | Y105: FALSE | Z105: FALSE | AA105: FALSE | AD105: 50 | AE105: FALSE | AQ105: 996900
A106: 74 | B106: =OFFSET(InputPriceData!B$15,CalculationsAndCharts!$A106+$A$11,0,1,1) -> 2018-03-22 | C106: =OFFSET(InputPriceData!G$15,CalculationsAndCharts!$A106+$A$11,IF($C$7,8,0),1,1) -> 714100 | D106: =OFFSET(InputPriceData!C$15,CalculationsAndCharts!$A106+$A$11,IF($C$7,8,0),1,1) -> 266.55 | E106: =OFFSET(InputPriceData!D$15,CalculationsAndCharts!$A106+$A$11,IF($C$7,8,0),1,1) -> 269.8 | F106: =OFFSET(InputPriceData!E$15,CalculationsAndCharts!$A106+$A$11,IF($C$7,8,0),1,1) -> 260 | G106: =OFFSET(InputPriceData!F$15,CalculationsAndCharts!$A106+$A$11,IF($C$7,8,0),1,1) -> 260.13 | H106: 15.78456518 | I106: 250.4061 | J106: 247.249187 | K106: TRUE | L106: 59 | M106: 98.33333333 | N106: 98.33333333 | O106: 90 | P106: TRUE | Q106: 380.83875 | R106: =OFFSET(InputSpyData!F$15,CalculationsAndCharts!$A106+$A$11,IF($C$7,8,0),1,1) -> 262.49 | S106: 265.3914438 | T106: TRUE | U106: FALSE | V106: FALSE | W106: TRUE | X106: 63 | Y106: FALSE | Z106: FALSE | AA106: FALSE | AD106: 50 | AE106: FALSE | AQ106: 714100
A107: 75 | B107: =OFFSET(InputPriceData!B$15,CalculationsAndCharts!$A107+$A$11,0,1,1) -> 2018-03-21 | C107: =OFFSET(InputPriceData!G$15,CalculationsAndCharts!$A107+$A$11,IF($C$7,8,0),1,1) -> 578300 | D107: =OFFSET(InputPriceData!C$15,CalculationsAndCharts!$A107+$A$11,IF($C$7,8,0),1,1) -> 270.67 | E107: =OFFSET(InputPriceData!D$15,CalculationsAndCharts!$A107+$A$11,IF($C$7,8,0),1,1) -> 271.99 | F107: =OFFSET(InputPriceData!E$15,CalculationsAndCharts!$A107+$A$11,IF($C$7,8,0),1,1) -> 267.2 | G107: =OFFSET(InputPriceData!F$15,CalculationsAndCharts!$A107+$A$11,IF($C$7,8,0),1,1) -> 270.14 | H107: 16.4430135 | I107: 249.8346 | J107: 246.5459973 | K107: TRUE | L107: 59 | M107: 98.33333333 | N107: 98.33333334 | O107: 90 | P107: TRUE | Q107: 380.83875 | R107: =OFFSET(InputSpyData!F$15,CalculationsAndCharts!$A107+$A$11,IF($C$7,8,0),1,1) -> 269.22 | S107: 265.4500589 | T107: TRUE | U107: FALSE | V107: FALSE | W107: TRUE | X107: 62 | Y107: FALSE | Z107: FALSE | AA107: FALSE | AD107: 50 | AE107: FALSE | AQ107: 578300
A108: 76 | B108: =OFFSET(InputPriceData!B$15,CalculationsAndCharts!$A108+$A$11,0,1,1) -> 2018-03-20 | C108: =OFFSET(InputPriceData!G$15,CalculationsAndCharts!$A108+$A$11,IF($C$7,8,0),1,1) -> 542800 | D108: =OFFSET(InputPriceData!C$15,CalculationsAndCharts!$A108+$A$11,IF($C$7,8,0),1,1) -> 266.92 | E108: =OFFSET(InputPriceData!D$15,CalculationsAndCharts!$A108+$A$11,IF($C$7,8,0),1,1) -> 270.67 | F108: =OFFSET(InputPriceData!E$15,CalculationsAndCharts!$A108+$A$11,IF($C$7,8,0),1,1) -> 264.77 | G108: =OFFSET(InputPriceData!F$15,CalculationsAndCharts!$A108+$A$11,IF($C$7,8,0),1,1) -> 270.4 | H108: 16.99715178 | I108: 249.1507 | J108: 245.7512696 | K108: TRUE | L108: 59 | M108: 98.33333333 | N108: 98.33333334 | O108: 90 | P108: TRUE | Q108: 380.83875 | R108: =OFFSET(InputSpyData!F$15,CalculationsAndCharts!$A108+$A$11,IF($C$7,8,0),1,1) -> 269.74 | S108: 265.3738984 | T108: TRUE | U108: FALSE | V108: FALSE | W108: TRUE | X108: 61 | Y108: FALSE | Z108: FALSE | AA108: FALSE | AD108: 50 | AE108: FALSE | AP108: 542800
A109: 77 | B109: =OFFSET(InputPriceData!B$15,CalculationsAndCharts!$A109+$A$11,0,1,1) -> 2018-03-19 | C109: =OFFSET(InputPriceData!G$15,CalculationsAndCharts!$A109+$A$11,IF($C$7,8,0),1,1) -> 868000 | D109: =OFFSET(InputPriceData!C$15,CalculationsAndCharts!$A109+$A$11,IF($C$7,8,0),1,1) -> 268.65 | E109: =OFFSET(InputPriceData!D$15,CalculationsAndCharts!$A109+$A$11,IF($C$7,8,0),1,1) -> 274.4 | F109: =OFFSET(InputPriceData!E$15,CalculationsAndCharts!$A109+$A$11,IF($C$7,8,0),1,1) -> 262.13 | G109: =OFFSET(InputPriceData!F$15,CalculationsAndCharts!$A109+$A$11,IF($C$7,8,0),1,1) -> 265.39 | H109: 17.45229795 | I109: 248.4839 | J109: 244.9934404 | K109: TRUE | L109: 59 | M109: 98.33333333 | N109: 98.33333335 | O109: 90 | P109: TRUE | Q109: 380.83875 | R109: =OFFSET(InputSpyData!F$15,CalculationsAndCharts!$A109+$A$11,IF($C$7,8,0),1,1) -> 269.28 | S109: 265.2856944 | T109: TRUE | U109: FALSE | V109: FALSE | W109: TRUE | X109: 60 | Y109: FALSE | Z109: FALSE | AA109: FALSE | AD109: 50 | AE109: FALSE | AQ109: 868000
A110: 78 | B110: =OFFSET(InputPriceData!B$15,CalculationsAndCharts!$A110+$A$11,0,1,1) -> 2018-03-16 | C110: =OFFSET(InputPriceData!G$15,CalculationsAndCharts!$A110+$A$11,IF($C$7,8,0),1,1) -> 810100 | D110: =OFFSET(InputPriceData!C$15,CalculationsAndCharts!$A110+$A$11,IF($C$7,8,0),1,1) -> 273.76 | E110: =OFFSET(InputPriceData!D$15,CalculationsAndCharts!$A110+$A$11,IF($C$7,8,0),1,1) -> 274.15 | F110: =OFFSET(InputPriceData!E$15,CalculationsAndCharts!$A110+$A$11,IF($C$7,8,0),1,1) -> 267.57 | G110: =OFFSET(InputPriceData!F$15,CalculationsAndCharts!$A110+$A$11,IF($C$7,8,0),1,1) -> 270.41 | H110: 17.95101781 | I110: 247.8576 | J110: 244.2673964 | K110: TRUE | L110: 59 | M110: 98.33333333 | N110: 98.33333336 | O110: 90 | P110: TRUE | Q110: 380.83875 | R110: =OFFSET(InputSpyData!F$15,CalculationsAndCharts!$A110+$A$11,IF($C$7,8,0),1,1) -> 272.97 | S110: 265.2050013 | T110: TRUE | U110: FALSE | V110: FALSE | W110: TRUE | X110: 59 | Y110: FALSE | Z110: FALSE | AA110: FALSE | AD110: 50 | AE110: FALSE | AQ110: 810100
A111: 79 | B111: =OFFSET(InputPriceData!B$15,CalculationsAndCharts!$A111+$A$11,0,1,1) -> 2018-03-15 | C111: =OFFSET(InputPriceData!G$15,CalculationsAndCharts!$A111+$A$11,IF($C$7,8,0),1,1) -> 719200 | D111: =OFFSET(InputPriceData!C$15,CalculationsAndCharts!$A111+$A$11,IF($C$7,8,0),1,1) -> 272.23 | E111: =OFFSET(InputPriceData!D$15,CalculationsAndCharts!$A111+$A$11,IF($C$7,8,0),1,1) -> 276.14 | F111: =OFFSET(InputPriceData!E$15,CalculationsAndCharts!$A111+$A$11,IF($C$7,8,0),1,1) -> 269.76 | G111: =OFFSET(InputPriceData!F$15,CalculationsAndCharts!$A111+$A$11,IF($C$7,8,0),1,1) -> 272.87 | H111: 18.40484827 | I111: 247.1623 | J111: 243.4813303 | K111: TRUE | L111: 59 | M111: 98.33333333 | N111: 98.33333338 | O111: 90 | P111: TRUE | Q111: 380.83875 | R111: =OFFSET(InputSpyData!F$15,CalculationsAndCharts!$A111+$A$11,IF($C$7,8,0),1,1) -> 272.68 | S111: 265.0481327 | T111: TRUE | U111: FALSE | V111: FALSE | W111: TRUE | X111: 58 | Y111: FALSE | Z111: FALSE | AA111: FALSE | AD111: 50 | AE111: FALSE | AP111: 719200
A112: 80 | B112: =OFFSET(InputPriceData!B$15,CalculationsAndCharts!$A112+$A$11,0,1,1) -> 2018-03-14 | C112: =OFFSET(InputPriceData!G$15,CalculationsAndCharts!$A112+$A$11,IF($C$7,8,0),1,1) -> 612000 | D112: =OFFSET(InputPriceData!C$15,CalculationsAndCharts!$A112+$A$11,IF($C$7,8,0),1,1) -> 271.29 | E112: =OFFSET(InputPriceData!D$15,CalculationsAndCharts!$A112+$A$11,IF($C$7,8,0),1,1) -> 274.07 | F112: =OFFSET(InputPriceData!E$15,CalculationsAndCharts!$A112+$A$11,IF($C$7,8,0),1,1) -> 269.27 | G112: =OFFSET(InputPriceData!F$15,CalculationsAndCharts!$A112+$A$11,IF($C$7,8,0),1,1) -> 272.48 | H112: 18.89086956 | I112: 246.4021 | J112: 242.6239261 | K112: TRUE | L112: 59 | M112: 98.33333333 | N112: 98.33333343 | O112: 90 | P112: TRUE | Q112: 380.83875 | R112: =OFFSET(InputSpyData!F$15,CalculationsAndCharts!$A112+$A$11,IF($C$7,8,0),1,1) -> 272.98 | S112: 264.8939535 | T112: TRUE | U112: FALSE | V112: FALSE | W112: TRUE | X112: 57 | Y112: FALSE | Z112: FALSE | AA112: FALSE | AD112: 50 | AE112: FALSE | AP112: 612000
A113: 81 | B113: =OFFSET(InputPriceData!B$15,CalculationsAndCharts!$A113+$A$11,0,1,1) -> 2018-03-13 | C113: =OFFSET(InputPriceData!G$15,CalculationsAndCharts!$A113+$A$11,IF($C$7,8,0),1,1) -> 854300 | D113: =OFFSET(InputPriceData!C$15,CalculationsAndCharts!$A113+$A$11,IF($C$7,8,0),1,1) -> 276.56 | E113: =OFFSET(InputPriceData!D$15,CalculationsAndCharts!$A113+$A$11,IF($C$7,8,0),1,1) -> 276.98 | F113: =OFFSET(InputPriceData!E$15,CalculationsAndCharts!$A113+$A$11,IF($C$7,8,0),1,1) -> 267.29 | G113: =OFFSET(InputPriceData!F$15,CalculationsAndCharts!$A113+$A$11,IF($C$7,8,0),1,1) -> 269.71 | H113: 19.40802303 | I113: 245.6196 | J113: 241.7379954 | K113: TRUE | L113: 59 | M113: 98.33333333 | N113: 98.33333353 | O113: 90 | P113: TRUE | Q113: 380.83875 | R113: =OFFSET(InputSpyData!F$15,CalculationsAndCharts!$A113+$A$11,IF($C$7,8,0),1,1) -> 274.38 | S113: 264.730599 | T113: TRUE | U113: FALSE | V113: FALSE | W113: TRUE | X113: 56 | Y113: FALSE | Z113: FALSE | AA113: FALSE | AD113: 50 | AE113: FALSE | AQ113: 854300
A114: 82 | B114: =OFFSET(InputPriceData!B$15,CalculationsAndCharts!$A114+$A$11,0,1,1) -> 2018-03-12 | C114: =OFFSET(InputPriceData!G$15,CalculationsAndCharts!$A114+$A$11,IF($C$7,8,0),1,1) -> 827100 | D114: =OFFSET(InputPriceData!C$15,CalculationsAndCharts!$A114+$A$11,IF($C$7,8,0),1,1) -> 272.07 | E114: =OFFSET(InputPriceData!D$15,CalculationsAndCharts!$A114+$A$11,IF($C$7,8,0),1,1) -> 277.32 | F114: =OFFSET(InputPriceData!E$15,CalculationsAndCharts!$A114+$A$11,IF($C$7,8,0),1,1) -> 271.13 | G114: =OFFSET(InputPriceData!F$15,CalculationsAndCharts!$A114+$A$11,IF($C$7,8,0),1,1) -> 275.61 | H114: 19.91649013 | I114: 244.8652 | J114: 240.881902 | K114: TRUE | L114: 59 | M114: 98.33333333 | N114: 98.33333373 | O114: 90 | P114: TRUE | Q114: 380.83875 | R114: =OFFSET(InputSpyData!F$15,CalculationsAndCharts!$A114+$A$11,IF($C$7,8,0),1,1) -> 276.17 | S114: 264.5356617 | T114: TRUE | U114: FALSE | V114: FALSE | W114: TRUE | X114: 55 | Y114: FALSE | Z114: FALSE | AA114: FALSE | AD114: 50 | AE114: FALSE | AP114: 827100
A115: 83 | B115: =OFFSET(InputPriceData!B$15,CalculationsAndCharts!$A115+$A$11,0,1,1) -> 2018-03-09 | C115: =OFFSET(InputPriceData!G$15,CalculationsAndCharts!$A115+$A$11,IF($C$7,8,0),1,1) -> 854900 | D115: =OFFSET(InputPriceData!C$15,CalculationsAndCharts!$A115+$A$11,IF($C$7,8,0),1,1) -> 270 | E115: =OFFSET(InputPriceData!D$15,CalculationsAndCharts!$A115+$A$11,IF($C$7,8,0),1,1) -> 273.22 | F115: =OFFSET(InputPriceData!E$15,CalculationsAndCharts!$A115+$A$11,IF($C$7,8,0),1,1) -> 269.99 | G115: =OFFSET(InputPriceData!F$15,CalculationsAndCharts!$A115+$A$11,IF($C$7,8,0),1,1) -> 271.74 | H115: 20.32376358 | I115: 244.0428 | J115: 239.9780473 | K115: TRUE | L115: 59 | M115: 98.33333333 | N115: 98.33333413 | O115: 90 | P115: TRUE | Q115: 380.83875 | R115: =OFFSET(InputSpyData!F$15,CalculationsAndCharts!$A115+$A$11,IF($C$7,8,0),1,1) -> 276.52 | S115: 264.3006245 | T115: TRUE | U115: FALSE | V115: FALSE | W115: TRUE | X115: 54 | Y115: FALSE | Z115: FALSE | AA115: FALSE | AD115: 50 | AE115: FALSE | AP115: 854900
A116: 84 | B116: =OFFSET(InputPriceData!B$15,CalculationsAndCharts!$A116+$A$11,0,1,1) -> 2018-03-08 | C116: =OFFSET(InputPriceData!G$15,CalculationsAndCharts!$A116+$A$11,IF($C$7,8,0),1,1) -> 630000 | D116: =OFFSET(InputPriceData!C$15,CalculationsAndCharts!$A116+$A$11,IF($C$7,8,0),1,1) -> 264.92 | E116: =OFFSET(InputPriceData!D$15,CalculationsAndCharts!$A116+$A$11,IF($C$7,8,0),1,1) -> 268.69 | F116: =OFFSET(InputPriceData!E$15,CalculationsAndCharts!$A116+$A$11,IF($C$7,8,0),1,1) -> 263.57 | G116: =OFFSET(InputPriceData!F$15,CalculationsAndCharts!$A116+$A$11,IF($C$7,8,0),1,1) -> 268.18 | H116: 20.76075675 | I116: 243.2535 | J116: 239.1013487 | K116: TRUE | L116: 59 | M116: 98.33333333 | N116: 98.33333492 | O116: 90 | P116: TRUE | Q116: 380.83875 | R116: =OFFSET(InputSpyData!F$15,CalculationsAndCharts!$A116+$A$11,IF($C$7,8,0),1,1) -> 271.79 | S116: 264.0537684 | T116: TRUE | U116: FALSE | V116: FALSE | W116: TRUE | X116: 53 | Y116: FALSE | Z116: FALSE | AA116: FALSE | AD116: 50 | AE116: FALSE | AP116: 630000
A117: 85 | B117: =OFFSET(InputPriceData!B$15,CalculationsAndCharts!$A117+$A$11,0,1,1) -> 2018-03-07 | C117: =OFFSET(InputPriceData!G$15,CalculationsAndCharts!$A117+$A$11,IF($C$7,8,0),1,1) -> 679300 | D117: =OFFSET(InputPriceData!C$15,CalculationsAndCharts!$A117+$A$11,IF($C$7,8,0),1,1) -> 252.46 | E117: =OFFSET(InputPriceData!D$15,CalculationsAndCharts!$A117+$A$11,IF($C$7,8,0),1,1) -> 263.92 | F117: =OFFSET(InputPriceData!E$15,CalculationsAndCharts!$A117+$A$11,IF($C$7,8,0),1,1) -> 252.13 | G117: =OFFSET(InputPriceData!F$15,CalculationsAndCharts!$A117+$A$11,IF($C$7,8,0),1,1) -> 262.9 | H117: 21.21561413 | I117: 242.4955 | J117: 238.2523772 | K117: TRUE | L117: 59 | M117: 98.33333333 | N117: 98.33333651 | O117: 90 | P117: TRUE | Q117: 380.83875 | R117: =OFFSET(InputSpyData!F$15,CalculationsAndCharts!$A117+$A$11,IF($C$7,8,0),1,1) -> 270.48 | S117: 263.8974809 | T117: TRUE | U117: FALSE | V117: FALSE | W117: TRUE | X117: 52 | Y117: FALSE | Z117: FALSE | AA117: FALSE | AD117: 50 | AE117: FALSE | AP117: 679300
A118: 86 | B118: =OFFSET(InputPriceData!B$15,CalculationsAndCharts!$A118+$A$11,0,1,1) -> 2018-03-06 | C118: =OFFSET(InputPriceData!G$15,CalculationsAndCharts!$A118+$A$11,IF($C$7,8,0),1,1) -> 741100 | D118: =OFFSET(InputPriceData!C$15,CalculationsAndCharts!$A118+$A$11,IF($C$7,8,0),1,1) -> 256.01 | E118: =OFFSET(InputPriceData!D$15,CalculationsAndCharts!$A118+$A$11,IF($C$7,8,0),1,1) -> 257.39 | F118: =OFFSET(InputPriceData!E$15,CalculationsAndCharts!$A118+$A$11,IF($C$7,8,0),1,1) -> 252.16 | G118: =OFFSET(InputPriceData!F$15,CalculationsAndCharts!$A118+$A$11,IF($C$7,8,0),1,1) -> 255.97 | H118: 21.69050898 | I118: 241.7911 | J118: 237.4529982 | K118: TRUE | L118: 59 | M118: 98.33333333 | N118: 98.33333969 | O118: 90 | P118: TRUE | Q118: 380.83875 | R118: =OFFSET(InputSpyData!F$15,CalculationsAndCharts!$A118+$A$11,IF($C$7,8,0),1,1) -> 270.58 | S118: 263.7645008 | T118: TRUE | U118: FALSE | V118: FALSE | W118: TRUE | X118: 51 | Y118: FALSE | Z118: FALSE | AA118: FALSE | AD118: 50 | AE118: FALSE | AQ118: 741100
A119: 87 | B119: =OFFSET(InputPriceData!B$15,CalculationsAndCharts!$A119+$A$11,0,1,1) -> 2018-03-05 | C119: =OFFSET(InputPriceData!G$15,CalculationsAndCharts!$A119+$A$11,IF($C$7,8,0),1,1) -> 818300 | D119: =OFFSET(InputPriceData!C$15,CalculationsAndCharts!$A119+$A$11,IF($C$7,8,0),1,1) -> 252.84 | E119: =OFFSET(InputPriceData!D$15,CalculationsAndCharts!$A119+$A$11,IF($C$7,8,0),1,1) -> 256.64 | F119: =OFFSET(InputPriceData!E$15,CalculationsAndCharts!$A119+$A$11,IF($C$7,8,0),1,1) -> 247.64 | G119: =OFFSET(InputPriceData!F$15,CalculationsAndCharts!$A119+$A$11,IF($C$7,8,0),1,1) -> 255.49 | H119: 22.27629573 | I119: 241.1181 | J119: 236.6628409 | K119: TRUE | L119: 59 | M119: 98.33333333 | N119: 98.33334605 | O119: 90 | P119: TRUE | Q119: 380.83875 | R119: =OFFSET(InputSpyData!F$15,CalculationsAndCharts!$A119+$A$11,IF($C$7,8,0),1,1) -> 269.89 | S119: 263.6268139 | T119: TRUE | U119: FALSE | V119: FALSE | W119: TRUE | X119: 50 | Y119: FALSE | Z119: FALSE | AA119: FALSE | AD119: 50 | AE119: FALSE | AP119: 818300
A120: 88 | B120: =OFFSET(InputPriceData!B$15,CalculationsAndCharts!$A120+$A$11,0,1,1) -> 2018-03-02 | C120: =OFFSET(InputPriceData!G$15,CalculationsAndCharts!$A120+$A$11,IF($C$7,8,0),1,1) -> 1015700 | D120: =OFFSET(InputPriceData!C$15,CalculationsAndCharts!$A120+$A$11,IF($C$7,8,0),1,1) -> 243.65 | E120: =OFFSET(InputPriceData!D$15,CalculationsAndCharts!$A120+$A$11,IF($C$7,8,0),1,1) -> 254.89 | F120: =OFFSET(InputPriceData!E$15,CalculationsAndCharts!$A120+$A$11,IF($C$7,8,0),1,1) -> 241.3 | G120: =OFFSET(InputPriceData!F$15,CalculationsAndCharts!$A120+$A$11,IF($C$7,8,0),1,1) -> 253.71 | H120: 22.84275567 | I120: 240.4445 | J120: 235.8759489 | K120: TRUE | L120: 59 | M120: 98.33333333 | N120: 98.33335876 | O120: 90 | P120: TRUE | Q120: 380.83875 | R120: =OFFSET(InputSpyData!F$15,CalculationsAndCharts!$A120+$A$11,IF($C$7,8,0),1,1) -> 266.81 | S120: 263.5002849 | T120: TRUE | U120: FALSE | V120: FALSE | W120: TRUE | X120: 49 | Y120: FALSE | Z120: FALSE | AA120: FALSE | AD120: 50 | AE120: FALSE | AP120: 1015700
A121: 89 | B121: =OFFSET(InputPriceData!B$15,CalculationsAndCharts!$A121+$A$11,0,1,1) -> 2018-03-01 | C121: =OFFSET(InputPriceData!G$15,CalculationsAndCharts!$A121+$A$11,IF($C$7,8,0),1,1) -> 1833400 | D121: =OFFSET(InputPriceData!C$15,CalculationsAndCharts!$A121+$A$11,IF($C$7,8,0),1,1) -> 255 | E121: =OFFSET(InputPriceData!D$15,CalculationsAndCharts!$A121+$A$11,IF($C$7,8,0),1,1) -> 259.84 | F121: =OFFSET(InputPriceData!E$15,CalculationsAndCharts!$A121+$A$11,IF($C$7,8,0),1,1) -> 244.15 | G121: =OFFSET(InputPriceData!F$15,CalculationsAndCharts!$A121+$A$11,IF($C$7,8,0),1,1) -> 245.55 | H121: 23.41169941 | I121: 239.7778 | J121: 235.0954601 | K121: TRUE | L121: 59 | M121: 98.33333333 | N121: 98.3333842 | O121: 90 | P121: TRUE | Q121: 380.83875 | R121: =OFFSET(InputSpyData!F$15,CalculationsAndCharts!$A121+$A$11,IF($C$7,8,0),1,1) -> 265.44 | S121: 263.433422 | T121: TRUE | U121: FALSE | V121: FALSE | W121: TRUE | X121: 48 | Y121: FALSE | Z121: FALSE | AA121: FALSE | AD121: 50 | AE121: FALSE | AQ121: 1833400
A122: 90 | B122: =OFFSET(InputPriceData!B$15,CalculationsAndCharts!$A122+$A$11,0,1,1) -> 2018-02-28 | C122: =OFFSET(InputPriceData!G$15,CalculationsAndCharts!$A122+$A$11,IF($C$7,8,0),1,1) -> 657300 | D122: =OFFSET(InputPriceData!C$15,CalculationsAndCharts!$A122+$A$11,IF($C$7,8,0),1,1) -> 264.9 | E122: =OFFSET(InputPriceData!D$15,CalculationsAndCharts!$A122+$A$11,IF($C$7,8,0),1,1) -> 267.78 | F122: =OFFSET(InputPriceData!E$15,CalculationsAndCharts!$A122+$A$11,IF($C$7,8,0),1,1) -> 262.44 | G122: =OFFSET(InputPriceData!F$15,CalculationsAndCharts!$A122+$A$11,IF($C$7,8,0),1,1) -> 262.52 | H122: 23.99365006 | I122: 239.1884 | J122: 234.38967 | K122: TRUE | L122: 59 | M122: 98.33333333 | N122: 98.33343506 | O122: 90 | P122: TRUE | Q122: 380.83875 | R122: =OFFSET(InputSpyData!F$15,CalculationsAndCharts!$A122+$A$11,IF($C$7,8,0),1,1) -> 269.36 | S122: 263.392885 | T122: TRUE | U122: FALSE | V122: FALSE | W122: TRUE | X122: 47 | Y122: FALSE | Z122: FALSE | AA122: FALSE | AD122: 50 | AE122: FALSE | AQ122: 657300
A123: 91 | B123: =OFFSET(InputPriceData!B$15,CalculationsAndCharts!$A123+$A$11,0,1,1) -> 2018-02-27 | C123: =OFFSET(InputPriceData!G$15,CalculationsAndCharts!$A123+$A$11,IF($C$7,8,0),1,1) -> 635600 | D123: =OFFSET(InputPriceData!C$15,CalculationsAndCharts!$A123+$A$11,IF($C$7,8,0),1,1) -> 265.48 | E123: =OFFSET(InputPriceData!D$15,CalculationsAndCharts!$A123+$A$11,IF($C$7,8,0),1,1) -> 267.27 | F123: =OFFSET(InputPriceData!E$15,CalculationsAndCharts!$A123+$A$11,IF($C$7,8,0),1,1) -> 263.5 | G123: =OFFSET(InputPriceData!F$15,CalculationsAndCharts!$A123+$A$11,IF($C$7,8,0),1,1) -> 263.87 | H123: 24.45357048 | I123: 238.423 | J123: 233.5322859 | K123: TRUE | L123: 59 | M123: 98.33333333 | N123: 98.33353678 | O123: 90 | P123: TRUE | Q123: 380.83875 | R123: =OFFSET(InputSpyData!F$15,CalculationsAndCharts!$A123+$A$11,IF($C$7,8,0),1,1) -> 272.11 | S123: 263.2723373 | T123: TRUE | U123: FALSE | V123: FALSE | W123: TRUE | X123: 46 | Y123: FALSE | Z123: FALSE | AA123: FALSE | AD123: 50 | AE123: FALSE | AQ123: 635600
A124: 92 | B124: =OFFSET(InputPriceData!B$15,CalculationsAndCharts!$A124+$A$11,0,1,1) -> 2018-02-26 | C124: =OFFSET(InputPriceData!G$15,CalculationsAndCharts!$A124+$A$11,IF($C$7,8,0),1,1) -> 722100 | D124: =OFFSET(InputPriceData!C$15,CalculationsAndCharts!$A124+$A$11,IF($C$7,8,0),1,1) -> 266.8 | E124: =OFFSET(InputPriceData!D$15,CalculationsAndCharts!$A124+$A$11,IF($C$7,8,0),1,1) -> 268.4 | F124: =OFFSET(InputPriceData!E$15,CalculationsAndCharts!$A124+$A$11,IF($C$7,8,0),1,1) -> 262.42 | G124: =OFFSET(InputPriceData!F$15,CalculationsAndCharts!$A124+$A$11,IF($C$7,8,0),1,1) -> 266.58 | H124: 24.85787908 | I124: 237.6488 | J124: 232.6772242 | K124: TRUE | L124: 59 | M124: 98.33333333 | N124: 98.33374023 | O124: 90 | P124: TRUE | Q124: 380.83875 | R124: =OFFSET(InputSpyData!F$15,CalculationsAndCharts!$A124+$A$11,IF($C$7,8,0),1,1) -> 275.55 | S124: 263.0937986 | T124: TRUE | U124: FALSE | V124: FALSE | W124: TRUE | X124: 45 | Y124: FALSE | Z124: FALSE | AA124: FALSE | AD124: 50 | AE124: FALSE | AQ124: 722100
A125: 93 | B125: =OFFSET(InputPriceData!B$15,CalculationsAndCharts!$A125+$A$11,0,1,1) -> 2018-02-23 | C125: =OFFSET(InputPriceData!G$15,CalculationsAndCharts!$A125+$A$11,IF($C$7,8,0),1,1) -> 940000 | D125: =OFFSET(InputPriceData!C$15,CalculationsAndCharts!$A125+$A$11,IF($C$7,8,0),1,1) -> 261.99 | E125: =OFFSET(InputPriceData!D$15,CalculationsAndCharts!$A125+$A$11,IF($C$7,8,0),1,1) -> 266.8 | F125: =OFFSET(InputPriceData!E$15,CalculationsAndCharts!$A125+$A$11,IF($C$7,8,0),1,1) -> 258.14 | G125: =OFFSET(InputPriceData!F$15,CalculationsAndCharts!$A125+$A$11,IF($C$7,8,0),1,1) -> 265.07 | H125: 25.1862035 | I125: 236.8552 | J125: 231.8179593 | K125: TRUE | L125: 59 | M125: 98.33333333 | N125: 98.33414714 | O125: 90 | P125: TRUE | Q125: 380.83875 | R125: =OFFSET(InputSpyData!F$15,CalculationsAndCharts!$A125+$A$11,IF($C$7,8,0),1,1) -> 272.39 | S125: 262.8421582 | T125: TRUE | U125: FALSE | V125: FALSE | W125: TRUE | X125: 44 | Y125: FALSE | Z125: FALSE | AA125: FALSE | AD125: 50 | AE125: FALSE | AP125: 940000
A126: 94 | B126: =OFFSET(InputPriceData!B$15,CalculationsAndCharts!$A126+$A$11,0,1,1) -> 2018-02-22 | C126: =OFFSET(InputPriceData!G$15,CalculationsAndCharts!$A126+$A$11,IF($C$7,8,0),1,1) -> 1084800 | D126: =OFFSET(InputPriceData!C$15,CalculationsAndCharts!$A126+$A$11,IF($C$7,8,0),1,1) -> 254.16 | E126: =OFFSET(InputPriceData!D$15,CalculationsAndCharts!$A126+$A$11,IF($C$7,8,0),1,1) -> 262.33 | F126: =OFFSET(InputPriceData!E$15,CalculationsAndCharts!$A126+$A$11,IF($C$7,8,0),1,1) -> 253.26 | G126: =OFFSET(InputPriceData!F$15,CalculationsAndCharts!$A126+$A$11,IF($C$7,8,0),1,1) -> 259.68 | H126: 25.52159435 | I126: 236.0672 | J126: 230.9628811 | K126: TRUE | L126: 59 | M126: 98.33333333 | N126: 98.33496094 | O126: 90 | P126: TRUE | Q126: 380.83875 | R126: =OFFSET(InputSpyData!F$15,CalculationsAndCharts!$A126+$A$11,IF($C$7,8,0),1,1) -> 268.12 | S126: 262.6492725 | T126: TRUE | U126: FALSE | V126: FALSE | W126: TRUE | X126: 43 | Y126: FALSE | Z126: FALSE | AA126: FALSE | AD126: 50 | AE126: FALSE | AP126: 1084800
A127: 95 | B127: =OFFSET(InputPriceData!B$15,CalculationsAndCharts!$A127+$A$11,0,1,1) -> 2018-02-21 | C127: =OFFSET(InputPriceData!G$15,CalculationsAndCharts!$A127+$A$11,IF($C$7,8,0),1,1) -> 1086000 | D127: =OFFSET(InputPriceData!C$15,CalculationsAndCharts!$A127+$A$11,IF($C$7,8,0),1,1) -> 255.36 | E127: =OFFSET(InputPriceData!D$15,CalculationsAndCharts!$A127+$A$11,IF($C$7,8,0),1,1) -> 262.82 | F127: =OFFSET(InputPriceData!E$15,CalculationsAndCharts!$A127+$A$11,IF($C$7,8,0),1,1) -> 252 | G127: =OFFSET(InputPriceData!F$15,CalculationsAndCharts!$A127+$A$11,IF($C$7,8,0),1,1) -> 252.14 | H127: 25.94817152 | I127: 235.3008 | J127: 230.1111657 | K127: TRUE | L127: 59 | M127: 98.33333333 | N127: 98.33658854 | O127: 90 | P127: TRUE | Q127: 380.83875 | R127: =OFFSET(InputSpyData!F$15,CalculationsAndCharts!$A127+$A$11,IF($C$7,8,0),1,1) -> 267.77 | S127: 262.5387527 | T127: TRUE | U127: FALSE | V127: FALSE | W127: TRUE | X127: 42 | Y127: FALSE | Z127: FALSE | AA127: FALSE | AD127: 50 | AE127: FALSE | AQ127: 1086000
A128: 96 | B128: =OFFSET(InputPriceData!B$15,CalculationsAndCharts!$A128+$A$11,0,1,1) -> 2018-02-20 | C128: =OFFSET(InputPriceData!G$15,CalculationsAndCharts!$A128+$A$11,IF($C$7,8,0),1,1) -> 1138900 | D128: =OFFSET(InputPriceData!C$15,CalculationsAndCharts!$A128+$A$11,IF($C$7,8,0),1,1) -> 250.57 | E128: =OFFSET(InputPriceData!D$15,CalculationsAndCharts!$A128+$A$11,IF($C$7,8,0),1,1) -> 259.75 | F128: =OFFSET(InputPriceData!E$15,CalculationsAndCharts!$A128+$A$11,IF($C$7,8,0),1,1) -> 250.5 | G128: =OFFSET(InputPriceData!F$15,CalculationsAndCharts!$A128+$A$11,IF($C$7,8,0),1,1) -> 255.45 | H128: 26.37312636 | I128: 234.6272 | J128: 229.3525747 | K128: TRUE | L128: 59 | M128: 98.33333333 | N128: 98.33984375 | O128: 90 | P128: TRUE | Q128: 380.83875 | R128: =OFFSET(InputSpyData!F$15,CalculationsAndCharts!$A128+$A$11,IF($C$7,8,0),1,1) -> 269.11 | S128: 262.433071 | T128: TRUE | U128: FALSE | V128: FALSE | W128: TRUE | X128: 41 | Y128: FALSE | Z128: FALSE | AA128: FALSE | AD128: 50 | AE128: FALSE | AP128: 1138900
A129: 97 | B129: =OFFSET(InputPriceData!B$15,CalculationsAndCharts!$A129+$A$11,0,1,1) -> 2018-02-16 | C129: =OFFSET(InputPriceData!G$15,CalculationsAndCharts!$A129+$A$11,IF($C$7,8,0),1,1) -> 1056300 | D129: =OFFSET(InputPriceData!C$15,CalculationsAndCharts!$A129+$A$11,IF($C$7,8,0),1,1) -> 253.85 | E129: =OFFSET(InputPriceData!D$15,CalculationsAndCharts!$A129+$A$11,IF($C$7,8,0),1,1) -> 255.39 | F129: =OFFSET(InputPriceData!E$15,CalculationsAndCharts!$A129+$A$11,IF($C$7,8,0),1,1) -> 249.04 | G129: =OFFSET(InputPriceData!F$15,CalculationsAndCharts!$A129+$A$11,IF($C$7,8,0),1,1) -> 251.5 | H129: 26.76055442 | I129: 233.9147 | J129: 228.5625891 | K129: TRUE | L129: 59 | M129: 98.33333333 | N129: 98.34635417 | O129: 90 | P129: TRUE | Q129: 380.83875 | R129: =OFFSET(InputSpyData!F$15,CalculationsAndCharts!$A129+$A$11,IF($C$7,8,0),1,1) -> 270.8 | S129: 262.2981835 | T129: TRUE | U129: FALSE | V129: FALSE | W129: TRUE | X129: 40 | Y129: FALSE | Z129: FALSE | AA129: FALSE | AD129: 50 | AE129: FALSE | AQ129: 1056300
A130: 98 | B130: =OFFSET(InputPriceData!B$15,CalculationsAndCharts!$A130+$A$11,0,1,1) -> 2018-02-15 | C130: =OFFSET(InputPriceData!G$15,CalculationsAndCharts!$A130+$A$11,IF($C$7,8,0),1,1) -> 1410700 | D130: =OFFSET(InputPriceData!C$15,CalculationsAndCharts!$A130+$A$11,IF($C$7,8,0),1,1) -> 250 | E130: =OFFSET(InputPriceData!D$15,CalculationsAndCharts!$A130+$A$11,IF($C$7,8,0),1,1) -> 253.71 | F130: =OFFSET(InputPriceData!E$15,CalculationsAndCharts!$A130+$A$11,IF($C$7,8,0),1,1) -> 245.39 | G130: =OFFSET(InputPriceData!F$15,CalculationsAndCharts!$A130+$A$11,IF($C$7,8,0),1,1) -> 252.77 | H130: 27.14084317 | I130: 233.2486 | J130: 227.8204314 | K130: TRUE | L130: 59 | M130: 98.33333333 | N130: 98.359375 | O130: 90 | P130: TRUE | Q130: 380.83875 | R130: =OFFSET(InputSpyData!F$15,CalculationsAndCharts!$A130+$A$11,IF($C$7,8,0),1,1) -> 270.73 | S130: 262.1264297 | T130: TRUE | U130: FALSE | V130: FALSE | W130: TRUE | X130: 39 | Y130: FALSE | Z130: FALSE | AA130: FALSE | AD130: 50 | AE130: FALSE | AP130: 1410700
A131: 99 | B131: =OFFSET(InputPriceData!B$15,CalculationsAndCharts!$A131+$A$11,0,1,1) -> 2018-02-14 | C131: =OFFSET(InputPriceData!G$15,CalculationsAndCharts!$A131+$A$11,IF($C$7,8,0),1,1) -> 1214400 | D131: =OFFSET(InputPriceData!C$15,CalculationsAndCharts!$A131+$A$11,IF($C$7,8,0),1,1) -> 231.98 | E131: =OFFSET(InputPriceData!D$15,CalculationsAndCharts!$A131+$A$11,IF($C$7,8,0),1,1) -> 246.9 | F131: =OFFSET(InputPriceData!E$15,CalculationsAndCharts!$A131+$A$11,IF($C$7,8,0),1,1) -> 231.35 | G131: =OFFSET(InputPriceData!F$15,CalculationsAndCharts!$A131+$A$11,IF($C$7,8,0),1,1) -> 246.34 | H131: 27.43846498 | I131: 232.6009 | J131: 227.113207 | K131: TRUE | L131: 59 | M131: 98.33333333 | N131: 98.38541667 | O131: 90 | P131: TRUE | Q131: 380.83875 | R131: =OFFSET(InputSpyData!F$15,CalculationsAndCharts!$A131+$A$11,IF($C$7,8,0),1,1) -> 267.31 | S131: 261.9526202 | T131: TRUE | U131: FALSE | V131: FALSE | W131: TRUE | X131: 38 | Y131: FALSE | Z131: FALSE | AA131: FALSE | AD131: 50 | AE131: FALSE | AP131: 1214400
A132: 100 | B132: =OFFSET(InputPriceData!B$15,CalculationsAndCharts!$A132+$A$11,0,1,1) -> 2018-02-13 | C132: =OFFSET(InputPriceData!G$15,CalculationsAndCharts!$A132+$A$11,IF($C$7,8,0),1,1) -> 727400 | D132: =OFFSET(InputPriceData!C$15,CalculationsAndCharts!$A132+$A$11,IF($C$7,8,0),1,1) -> 230.76 | E132: =OFFSET(InputPriceData!D$15,CalculationsAndCharts!$A132+$A$11,IF($C$7,8,0),1,1) -> 236.7 | F132: =OFFSET(InputPriceData!E$15,CalculationsAndCharts!$A132+$A$11,IF($C$7,8,0),1,1) -> 229.68 | G132: =OFFSET(InputPriceData!F$15,CalculationsAndCharts!$A132+$A$11,IF($C$7,8,0),1,1) -> 233.73 | H132: 27.78562053 | I132: 232.0007 | J132: 226.4435759 | K132: TRUE | L132: 59 | M132: 98.33333333 | N132: 98.4375 | O132: 90 | P132: TRUE | Q132: 380.83875 | R132: =OFFSET(InputSpyData!F$15,CalculationsAndCharts!$A132+$A$11,IF($C$7,8,0),1,1) -> 263.75 | S132: 261.8443903 | T132: TRUE | U132: FALSE | V132: FALSE | W132: TRUE | X132: 37 | Y132: FALSE | Z132: FALSE | AA132: FALSE | AD132: 50 | AE132: FALSE | AP132: 727400
A133: 101 | B133: =OFFSET(InputPriceData!B$15,CalculationsAndCharts!$A133+$A$11,0,1,1) -> 2018-02-12 | C133: =OFFSET(InputPriceData!G$15,CalculationsAndCharts!$A133+$A$11,IF($C$7,8,0),1,1) -> 1206800 | D133: =OFFSET(InputPriceData!C$15,CalculationsAndCharts!$A133+$A$11,IF($C$7,8,0),1,1) -> 233.25 | E133: =OFFSET(InputPriceData!D$15,CalculationsAndCharts!$A133+$A$11,IF($C$7,8,0),1,1) -> 235 | F133: =OFFSET(InputPriceData!E$15,CalculationsAndCharts!$A133+$A$11,IF($C$7,8,0),1,1) -> 225.91 | G133: =OFFSET(InputPriceData!F$15,CalculationsAndCharts!$A133+$A$11,IF($C$7,8,0),1,1) -> 233.13 | H133: 28.11563698 | I133: 231.5512 | J133: 225.9280726 | K133: TRUE | L133: 59 | M133: 98.33333333 | N133: 98.54166667 | O133: 90 | P133: TRUE | Q133: 380.83875 | R133: =OFFSET(InputSpyData!F$15,CalculationsAndCharts!$A133+$A$11,IF($C$7,8,0),1,1) -> 263.1 | S133: 261.8058931 | T133: FALSE | U133: FALSE | V133: FALSE | W133: TRUE | X133: 36 | Y133: FALSE | Z133: FALSE | AA133: FALSE | AD133: 50 | AE133: FALSE | AQ133: 1206800
A134: 102 | B134: =OFFSET(InputPriceData!B$15,CalculationsAndCharts!$A134+$A$11,0,1,1) -> 2018-02-09 | C134: =OFFSET(InputPriceData!G$15,CalculationsAndCharts!$A134+$A$11,IF($C$7,8,0),1,1) -> 1549900 | D134: =OFFSET(InputPriceData!C$15,CalculationsAndCharts!$A134+$A$11,IF($C$7,8,0),1,1) -> 223.75 | E134: =OFFSET(InputPriceData!D$15,CalculationsAndCharts!$A134+$A$11,IF($C$7,8,0),1,1) -> 232.41 | F134: =OFFSET(InputPriceData!E$15,CalculationsAndCharts!$A134+$A$11,IF($C$7,8,0),1,1) -> 219.11 | G134: =OFFSET(InputPriceData!F$15,CalculationsAndCharts!$A134+$A$11,IF($C$7,8,0),1,1) -> 229.37 | H134: 28.45946258 | I134: 231.0917 | J134: 225.3998075 | K134: TRUE | L134: 59 | M134: 98.33333333 | N134: 98.75 | O134: 90 | P134: TRUE | Q134: 380.83875 | R134: =OFFSET(InputSpyData!F$15,CalculationsAndCharts!$A134+$A$11,IF($C$7,8,0),1,1) -> 259.29 | S134: 261.7797495 | T134: FALSE | U134: FALSE | V134: FALSE | W134: TRUE | X134: 35 | Y134: FALSE | Z134: FALSE | AA134: FALSE | AD134: 50 | AE134: FALSE | AP134: 1549900
A135: 103 | B135: =OFFSET(InputPriceData!B$15,CalculationsAndCharts!$A135+$A$11,0,1,1) -> 2018-02-08 | C135: =OFFSET(InputPriceData!G$15,CalculationsAndCharts!$A135+$A$11,IF($C$7,8,0),1,1) -> 1918300 | D135: =OFFSET(InputPriceData!C$15,CalculationsAndCharts!$A135+$A$11,IF($C$7,8,0),1,1) -> 233.57 | E135: =OFFSET(InputPriceData!D$15,CalculationsAndCharts!$A135+$A$11,IF($C$7,8,0),1,1) -> 233.96 | F135: =OFFSET(InputPriceData!E$15,CalculationsAndCharts!$A135+$A$11,IF($C$7,8,0),1,1) -> 220.7 | G135: =OFFSET(InputPriceData!F$15,CalculationsAndCharts!$A135+$A$11,IF($C$7,8,0),1,1) -> 220.71 | H135: 28.7753384 | I135: 230.6814 | J135: 224.9263323 | K135: FALSE | L135: 59 | M135: 98.33333333 | N135: 99.16666667 | O135: 90 | P135: TRUE | Q135: 380.83875 | R135: =OFFSET(InputSpyData!F$15,CalculationsAndCharts!$A135+$A$11,IF($C$7,8,0),1,1) -> 255.46 | S135: 261.8300475 | T135: FALSE | U135: FALSE | V135: FALSE | W135: TRUE | X135: 34 | Y135: FALSE | Z135: FALSE | AA135: FALSE | AD135: 50 | AE135: FALSE | AQ135: 1918300
A136: 104 | B136: =OFFSET(InputPriceData!B$15,CalculationsAndCharts!$A136+$A$11,0,1,1) -> 2018-02-07 | C136: =OFFSET(InputPriceData!G$15,CalculationsAndCharts!$A136+$A$11,IF($C$7,8,0),1,1) -> 1160700 | D136: =OFFSET(InputPriceData!C$15,CalculationsAndCharts!$A136+$A$11,IF($C$7,8,0),1,1) -> 241 | E136: =OFFSET(InputPriceData!D$15,CalculationsAndCharts!$A136+$A$11,IF($C$7,8,0),1,1) -> 242.22 | F136: =OFFSET(InputPriceData!E$15,CalculationsAndCharts!$A136+$A$11,IF($C$7,8,0),1,1) -> 233.6 | G136: =OFFSET(InputPriceData!F$15,CalculationsAndCharts!$A136+$A$11,IF($C$7,8,0),1,1) -> 234.33 | H136: 29.12424956 | I136: 230.3193 | J136: 224.4944501 | K136: TRUE | L136: 60 | M136: 100 | N136: 100 | O136: 90 | P136: TRUE | Q136: 380.83875 | R136: =OFFSET(InputSpyData!F$15,CalculationsAndCharts!$A136+$A$11,IF($C$7,8,0),1,1) -> 265.41 | S136: 261.9587353 | T136: TRUE | U136: FALSE | V136: FALSE | W136: TRUE | X136: 33 | Y136: FALSE | Z136: FALSE | AA136: FALSE | AD136: 50 | AE136: FALSE | AQ136: 1160700
A137: 105 | B137: =OFFSET(InputPriceData!B$15,CalculationsAndCharts!$A137+$A$11,0,1,1) -> 2018-02-06 | C137: =OFFSET(InputPriceData!G$15,CalculationsAndCharts!$A137+$A$11,IF($C$7,8,0),1,1) -> 2283400 | D137: =OFFSET(InputPriceData!C$15,CalculationsAndCharts!$A137+$A$11,IF($C$7,8,0),1,1) -> 232.71 | E137: =OFFSET(InputPriceData!D$15,CalculationsAndCharts!$A137+$A$11,IF($C$7,8,0),1,1) -> 245.65 | F137: =OFFSET(InputPriceData!E$15,CalculationsAndCharts!$A137+$A$11,IF($C$7,8,0),1,1) -> 228 | G137: =OFFSET(InputPriceData!F$15,CalculationsAndCharts!$A137+$A$11,IF($C$7,8,0),1,1) -> 241.45 | H137: 29.47001539 | I137: 229.8246 | J137: 223.9305969 | K137: TRUE | L137: 60 | M137: 100 | N137: 100 | O137: 90 | P137: TRUE | Q137: 380.83875 | R137: =OFFSET(InputSpyData!F$15,CalculationsAndCharts!$A137+$A$11,IF($C$7,8,0),1,1) -> 266.86 | S137: 261.8890128 | T137: TRUE | U137: FALSE | V137: FALSE | W137: TRUE | X137: 32 | Y137: FALSE | Z137: FALSE | AA137: FALSE | AD137: 50 | AE137: FALSE | AP137: 2283400
A138: 106 | B138: =OFFSET(InputPriceData!B$15,CalculationsAndCharts!$A138+$A$11,0,1,1) -> 2018-02-05 | C138: =OFFSET(InputPriceData!G$15,CalculationsAndCharts!$A138+$A$11,IF($C$7,8,0),1,1) -> 1878100 | D138: =OFFSET(InputPriceData!C$15,CalculationsAndCharts!$A138+$A$11,IF($C$7,8,0),1,1) -> 252.21 | E138: =OFFSET(InputPriceData!D$15,CalculationsAndCharts!$A138+$A$11,IF($C$7,8,0),1,1) -> 259.14 | F138: =OFFSET(InputPriceData!E$15,CalculationsAndCharts!$A138+$A$11,IF($C$7,8,0),1,1) -> 241.66 | G138: =OFFSET(InputPriceData!F$15,CalculationsAndCharts!$A138+$A$11,IF($C$7,8,0),1,1) -> 242.4 | H138: 29.80251966 | I138: 229.2458 | J138: 223.2852961 | K138: TRUE | L138: 60 | M138: 100 | N138: 100 | O138: 90 | P138: TRUE | Q138: 380.83875 | R138: =OFFSET(InputSpyData!F$15,CalculationsAndCharts!$A138+$A$11,IF($C$7,8,0),1,1) -> 261.7 | S138: 261.7885888 | T138: TRUE | U138: FALSE | V138: FALSE | W138: TRUE | X138: 31 | Y138: FALSE | Z138: FALSE | AA138: FALSE | AD138: 50 | AE138: FALSE | AQ138: 1878100
A139: 107 | B139: =OFFSET(InputPriceData!B$15,CalculationsAndCharts!$A139+$A$11,0,1,1) -> 2018-02-02 | C139: =OFFSET(InputPriceData!G$15,CalculationsAndCharts!$A139+$A$11,IF($C$7,8,0),1,1) -> 1622800 | D139: =OFFSET(InputPriceData!C$15,CalculationsAndCharts!$A139+$A$11,IF($C$7,8,0),1,1) -> 251.57 | E139: =OFFSET(InputPriceData!D$15,CalculationsAndCharts!$A139+$A$11,IF($C$7,8,0),1,1) -> 262.57 | F139: =OFFSET(InputPriceData!E$15,CalculationsAndCharts!$A139+$A$11,IF($C$7,8,0),1,1) -> 250.86 | G139: =OFFSET(InputPriceData!F$15,CalculationsAndCharts!$A139+$A$11,IF($C$7,8,0),1,1) -> 257.38 | H139: 30.08546369 | I139: 228.6784 | J139: 222.6613073 | K139: TRUE | L139: 60 | M139: 100 | N139: 100 | O139: 90 | P139: TRUE | Q139: 380.83875 | R139: =OFFSET(InputSpyData!F$15,CalculationsAndCharts!$A139+$A$11,IF($C$7,8,0),1,1) -> 273.12 | S139: 261.7903785 | T139: TRUE | U139: FALSE | V139: FALSE | W139: TRUE | X139: 30 | Y139: FALSE | Z139: FALSE | AA139: FALSE | AD139: 50 | AE139: FALSE | AP139: 1622800
A140: 108 | B140: =OFFSET(InputPriceData!B$15,CalculationsAndCharts!$A140+$A$11,0,1,1) -> 2018-02-01 | C140: =OFFSET(InputPriceData!G$15,CalculationsAndCharts!$A140+$A$11,IF($C$7,8,0),1,1) -> 1735600 | D140: =OFFSET(InputPriceData!C$15,CalculationsAndCharts!$A140+$A$11,IF($C$7,8,0),1,1) -> 261.59 | E140: =OFFSET(InputPriceData!D$15,CalculationsAndCharts!$A140+$A$11,IF($C$7,8,0),1,1) -> 262.65 | F140: =OFFSET(InputPriceData!E$15,CalculationsAndCharts!$A140+$A$11,IF($C$7,8,0),1,1) -> 252.2 | G140: =OFFSET(InputPriceData!F$15,CalculationsAndCharts!$A140+$A$11,IF($C$7,8,0),1,1) -> 255.57 | H140: 30.26904548 | I140: 227.9458 | J140: 221.8919909 | K140: TRUE | L140: 60 | M140: 100 | N140: 100 | O140: 90 | P140: TRUE | Q140: 380.83875 | R140: =OFFSET(InputSpyData!F$15,CalculationsAndCharts!$A140+$A$11,IF($C$7,8,0),1,1) -> 279.2 | S140: 261.5614972 | T140: TRUE | U140: FALSE | V140: FALSE | W140: TRUE | X140: 29 | Y140: FALSE | Z140: FALSE | AA140: FALSE | AD140: 50 | AE140: FALSE | AQ140: 1735600
A141: 109 | B141: =OFFSET(InputPriceData!B$15,CalculationsAndCharts!$A141+$A$11,0,1,1) -> 2018-01-31 | C141: =OFFSET(InputPriceData!G$15,CalculationsAndCharts!$A141+$A$11,IF($C$7,8,0),1,1) -> 4011400 | D141: =OFFSET(InputPriceData!C$15,CalculationsAndCharts!$A141+$A$11,IF($C$7,8,0),1,1) -> 261.01 | E141: =OFFSET(InputPriceData!D$15,CalculationsAndCharts!$A141+$A$11,IF($C$7,8,0),1,1) -> 270.6 | F141: =OFFSET(InputPriceData!E$15,CalculationsAndCharts!$A141+$A$11,IF($C$7,8,0),1,1) -> 248.21 | G141: =OFFSET(InputPriceData!F$15,CalculationsAndCharts!$A141+$A$11,IF($C$7,8,0),1,1) -> 262 | H141: 30.49036764 | I141: 227.2045 | J141: 221.1064265 | K141: TRUE | L141: 60 | M141: 100 | N141: 100 | O141: 90 | P141: TRUE | Q141: 380.83875 | R141: =OFFSET(InputSpyData!F$15,CalculationsAndCharts!$A141+$A$11,IF($C$7,8,0),1,1) -> 279.52 | S141: 261.2051639 | T141: TRUE | U141: FALSE | V141: FALSE | W141: TRUE | X141: 28 | Y141: FALSE | Z141: FALSE | AA141: FALSE | AD141: 50 | AE141: FALSE | AP141: 4011400
A142: 110 | B142: =OFFSET(InputPriceData!B$15,CalculationsAndCharts!$A142+$A$11,0,1,1) -> 2018-01-30 | C142: =OFFSET(InputPriceData!G$15,CalculationsAndCharts!$A142+$A$11,IF($C$7,8,0),1,1) -> 2451300 | D142: =OFFSET(InputPriceData!C$15,CalculationsAndCharts!$A142+$A$11,IF($C$7,8,0),1,1) -> 270.45 | E142: =OFFSET(InputPriceData!D$15,CalculationsAndCharts!$A142+$A$11,IF($C$7,8,0),1,1) -> 272 | F142: =OFFSET(InputPriceData!E$15,CalculationsAndCharts!$A142+$A$11,IF($C$7,8,0),1,1) -> 245 | G142: =OFFSET(InputPriceData!F$15,CalculationsAndCharts!$A142+$A$11,IF($C$7,8,0),1,1) -> 270.08 | H142: 30.64595857 | I142: 226.3844 | J142: 220.2552083 | K142: TRUE | L142: 60 | M142: 100 | N142: 100 | O142: 90 | P142: TRUE | Q142: 380.83875 | R142: =OFFSET(InputSpyData!F$15,CalculationsAndCharts!$A142+$A$11,IF($C$7,8,0),1,1) -> 279.38 | S142: 260.8351672 | T142: TRUE | U142: FALSE | V142: FALSE | W142: TRUE | X142: 27 | Y142: FALSE | Z142: FALSE | AA142: FALSE | AD142: 50 | AE142: FALSE | AQ142: 2451300
A143: 111 | B143: =OFFSET(InputPriceData!B$15,CalculationsAndCharts!$A143+$A$11,0,1,1) -> 2018-01-29 | C143: =OFFSET(InputPriceData!G$15,CalculationsAndCharts!$A143+$A$11,IF($C$7,8,0),1,1) -> 1585200 | D143: =OFFSET(InputPriceData!C$15,CalculationsAndCharts!$A143+$A$11,IF($C$7,8,0),1,1) -> 284.45 | E143: =OFFSET(InputPriceData!D$15,CalculationsAndCharts!$A143+$A$11,IF($C$7,8,0),1,1) -> 284.97 | F143: =OFFSET(InputPriceData!E$15,CalculationsAndCharts!$A143+$A$11,IF($C$7,8,0),1,1) -> 268.16 | G143: =OFFSET(InputPriceData!F$15,CalculationsAndCharts!$A143+$A$11,IF($C$7,8,0),1,1) -> 276.77 | H143: 30.72398794 | I143: 225.4499 | J143: 219.3051024 | K143: TRUE | L143: 60 | M143: 100 | N143: 100 | O143: 90 | P143: TRUE | Q143: 380.83875 | R143: =OFFSET(InputSpyData!F$15,CalculationsAndCharts!$A143+$A$11,IF($C$7,8,0),1,1) -> 282.28 | S143: 260.4605241 | T143: TRUE | U143: FALSE | V143: FALSE | W143: TRUE | X143: 26 | Y143: FALSE | Z143: FALSE | AA143: FALSE | AD143: 50 | AE143: FALSE | AQ143: 1585200
A144: 112 | B144: =OFFSET(InputPriceData!B$15,CalculationsAndCharts!$A144+$A$11,0,1,1) -> 2018-01-26 | C144: =OFFSET(InputPriceData!G$15,CalculationsAndCharts!$A144+$A$11,IF($C$7,8,0),1,1) -> 1132600 | D144: =OFFSET(InputPriceData!C$15,CalculationsAndCharts!$A144+$A$11,IF($C$7,8,0),1,1) -> 275.16 | E144: =OFFSET(InputPriceData!D$15,CalculationsAndCharts!$A144+$A$11,IF($C$7,8,0),1,1) -> 287.32 | F144: =OFFSET(InputPriceData!E$15,CalculationsAndCharts!$A144+$A$11,IF($C$7,8,0),1,1) -> 273.27 | G144: =OFFSET(InputPriceData!F$15,CalculationsAndCharts!$A144+$A$11,IF($C$7,8,0),1,1) -> 283.97 | H144: 30.62591884 | I144: 224.4755 | J144: 218.3503162 | K144: TRUE | L144: 60 | M144: 100 | N144: 100 | O144: 90 | P144: TRUE | Q144: 380.83875 | R144: =OFFSET(InputSpyData!F$15,CalculationsAndCharts!$A144+$A$11,IF($C$7,8,0),1,1) -> 284.16 | S144: 260.0197266 | T144: TRUE | U144: FALSE | V144: FALSE | W144: TRUE | X144: 25 | Y144: FALSE | Z144: FALSE | AA144: FALSE | AD144: 50 | AE144: FALSE | AP144: 1132600
A145: 113 | B145: =OFFSET(InputPriceData!B$15,CalculationsAndCharts!$A145+$A$11,0,1,1) -> 2018-01-25 | C145: =OFFSET(InputPriceData!G$15,CalculationsAndCharts!$A145+$A$11,IF($C$7,8,0),1,1) -> 565800 | D145: =OFFSET(InputPriceData!C$15,CalculationsAndCharts!$A145+$A$11,IF($C$7,8,0),1,1) -> 273.7 | E145: =OFFSET(InputPriceData!D$15,CalculationsAndCharts!$A145+$A$11,IF($C$7,8,0),1,1) -> 276.23 | F145: =OFFSET(InputPriceData!E$15,CalculationsAndCharts!$A145+$A$11,IF($C$7,8,0),1,1) -> 270 | G145: =OFFSET(InputPriceData!F$15,CalculationsAndCharts!$A145+$A$11,IF($C$7,8,0),1,1) -> 273.56 | H145: 30.40600533 | I145: 223.3996 | J145: 217.3183989 | K145: TRUE | L145: 60 | M145: 100 | N145: 100 | O145: 90 | P145: TRUE | Q145: 380.83875 | R145: =OFFSET(InputSpyData!F$15,CalculationsAndCharts!$A145+$A$11,IF($C$7,8,0),1,1) -> 280.91 | S145: 259.5320443 | T145: TRUE | U145: FALSE | V145: FALSE | W145: TRUE | X145: 24 | Y145: FALSE | Z145: FALSE | AA145: FALSE | AD145: 50 | AE145: FALSE | AQ145: 565800
A146: 114 | B146: =OFFSET(InputPriceData!B$15,CalculationsAndCharts!$A146+$A$11,0,1,1) -> 2018-01-24 | C146: =OFFSET(InputPriceData!G$15,CalculationsAndCharts!$A146+$A$11,IF($C$7,8,0),1,1) -> 798900 | D146: =OFFSET(InputPriceData!C$15,CalculationsAndCharts!$A146+$A$11,IF($C$7,8,0),1,1) -> 273.52 | E146: =OFFSET(InputPriceData!D$15,CalculationsAndCharts!$A146+$A$11,IF($C$7,8,0),1,1) -> 274.39 | F146: =OFFSET(InputPriceData!E$15,CalculationsAndCharts!$A146+$A$11,IF($C$7,8,0),1,1) -> 267.6 | G146: =OFFSET(InputPriceData!F$15,CalculationsAndCharts!$A146+$A$11,IF($C$7,8,0),1,1) -> 272.28 | H146: 30.33477005 | I146: 222.4314 | J146: 216.364446 | K146: TRUE | L146: 60 | M146: 100 | N146: 100 | O146: 90 | P146: TRUE | Q146: 380.83875 | R146: =OFFSET(InputSpyData!F$15,CalculationsAndCharts!$A146+$A$11,IF($C$7,8,0),1,1) -> 280.79 | S146: 259.1001664 | T146: TRUE | U146: FALSE | V146: FALSE | W146: TRUE | X146: 23 | Y146: FALSE | Z146: FALSE | AA146: FALSE | AD146: 50 | AE146: FALSE | AP146: =IF(G146>=D146,C146,NA()) ->  | AQ146: =IF(G146<D146,C146,NA()) -> 798900
A147: 115 | B147: =OFFSET(InputPriceData!B$15,CalculationsAndCharts!$A147+$A$11,0,1,1) -> 2018-01-23 | C147: =OFFSET(InputPriceData!G$15,CalculationsAndCharts!$A147+$A$11,IF($C$7,8,0),1,1) -> 973400 | D147: =OFFSET(InputPriceData!C$15,CalculationsAndCharts!$A147+$A$11,IF($C$7,8,0),1,1) -> 267 | E147: =OFFSET(InputPriceData!D$15,CalculationsAndCharts!$A147+$A$11,IF($C$7,8,0),1,1) -> 276.99 | F147: =OFFSET(InputPriceData!E$15,CalculationsAndCharts!$A147+$A$11,IF($C$7,8,0),1,1) -> 266.88 | G147: =OFFSET(InputPriceData!F$15,CalculationsAndCharts!$A147+$A$11,IF($C$7,8,0),1,1) -> 272.16 | H147: 30.28220806 | I147: 221.4574 | J147: 215.4009584 | K147: TRUE | L147: 60 | M147: 100 | N147: 100 | O147: 90 | P147: TRUE | Q147: 380.83875 | R147: =OFFSET(InputSpyData!F$15,CalculationsAndCharts!$A147+$A$11,IF($C$7,8,0),1,1) -> 280.9 | S147: 258.6619879 | T147: TRUE | U147: FALSE | V147: FALSE | W147: TRUE | X147: 22 | Y147: FALSE | Z147: FALSE | AA147: FALSE | AD147: 50 | AE147: FALSE | AP147: 973400
A148: 116 | B148: =OFFSET(InputPriceData!B$15,CalculationsAndCharts!$A148+$A$11,0,1,1) -> 2018-01-22 | C148: =OFFSET(InputPriceData!G$15,CalculationsAndCharts!$A148+$A$11,IF($C$7,8,0),1,1) -> 1147200 | D148: =OFFSET(InputPriceData!C$15,CalculationsAndCharts!$A148+$A$11,IF($C$7,8,0),1,1) -> 269.64 | E148: =OFFSET(InputPriceData!D$15,CalculationsAndCharts!$A148+$A$11,IF($C$7,8,0),1,1) -> 271.73 | F148: =OFFSET(InputPriceData!E$15,CalculationsAndCharts!$A148+$A$11,IF($C$7,8,0),1,1) -> 258.92 | G148: =OFFSET(InputPriceData!F$15,CalculationsAndCharts!$A148+$A$11,IF($C$7,8,0),1,1) -> 267.1 | H148: 30.21377822 | I148: 220.4757 | J148: 214.4329444 | K148: TRUE | L148: 60 | M148: 100 | N148: 100 | O148: 90 | P148: TRUE | Q148: 380.83875 | R148: =OFFSET(InputSpyData!F$15,CalculationsAndCharts!$A148+$A$11,IF($C$7,8,0),1,1) -> 280.3 | S148: 258.2127352 | T148: TRUE | U148: FALSE | V148: FALSE | W148: TRUE | X148: 21 | Y148: FALSE | Z148: FALSE | AA148: FALSE | AD148: 50 | AE148: FALSE | AQ148: 1147200
A149: 117 | B149: =OFFSET(InputPriceData!B$15,CalculationsAndCharts!$A149+$A$11,0,1,1) -> 2018-01-19 | C149: =OFFSET(InputPriceData!G$15,CalculationsAndCharts!$A149+$A$11,IF($C$7,8,0),1,1) -> 1231400 | D149: =OFFSET(InputPriceData!C$15,CalculationsAndCharts!$A149+$A$11,IF($C$7,8,0),1,1) -> 268.1 | E149: =OFFSET(InputPriceData!D$15,CalculationsAndCharts!$A149+$A$11,IF($C$7,8,0),1,1) -> 269.75 | F149: =OFFSET(InputPriceData!E$15,CalculationsAndCharts!$A149+$A$11,IF($C$7,8,0),1,1) -> 263.2 | G149: =OFFSET(InputPriceData!F$15,CalculationsAndCharts!$A149+$A$11,IF($C$7,8,0),1,1) -> 269.46 | H149: 30.18059629 | I149: 219.5558 | J149: 213.5196807 | K149: TRUE | L149: 60 | M149: 100 | N149: 100 | O149: 90 | P149: TRUE | Q149: 380.83875 | R149: =OFFSET(InputSpyData!F$15,CalculationsAndCharts!$A149+$A$11,IF($C$7,8,0),1,1) -> 278.04 | S149: 257.7665278 | T149: TRUE | U149: FALSE | V149: FALSE | W149: TRUE | X149: 20 | Y149: FALSE | Z149: FALSE | AA149: FALSE | AD149: 50 | AE149: FALSE | AP149: 1231400
A150: 118 | B150: =OFFSET(InputPriceData!B$15,CalculationsAndCharts!$A150+$A$11,0,1,1) -> 2018-01-18 | C150: =OFFSET(InputPriceData!G$15,CalculationsAndCharts!$A150+$A$11,IF($C$7,8,0),1,1) -> 1088500 | D150: =OFFSET(InputPriceData!C$15,CalculationsAndCharts!$A150+$A$11,IF($C$7,8,0),1,1) -> 272.25 | E150: =OFFSET(InputPriceData!D$15,CalculationsAndCharts!$A150+$A$11,IF($C$7,8,0),1,1) -> 272.69 | F150: =OFFSET(InputPriceData!E$15,CalculationsAndCharts!$A150+$A$11,IF($C$7,8,0),1,1) -> 266.51 | G150: =OFFSET(InputPriceData!F$15,CalculationsAndCharts!$A150+$A$11,IF($C$7,8,0),1,1) -> 270.7 | H150: 30.1184395 | I150: 218.5867 | J150: 212.5630121 | K150: TRUE | L150: 60 | M150: 100 | N150: 100 | O150: 90 | P150: TRUE | Q150: 380.83875 | R150: =OFFSET(InputSpyData!F$15,CalculationsAndCharts!$A150+$A$11,IF($C$7,8,0),1,1) -> 276.78 | S150: 257.3569627 | T150: TRUE | U150: FALSE | V150: FALSE | W150: TRUE | X150: 19 | Y150: FALSE | Z150: FALSE | AA150: FALSE | AD150: 50 | AE150: FALSE | AQ150: 1088500
A151: 119 | B151: =OFFSET(InputPriceData!B$15,CalculationsAndCharts!$A151+$A$11,0,1,1) -> 2018-01-17 | C151: =OFFSET(InputPriceData!G$15,CalculationsAndCharts!$A151+$A$11,IF($C$7,8,0),1,1) -> 1151900 | D151: =OFFSET(InputPriceData!C$15,CalculationsAndCharts!$A151+$A$11,IF($C$7,8,0),1,1) -> 265.16 | E151: =OFFSET(InputPriceData!D$15,CalculationsAndCharts!$A151+$A$11,IF($C$7,8,0),1,1) -> 273.6 | F151: =OFFSET(InputPriceData!E$15,CalculationsAndCharts!$A151+$A$11,IF($C$7,8,0),1,1) -> 264.25 | G151: =OFFSET(InputPriceData!F$15,CalculationsAndCharts!$A151+$A$11,IF($C$7,8,0),1,1) -> 272.25 | H151: 29.96299785 | I151: 217.6328 | J151: 211.6402004 | K151: TRUE | L151: 60 | M151: 100 | N151: 100 | O151: 90 | P151: TRUE | Q151: 380.83875 | R151: =OFFSET(InputSpyData!F$15,CalculationsAndCharts!$A151+$A$11,IF($C$7,8,0),1,1) -> 277.25 | S151: 256.9645781 | T151: TRUE | U151: FALSE | V151: FALSE | W151: TRUE | X151: 18 | Y151: FALSE | Z151: FALSE | AA151: FALSE | AD151: 50 | AE151: FALSE | AP151: 1151900
A152: 120 | B152: =OFFSET(InputPriceData!B$15,CalculationsAndCharts!$A152+$A$11,0,1,1) -> 2018-01-16 | C152: =OFFSET(InputPriceData!G$15,CalculationsAndCharts!$A152+$A$11,IF($C$7,8,0),1,1) -> 1197900 | D152: =OFFSET(InputPriceData!C$15,CalculationsAndCharts!$A152+$A$11,IF($C$7,8,0),1,1) -> 262.12 | E152: =OFFSET(InputPriceData!D$15,CalculationsAndCharts!$A152+$A$11,IF($C$7,8,0),1,1) -> 268.18 | F152: =OFFSET(InputPriceData!E$15,CalculationsAndCharts!$A152+$A$11,IF($C$7,8,0),1,1) -> 260.56 | G152: =OFFSET(InputPriceData!F$15,CalculationsAndCharts!$A152+$A$11,IF($C$7,8,0),1,1) -> 263.88 | H152: 29.78284423 | I152: 216.6388 | J152: 210.6822312 | K152: TRUE | L152: 60 | M152: 100 | N152: 100 | O152: 90 | P152: TRUE | Q152: 380.83875 | R152: =OFFSET(InputSpyData!F$15,CalculationsAndCharts!$A152+$A$11,IF($C$7,8,0),1,1) -> 274.63 | S152: 256.5547716 | T152: TRUE | U152: FALSE | V152: FALSE | W152: TRUE | X152: 17 | Y152: FALSE | Z152: FALSE | AA152: FALSE | AD152: 50 | AE152: FALSE | AP152: 1197900
A153: 121 | B153: =OFFSET(InputPriceData!B$15,CalculationsAndCharts!$A153+$A$11,0,1,1) -> 2018-01-12 | C153: =OFFSET(InputPriceData!G$15,CalculationsAndCharts!$A153+$A$11,IF($C$7,8,0),1,1) -> 892900 | D153: =OFFSET(InputPriceData!C$15,CalculationsAndCharts!$A153+$A$11,IF($C$7,8,0),1,1) -> 254.1 | E153: =OFFSET(InputPriceData!D$15,CalculationsAndCharts!$A153+$A$11,IF($C$7,8,0),1,1) -> 259.95 | F153: =OFFSET(InputPriceData!E$15,CalculationsAndCharts!$A153+$A$11,IF($C$7,8,0),1,1) -> 250.01 | G153: =OFFSET(InputPriceData!F$15,CalculationsAndCharts!$A153+$A$11,IF($C$7,8,0),1,1) -> 258.43 | H153: 29.72044089 | I153: 215.7255 | J153: 209.7814118 | K153: TRUE | L153: 60 | M153: 100 | N153: 100 | O153: 90 | P153: TRUE | Q153: 380.83875 | R153: =OFFSET(InputSpyData!F$15,CalculationsAndCharts!$A153+$A$11,IF($C$7,8,0),1,1) -> 275.57 | S153: 256.1896155 | T153: TRUE | U153: FALSE | V153: FALSE | W153: TRUE | X153: 16 | Y153: FALSE | Z153: FALSE | AA153: FALSE | AD153: 50 | AE153: FALSE | AP153: 892900
A154: 122 | B154: =OFFSET(InputPriceData!B$15,CalculationsAndCharts!$A154+$A$11,0,1,1) -> 2018-01-11 | C154: =OFFSET(InputPriceData!G$15,CalculationsAndCharts!$A154+$A$11,IF($C$7,8,0),1,1) -> 722400 | D154: =OFFSET(InputPriceData!C$15,CalculationsAndCharts!$A154+$A$11,IF($C$7,8,0),1,1) -> 248 | E154: =OFFSET(InputPriceData!D$15,CalculationsAndCharts!$A154+$A$11,IF($C$7,8,0),1,1) -> 253.2 | F154: =OFFSET(InputPriceData!E$15,CalculationsAndCharts!$A154+$A$11,IF($C$7,8,0),1,1) -> 246.01 | G154: =OFFSET(InputPriceData!F$15,CalculationsAndCharts!$A154+$A$11,IF($C$7,8,0),1,1) -> 252.91 | H154: 29.78331867 | I154: 214.821 | J154: 208.8643363 | K154: TRUE | L154: 60 | M154: 100 | N154: 100 | O154: 90 | P154: TRUE | Q154: 380.83875 | R154: =OFFSET(InputSpyData!F$15,CalculationsAndCharts!$A154+$A$11,IF($C$7,8,0),1,1) -> 273.79 | S154: 255.7980926 | T154: TRUE | U154: FALSE | V154: FALSE | W154: TRUE | X154: 15 | Y154: FALSE | Z154: FALSE | AA154: FALSE | AD154: 50 | AE154: FALSE | AP154: 722400
A155: 123 | B155: =OFFSET(InputPriceData!B$15,CalculationsAndCharts!$A155+$A$11,0,1,1) -> 2018-01-10 | C155: =OFFSET(InputPriceData!G$15,CalculationsAndCharts!$A155+$A$11,IF($C$7,8,0),1,1) -> 874800 | D155: =OFFSET(InputPriceData!C$15,CalculationsAndCharts!$A155+$A$11,IF($C$7,8,0),1,1) -> 249.15 | E155: =OFFSET(InputPriceData!D$15,CalculationsAndCharts!$A155+$A$11,IF($C$7,8,0),1,1) -> 250.89 | F155: =OFFSET(InputPriceData!E$15,CalculationsAndCharts!$A155+$A$11,IF($C$7,8,0),1,1) -> 243.28 | G155: =OFFSET(InputPriceData!F$15,CalculationsAndCharts!$A155+$A$11,IF($C$7,8,0),1,1) -> 248.31 | H155: 29.88615512 | I155: 213.978 | J155: 208.000769 | K155: TRUE | L155: 60 | M155: 100 | N155: 100 | O155: 90 | P155: TRUE | Q155: 380.83875 | R155: =OFFSET(InputSpyData!F$15,CalculationsAndCharts!$A155+$A$11,IF($C$7,8,0),1,1) -> 271.81 | S155: 255.4346197 | T155: TRUE | U155: FALSE | V155: FALSE | W155: TRUE | X155: 14 | Y155: FALSE | Z155: FALSE | AA155: FALSE | AD155: 50 | AE155: FALSE | AQ155: 874800
A156: 124 | B156: =OFFSET(InputPriceData!B$15,CalculationsAndCharts!$A156+$A$11,0,1,1) -> 2018-01-09 | C156: =OFFSET(InputPriceData!G$15,CalculationsAndCharts!$A156+$A$11,IF($C$7,8,0),1,1) -> 1212400 | D156: =OFFSET(InputPriceData!C$15,CalculationsAndCharts!$A156+$A$11,IF($C$7,8,0),1,1) -> 250 | E156: =OFFSET(InputPriceData!D$15,CalculationsAndCharts!$A156+$A$11,IF($C$7,8,0),1,1) -> 253.64 | F156: =OFFSET(InputPriceData!E$15,CalculationsAndCharts!$A156+$A$11,IF($C$7,8,0),1,1) -> 250 | G156: =OFFSET(InputPriceData!F$15,CalculationsAndCharts!$A156+$A$11,IF($C$7,8,0),1,1) -> 251.44 | H156: 30.01132711 | I156: 213.1885 | J156: 207.1862346 | K156: TRUE | L156: 60 | M156: 100 | N156: 100 | O156: 90 | P156: TRUE | Q156: 380.83875 | R156: =OFFSET(InputSpyData!F$15,CalculationsAndCharts!$A156+$A$11,IF($C$7,8,0),1,1) -> 272.22 | S156: 255.1038039 | T156: TRUE | U156: FALSE | V156: FALSE | W156: TRUE | X156: 13 | Y156: FALSE | Z156: FALSE | AA156: FALSE | AD156: 50 | AE156: FALSE | AP156: 1212400
A157: 125 | B157: =OFFSET(InputPriceData!B$15,CalculationsAndCharts!$A157+$A$11,0,1,1) -> 2018-01-08 | C157: =OFFSET(InputPriceData!G$15,CalculationsAndCharts!$A157+$A$11,IF($C$7,8,0),1,1) -> 2067000 | D157: =OFFSET(InputPriceData!C$15,CalculationsAndCharts!$A157+$A$11,IF($C$7,8,0),1,1) -> 242 | E157: =OFFSET(InputPriceData!D$15,CalculationsAndCharts!$A157+$A$11,IF($C$7,8,0),1,1) -> 250.99 | F157: =OFFSET(InputPriceData!E$15,CalculationsAndCharts!$A157+$A$11,IF($C$7,8,0),1,1) -> 241.04 | G157: =OFFSET(InputPriceData!F$15,CalculationsAndCharts!$A157+$A$11,IF($C$7,8,0),1,1) -> 248.9 | H157: 29.95957378 | I157: 212.4587 | J157: 206.4667852 | K157: TRUE | L157: 60 | M157: 100 | N157: 100 | O157: 90 | P157: TRUE | Q157: 380.83875 | R157: =OFFSET(InputSpyData!F$15,CalculationsAndCharts!$A157+$A$11,IF($C$7,8,0),1,1) -> 271.61 | S157: 254.7580222 | T157: TRUE | U157: FALSE | V157: FALSE | W157: TRUE | X157: 12 | Y157: FALSE | Z157: FALSE | AA157: FALSE | AD157: 50 | AE157: FALSE | AP157: 2067000
A158: 126 | B158: =OFFSET(InputPriceData!B$15,CalculationsAndCharts!$A158+$A$11,0,1,1) -> 2018-01-05 | C158: =OFFSET(InputPriceData!G$15,CalculationsAndCharts!$A158+$A$11,IF($C$7,8,0),1,1) -> 1569500 | D158: =OFFSET(InputPriceData!C$15,CalculationsAndCharts!$A158+$A$11,IF($C$7,8,0),1,1) -> 234.88 | E158: =OFFSET(InputPriceData!D$15,CalculationsAndCharts!$A158+$A$11,IF($C$7,8,0),1,1) -> 243.3 | F158: =OFFSET(InputPriceData!E$15,CalculationsAndCharts!$A158+$A$11,IF($C$7,8,0),1,1) -> 234.22 | G158: =OFFSET(InputPriceData!F$15,CalculationsAndCharts!$A158+$A$11,IF($C$7,8,0),1,1) -> 241.07 | H158: 29.92804664 | I158: 211.7494 | J158: 205.7637907 | K158: TRUE | L158: 60 | M158: 100 | N158: 100 | O158: 90 | P158: TRUE | Q158: 380.83875 | R158: =OFFSET(InputSpyData!F$15,CalculationsAndCharts!$A158+$A$11,IF($C$7,8,0),1,1) -> 271.11 | S158: 254.4175782 | T158: TRUE | U158: FALSE | V158: FALSE | W158: TRUE | X158: 11 | Y158: FALSE | Z158: FALSE | AA158: FALSE | AD158: 50 | AE158: FALSE | AP158: 1569500
A159: 127 | B159: =OFFSET(InputPriceData!B$15,CalculationsAndCharts!$A159+$A$11,0,1,1) -> 2018-01-04 | C159: =OFFSET(InputPriceData!G$15,CalculationsAndCharts!$A159+$A$11,IF($C$7,8,0),1,1) -> 1363000 | D159: =OFFSET(InputPriceData!C$15,CalculationsAndCharts!$A159+$A$11,IF($C$7,8,0),1,1) -> 234.9 | E159: =OFFSET(InputPriceData!D$15,CalculationsAndCharts!$A159+$A$11,IF($C$7,8,0),1,1) -> 235.66 | F159: =OFFSET(InputPriceData!E$15,CalculationsAndCharts!$A159+$A$11,IF($C$7,8,0),1,1) -> 230.25 | G159: =OFFSET(InputPriceData!F$15,CalculationsAndCharts!$A159+$A$11,IF($C$7,8,0),1,1) -> 233.3 | H159: 30.01287948 | I159: 211.0803 | J159: 205.0777241 | K159: TRUE | L159: 60 | M159: 100 | N159: 100 | O159: 90 | P159: TRUE | Q159: 380.83875 | R159: =OFFSET(InputSpyData!F$15,CalculationsAndCharts!$A159+$A$11,IF($C$7,8,0),1,1) -> 269.32 | S159: 254.0803575 | T159: TRUE | U159: FALSE | V159: FALSE | W159: TRUE | X159: 10 | Y159: FALSE | Z159: FALSE | AA159: FALSE | AD159: 50 | AE159: FALSE | AQ159: 1363000
A160: 128 | B160: =OFFSET(InputPriceData!B$15,CalculationsAndCharts!$A160+$A$11,0,1,1) -> 2018-01-03 | C160: =OFFSET(InputPriceData!G$15,CalculationsAndCharts!$A160+$A$11,IF($C$7,8,0),1,1) -> 924700 | D160: =OFFSET(InputPriceData!C$15,CalculationsAndCharts!$A160+$A$11,IF($C$7,8,0),1,1) -> 226.06 | E160: =OFFSET(InputPriceData!D$15,CalculationsAndCharts!$A160+$A$11,IF($C$7,8,0),1,1) -> 231.48 | F160: =OFFSET(InputPriceData!E$15,CalculationsAndCharts!$A160+$A$11,IF($C$7,8,0),1,1) -> 225.01 | G160: =OFFSET(InputPriceData!F$15,CalculationsAndCharts!$A160+$A$11,IF($C$7,8,0),1,1) -> 231.2 | H160: 30.15885652 | I160: 210.4829 | J160: 204.4511287 | K160: TRUE | L160: 60 | M160: 100 | N160: 100 | O160: 90 | P160: TRUE | Q160: 380.83875 | R160: =OFFSET(InputSpyData!F$15,CalculationsAndCharts!$A160+$A$11,IF($C$7,8,0),1,1) -> 268.19 | S160: 253.772486 | T160: TRUE | U160: FALSE | V160: FALSE | W160: TRUE | X160: 9 | Y160: FALSE | Z160: FALSE | AA160: FALSE | AD160: 50 | AE160: FALSE | AP160: 924700
A161: 129 | B161: =OFFSET(InputPriceData!B$15,CalculationsAndCharts!$A161+$A$11,0,1,1) -> 2018-01-02 | C161: =OFFSET(InputPriceData!G$15,CalculationsAndCharts!$A161+$A$11,IF($C$7,8,0),1,1) -> 979700 | D161: =OFFSET(InputPriceData!C$15,CalculationsAndCharts!$A161+$A$11,IF($C$7,8,0),1,1) -> 222.61 | E161: =OFFSET(InputPriceData!D$15,CalculationsAndCharts!$A161+$A$11,IF($C$7,8,0),1,1) -> 226.19 | F161: =OFFSET(InputPriceData!E$15,CalculationsAndCharts!$A161+$A$11,IF($C$7,8,0),1,1) -> 220.36 | G161: =OFFSET(InputPriceData!F$15,CalculationsAndCharts!$A161+$A$11,IF($C$7,8,0),1,1) -> 224.62 | H161: =_xlfn.STDEV.P(OFFSET($G161,0,0,$A$18,1)) -> 30.33665944 | I161: =AVERAGE(OFFSET($G161,0,0,$A$18,1)) -> 209.8832 | J161: =I161-$A$21*H161 -> 203.8158681 | K161: =G161>J161 -> TRUE | L161: =COUNTIF(OFFSET($K161,0,0,$A$17,1),TRUE) -> 60 | M161: =L161*100/$A$17 -> 100 | N161: =$C$19*M161+$D$19*N162 -> 100 | O161: =$A$20 -> 90 | P161: TRUE | Q161: 380.83875 | R161: =OFFSET(InputSpyData!F$15,CalculationsAndCharts!$A161+$A$11,IF($C$7,8,0),1,1) -> 266.5 | S161: =$C$22*R161+$D$22*S162 -> 253.4812231 | T161: TRUE | U161: FALSE | V161: FALSE | W161: =IF($A$8<>A161,IF(AND(NOT(W162),U162),TRUE,IF(AND(W162,V162),FALSE,W162)),FALSE) -> TRUE | X161: =IF(W161,1+X162,0) -> 8 | Y161: =X161=$D$24 -> FALSE | Z161: =AND(W161,NOT(W162)) -> FALSE | AA161: =AND(W162,NOT(W161),$A$8<>A161) -> FALSE | AB161: =IF(U162,$D161,NA()) ->  | AC161: =IF(V162,$D161,NA()) ->  | AD161: 50 | AE161: FALSE | AP161: 979700
A162: 130 | B162: =OFFSET(InputPriceData!B$15,CalculationsAndCharts!$A162+$A$11,0,1,1) -> 2017-12-29 | C162: =OFFSET(InputPriceData!G$15,CalculationsAndCharts!$A162+$A$11,IF($C$7,8,0),1,1) -> 555700 | D162: =OFFSET(InputPriceData!C$15,CalculationsAndCharts!$A162+$A$11,IF($C$7,8,0),1,1) -> 225.99 | E162: =OFFSET(InputPriceData!D$15,CalculationsAndCharts!$A162+$A$11,IF($C$7,8,0),1,1) -> 227.66 | F162: =OFFSET(InputPriceData!E$15,CalculationsAndCharts!$A162+$A$11,IF($C$7,8,0),1,1) -> 222.09 | G162: =OFFSET(InputPriceData!F$15,CalculationsAndCharts!$A162+$A$11,IF($C$7,8,0),1,1) -> 222.19 | H162: 30.48835261 | I162: 209.3947 | J162: 203.2970295 | K162: TRUE | L162: 60 | M162: 100 | N162: 100 | O162: 90 | P162: =N162>O162 -> TRUE | Q162: =IF(P162,$AZ$34,NA()) -> 380.83875 | R162: =OFFSET(InputSpyData!F$15,CalculationsAndCharts!$A162+$A$11,IF($C$7,8,0),1,1) -> 264.61 | S162: 253.2182175 | T162: =S162>=S164 -> TRUE | U162: FALSE | V162: =OR(AND(AE162,W162,$A$8<>A162),Y162) -> FALSE | W162: TRUE | X162: 7 | Y162: FALSE | Z162: FALSE | AA162: FALSE | AD162: =$A$23 -> 50 | AE162: =N162<$A$23 -> FALSE | AQ162: 555700
A163: 131 | B163: =OFFSET(InputPriceData!B$15,CalculationsAndCharts!$A163+$A$11,0,1,1) -> 2017-12-28 | C163: =OFFSET(InputPriceData!G$15,CalculationsAndCharts!$A163+$A$11,IF($C$7,8,0),1,1) -> 612100 | D163: =OFFSET(InputPriceData!C$15,CalculationsAndCharts!$A163+$A$11,IF($C$7,8,0),1,1) -> 227.79 | E163: =OFFSET(InputPriceData!D$15,CalculationsAndCharts!$A163+$A$11,IF($C$7,8,0),1,1) -> 227.79 | F163: =OFFSET(InputPriceData!E$15,CalculationsAndCharts!$A163+$A$11,IF($C$7,8,0),1,1) -> 222.61 | G163: =OFFSET(InputPriceData!F$15,CalculationsAndCharts!$A163+$A$11,IF($C$7,8,0),1,1) -> 226.48 | H163: 30.66699912 | I163: 208.909 | J163: 202.7756002 | K163: TRUE | L163: 60 | M163: 100 | N163: 100 | O163: 90 | P163: TRUE | Q163: 380.83875 | R163: =OFFSET(InputSpyData!F$15,CalculationsAndCharts!$A163+$A$11,IF($C$7,8,0),1,1) -> 265.61 | S163: 252.9880805 | T163: TRUE | U163: =AND(P163,NOT(W163),T163) -> FALSE | V163: FALSE | W163: TRUE | X163: 6 | Y163: FALSE | Z163: FALSE | AA163: FALSE | AD163: 50 | AE163: FALSE | AQ163: 612100
A164: 132 | B164: =OFFSET(InputPriceData!B$15,CalculationsAndCharts!$A164+$A$11,0,1,1) -> 2017-12-27 | C164: =OFFSET(InputPriceData!G$15,CalculationsAndCharts!$A164+$A$11,IF($C$7,8,0),1,1) -> 706600 | D164: =OFFSET(InputPriceData!C$15,CalculationsAndCharts!$A164+$A$11,IF($C$7,8,0),1,1) -> 223.22 | E164: =OFFSET(InputPriceData!D$15,CalculationsAndCharts!$A164+$A$11,IF($C$7,8,0),1,1) -> 229.01 | F164: =OFFSET(InputPriceData!E$15,CalculationsAndCharts!$A164+$A$11,IF($C$7,8,0),1,1) -> 223.12 | G164: =OFFSET(InputPriceData!F$15,CalculationsAndCharts!$A164+$A$11,IF($C$7,8,0),1,1) -> 226.45 | H164: 30.81041263 | I164: 208.3843 | J164: 202.2222175 | K164: TRUE | L164: 60 | M164: 100 | N164: 100 | O164: 90 | P164: TRUE | Q164: 380.83875 | R164: =OFFSET(InputSpyData!F$15,CalculationsAndCharts!$A164+$A$11,IF($C$7,8,0),1,1) -> 265.06 | S164: 252.7330922 | T164: TRUE | U164: FALSE | V164: FALSE | W164: TRUE | X164: 5 | Y164: FALSE | Z164: FALSE | AA164: FALSE | AD164: 50 | AE164: FALSE | AP164: 706600
A165: 133 | B165: =OFFSET(InputPriceData!B$15,CalculationsAndCharts!$A165+$A$11,0,1,1) -> 2017-12-26 | C165: =OFFSET(InputPriceData!G$15,CalculationsAndCharts!$A165+$A$11,IF($C$7,8,0),1,1) -> 445800 | D165: =OFFSET(InputPriceData!C$15,CalculationsAndCharts!$A165+$A$11,IF($C$7,8,0),1,1) -> 222.36 | E165: =OFFSET(InputPriceData!D$15,CalculationsAndCharts!$A165+$A$11,IF($C$7,8,0),1,1) -> 224.42 | F165: =OFFSET(InputPriceData!E$15,CalculationsAndCharts!$A165+$A$11,IF($C$7,8,0),1,1) -> 220.26 | G165: =OFFSET(InputPriceData!F$15,CalculationsAndCharts!$A165+$A$11,IF($C$7,8,0),1,1) -> 223.54 | H165: 30.99946845 | I165: 207.8128 | J165: 201.6129063 | K165: TRUE | L165: 60 | M165: 100 | N165: 100 | O165: 90 | P165: TRUE | Q165: 380.83875 | R165: =OFFSET(InputSpyData!F$15,CalculationsAndCharts!$A165+$A$11,IF($C$7,8,0),1,1) -> 264.93 | S165: 252.4840637 | T165: TRUE | U165: FALSE | V165: FALSE | W165: TRUE | X165: 4 | Y165: FALSE | Z165: FALSE | AA165: FALSE | AD165: 50 | AE165: FALSE | AP165: 445800
A166: 134 | B166: =OFFSET(InputPriceData!B$15,CalculationsAndCharts!$A166+$A$11,0,1,1) -> 2017-12-22 | C166: =OFFSET(InputPriceData!G$15,CalculationsAndCharts!$A166+$A$11,IF($C$7,8,0),1,1) -> 1154700 | D166: =OFFSET(InputPriceData!C$15,CalculationsAndCharts!$A166+$A$11,IF($C$7,8,0),1,1) -> 216.37 | E166: =OFFSET(InputPriceData!D$15,CalculationsAndCharts!$A166+$A$11,IF($C$7,8,0),1,1) -> 224.01 | F166: =OFFSET(InputPriceData!E$15,CalculationsAndCharts!$A166+$A$11,IF($C$7,8,0),1,1) -> 212.86 | G166: =OFFSET(InputPriceData!F$15,CalculationsAndCharts!$A166+$A$11,IF($C$7,8,0),1,1) -> 223.12 | H166: 31.17954721 | I166: 207.282 | J166: 201.0460906 | K166: TRUE | L166: 60 | M166: 100 | N166: 100 | O166: 90 | P166: TRUE | Q166: 380.83875 | R166: =OFFSET(InputSpyData!F$15,CalculationsAndCharts!$A166+$A$11,IF($C$7,8,0),1,1) -> 265.25 | S166: 252.2326307 | T166: TRUE | U166: FALSE | V166: FALSE | W166: TRUE | X166: 3 | Y166: FALSE | Z166: FALSE | AA166: FALSE | AD166: 50 | AE166: FALSE | AP166: 1154700
A167: 135 | B167: =OFFSET(InputPriceData!B$15,CalculationsAndCharts!$A167+$A$11,0,1,1) -> 2017-12-21 | C167: =OFFSET(InputPriceData!G$15,CalculationsAndCharts!$A167+$A$11,IF($C$7,8,0),1,1) -> 2062600 | D167: =OFFSET(InputPriceData!C$15,CalculationsAndCharts!$A167+$A$11,IF($C$7,8,0),1,1) -> 234.29 | E167: =OFFSET(InputPriceData!D$15,CalculationsAndCharts!$A167+$A$11,IF($C$7,8,0),1,1) -> 235.13 | F167: =OFFSET(InputPriceData!E$15,CalculationsAndCharts!$A167+$A$11,IF($C$7,8,0),1,1) -> 217.55 | G167: =OFFSET(InputPriceData!F$15,CalculationsAndCharts!$A167+$A$11,IF($C$7,8,0),1,1) -> 218.76 | H167: 31.38137063 | I167: 206.7307 | J167: 200.4544259 | K167: TRUE | L167: 60 | M167: 100 | N167: 100 | O167: 90 | P167: TRUE | Q167: 380.83875 | R167: =OFFSET(InputSpyData!F$15,CalculationsAndCharts!$A167+$A$11,IF($C$7,8,0),1,1) -> 265.32 | S167: 251.9696535 | T167: TRUE | U167: FALSE | V167: FALSE | W167: TRUE | X167: 2 | Y167: FALSE | Z167: FALSE | AA167: FALSE | AD167: 50 | AE167: FALSE | AQ167: 2062600
A168: 136 | B168: =OFFSET(InputPriceData!B$15,CalculationsAndCharts!$A168+$A$11,0,1,1) -> 2017-12-20 | C168: =OFFSET(InputPriceData!G$15,CalculationsAndCharts!$A168+$A$11,IF($C$7,8,0),1,1) -> 485800 | D168: =OFFSET(InputPriceData!C$15,CalculationsAndCharts!$A168+$A$11,IF($C$7,8,0),1,1) -> 235.86 | E168: =OFFSET(InputPriceData!D$15,CalculationsAndCharts!$A168+$A$11,IF($C$7,8,0),1,1) -> 236.24 | F168: =OFFSET(InputPriceData!E$15,CalculationsAndCharts!$A168+$A$11,IF($C$7,8,0),1,1) -> 232.66 | G168: =OFFSET(InputPriceData!F$15,CalculationsAndCharts!$A168+$A$11,IF($C$7,8,0),1,1) -> 233.65 | H168: 31.57551994 | I168: 206.2374 | J168: 199.922296 | K168: TRUE | L168: 60 | M168: 100 | N168: 100 | O168: 90 | P168: TRUE | Q168: 380.83875 | R168: =OFFSET(InputSpyData!F$15,CalculationsAndCharts!$A168+$A$11,IF($C$7,8,0),1,1) -> 264.78 | S168: 251.6999496 | T168: TRUE | U168: FALSE | V168: FALSE | W168: TRUE | X168: 1 | Y168: FALSE | Z168: TRUE | AA168: FALSE | AB168: 235.86 | AD168: 50 | AE168: FALSE | AQ168: 485800
A169: 137 | B169: =OFFSET(InputPriceData!B$15,CalculationsAndCharts!$A169+$A$11,0,1,1) -> 2017-12-19 | C169: =OFFSET(InputPriceData!G$15,CalculationsAndCharts!$A169+$A$11,IF($C$7,8,0),1,1) -> 611300 | D169: =OFFSET(InputPriceData!C$15,CalculationsAndCharts!$A169+$A$11,IF($C$7,8,0),1,1) -> 235.47 | E169: =OFFSET(InputPriceData!D$15,CalculationsAndCharts!$A169+$A$11,IF($C$7,8,0),1,1) -> 236.53 | F169: =OFFSET(InputPriceData!E$15,CalculationsAndCharts!$A169+$A$11,IF($C$7,8,0),1,1) -> 234.21 | G169: =OFFSET(InputPriceData!F$15,CalculationsAndCharts!$A169+$A$11,IF($C$7,8,0),1,1) -> 235.05 | H169: 31.69027554 | I169: 205.5732 | J169: 199.2351449 | K169: TRUE | L169: 60 | M169: 100 | N169: 100 | O169: 90 | P169: TRUE | Q169: 380.83875 | R169: =OFFSET(InputSpyData!F$15,CalculationsAndCharts!$A169+$A$11,IF($C$7,8,0),1,1) -> 264.91 | S169: 251.4357061 | T169: TRUE | U169: TRUE | V169: FALSE | W169: FALSE | X169: 0 | Y169: FALSE | Z169: FALSE | AA169: TRUE | AC169: 235.47 | AD169: 50 | AE169: FALSE | AQ169: 611300
A170: 138 | B170: =OFFSET(InputPriceData!B$15,CalculationsAndCharts!$A170+$A$11,0,1,1) -> 2017-12-18 | C170: =OFFSET(InputPriceData!G$15,CalculationsAndCharts!$A170+$A$11,IF($C$7,8,0),1,1) -> 800200 | D170: =OFFSET(InputPriceData!C$15,CalculationsAndCharts!$A170+$A$11,IF($C$7,8,0),1,1) -> 234.35 | E170: =OFFSET(InputPriceData!D$15,CalculationsAndCharts!$A170+$A$11,IF($C$7,8,0),1,1) -> 236.92 | F170: =OFFSET(InputPriceData!E$15,CalculationsAndCharts!$A170+$A$11,IF($C$7,8,0),1,1) -> 232.67 | G170: =OFFSET(InputPriceData!F$15,CalculationsAndCharts!$A170+$A$11,IF($C$7,8,0),1,1) -> 235.47 | H170: 31.71390156 | I170: 204.9533 | J170: 198.6105197 | K170: TRUE | L170: 60 | M170: 100 | N170: 100 | O170: 90 | P170: TRUE | Q170: 380.83875 | R170: =OFFSET(InputSpyData!F$15,CalculationsAndCharts!$A170+$A$11,IF($C$7,8,0),1,1) -> 265.94 | S170: 251.1634982 | T170: TRUE | U170: FALSE | V170: TRUE | W170: TRUE | X170: 84 | Y170: TRUE | Z170: FALSE | AA170: FALSE | AD170: 50 | AE170: FALSE | AP170: 800200
A171: 139 | B171: =OFFSET(InputPriceData!B$15,CalculationsAndCharts!$A171+$A$11,0,1,1) -> 2017-12-15 | C171: =OFFSET(InputPriceData!G$15,CalculationsAndCharts!$A171+$A$11,IF($C$7,8,0),1,1) -> 1642600 | D171: =OFFSET(InputPriceData!C$15,CalculationsAndCharts!$A171+$A$11,IF($C$7,8,0),1,1) -> 235.34 | E171: =OFFSET(InputPriceData!D$15,CalculationsAndCharts!$A171+$A$11,IF($C$7,8,0),1,1) -> 235.34 | F171: =OFFSET(InputPriceData!E$15,CalculationsAndCharts!$A171+$A$11,IF($C$7,8,0),1,1) -> 231.5 | G171: =OFFSET(InputPriceData!F$15,CalculationsAndCharts!$A171+$A$11,IF($C$7,8,0),1,1) -> 233.55 | H171: 31.91541462 | I171: 204.1712 | J171: 197.7881171 | K171: TRUE | L171: 60 | M171: 100 | N171: 100 | O171: 90 | P171: TRUE | Q171: 380.83875 | R171: =OFFSET(InputSpyData!F$15,CalculationsAndCharts!$A171+$A$11,IF($C$7,8,0),1,1) -> 264.26 | S171: 250.864983 | T171: TRUE | U171: FALSE | V171: FALSE | W171: TRUE | X171: 83 | Y171: FALSE | Z171: FALSE | AA171: FALSE | AD171: 50 | AE171: FALSE | AQ171: 1642600
A172: 140 | B172: =OFFSET(InputPriceData!B$15,CalculationsAndCharts!$A172+$A$11,0,1,1) -> 2017-12-14 | C172: =OFFSET(InputPriceData!G$15,CalculationsAndCharts!$A172+$A$11,IF($C$7,8,0),1,1) -> 979900 | D172: =OFFSET(InputPriceData!C$15,CalculationsAndCharts!$A172+$A$11,IF($C$7,8,0),1,1) -> 235.81 | E172: =OFFSET(InputPriceData!D$15,CalculationsAndCharts!$A172+$A$11,IF($C$7,8,0),1,1) -> 237.9 | F172: =OFFSET(InputPriceData!E$15,CalculationsAndCharts!$A172+$A$11,IF($C$7,8,0),1,1) -> 232.84 | G172: =OFFSET(InputPriceData!F$15,CalculationsAndCharts!$A172+$A$11,IF($C$7,8,0),1,1) -> 233.8 | H172: 32.09497695 | I172: 203.4226 | J172: 197.0036046 | K172: TRUE | L172: 60 | M172: 100 | N172: 100 | O172: 90 | P172: TRUE | Q172: 380.83875 | R172: =OFFSET(InputSpyData!F$15,CalculationsAndCharts!$A172+$A$11,IF($C$7,8,0),1,1) -> 262.08 | S172: 250.5943766 | T172: TRUE | U172: FALSE | V172: FALSE | W172: TRUE | X172: 82 | Y172: FALSE | Z172: FALSE | AA172: FALSE | AD172: 50 | AE172: FALSE | AQ172: 979900
A173: 141 | B173: =OFFSET(InputPriceData!B$15,CalculationsAndCharts!$A173+$A$11,0,1,1) -> 2017-12-13 | C173: =OFFSET(InputPriceData!G$15,CalculationsAndCharts!$A173+$A$11,IF($C$7,8,0),1,1) -> 739200 | D173: =OFFSET(InputPriceData!C$15,CalculationsAndCharts!$A173+$A$11,IF($C$7,8,0),1,1) -> 234.53 | E173: =OFFSET(InputPriceData!D$15,CalculationsAndCharts!$A173+$A$11,IF($C$7,8,0),1,1) -> 237.5 | F173: =OFFSET(InputPriceData!E$15,CalculationsAndCharts!$A173+$A$11,IF($C$7,8,0),1,1) -> 234.53 | G173: =OFFSET(InputPriceData!F$15,CalculationsAndCharts!$A173+$A$11,IF($C$7,8,0),1,1) -> 235.63 | H173: 32.25554377 | I173: 202.6702 | J173: 196.2190912 | K173: TRUE | L173: 60 | M173: 100 | N173: 100 | O173: 90 | P173: TRUE | Q173: 380.83875 | R173: =OFFSET(InputSpyData!F$15,CalculationsAndCharts!$A173+$A$11,IF($C$7,8,0),1,1) -> 263.15 | S173: 250.3623438 | T173: TRUE | U173: FALSE | V173: FALSE | W173: TRUE | X173: 81 | Y173: FALSE | Z173: FALSE | AA173: FALSE | AD173: 50 | AE173: FALSE | AP173: 739200
A174: 142 | B174: =OFFSET(InputPriceData!B$15,CalculationsAndCharts!$A174+$A$11,0,1,1) -> 2017-12-12 | C174: =OFFSET(InputPriceData!G$15,CalculationsAndCharts!$A174+$A$11,IF($C$7,8,0),1,1) -> 1010800 | D174: =OFFSET(InputPriceData!C$15,CalculationsAndCharts!$A174+$A$11,IF($C$7,8,0),1,1) -> 234.8 | E174: =OFFSET(InputPriceData!D$15,CalculationsAndCharts!$A174+$A$11,IF($C$7,8,0),1,1) -> 238.6 | F174: =OFFSET(InputPriceData!E$15,CalculationsAndCharts!$A174+$A$11,IF($C$7,8,0),1,1) -> 233.88 | G174: =OFFSET(InputPriceData!F$15,CalculationsAndCharts!$A174+$A$11,IF($C$7,8,0),1,1) -> 234.37 | H174: 32.34514737 | I174: 201.9258 | J174: 195.4567705 | K174: TRUE | L174: 60 | M174: 100 | N174: 100 | O174: 90 | P174: TRUE | Q174: 380.83875 | R174: =OFFSET(InputSpyData!F$15,CalculationsAndCharts!$A174+$A$11,IF($C$7,8,0),1,1) -> 263.18 | S174: 250.1040073 | T174: TRUE | U174: FALSE | V174: FALSE | W174: TRUE | X174: 80 | Y174: FALSE | Z174: FALSE | AA174: FALSE | AD174: 50 | AE174: FALSE | AQ174: 1010800
A175: 143 | B175: =OFFSET(InputPriceData!B$15,CalculationsAndCharts!$A175+$A$11,0,1,1) -> 2017-12-11 | C175: =OFFSET(InputPriceData!G$15,CalculationsAndCharts!$A175+$A$11,IF($C$7,8,0),1,1) -> 1056900 | D175: =OFFSET(InputPriceData!C$15,CalculationsAndCharts!$A175+$A$11,IF($C$7,8,0),1,1) -> 237.42 | E175: =OFFSET(InputPriceData!D$15,CalculationsAndCharts!$A175+$A$11,IF($C$7,8,0),1,1) -> 239.02 | F175: =OFFSET(InputPriceData!E$15,CalculationsAndCharts!$A175+$A$11,IF($C$7,8,0),1,1) -> 232.78 | G175: =OFFSET(InputPriceData!F$15,CalculationsAndCharts!$A175+$A$11,IF($C$7,8,0),1,1) -> 233.66 | H175: 32.45997984 | I175: 201.1708 | J175: 194.678804 | K175: TRUE | L175: 60 | M175: 100 | N175: 100 | O175: 90 | P175: TRUE | Q175: 380.83875 | R175: =OFFSET(InputSpyData!F$15,CalculationsAndCharts!$A175+$A$11,IF($C$7,8,0),1,1) -> 262.72 | S175: 249.8398458 | T175: TRUE | U175: FALSE | V175: FALSE | W175: TRUE | X175: 79 | Y175: FALSE | Z175: FALSE | AA175: FALSE | AD175: 50 | AE175: FALSE | AQ175: 1056900
A176: 144 | B176: =OFFSET(InputPriceData!B$15,CalculationsAndCharts!$A176+$A$11,0,1,1) -> 2017-12-08 | C176: =OFFSET(InputPriceData!G$15,CalculationsAndCharts!$A176+$A$11,IF($C$7,8,0),1,1) -> 1004300 | D176: =OFFSET(InputPriceData!C$15,CalculationsAndCharts!$A176+$A$11,IF($C$7,8,0),1,1) -> 242.72 | E176: =OFFSET(InputPriceData!D$15,CalculationsAndCharts!$A176+$A$11,IF($C$7,8,0),1,1) -> 245.81 | F176: =OFFSET(InputPriceData!E$15,CalculationsAndCharts!$A176+$A$11,IF($C$7,8,0),1,1) -> 235.05 | G176: =OFFSET(InputPriceData!F$15,CalculationsAndCharts!$A176+$A$11,IF($C$7,8,0),1,1) -> 238.43 | H176: 32.54789376 | I176: 200.4359 | J176: 193.9263212 | K176: TRUE | L176: 60 | M176: 100 | N176: 100 | O176: 90 | P176: TRUE | Q176: 380.83875 | R176: =OFFSET(InputSpyData!F$15,CalculationsAndCharts!$A176+$A$11,IF($C$7,8,0),1,1) -> 261.93 | S176: 249.5796407 | T176: TRUE | U176: FALSE | V176: FALSE | W176: TRUE | X176: 78 | Y176: FALSE | Z176: FALSE | AA176: FALSE | AD176: 50 | AE176: FALSE | AQ176: 1004300
A177: 145 | B177: =OFFSET(InputPriceData!B$15,CalculationsAndCharts!$A177+$A$11,0,1,1) -> 2017-12-07 | C177: =OFFSET(InputPriceData!G$15,CalculationsAndCharts!$A177+$A$11,IF($C$7,8,0),1,1) -> 1218000 | D177: =OFFSET(InputPriceData!C$15,CalculationsAndCharts!$A177+$A$11,IF($C$7,8,0),1,1) -> 236.11 | E177: =OFFSET(InputPriceData!D$15,CalculationsAndCharts!$A177+$A$11,IF($C$7,8,0),1,1) -> 242.17 | F177: =OFFSET(InputPriceData!E$15,CalculationsAndCharts!$A177+$A$11,IF($C$7,8,0),1,1) -> 232.5 | G177: =OFFSET(InputPriceData!F$15,CalculationsAndCharts!$A177+$A$11,IF($C$7,8,0),1,1) -> 241.38 | H177: 32.5767015 | I177: 199.6444 | J177: 193.1290597 | K177: TRUE | L177: 60 | M177: 100 | N177: 100 | O177: 90 | P177: TRUE | Q177: 380.83875 | R177: =OFFSET(InputSpyData!F$15,CalculationsAndCharts!$A177+$A$11,IF($C$7,8,0),1,1) -> 260.51 | S177: 249.3301385 | T177: TRUE | U177: FALSE | V177: FALSE | W177: TRUE | X177: 77 | Y177: FALSE | Z177: FALSE | AA177: FALSE | AD177: 50 | AE177: FALSE | AP177: 1218000
A178: 146 | B178: =OFFSET(InputPriceData!B$15,CalculationsAndCharts!$A178+$A$11,0,1,1) -> 2017-12-06 | C178: =OFFSET(InputPriceData!G$15,CalculationsAndCharts!$A178+$A$11,IF($C$7,8,0),1,1) -> 1216400 | D178: =OFFSET(InputPriceData!C$15,CalculationsAndCharts!$A178+$A$11,IF($C$7,8,0),1,1) -> 228.16 | E178: =OFFSET(InputPriceData!D$15,CalculationsAndCharts!$A178+$A$11,IF($C$7,8,0),1,1) -> 233.74 | F178: =OFFSET(InputPriceData!E$15,CalculationsAndCharts!$A178+$A$11,IF($C$7,8,0),1,1) -> 225.74 | G178: =OFFSET(InputPriceData!F$15,CalculationsAndCharts!$A178+$A$11,IF($C$7,8,0),1,1) -> 233.01 | H178: 32.59026123 | I178: 198.7908 | J178: 192.2727478 | K178: TRUE | L178: 60 | M178: 100 | N178: 100 | O178: 90 | P178: TRUE | Q178: 380.83875 | R178: =OFFSET(InputSpyData!F$15,CalculationsAndCharts!$A178+$A$11,IF($C$7,8,0),1,1) -> 259.69 | S178: 249.1042827 | T178: TRUE | U178: FALSE | V178: FALSE | W178: TRUE | X178: 76 | Y178: FALSE | Z178: FALSE | AA178: FALSE | AD178: 50 | AE178: FALSE | AP178: 1216400
A179: 147 | B179: =OFFSET(InputPriceData!B$15,CalculationsAndCharts!$A179+$A$11,0,1,1) -> 2017-12-05 | C179: =OFFSET(InputPriceData!G$15,CalculationsAndCharts!$A179+$A$11,IF($C$7,8,0),1,1) -> 2147900 | D179: =OFFSET(InputPriceData!C$15,CalculationsAndCharts!$A179+$A$11,IF($C$7,8,0),1,1) -> 225.02 | E179: =OFFSET(InputPriceData!D$15,CalculationsAndCharts!$A179+$A$11,IF($C$7,8,0),1,1) -> 233.82 | F179: =OFFSET(InputPriceData!E$15,CalculationsAndCharts!$A179+$A$11,IF($C$7,8,0),1,1) -> 224.3 | G179: =OFFSET(InputPriceData!F$15,CalculationsAndCharts!$A179+$A$11,IF($C$7,8,0),1,1) -> 227.36 | H179: 32.67961157 | I179: 198.0228 | J179: 191.4868777 | K179: TRUE | L179: 60 | M179: 100 | N179: 100 | O179: 90 | P179: TRUE | Q179: 380.83875 | R179: =OFFSET(InputSpyData!F$15,CalculationsAndCharts!$A179+$A$11,IF($C$7,8,0),1,1) -> 259.64 | S179: 248.8904298 | T179: TRUE | U179: FALSE | V179: FALSE | W179: TRUE | X179: 75 | Y179: FALSE | Z179: FALSE | AA179: FALSE | AD179: 50 | AE179: FALSE | AP179: 2147900
A180: 148 | B180: =OFFSET(InputPriceData!B$15,CalculationsAndCharts!$A180+$A$11,0,1,1) -> 2017-12-04 | C180: =OFFSET(InputPriceData!G$15,CalculationsAndCharts!$A180+$A$11,IF($C$7,8,0),1,1) -> 3879100 | D180: =OFFSET(InputPriceData!C$15,CalculationsAndCharts!$A180+$A$11,IF($C$7,8,0),1,1) -> 257.83 | E180: =OFFSET(InputPriceData!D$15,CalculationsAndCharts!$A180+$A$11,IF($C$7,8,0),1,1) -> 257.99 | F180: =OFFSET(InputPriceData!E$15,CalculationsAndCharts!$A180+$A$11,IF($C$7,8,0),1,1) -> 222.74 | G180: =OFFSET(InputPriceData!F$15,CalculationsAndCharts!$A180+$A$11,IF($C$7,8,0),1,1) -> 225.8 | H180: 32.83189539 | I180: 197.2922 | J180: 190.7258209 | K180: TRUE | L180: 60 | M180: 100 | N180: 100 | O180: 90 | P180: TRUE | Q180: 380.83875 | R180: =OFFSET(InputSpyData!F$15,CalculationsAndCharts!$A180+$A$11,IF($C$7,8,0),1,1) -> 260.58 | S180: 248.6732668 | T180: TRUE | U180: FALSE | V180: FALSE | W180: TRUE | X180: 74 | Y180: FALSE | Z180: FALSE | AA180: FALSE | AD180: 50 | AE180: FALSE | AQ180: 3879100
A181: 149 | B181: =OFFSET(InputPriceData!B$15,CalculationsAndCharts!$A181+$A$11,0,1,1) -> 2017-12-01 | C181: =OFFSET(InputPriceData!G$15,CalculationsAndCharts!$A181+$A$11,IF($C$7,8,0),1,1) -> 1354900 | D181: =OFFSET(InputPriceData!C$15,CalculationsAndCharts!$A181+$A$11,IF($C$7,8,0),1,1) -> 259.35 | E181: =OFFSET(InputPriceData!D$15,CalculationsAndCharts!$A181+$A$11,IF($C$7,8,0),1,1) -> 261 | F181: =OFFSET(InputPriceData!E$15,CalculationsAndCharts!$A181+$A$11,IF($C$7,8,0),1,1) -> 244.82 | G181: =OFFSET(InputPriceData!F$15,CalculationsAndCharts!$A181+$A$11,IF($C$7,8,0),1,1) -> 254.07 | H181: 33.00919038 | I181: 196.5561 | J181: 189.9542619 | K181: TRUE | L181: 60 | M181: 100 | N181: 100 | O181: 90 | P181: TRUE | Q181: 380.83875 | R181: =OFFSET(InputSpyData!F$15,CalculationsAndCharts!$A181+$A$11,IF($C$7,8,0),1,1) -> 260.89 | S181: 248.4327267 | T181: TRUE | U181: FALSE | V181: FALSE | W181: TRUE | X181: 73 | Y181: FALSE | Z181: FALSE | AA181: FALSE | AD181: 50 | AE181: FALSE | AQ181: 1354900
A182: 150 | B182: =OFFSET(InputPriceData!B$15,CalculationsAndCharts!$A182+$A$11,0,1,1) -> 2017-11-30 | C182: =OFFSET(InputPriceData!G$15,CalculationsAndCharts!$A182+$A$11,IF($C$7,8,0),1,1) -> 1085100 | D182: =OFFSET(InputPriceData!C$15,CalculationsAndCharts!$A182+$A$11,IF($C$7,8,0),1,1) -> 259.96 | E182: =OFFSET(InputPriceData!D$15,CalculationsAndCharts!$A182+$A$11,IF($C$7,8,0),1,1) -> 262.79 | F182: =OFFSET(InputPriceData!E$15,CalculationsAndCharts!$A182+$A$11,IF($C$7,8,0),1,1) -> 254.24 | G182: =OFFSET(InputPriceData!F$15,CalculationsAndCharts!$A182+$A$11,IF($C$7,8,0),1,1) -> 260.88 | H182: 32.78562656 | I182: 195.5405 | J182: 188.9833747 | K182: TRUE | L182: 60 | M182: 100 | N182: 100 | O182: 90 | P182: TRUE | Q182: 380.83875 | R182: =OFFSET(InputSpyData!F$15,CalculationsAndCharts!$A182+$A$11,IF($C$7,8,0),1,1) -> 261.44 | S182: 248.1810646 | T182: TRUE | U182: FALSE | V182: FALSE | W182: TRUE | X182: 72 | Y182: FALSE | Z182: FALSE | AA182: FALSE | AD182: 50 | AE182: FALSE | AP182: 1085100
A183: 151 | B183: =OFFSET(InputPriceData!B$15,CalculationsAndCharts!$A183+$A$11,0,1,1) -> 2017-11-29 | C183: =OFFSET(InputPriceData!G$15,CalculationsAndCharts!$A183+$A$11,IF($C$7,8,0),1,1) -> 1336200 | D183: =OFFSET(InputPriceData!C$15,CalculationsAndCharts!$A183+$A$11,IF($C$7,8,0),1,1) -> 264.4 | E183: =OFFSET(InputPriceData!D$15,CalculationsAndCharts!$A183+$A$11,IF($C$7,8,0),1,1) -> 264.64 | F183: =OFFSET(InputPriceData!E$15,CalculationsAndCharts!$A183+$A$11,IF($C$7,8,0),1,1) -> 254.02 | G183: =OFFSET(InputPriceData!F$15,CalculationsAndCharts!$A183+$A$11,IF($C$7,8,0),1,1) -> 258.37 | H183: 32.40874635 | I183: 194.4476 | J183: 187.9658507 | K183: TRUE | L183: 60 | M183: 100 | N183: 100 | O183: 90 | P183: TRUE | Q183: 380.83875 | R183: =OFFSET(InputSpyData!F$15,CalculationsAndCharts!$A183+$A$11,IF($C$7,8,0),1,1) -> 259.17 | S183: 247.9132073 | T183: TRUE | U183: FALSE | V183: FALSE | W183: TRUE | X183: 71 | Y183: FALSE | Z183: FALSE | AA183: FALSE | AD183: 50 | AE183: FALSE | AQ183: 1336200
A184: 152 | B184: =OFFSET(InputPriceData!B$15,CalculationsAndCharts!$A184+$A$11,0,1,1) -> 2017-11-28 | C184: =OFFSET(InputPriceData!G$15,CalculationsAndCharts!$A184+$A$11,IF($C$7,8,0),1,1) -> 1018300 | D184: =OFFSET(InputPriceData!C$15,CalculationsAndCharts!$A184+$A$11,IF($C$7,8,0),1,1) -> 264.4 | E184: =OFFSET(InputPriceData!D$15,CalculationsAndCharts!$A184+$A$11,IF($C$7,8,0),1,1) -> 266.41 | F184: =OFFSET(InputPriceData!E$15,CalculationsAndCharts!$A184+$A$11,IF($C$7,8,0),1,1) -> 259 | G184: =OFFSET(InputPriceData!F$15,CalculationsAndCharts!$A184+$A$11,IF($C$7,8,0),1,1) -> 264.23 | H184: 32.04219108 | I184: 193.3797 | J184: 186.9712618 | K184: TRUE | L184: 60 | M184: 100 | N184: 100 | O184: 90 | P184: TRUE | Q184: 380.83875 | R184: =OFFSET(InputSpyData!F$15,CalculationsAndCharts!$A184+$A$11,IF($C$7,8,0),1,1) -> 259.33 | S184: 247.6857974 | T184: TRUE | U184: FALSE | V184: FALSE | W184: TRUE | X184: 70 | Y184: FALSE | Z184: FALSE | AA184: FALSE | AD184: 50 | AE184: FALSE | AQ184: 1018300
A185: 153 | B185: =OFFSET(InputPriceData!B$15,CalculationsAndCharts!$A185+$A$11,0,1,1) -> 2017-11-27 | C185: =OFFSET(InputPriceData!G$15,CalculationsAndCharts!$A185+$A$11,IF($C$7,8,0),1,1) -> 1049100 | D185: =OFFSET(InputPriceData!C$15,CalculationsAndCharts!$A185+$A$11,IF($C$7,8,0),1,1) -> 255.78 | E185: =OFFSET(InputPriceData!D$15,CalculationsAndCharts!$A185+$A$11,IF($C$7,8,0),1,1) -> 263.9 | F185: =OFFSET(InputPriceData!E$15,CalculationsAndCharts!$A185+$A$11,IF($C$7,8,0),1,1) -> 255.54 | G185: =OFFSET(InputPriceData!F$15,CalculationsAndCharts!$A185+$A$11,IF($C$7,8,0),1,1) -> 262.42 | H185: 31.50250592 | I185: 192.2569 | J185: 185.9563988 | K185: TRUE | L185: 60 | M185: 100 | N185: 100 | O185: 90 | P185: TRUE | Q185: 380.83875 | R185: =OFFSET(InputSpyData!F$15,CalculationsAndCharts!$A185+$A$11,IF($C$7,8,0),1,1) -> 256.72 | S185: 247.450561 | T185: TRUE | U185: FALSE | V185: FALSE | W185: TRUE | X185: 69 | Y185: FALSE | Z185: FALSE | AA185: FALSE | AD185: 50 | AE185: FALSE | AP185: 1049100
A186: 154 | B186: =OFFSET(InputPriceData!B$15,CalculationsAndCharts!$A186+$A$11,0,1,1) -> 2017-11-24 | C186: =OFFSET(InputPriceData!G$15,CalculationsAndCharts!$A186+$A$11,IF($C$7,8,0),1,1) -> 285600 | D186: =OFFSET(InputPriceData!C$15,CalculationsAndCharts!$A186+$A$11,IF($C$7,8,0),1,1) -> 254.32 | E186: =OFFSET(InputPriceData!D$15,CalculationsAndCharts!$A186+$A$11,IF($C$7,8,0),1,1) -> 255.73 | F186: =OFFSET(InputPriceData!E$15,CalculationsAndCharts!$A186+$A$11,IF($C$7,8,0),1,1) -> 253.44 | G186: =OFFSET(InputPriceData!F$15,CalculationsAndCharts!$A186+$A$11,IF($C$7,8,0),1,1) -> 254.76 | H186: 30.98364832 | I186: 191.1301 | J186: 184.9333703 | K186: TRUE | L186: 60 | M186: 100 | N186: 100 | O186: 90 | P186: TRUE | Q186: 380.83875 | R186: =OFFSET(InputSpyData!F$15,CalculationsAndCharts!$A186+$A$11,IF($C$7,8,0),1,1) -> 256.85 | S186: 247.2632996 | T186: TRUE | U186: FALSE | V186: FALSE | W186: TRUE | X186: 68 | Y186: FALSE | Z186: FALSE | AA186: FALSE | AD186: 50 | AE186: FALSE | AP186: 285600
A187: 155 | B187: =OFFSET(InputPriceData!B$15,CalculationsAndCharts!$A187+$A$11,0,1,1) -> 2017-11-22 | C187: =OFFSET(InputPriceData!G$15,CalculationsAndCharts!$A187+$A$11,IF($C$7,8,0),1,1) -> 805000 | D187: =OFFSET(InputPriceData!C$15,CalculationsAndCharts!$A187+$A$11,IF($C$7,8,0),1,1) -> 255.41 | E187: =OFFSET(InputPriceData!D$15,CalculationsAndCharts!$A187+$A$11,IF($C$7,8,0),1,1) -> 257.35 | F187: =OFFSET(InputPriceData!E$15,CalculationsAndCharts!$A187+$A$11,IF($C$7,8,0),1,1) -> 251.57 | G187: =OFFSET(InputPriceData!F$15,CalculationsAndCharts!$A187+$A$11,IF($C$7,8,0),1,1) -> 254.38 | H187: 30.55814565 | I187: 190.1019 | J187: 183.9902709 | K187: TRUE | L187: 60 | M187: 100 | N187: 100 | O187: 90 | P187: TRUE | Q187: 380.83875 | R187: =OFFSET(InputSpyData!F$15,CalculationsAndCharts!$A187+$A$11,IF($C$7,8,0),1,1) -> 256.26 | S187: 247.0696289 | T187: TRUE | U187: FALSE | V187: FALSE | W187: TRUE | X187: 67 | Y187: FALSE | Z187: FALSE | AA187: FALSE | AD187: 50 | AE187: FALSE | AQ187: 805000
A188: 156 | B188: =OFFSET(InputPriceData!B$15,CalculationsAndCharts!$A188+$A$11,0,1,1) -> 2017-11-21 | C188: =OFFSET(InputPriceData!G$15,CalculationsAndCharts!$A188+$A$11,IF($C$7,8,0),1,1) -> 1303800 | D188: =OFFSET(InputPriceData!C$15,CalculationsAndCharts!$A188+$A$11,IF($C$7,8,0),1,1) -> 257.67 | E188: =OFFSET(InputPriceData!D$15,CalculationsAndCharts!$A188+$A$11,IF($C$7,8,0),1,1) -> 258.88 | F188: =OFFSET(InputPriceData!E$15,CalculationsAndCharts!$A188+$A$11,IF($C$7,8,0),1,1) -> 252.03 | G188: =OFFSET(InputPriceData!F$15,CalculationsAndCharts!$A188+$A$11,IF($C$7,8,0),1,1) -> 256.43 | H188: 30.13706474 | I188: 189.0484 | J188: 183.0209871 | K188: TRUE | L188: 60 | M188: 100 | N188: 100 | O188: 90 | P188: TRUE | Q188: 380.83875 | R188: =OFFSET(InputSpyData!F$15,CalculationsAndCharts!$A188+$A$11,IF($C$7,8,0),1,1) -> 256.48 | S188: 246.8839648 | T188: TRUE | U188: FALSE | V188: FALSE | W188: TRUE | X188: 66 | Y188: FALSE | Z188: FALSE | AA188: FALSE | AD188: 50 | AE188: FALSE | AQ188: 1303800
A189: 157 | B189: =OFFSET(InputPriceData!B$15,CalculationsAndCharts!$A189+$A$11,0,1,1) -> 2017-11-20 | C189: =OFFSET(InputPriceData!G$15,CalculationsAndCharts!$A189+$A$11,IF($C$7,8,0),1,1) -> 718200 | D189: =OFFSET(InputPriceData!C$15,CalculationsAndCharts!$A189+$A$11,IF($C$7,8,0),1,1) -> 254.64 | E189: =OFFSET(InputPriceData!D$15,CalculationsAndCharts!$A189+$A$11,IF($C$7,8,0),1,1) -> 258.61 | F189: =OFFSET(InputPriceData!E$15,CalculationsAndCharts!$A189+$A$11,IF($C$7,8,0),1,1) -> 253.67 | G189: =OFFSET(InputPriceData!F$15,CalculationsAndCharts!$A189+$A$11,IF($C$7,8,0),1,1) -> 255.51 | H189: 29.6118877 | I189: 187.9853 | J189: 182.0629225 | K189: TRUE | L189: 60 | M189: 100 | N189: 100 | O189: 90 | P189: TRUE | Q189: 380.83875 | R189: =OFFSET(InputSpyData!F$15,CalculationsAndCharts!$A189+$A$11,IF($C$7,8,0),1,1) -> 254.82 | S189: 246.6901055 | T189: TRUE | U189: FALSE | V189: FALSE | W189: TRUE | X189: 65 | Y189: FALSE | Z189: FALSE | AA189: FALSE | AD189: 50 | AE189: FALSE | AP189: 718200
A190: 158 | B190: =OFFSET(InputPriceData!B$15,CalculationsAndCharts!$A190+$A$11,0,1,1) -> 2017-11-17 | C190: =OFFSET(InputPriceData!G$15,CalculationsAndCharts!$A190+$A$11,IF($C$7,8,0),1,1) -> 666800 | D190: =OFFSET(InputPriceData!C$15,CalculationsAndCharts!$A190+$A$11,IF($C$7,8,0),1,1) -> 254.74 | E190: =OFFSET(InputPriceData!D$15,CalculationsAndCharts!$A190+$A$11,IF($C$7,8,0),1,1) -> 255.77 | F190: =OFFSET(InputPriceData!E$15,CalculationsAndCharts!$A190+$A$11,IF($C$7,8,0),1,1) -> 251.5 | G190: =OFFSET(InputPriceData!F$15,CalculationsAndCharts!$A190+$A$11,IF($C$7,8,0),1,1) -> 253.89 | H190: 29.07957639 | I190: 186.9164 | J190: 181.1004847 | K190: TRUE | L190: 60 | M190: 100 | N190: 100 | O190: 90 | P190: TRUE | Q190: 380.83875 | R190: =OFFSET(InputSpyData!F$15,CalculationsAndCharts!$A190+$A$11,IF($C$7,8,0),1,1) -> 254.38 | S190: 246.5258652 | T190: TRUE | U190: FALSE | V190: FALSE | W190: TRUE | X190: 64 | Y190: FALSE | Z190: FALSE | AA190: FALSE | AD190: 50 | AE190: FALSE | AQ190: 666800
A191: 159 | B191: =OFFSET(InputPriceData!B$15,CalculationsAndCharts!$A191+$A$11,0,1,1) -> 2017-11-16 | C191: =OFFSET(InputPriceData!G$15,CalculationsAndCharts!$A191+$A$11,IF($C$7,8,0),1,1) -> 1048900 | D191: =OFFSET(InputPriceData!C$15,CalculationsAndCharts!$A191+$A$11,IF($C$7,8,0),1,1) -> 251.76 | E191: =OFFSET(InputPriceData!D$15,CalculationsAndCharts!$A191+$A$11,IF($C$7,8,0),1,1) -> 255.98 | F191: =OFFSET(InputPriceData!E$15,CalculationsAndCharts!$A191+$A$11,IF($C$7,8,0),1,1) -> 249.18 | G191: =OFFSET(InputPriceData!F$15,CalculationsAndCharts!$A191+$A$11,IF($C$7,8,0),1,1) -> 254.92 | H191: 28.4913739 | I191: 185.8999 | J191: 180.2016252 | K191: TRUE | L191: 60 | M191: 100 | N191: 100 | O191: 90 | P191: TRUE | Q191: 380.83875 | R191: =OFFSET(InputSpyData!F$15,CalculationsAndCharts!$A191+$A$11,IF($C$7,8,0),1,1) -> 255.13 | S191: 246.3671958 | T191: TRUE | U191: FALSE | V191: FALSE | W191: TRUE | X191: 63 | Y191: FALSE | Z191: FALSE | AA191: FALSE | AD191: 50 | AE191: FALSE | AP191: 1048900
A192: 160 | B192: =OFFSET(InputPriceData!B$15,CalculationsAndCharts!$A192+$A$11,0,1,1) -> 2017-11-15 | C192: =OFFSET(InputPriceData!G$15,CalculationsAndCharts!$A192+$A$11,IF($C$7,8,0),1,1) -> 1465100 | D192: =OFFSET(InputPriceData!C$15,CalculationsAndCharts!$A192+$A$11,IF($C$7,8,0),1,1) -> 252.24 | E192: =OFFSET(InputPriceData!D$15,CalculationsAndCharts!$A192+$A$11,IF($C$7,8,0),1,1) -> 253.64 | F192: =OFFSET(InputPriceData!E$15,CalculationsAndCharts!$A192+$A$11,IF($C$7,8,0),1,1) -> 243 | G192: =OFFSET(InputPriceData!F$15,CalculationsAndCharts!$A192+$A$11,IF($C$7,8,0),1,1) -> 249.19 | H192: 27.86345625 | I192: 184.8441 | J192: 179.2714088 | K192: TRUE | L192: 60 | M192: 100 | N192: 100 | O192: 90 | P192: TRUE | Q192: 380.83875 | R192: =OFFSET(InputSpyData!F$15,CalculationsAndCharts!$A192+$A$11,IF($C$7,8,0),1,1) -> 252.98 | S192: 246.1901695 | T192: TRUE | U192: FALSE | V192: FALSE | W192: TRUE | X192: 62 | Y192: FALSE | Z192: FALSE | AA192: FALSE | AD192: 50 | AE192: FALSE | AQ192: 1465100
A193: 161 | B193: =OFFSET(InputPriceData!B$15,CalculationsAndCharts!$A193+$A$11,0,1,1) -> 2017-11-14 | C193: =OFFSET(InputPriceData!G$15,CalculationsAndCharts!$A193+$A$11,IF($C$7,8,0),1,1) -> 948300 | D193: =OFFSET(InputPriceData!C$15,CalculationsAndCharts!$A193+$A$11,IF($C$7,8,0),1,1) -> 251.78 | E193: =OFFSET(InputPriceData!D$15,CalculationsAndCharts!$A193+$A$11,IF($C$7,8,0),1,1) -> 256.1 | F193: =OFFSET(InputPriceData!E$15,CalculationsAndCharts!$A193+$A$11,IF($C$7,8,0),1,1) -> 251 | G193: =OFFSET(InputPriceData!F$15,CalculationsAndCharts!$A193+$A$11,IF($C$7,8,0),1,1) -> 254.02 | H193: 27.29509919 | I193: 183.8689 | J193: 178.4098802 | K193: TRUE | L193: 60 | M193: 100 | N193: 100 | O193: 90 | P193: TRUE | Q193: 380.83875 | R193: =OFFSET(InputSpyData!F$15,CalculationsAndCharts!$A193+$A$11,IF($C$7,8,0),1,1) -> 254.25 | S193: 246.0530012 | T193: TRUE | U193: FALSE | V193: FALSE | W193: TRUE | X193: 61 | Y193: FALSE | Z193: FALSE | AA193: FALSE | AD193: 50 | AE193: FALSE | AP193: 948300
A194: 162 | B194: =OFFSET(InputPriceData!B$15,CalculationsAndCharts!$A194+$A$11,0,1,1) -> 2017-11-13 | C194: =OFFSET(InputPriceData!G$15,CalculationsAndCharts!$A194+$A$11,IF($C$7,8,0),1,1) -> 952400 | D194: =OFFSET(InputPriceData!C$15,CalculationsAndCharts!$A194+$A$11,IF($C$7,8,0),1,1) -> 249.29 | E194: =OFFSET(InputPriceData!D$15,CalculationsAndCharts!$A194+$A$11,IF($C$7,8,0),1,1) -> 257.6 | F194: =OFFSET(InputPriceData!E$15,CalculationsAndCharts!$A194+$A$11,IF($C$7,8,0),1,1) -> 248.29 | G194: =OFFSET(InputPriceData!F$15,CalculationsAndCharts!$A194+$A$11,IF($C$7,8,0),1,1) -> 253.73 | H194: 26.53343071 | I194: 182.8637 | J194: 177.5570139 | K194: TRUE | L194: 60 | M194: 100 | N194: 100 | O194: 90 | P194: TRUE | Q194: 380.83875 | R194: =OFFSET(InputSpyData!F$15,CalculationsAndCharts!$A194+$A$11,IF($C$7,8,0),1,1) -> 254.85 | S194: 245.8874052 | T194: TRUE | U194: FALSE | V194: FALSE | W194: TRUE | X194: 60 | Y194: FALSE | Z194: FALSE | AA194: FALSE | AD194: 50 | AE194: FALSE | AP194: 952400
A195: 163 | B195: =OFFSET(InputPriceData!B$15,CalculationsAndCharts!$A195+$A$11,0,1,1) -> 2017-11-10 | C195: =OFFSET(InputPriceData!G$15,CalculationsAndCharts!$A195+$A$11,IF($C$7,8,0),1,1) -> 927600 | D195: =OFFSET(InputPriceData!C$15,CalculationsAndCharts!$A195+$A$11,IF($C$7,8,0),1,1) -> 249.38 | E195: =OFFSET(InputPriceData!D$15,CalculationsAndCharts!$A195+$A$11,IF($C$7,8,0),1,1) -> 251.02 | F195: =OFFSET(InputPriceData!E$15,CalculationsAndCharts!$A195+$A$11,IF($C$7,8,0),1,1) -> 246.26 | G195: =OFFSET(InputPriceData!F$15,CalculationsAndCharts!$A195+$A$11,IF($C$7,8,0),1,1) -> 249.46 | H195: 25.76286343 | I195: 181.8233 | J195: 176.6707273 | K195: TRUE | L195: 60 | M195: 100 | N195: 100 | O195: 90 | P195: TRUE | Q195: 380.83875 | R195: =OFFSET(InputSpyData!F$15,CalculationsAndCharts!$A195+$A$11,IF($C$7,8,0),1,1) -> 254.61 | S195: 245.7063427 | T195: TRUE | U195: FALSE | V195: FALSE | W195: TRUE | X195: 59 | Y195: FALSE | Z195: FALSE | AA195: FALSE | AD195: 50 | AE195: FALSE | AP195: 927600
A196: 164 | B196: =OFFSET(InputPriceData!B$15,CalculationsAndCharts!$A196+$A$11,0,1,1) -> 2017-11-09 | C196: =OFFSET(InputPriceData!G$15,CalculationsAndCharts!$A196+$A$11,IF($C$7,8,0),1,1) -> 1314700 | D196: =OFFSET(InputPriceData!C$15,CalculationsAndCharts!$A196+$A$11,IF($C$7,8,0),1,1) -> 251.8 | E196: =OFFSET(InputPriceData!D$15,CalculationsAndCharts!$A196+$A$11,IF($C$7,8,0),1,1) -> 254.19 | F196: =OFFSET(InputPriceData!E$15,CalculationsAndCharts!$A196+$A$11,IF($C$7,8,0),1,1) -> 245.53 | G196: =OFFSET(InputPriceData!F$15,CalculationsAndCharts!$A196+$A$11,IF($C$7,8,0),1,1) -> 249.63 | H196: 25.04948779 | I196: 180.8229 | J196: 175.8130024 | K196: TRUE | L196: 60 | M196: 100 | N196: 100 | O196: 90 | P196: TRUE | Q196: 380.83875 | R196: =OFFSET(InputSpyData!F$15,CalculationsAndCharts!$A196+$A$11,IF($C$7,8,0),1,1) -> 254.69 | S196: 245.5264708 | T196: TRUE | U196: FALSE | V196: FALSE | W196: TRUE | X196: 58 | Y196: FALSE | Z196: FALSE | AA196: FALSE | AD196: 50 | AE196: FALSE | AQ196: 1314700
A197: 165 | B197: =OFFSET(InputPriceData!B$15,CalculationsAndCharts!$A197+$A$11,0,1,1) -> 2017-11-08 | C197: =OFFSET(InputPriceData!G$15,CalculationsAndCharts!$A197+$A$11,IF($C$7,8,0),1,1) -> 1080500 | D197: =OFFSET(InputPriceData!C$15,CalculationsAndCharts!$A197+$A$11,IF($C$7,8,0),1,1) -> 246 | E197: =OFFSET(InputPriceData!D$15,CalculationsAndCharts!$A197+$A$11,IF($C$7,8,0),1,1) -> 253.65 | F197: =OFFSET(InputPriceData!E$15,CalculationsAndCharts!$A197+$A$11,IF($C$7,8,0),1,1) -> 246 | G197: =OFFSET(InputPriceData!F$15,CalculationsAndCharts!$A197+$A$11,IF($C$7,8,0),1,1) -> 252.74 | H197: 24.30073708 | I197: 179.7965 | J197: 174.9363526 | K197: TRUE | L197: 60 | M197: 100 | N197: 100 | O197: 90 | P197: TRUE | Q197: 380.83875 | R197: =OFFSET(InputSpyData!F$15,CalculationsAndCharts!$A197+$A$11,IF($C$7,8,0),1,1) -> 255.62 | S197: 245.341349 | T197: TRUE | U197: FALSE | V197: FALSE | W197: TRUE | X197: 57 | Y197: FALSE | Z197: FALSE | AA197: FALSE | AD197: 50 | AE197: FALSE | AP197: 1080500
A198: 166 | B198: =OFFSET(InputPriceData!B$15,CalculationsAndCharts!$A198+$A$11,0,1,1) -> 2017-11-07 | C198: =OFFSET(InputPriceData!G$15,CalculationsAndCharts!$A198+$A$11,IF($C$7,8,0),1,1) -> 613000 | D198: =OFFSET(InputPriceData!C$15,CalculationsAndCharts!$A198+$A$11,IF($C$7,8,0),1,1) -> 245 | E198: =OFFSET(InputPriceData!D$15,CalculationsAndCharts!$A198+$A$11,IF($C$7,8,0),1,1) -> 246.84 | F198: =OFFSET(InputPriceData!E$15,CalculationsAndCharts!$A198+$A$11,IF($C$7,8,0),1,1) -> 243.66 | G198: =OFFSET(InputPriceData!F$15,CalculationsAndCharts!$A198+$A$11,IF($C$7,8,0),1,1) -> 246.46 | H198: 23.351971 | I198: 178.7661 | J198: 174.0957058 | K198: TRUE | L198: 60 | M198: 100 | N198: 100 | O198: 90 | P198: TRUE | Q198: 380.83875 | R198: =OFFSET(InputSpyData!F$15,CalculationsAndCharts!$A198+$A$11,IF($C$7,8,0),1,1) -> 255.18 | S198: 245.1336995 | T198: TRUE | U198: FALSE | V198: FALSE | W198: TRUE | X198: 56 | Y198: FALSE | Z198: FALSE | AA198: FALSE | AD198: 50 | AE198: FALSE | AP198: 613000
A199: 167 | B199: =OFFSET(InputPriceData!B$15,CalculationsAndCharts!$A199+$A$11,0,1,1) -> 2017-11-06 | C199: =OFFSET(InputPriceData!G$15,CalculationsAndCharts!$A199+$A$11,IF($C$7,8,0),1,1) -> 1063600 | D199: =OFFSET(InputPriceData!C$15,CalculationsAndCharts!$A199+$A$11,IF($C$7,8,0),1,1) -> 244.02 | E199: =OFFSET(InputPriceData!D$15,CalculationsAndCharts!$A199+$A$11,IF($C$7,8,0),1,1) -> 246.83 | F199: =OFFSET(InputPriceData!E$15,CalculationsAndCharts!$A199+$A$11,IF($C$7,8,0),1,1) -> 238.59 | G199: =OFFSET(InputPriceData!F$15,CalculationsAndCharts!$A199+$A$11,IF($C$7,8,0),1,1) -> 244.5 | H199: 22.57636712 | I199: 177.7541 | J199: 173.2388266 | K199: TRUE | L199: 60 | M199: 100 | N199: 100 | O199: 90 | P199: TRUE | Q199: 380.83875 | R199: =OFFSET(InputSpyData!F$15,CalculationsAndCharts!$A199+$A$11,IF($C$7,8,0),1,1) -> 255.36 | S199: 244.930744 | T199: TRUE | U199: FALSE | V199: FALSE | W199: TRUE | X199: 55 | Y199: FALSE | Z199: FALSE | AA199: FALSE | AD199: 50 | AE199: FALSE | AP199: 1063600
A200: 168 | B200: =OFFSET(InputPriceData!B$15,CalculationsAndCharts!$A200+$A$11,0,1,1) -> 2017-11-03 | C200: =OFFSET(InputPriceData!G$15,CalculationsAndCharts!$A200+$A$11,IF($C$7,8,0),1,1) -> 1034900 | D200: =OFFSET(InputPriceData!C$15,CalculationsAndCharts!$A200+$A$11,IF($C$7,8,0),1,1) -> 233.85 | E200: =OFFSET(InputPriceData!D$15,CalculationsAndCharts!$A200+$A$11,IF($C$7,8,0),1,1) -> 242.55 | F200: =OFFSET(InputPriceData!E$15,CalculationsAndCharts!$A200+$A$11,IF($C$7,8,0),1,1) -> 233.85 | G200: =OFFSET(InputPriceData!F$15,CalculationsAndCharts!$A200+$A$11,IF($C$7,8,0),1,1) -> 241.35 | H200: 21.80624847 | I200: 176.7493 | J200: 172.3880503 | K200: TRUE | L200: 60 | M200: 100 | N200: 100 | O200: 90 | P200: TRUE | Q200: 380.83875 | R200: =OFFSET(InputSpyData!F$15,CalculationsAndCharts!$A200+$A$11,IF($C$7,8,0),1,1) -> 254.97 | S200: 244.7200519 | T200: TRUE | U200: FALSE | V200: FALSE | W200: TRUE | X200: 54 | Y200: FALSE | Z200: FALSE | AA200: FALSE | AD200: 50 | AE200: FALSE | AP200: 1034900
A201: 169 | B201: =OFFSET(InputPriceData!B$15,CalculationsAndCharts!$A201+$A$11,0,1,1) -> 2017-11-02 | C201: =OFFSET(InputPriceData!G$15,CalculationsAndCharts!$A201+$A$11,IF($C$7,8,0),1,1) -> 1036800 | D201: =OFFSET(InputPriceData!C$15,CalculationsAndCharts!$A201+$A$11,IF($C$7,8,0),1,1) -> 235.38 | E201: =OFFSET(InputPriceData!D$15,CalculationsAndCharts!$A201+$A$11,IF($C$7,8,0),1,1) -> 237.95 | F201: =OFFSET(InputPriceData!E$15,CalculationsAndCharts!$A201+$A$11,IF($C$7,8,0),1,1) -> 233 | G201: =OFFSET(InputPriceData!F$15,CalculationsAndCharts!$A201+$A$11,IF($C$7,8,0),1,1) -> 233.47 | H201: 21.0562976 | I201: 175.7788 | J201: 171.5675405 | K201: TRUE | L201: 60 | M201: 100 | N201: 100 | O201: 90 | P201: TRUE | Q201: 380.83875 | R201: =OFFSET(InputSpyData!F$15,CalculationsAndCharts!$A201+$A$11,IF($C$7,8,0),1,1) -> 254.12 | S201: 244.5129823 | T201: TRUE | U201: FALSE | V201: FALSE | W201: TRUE | X201: 53 | Y201: FALSE | Z201: FALSE | AA201: FALSE | AD201: 50 | AE201: FALSE | AQ201: 1036800
